Workbook

Sheet Program Settings (hidden)
A2: Settings and Parameters on this sheet should not be modified
A4: Model Frequency | B4: =MATCH(#REF!,{"Annual","Quarterly","Monthly"},0) -> 
A5: Output Target | B5: =MATCH(#REF!,{"Excel","Comma Delimited File"},0) -> 
A7: Comma Delimited Output Settings
A8: Output Type | B8: =IF(#REF!="Single File",1,2) -> 
A10: Number of Custom Scenarios: | B10: =COUNT(OFFSET(CustomStart,0,0,50000,1)) -> 0
A13: Fifty | B13: Twelve
A14: Standard | B14: Standard
A15: Scenarios | B15: Scenarios
A16: 50 | B16: 12
A17: 88 | B17: 11
A18: 195 | B18: 18
A19: 41 | B19: 25
A20: 63 | B20: 41
A21: 107 | B21: 60
A22: 73 | B22: 80
A23: 80 | B23: 88
A24: 117 | B24: 95
A25: 145 | B25: 107
A26: 64 | B26: 145
A27: 18 | B27: 179
A28: 176 | B28: 195
A29: 179
A30: 2
A31: 11
A32: 60
A33: 199
A34: 121
A35: 148
A36: 153
A37: 160
A38: 163
A39: 25
A40: 155
A41: 156
A42: 180
A43: 133
A44: 74
A45: 8
A46: 27
A47: 35
A48: 95
A49: 129
A50: 159
A51: 164
A52: 198
A53: 43
A54: 76
A55: 138
A56: 185
A57: 12
A58: 24
A59: 55
A60: 99
A61: 181
A62: 50
A63: 151
A64: 54
A65: 83
A66: 92

Sheet C3Factor
F2: What is the projection date (EOM)? | G2: 2014-09-30
F3: Beginning Statutory Reserve Level: | G3: 1000000
F4: Tax Rate: | G4: 0.35 | M4: Max C-3 Factor: | N4: =BD26 -> 0.1550431066
F5: Discount Loading: | G5: 1.05 | M5: CTE 90 C-3 Factor: | N5: =AVERAGE(C13:V13) -> 0.08484747083
F6: Projection Basis (Projection Year/Calendar Year): | G6: Calendar | H6: =IF(G6="Projection",1,2) -> 2 | M6: RBC C-3 Phase I Factor (95% Weighted Avg): | N6: =BD24 -> 0.06845030272 | BL6: 2000-09-30
B7: * if "Calendar Year", the first fractional year is discarded | BL7: =EOMONTH(BL6,1) -> 2000-10-31
BL8: =EOMONTH(BL7,1) -> 2000-11-30
B9: Weighted Average 95% and CTE 90 Calculation | BL9: 2000-12-31
B10: =IF(C$12="","","Percentile: ") -> Percentile: | C10: =IF(C$12="","",89+COLUMN(C10)/2-0.25) -> 90.25 | D10: =IF(D$12="","",89+COLUMN(D10)/2-0.25) -> 90.75 | E10: 91.25 | F10: 91.75 | G10: 92.25 | H10: 92.75 | I10: 93.25 | J10: 93.75 | K10: 94.25 | L10: 94.75 | M10: 95.25 | N10: 95.75 | O10: 96.25 | P10: 96.75 | Q10: 97.25 | R10: 97.75 | S10: 98.25 | T10: 98.75 | U10: 99.25 | V10: 99.75 | BL10: 2001-01-31
B11: Weights: | C11: 0 | D11: 0 | E11: 0 | F11: 0.02 | G11: 0.04 | H11: 0.06 | I11: 0.08 | J11: 0.1 | K11: 0.12 | L11: 0.16 | M11: 0.12 | N11: 0.1 | O11: 0.08 | P11: 0.06 | Q11: 0.04 | R11: 0.02 | S11: 0 | T11: 0 | U11: 0 | V11: 0 | BL11: 2001-02-28
B12: =IF(C$12="","","Scenario: ") -> Scenario: | C12: 63 | D12: 126 | E12: 182 | F12: 165 | G12: 44 | H12: 89 | I12: 57 | J12: 5 | K12: 107 | L12: 7 | M12: 55 | N12: 155 | O12: 161 | P12: 59 | Q12: 9 | R12: 109 | S12: 159 | T12: 111 | U12: 61 | V12: 11 | BL12: 2001-03-31
B13: =IF(C$12="","","C-3 Factor: ") -> C-3 Factor: | C13: =IF(C$12="","",VLOOKUP(C$12,$B$28:$C$227,2,FALSE)) -> 0.0477048827 | D13: =IF(D$12="","",VLOOKUP(D$12,$B$28:$C$227,2,FALSE)) -> 0.04789038492 | E13: 0.04862389561 | F13: 0.04869730747 | G13: 0.04951920797 | H13: 0.05040237573 | I13: 0.05576497688 | J13: 0.05671269027 | K13: 0.05777898324 | L13: 0.05902607158 | M13: 0.05990148128 | N13: 0.06051302715 | O13: 0.1101261918 | P13: 0.1128205818 | Q13: 0.1161729904 | R13: 0.1247799376 | S13: 0.1357201802 | T13: 0.1463742031 | U13: 0.1533769405 | V13: 0.1550431066 | BL13: 2001-04-30
B14: ** AAA scenario picker uses the central value for each significance ranking group. The worst scenario of 200 subset should be considered to be the center of the range from 99.5 to 100% of original 10,000 set | BL14: 2001-05-31
BL15: 2001-06-30
B16: Sample Calculation of C-3 Factor for Scenario 1: | BL16: 2001-07-31
D17: =IF(OR(MONTH($G$2)=12,$H$6=1),"",MONTH($G$2) & "/" & RIGHT(YEAR($G$2)+COLUMN(D17)-4,2) & "-12/" & RIGHT(YEAR($G$2)+COLUMN(D17)-4,2)) -> 9/14-12/14 | E17: =IF(AND(MONTH($G$2)<12,$H$6=1),MONTH($G$2) & "/" & RIGHT(YEAR($G$2)+COLUMN(E17)-5,2) &"-"& MONTH($G$2) & "/" & RIGHT(YEAR($G$2)+COLUMN(E17)-4,2),YEAR($G$2)+COLUMN(E17)-4) -> 2015 | F17: =IF(AND(MONTH($G$2)<12,$H$6=1),MONTH($G$2) & "/" & RIGHT(YEAR($G$2)+COLUMN(F17)-5,2) &"-"& MONTH($G$2) & "/" & RIGHT(YEAR($G$2)+COLUMN(F17)-4,2),YEAR($G$2)+COLUMN(F17)-4) -> 2016 | G17: 2017 | H17: 2018 | I17: 2019 | J17: 2020 | K17: 2021 | L17: 2022 | M17: 2023 | N17: 2024 | O17: 2025 | P17: 2026 | Q17: 2027 | R17: 2028 | S17: 2029 | T17: 2030 | U17: 2031 | V17: 2032 | W17: 2033 | X17: 2034 | Y17: 2035 | Z17: 2036 | AA17: 2037 | AB17: 2038 | AC17: 2039 | AD17: 2040 | AE17: 2041 | AF17: 2042 | AG17: 2043 | AH17: 2044 | AI17: 2045 | AJ17: 2046 | AK17: 2047 | AL17: 2048 | AM17: 2049 | AN17: 2050 | AO17: 2051 | AP17: 2052 | AQ17: 2053 | AR17: 2054 | AS17: 2055 | AT17: 2056 | AU17: 2057 | AV17: 2058 | AW17: 2059 | AX17: 2060 | AY17: 2061 | AZ17: 2062 | BA17: 2063 | BB17: 2064 | BL17: 2001-08-31
C18: 1 Year Discount Rate: | D18: 0.002404703651 | E18: 0.006944754734 | F18: 0.0190905662 | G18: 0.02173203146 | H18: 0.01060684692 | I18: 0.01160011475 | J18: 0.01352023333 | K18: 0.0130922021 | L18: 0.01040638324 | M18: 0.01166342098 | N18: 0.01794166651 | O18: 0.0246384511 | P18: 0.02253668442 | Q18: 0.02205534467 | R18: 0.02728290628 | S18: 0.03165383274 | T18: 0.03676798033 | U18: 0.03785702051 | V18: 0.04037454431 | W18: 0.04120931441 | X18: 0.02969387177 | Y18: 0.02239843249 | Z18: 0.01859177334 | AA18: 0.01907993414 | AB18: 0.02444114721 | AC18: 0.03279162133 | AD18: 0.02762994612 | AE18: 0.04274383808 | AF18: 0.04751765536 | AG18: 0.03988851048 | AH18: 0.0401220772 | AI18: 0.04467745477 | AJ18: 0.04380963084 | AK18: 0.03409213999 | AL18: 0.02020401906 | AM18: 0.04585033307 | AN18: 0.05336123669 | AO18: 0.05861269082 | AP18: 0.06521379045 | AQ18: 0.04352331294 | AR18: 0.04001737592 | AS18: 0.03888841662 | AT18: 0.03090223351 | AU18: 0.03305954173 | AV18: 0.0412296396 | AW18: 0.03595410344 | AX18: 0.03886569736 | AY18: 0.05049518573 | AZ18: 0.05956569854 | BA18: 0.06099472537 | BB18: 0.05625949819 | BL18: 2001-09-30
D19: (First value is needed to discount any fraction of a year if "Calendar Year" is used) | BL19: 2001-10-31
C20: After-tax Dsct Factors: | D20: =1/(1+$D$18*$G$5*(1-$G$4))^((12-MONTH($G$2))/12) -> 0.9995901178 | E20: =D20/(1+E$18*$G$5*(1-$G$4)) -> 0.994874616 | F20: 0.9820788054 | G20: 0.9677253944 | H20: 0.9607702126 | I20: 0.9532234678 | J20: 0.9445079646 | K20: 0.9361431251 | L20: 0.9295411922 | M20: 0.9222002158 | N20: 0.9110443075 | O20: 0.8959777756 | P20: 0.8824052471 | Q20: 0.8693195771 | R20: 0.8534282452 | S20: 0.8353808929 | T20: 0.8149308975 | U20: 0.7944055114 | V20: 0.7731021961 | W20: 0.7519532426 | X20: 0.7370168102 | Y20: 0.725919726 | Z20: 0.7168240282 | AA20: 0.7076094983 | AB20: 0.6959994733 | AC20: 0.6807637881 | AD20: 0.6681639281 | AE20: 0.6492243215 | AF20: 0.6288308346 | AG20: 0.6121653025 | AH20: 0.5958489806 | AI20: 0.578217755 | AJ20: 0.5614309292 | AK20: =AJ20/(1+AK$18*$G$5*(1-$G$4)) -> 0.5486646626 | AL20: 0.5412018981 | AM20: 0.524780034 | AN20: 0.5063396288 | AO20: 0.4868635477 | AP20: 0.4661174023 | AQ20: 0.4526709647 | AR20: 0.4406363664 | AS20: 0.4292436625 | AT20: 0.4203775739 | AU20: 0.411101827 | AV20: 0.3998503465 | AW20: 0.3902735505 | AX20: 0.3801887258 | AY20: 0.3675228006 | AZ20: 0.3531653611 | BA20: 0.3390510393 | BB20: 0.3265138518 | BL20: 2001-11-30
C21: PV(Surplus): | E21: =IF(E28<>"",E28*E20,"") -> -1079.438958 | F21: -26.02508834 | G21: 4431.214581 | H21: 8607.05995 | I21: 8214.879845 | J21: 5554.65134 | K21: 1625.144465 | L21: -2482.804524 | M21: -6205.024152 | N21: -9434.774849 | O21: -12632.39066 | P21: -16410.53158 | Q21: -20159.95565 | R21: -22933.3238 | S21: -24461.20561 | T21: -25106.79855 | U21: -25565.16097 | V21: -26318.33151 | W21: -27533.14395 | X21: -29167.80877 | Y21: -30748.87072 | Z21: -32026.98075 | AA21: -32870.93783 | AB21: -33208.57087 | AC21: -33296.83764 | AD21: -33569.55799 | AE21: -33291.57398 | AF21: -32886.59499 | AG21: -32922.86213 | AH21: -32557.78415 | AK21: =IF(AK28<>"",AK28*AK20,"") ->  | BL21: 2001-12-31
C22: C3-Factor: | D22: =-MIN(E21:BB21)/$G$3 -> 0.03356955799 | E22: = - Min(PV(Surplus)) / Beginning Statutory Reserve Level | BL22: 2002-01-31
BL23: 2002-02-28
BC24: Prelim. RBC C-3 Factor: | BD24: =SUMPRODUCT($BD$28:$BD$227,$D$28:$D$227)/SUM($D$28:$D$227) -> 0.06845030272 | BL24: 2002-03-31
B25: *** Enter statutory surplus values for 12 or 50 scenarios, for all years of your projection | BL25: 2002-04-30
B26: (S(1) = statutory surplus from end of first full projection year -- cumulative over at least 12 months) | BC26: Max. C-3 Factor: | BD26: =MAX(BD28:BD227) -> 0.1550431066 | BL26: 2002-05-31
B27: Scenario | C27: C-3 Factor | D27: Weight | E27: ="S("&COLUMN(E27)-4&")" -> S(1) | F27: ="S("&COLUMN(F27)-4&")" -> S(2) | G27: S(3) | H27: S(4) | I27: S(5) | J27: S(6) | K27: S(7) | L27: S(8) | M27: S(9) | N27: S(10) | O27: S(11) | P27: S(12) | Q27: S(13) | R27: S(14) | S27: S(15) | T27: S(16) | U27: S(17) | V27: S(18) | W27: S(19) | X27: S(20) | Y27: S(21) | Z27: S(22) | AA27: S(23) | AB27: S(24) | AC27: S(25) | AD27: S(26) | AE27: S(27) | AF27: S(28) | AG27: S(29) | AH27: S(30) | AI27: S(31) | AJ27: S(32) | AK27: S(33) | AL27: S(34) | AM27: S(35) | AN27: S(36) | AO27: S(37) | AP27: S(38) | AQ27: S(39) | AR27: S(40) | AS27: S(41) | AT27: S(42) | AU27: S(43) | AV27: S(44) | AW27: S(45) | AX27: S(46) | AY27: S(47) | AZ27: S(48) | BA27: S(49) | BB27: S(50) | BD27: Max(C-3 Factor,0) | BL27: 2002-06-30
B28: 1 | C28: 0.03356955799 | D28: 0 | E28: -1085 | F28: -26.5 | G28: 4579 | H28: 8958.5 | I28: 8618 | J28: 5881 | K28: 1736 | L28: -2671 | M28: -6728.5 | N28: -10356 | O28: -14099 | P28: -18597.5 | Q28: -23190.5 | R28: -26872 | S28: -29281.5 | T28: -30808.5 | U28: -32181.5 | V28: -34042.5 | W28: -36615.5 | X28: -39575.5 | Y28: -42358.5 | Z28: -44679 | AA28: -46453.5 | AB28: -47713.5 | AC28: -48911 | AD28: -50241.5 | AE28: -51279 | AF28: -52298 | AG28: -53781 | AH28: -54641 | BD28: =IF(C28="","",MAX(0,C28)) -> 0.03356955799 | BL28: 2002-07-31
B29: 2 | C29: 0.004391029143 | D29: 0 | E29: -2804.5 | F29: -4416 | G29: -2741.5 | H29: 52 | I29: 2861.5 | J29: 6633 | K29: 10667 | L29: 14553.5 | M29: 18080.5 | N29: 21517 | O29: 24806.5 | P29: 27745 | Q29: 30856 | R29: 34365 | S29: 36414.5 | T29: 36899 | U29: 37397.5 | V29: 37968 | W29: 38613 | X29: 39265.5 | Y29: 39779 | Z29: 40151 | AA29: 40524 | AB29: 40991.5 | AC29: 41563.5 | AD29: 42153.5 | AE29: 42872 | AF29: 43733 | AG29: 44635.5 | AH29: 45100.5 | BD29: =IF(C29="","",MAX(0,C29)) -> 0.004391029143 | BL29: 2002-08-31
B30: 3 | C30: 0.001233071631 | D30: 0 | E30: -1241 | F30: 164.5 | G30: 7093 | H30: 14105 | I30: 17437 | J30: 21515.5 | K30: 25599.5 | L30: 29520.5 | M30: 33491 | N30: 37638.5 | O30: 41893 | P30: 46017.5 | Q30: 49660 | R30: 53000.5 | S30: 55506 | T30: 57169 | U30: 58888 | V30: 60853 | W30: 63096.5 | X30: 65467 | Y30: 68279.5 | Z30: 71569 | AA30: 75032.5 | AB30: 78736.5 | AC30: 82677.5 | AD30: 86781 | AE30: 90883.5 | AF30: 94953 | AG30: 99154.5 | AH30: 101315.5 | BD30: 0.001233071631 | BL30: 2002-09-30
B31: 4 | C31: 0.04648648357 | D31: 0 | E31: -926.5 | F31: -1259.5 | G31: -5655 | H31: -10827 | I31: -14257 | J31: -18519.5 | K31: -22841 | L31: -26981.5 | M31: -31374.5 | N31: -35850.5 | O31: -39931.5 | P31: -43288.5 | Q31: -45464.5 | R31: -47669.5 | S31: -50207.5 | T31: -52325.5 | U31: -54181 | V31: -55915.5 | W31: -57375.5 | X31: -58834 | Y31: -60057.5 | Z31: -60745.5 | AA31: -61551 | AB31: -62587 | AC31: -63487 | AD31: -64098 | AE31: -64499 | AF31: -64913 | AG31: -65545.5 | AH31: -65952 | BD31: 0.04648648357 | BL31: 2002-10-31
B32: 5 | C32: 0.05671269027 | D32: 0.1 | E32: -1982.5 | F32: -2610.5 | G32: -1818.5 | H32: -798 | I32: -88.5 | J32: 611.5 | K32: 800.5 | L32: 310 | M32: -987 | N32: -2830 | O32: -4673.5 | P32: -6939 | Q32: -10341 | R32: -14915.5 | S32: -18335 | T32: -20052 | U32: -22035.5 | V32: -24363 | W32: -27118.5 | X32: -30471 | Y32: -34186 | Z32: -38269.5 | AA32: -43013.5 | AB32: -48484 | AC32: -54310 | AD32: -60259 | AE32: -67527 | AF32: -75971.5 | AG32: -85362 | AH32: -90922.5 | BD32: 0.05671269027 | BL32: 2002-11-30
B33: 6 | C33: 0.003346331485 | D33: 0 | E33: -2406.5 | F33: -3392 | G33: 702.5 | H33: 6088.5 | I33: 9372 | J33: 13287 | K33: 17334 | L33: 21365.5 | M33: 25149 | N33: 28719.5 | O33: 32186 | P33: 35427 | Q33: 38609.5 | R33: 42023.5 | S33: 44425 | T33: 45641.5 | U33: 46917.5 | V33: 49126 | W33: 52405.5 | X33: 55956 | Y33: 59843.5 | Z33: 64069 | AA33: 68575.5 | AB33: 73440.5 | AC33: 78814 | AD33: 84881.5 | AE33: 91584 | AF33: 98763 | AG33: 106646.5 | AH33: 110878.5 | BD33: 0.003346331485 | BL33: 2002-12-31
B34: 7 | C34: 0.05902607158 | D34: 0.16 | E34: -519.5 | F34: 410.5 | G34: -1567 | H34: -5036.5 | I34: -8255 | J34: -11996 | K34: -15584 | L34: -19351.5 | M34: -22678 | N34: -25339 | O34: -28129 | P34: -31292 | Q34: -35147.5 | R34: -39299 | S34: -42830.5 | T34: -45915 | U34: -49202 | V34: -52344.5 | W34: -55128 | X34: -58091.5 | Y34: -61359.5 | Z34: -65196 | AA34: -69334 | AB34: -72831 | AC34: -75702.5 | AD34: -78976 | AE34: -82847.5 | AF34: -86956 | AG34: -90924 | AH34: -92775.5 | BD34: 0.05902607158 | BL34: 2003-01-31
B35: 8 | C35: 0.001912460166 | D35: 0 | E35: -1932 | F35: -1847.5 | G35: 3662 | H35: 9876.5 | I35: 12663.5 | J35: 15502 | K35: 18642 | L35: 22181 | M35: 26078.5 | N35: 30004.5 | O35: 33833.5 | P35: 37976.5 | Q35: 42325.5 | R35: 46573 | S35: 48842 | T35: 49234.5 | U35: 49639 | V35: 50143 | W35: 50750 | X35: 51362 | Y35: 52087.5 | Z35: 52932 | AA35: 53797.5 | AB35: 54659 | AC35: 55510 | AD35: 56372 | AE35: 57342.5 | AF35: 58442.5 | AG35: 59579.5 | AH35: 60159 | BD35: 0.001912460166 | BL35: 2003-02-28
B36: 9 | C36: 0.1161729904 | D36: 0.04 | E36: -2768.5 | F36: -5661 | G36: -8849 | H36: -11155.5 | I36: -12989.5 | J36: -16358 | K36: -20297.5 | L36: -24590.5 | M36: -29559 | N36: -35239.5 | O36: -41700 | P36: -48554.5 | Q36: -55552 | R36: -62943 | S36: -69595 | T36: -75404.5 | U36: -82088 | V36: -89262.5 | W36: -96178 | X36: -102706 | Y36: -108722 | Z36: -113866.5 | AA36: -119369.5 | AB36: -127979.5 | AC36: -141175 | AD36: -156931 | AE36: -173073 | AF36: -189836 | AG36: -207372.5 | AH36: -216589 | BD36: 0.1161729904 | BL36: 2003-03-31
B37: 10 | C37: 0.002099681401 | D37: 0 | E37: -1571 | F37: -2125.5 | G37: 417 | H37: 4231.5 | I37: 6229 | J37: 9215.5 | K37: 13161 | L37: 17122 | M37: 21043.5 | N37: 25189.5 | O37: 29420 | P37: 33588 | Q37: 37492 | R37: 41190 | S37: 43632 | T37: 44755.5 | U37: 45919 | V37: 47180.5 | W37: 48541.5 | X37: 49939.5 | Y37: 51321 | Z37: 52696.5 | AA37: 54144.5 | AB37: 56113 | AC37: 58656.5 | AD37: 61366.5 | AE37: 64159 | AF37: 66943.5 | AG37: 69677.5 | AH37: 71037 | BD37: 0.002099681401 | BL37: 2003-04-30
B38: 11 | C38: 0.1550431066 | D38: 0 | E38: -3049 | F38: -6773 | G38: -13336 | H38: -19293.5 | I38: -22942 | J38: -29127 | K38: -36285.5 | L38: -43254 | M38: -50512 | N38: -58254.5 | O38: -67371.5 | P38: -78883 | Q38: -91353.5 | R38: -103623.5 | S38: -114257 | T38: -122330 | U38: -130081.5 | V38: -138242 | W38: -146633 | X38: -154269.5 | Y38: -160827.5 | Z38: -167581 | AA38: -175042.5 | AB38: -183625 | AC38: -194576 | AD38: -205684.5 | AE38: -215237 | AF38: -225215.5 | AG38: -235795 | AH38: -241132 | BD38: 0.1550431066 | BL38: 2003-05-31
B39: 12 | C39: 0.03278689822 | D39: 0 | E39: -1723.5 | F39: -1719.5 | G39: 826.5 | H39: 3282 | I39: 3226 | J39: 1226.5 | K39: -2338.5 | L39: -5347 | M39: -7796 | N39: -10467 | O39: -13363 | P39: -16022 | Q39: -18745 | R39: -22150 | S39: -24725 | T39: -26727 | U39: -29080 | V39: -31464 | W39: -34027 | X39: -37352.5 | Y39: -41119 | Z39: -44455 | AA39: -47099 | AB39: -49473 | AC39: -52141.5 | AD39: -54865 | AE39: -57243.5 | AF39: -59602.5 | AG39: -62056.5 | AH39: -63295 | BD39: 0.03278689822 | BL39: 2003-06-30
B40: 13 | C40: 0.0341160556 | D40: 0 | E40: -1723.5 | F40: -1719.5 | G40: 826.5 | H40: 3282 | I40: 3226 | J40: 1226.5 | K40: -2338.5 | L40: -5347 | M40: -7796 | N40: -10467 | O40: -13363 | P40: -16022 | Q40: -18745 | R40: -22150 | S40: -24725 | T40: -26727 | U40: -29080 | V40: -31464 | W40: -34027 | X40: -37352.5 | Y40: -41119 | Z40: -44455 | AA40: -47099 | AB40: -49473 | AC40: -52141.5 | AD40: -54865 | AE40: -57243.5 | AF40: -59602.5 | AG40: -62056.5 | AH40: -63295 | BD40: 0.0341160556 | BL40: 2003-07-31
B41: 14 | C41: 0.02853115101 | D41: 0 | E41: -1723.5 | F41: -1719.5 | G41: 826.5 | H41: 3282 | I41: 3226 | J41: 1226.5 | K41: -2338.5 | L41: -5347 | M41: -7796 | N41: -10467 | O41: -13363 | P41: -16022 | Q41: -18745 | R41: -22150 | S41: -24725 | T41: -26727 | U41: -29080 | V41: -31464 | W41: -34027 | X41: -37352.5 | Y41: -41119 | Z41: -44455 | AA41: -47099 | AB41: -49473 | AC41: -52141.5 | AD41: -54865 | AE41: -57243.5 | AF41: -59602.5 | AG41: -62056.5 | AH41: -63295 | BD41: 0.02853115101 | BL41: 2003-08-31
B42: 15 | C42: 0.04586281611 | D42: 0 | E42: -1723.5 | F42: -1719.5 | G42: 826.5 | H42: 3282 | I42: 3226 | J42: 1226.5 | K42: -2338.5 | L42: -5347 | M42: -7796 | N42: -10467 | O42: -13363 | P42: -16022 | Q42: -18745 | R42: -22150 | S42: -24725 | T42: -26727 | U42: -29080 | V42: -31464 | W42: -34027 | X42: -37352.5 | Y42: -41119 | Z42: -44455 | AA42: -47099 | AB42: -49473 | AC42: -52141.5 | AD42: -54865 | AE42: -57243.5 | AF42: -59602.5 | AG42: -62056.5 | AH42: -63295 | BD42: 0.04586281611 | BL42: 2003-09-30
B43: 16 | C43: 0.03291587128 | D43: 0 | E43: -1723.5 | F43: -1719.5 | G43: 826.5 | H43: 3282 | I43: 3226 | J43: 1226.5 | K43: -2338.5 | L43: -5347 | M43: -7796 | N43: -10467 | O43: -13363 | P43: -16022 | Q43: -18745 | R43: -22150 | S43: -24725 | T43: -26727 | U43: -29080 | V43: -31464 | W43: -34027 | X43: -37352.5 | Y43: -41119 | Z43: -44455 | AA43: -47099 | AB43: -49473 | AC43: -52141.5 | AD43: -54865 | AE43: -57243.5 | AF43: -59602.5 | AG43: -62056.5 | AH43: -63295 | BD43: 0.03291587128 | BL43: 2003-10-31
B44: 17 | C44: 0.04460078152 | D44: 0 | E44: -1723.5 | F44: -1719.5 | G44: 826.5 | H44: 3282 | I44: 3226 | J44: 1226.5 | K44: -2338.5 | L44: -5347 | M44: -7796 | N44: -10467 | O44: -13363 | P44: -16022 | Q44: -18745 | R44: -22150 | S44: -24725 | T44: -26727 | U44: -29080 | V44: -31464 | W44: -34027 | X44: -37352.5 | Y44: -41119 | Z44: -44455 | AA44: -47099 | AB44: -49473 | AC44: -52141.5 | AD44: -54865 | AE44: -57243.5 | AF44: -59602.5 | AG44: -62056.5 | AH44: -63295 | BD44: 0.04460078152 | BL44: 2003-11-30
B45: 18 | C45: 0.0381482858 | D45: 0 | E45: -1723.5 | F45: -1719.5 | G45: 826.5 | H45: 3282 | I45: 3226 | J45: 1226.5 | K45: -2338.5 | L45: -5347 | M45: -7796 | N45: -10467 | O45: -13363 | P45: -16022 | Q45: -18745 | R45: -22150 | S45: -24725 | T45: -26727 | U45: -29080 | V45: -31464 | W45: -34027 | X45: -37352.5 | Y45: -41119 | Z45: -44455 | AA45: -47099 | AB45: -49473 | AC45: -52141.5 | AD45: -54865 | AE45: -57243.5 | AF45: -59602.5 | AG45: -62056.5 | AH45: -63295 | BD45: 0.0381482858 | BL45: 2003-12-31
B46: 19 | C46: 0.04638542752 | D46: 0 | E46: -1723.5 | F46: -1719.5 | G46: 826.5 | H46: 3282 | I46: 3226 | J46: 1226.5 | K46: -2338.5 | L46: -5347 | M46: -7796 | N46: -10467 | O46: -13363 | P46: -16022 | Q46: -18745 | R46: -22150 | S46: -24725 | T46: -26727 | U46: -29080 | V46: -31464 | W46: -34027 | X46: -37352.5 | Y46: -41119 | Z46: -44455 | AA46: -47099 | AB46: -49473 | AC46: -52141.5 | AD46: -54865 | AE46: -57243.5 | AF46: -59602.5 | AG46: -62056.5 | AH46: -63295 | BD46: 0.04638542752 | BL46: 2004-01-31
B47: 20 | C47: 0.03653068446 | D47: 0 | E47: -1723.5 | F47: -1719.5 | G47: 826.5 | H47: 3282 | I47: 3226 | J47: 1226.5 | K47: -2338.5 | L47: -5347 | M47: -7796 | N47: -10467 | O47: -13363 | P47: -16022 | Q47: -18745 | R47: -22150 | S47: -24725 | T47: -26727 | U47: -29080 | V47: -31464 | W47: -34027 | X47: -37352.5 | Y47: -41119 | Z47: -44455 | AA47: -47099 | AB47: -49473 | AC47: -52141.5 | AD47: -54865 | AE47: -57243.5 | AF47: -59602.5 | AG47: -62056.5 | AH47: -63295 | BD47: 0.03653068446 | BL47: 2004-02-29
B48: 21 | C48: 0.04130338149 | D48: 0 | E48: -1723.5 | F48: -1719.5 | G48: 826.5 | H48: 3282 | I48: 3226 | J48: 1226.5 | K48: -2338.5 | L48: -5347 | M48: -7796 | N48: -10467 | O48: -13363 | P48: -16022 | Q48: -18745 | R48: -22150 | S48: -24725 | T48: -26727 | U48: -29080 | V48: -31464 | W48: -34027 | X48: -37352.5 | Y48: -41119 | Z48: -44455 | AA48: -47099 | AB48: -49473 | AC48: -52141.5 | AD48: -54865 | AE48: -57243.5 | AF48: -59602.5 | AG48: -62056.5 | AH48: -63295 | BD48: 0.04130338149 | BL48: 2004-03-31
B49: 22 | C49: 0.03308776174 | D49: 0 | E49: -1723.5 | F49: -1719.5 | G49: 826.5 | H49: 3282 | I49: 3226 | J49: 1226.5 | K49: -2338.5 | L49: -5347 | M49: -7796 | N49: -10467 | O49: -13363 | P49: -16022 | Q49: -18745 | R49: -22150 | S49: -24725 | T49: -26727 | U49: -29080 | V49: -31464 | W49: -34027 | X49: -37352.5 | Y49: -41119 | Z49: -44455 | AA49: -47099 | AB49: -49473 | AC49: -52141.5 | AD49: -54865 | AE49: -57243.5 | AF49: -59602.5 | AG49: -62056.5 | AH49: -63295 | BD49: 0.03308776174 | BL49: 2004-04-30
B50: 23 | C50: 0.04211029342 | D50: 0 | E50: -1723.5 | F50: -1719.5 | G50: 826.5 | H50: 3282 | I50: 3226 | J50: 1226.5 | K50: -2338.5 | L50: -5347 | M50: -7796 | N50: -10467 | O50: -13363 | P50: -16022 | Q50: -18745 | R50: -22150 | S50: -24725 | T50: -26727 | U50: -29080 | V50: -31464 | W50: -34027 | X50: -37352.5 | Y50: -41119 | Z50: -44455 | AA50: -47099 | AB50: -49473 | AC50: -52141.5 | AD50: -54865 | AE50: -57243.5 | AF50: -59602.5 | AG50: -62056.5 | AH50: -63295 | BD50: 0.04211029342 | BL50: 2004-05-31
B51: 24 | C51: 0.02641836515 | D51: 0 | E51: -1723.5 | F51: -1719.5 | G51: 826.5 | H51: 3282 | I51: 3226 | J51: 1226.5 | K51: -2338.5 | L51: -5347 | M51: -7796 | N51: -10467 | O51: -13363 | P51: -16022 | Q51: -18745 | R51: -22150 | S51: -24725 | T51: -26727 | U51: -29080 | V51: -31464 | W51: -34027 | X51: -37352.5 | Y51: -41119 | Z51: -44455 | AA51: -47099 | AB51: -49473 | AC51: -52141.5 | AD51: -54865 | AE51: -57243.5 | AF51: -59602.5 | AG51: -62056.5 | AH51: -63295 | BD51: 0.02641836515 | BL51: 2004-06-30
B52: 25 | C52: 0.03881905722 | D52: 0 | E52: -1723.5 | F52: -1719.5 | G52: 826.5 | H52: 3282 | I52: 3226 | J52: 1226.5 | K52: -2338.5 | L52: -5347 | M52: -7796 | N52: -10467 | O52: -13363 | P52: -16022 | Q52: -18745 | R52: -22150 | S52: -24725 | T52: -26727 | U52: -29080 | V52: -31464 | W52: -34027 | X52: -37352.5 | Y52: -41119 | Z52: -44455 | AA52: -47099 | AB52: -49473 | AC52: -52141.5 | AD52: -54865 | AE52: -57243.5 | AF52: -59602.5 | AG52: -62056.5 | AH52: -63295 | BD52: 0.03881905722 | BL52: 2004-07-31
B53: 26 | C53: 0.0416671917 | D53: 0 | E53: -1723.5 | F53: -1719.5 | G53: 826.5 | H53: 3282 | I53: 3226 | J53: 1226.5 | K53: -2338.5 | L53: -5347 | M53: -7796 | N53: -10467 | O53: -13363 | P53: -16022 | Q53: -18745 | R53: -22150 | S53: -24725 | T53: -26727 | U53: -29080 | V53: -31464 | W53: -34027 | X53: -37352.5 | Y53: -41119 | Z53: -44455 | AA53: -47099 | AB53: -49473 | AC53: -52141.5 | AD53: -54865 | AE53: -57243.5 | AF53: -59602.5 | AG53: -62056.5 | AH53: -63295 | BD53: 0.0416671917 | BL53: 2004-08-31
B54: 27 | C54: 0.04065465444 | D54: 0 | E54: -1723.5 | F54: -1719.5 | G54: 826.5 | H54: 3282 | I54: 3226 | J54: 1226.5 | K54: -2338.5 | L54: -5347 | M54: -7796 | N54: -10467 | O54: -13363 | P54: -16022 | Q54: -18745 | R54: -22150 | S54: -24725 | T54: -26727 | U54: -29080 | V54: -31464 | W54: -34027 | X54: -37352.5 | Y54: -41119 | Z54: -44455 | AA54: -47099 | AB54: -49473 | AC54: -52141.5 | AD54: -54865 | AE54: -57243.5 | AF54: -59602.5 | AG54: -62056.5 | AH54: -63295 | BD54: 0.04065465444 | BL54: 2004-09-30
B55: 28 | C55: 0.04009989733 | D55: 0 | E55: -1723.5 | F55: -1719.5 | G55: 826.5 | H55: 3282 | I55: 3226 | J55: 1226.5 | K55: -2338.5 | L55: -5347 | M55: -7796 | N55: -10467 | O55: -13363 | P55: -16022 | Q55: -18745 | R55: -22150 | S55: -24725 | T55: -26727 | U55: -29080 | V55: -31464 | W55: -34027 | X55: -37352.5 | Y55: -41119 | Z55: -44455 | AA55: -47099 | AB55: -49473 | AC55: -52141.5 | AD55: -54865 | AE55: -57243.5 | AF55: -59602.5 | AG55: -62056.5 | AH55: -63295 | BD55: 0.04009989733 | BL55: 2004-10-31
B56: 29 | C56: 0.02559799263 | D56: 0 | E56: -1723.5 | F56: -1719.5 | G56: 826.5 | H56: 3282 | I56: 3226 | J56: 1226.5 | K56: -2338.5 | L56: -5347 | M56: -7796 | N56: -10467 | O56: -13363 | P56: -16022 | Q56: -18745 | R56: -22150 | S56: -24725 | T56: -26727 | U56: -29080 | V56: -31464 | W56: -34027 | X56: -37352.5 | Y56: -41119 | Z56: -44455 | AA56: -47099 | AB56: -49473 | AC56: -52141.5 | AD56: -54865 | AE56: -57243.5 | AF56: -59602.5 | AG56: -62056.5 | AH56: -63295 | BD56: 0.02559799263 | BL56: 2004-11-30
B57: 30 | C57: 0.04101540832 | D57: 0 | E57: -1723.5 | F57: -1719.5 | G57: 826.5 | H57: 3282 | I57: 3226 | J57: 1226.5 | K57: -2338.5 | L57: -5347 | M57: -7796 | N57: -10467 | O57: -13363 | P57: -16022 | Q57: -18745 | R57: -22150 | S57: -24725 | T57: -26727 | U57: -29080 | V57: -31464 | W57: -34027 | X57: -37352.5 | Y57: -41119 | Z57: -44455 | AA57: -47099 | AB57: -49473 | AC57: -52141.5 | AD57: -54865 | AE57: -57243.5 | AF57: -59602.5 | AG57: -62056.5 | AH57: -63295 | BD57: 0.04101540832 | BL57: 2004-12-31
B58: 31 | C58: 0.03597940519 | D58: 0 | E58: -1723.5 | F58: -1719.5 | G58: 826.5 | H58: 3282 | I58: 3226 | J58: 1226.5 | K58: -2338.5 | L58: -5347 | M58: -7796 | N58: -10467 | O58: -13363 | P58: -16022 | Q58: -18745 | R58: -22150 | S58: -24725 | T58: -26727 | U58: -29080 | V58: -31464 | W58: -34027 | X58: -37352.5 | Y58: -41119 | Z58: -44455 | AA58: -47099 | AB58: -49473 | AC58: -52141.5 | AD58: -54865 | AE58: -57243.5 | AF58: -59602.5 | AG58: -62056.5 | AH58: -63295 | BD58: 0.03597940519 | BL58: 2005-01-31
B59: 32 | C59: 0.03089312044 | D59: 0 | E59: -1723.5 | F59: -1719.5 | G59: 826.5 | H59: 3282 | I59: 3226 | J59: 1226.5 | K59: -2338.5 | L59: -5347 | M59: -7796 | N59: -10467 | O59: -13363 | P59: -16022 | Q59: -18745 | R59: -22150 | S59: -24725 | T59: -26727 | U59: -29080 | V59: -31464 | W59: -34027 | X59: -37352.5 | Y59: -41119 | Z59: -44455 | AA59: -47099 | AB59: -49473 | AC59: -52141.5 | AD59: -54865 | AE59: -57243.5 | AF59: -59602.5 | AG59: -62056.5 | AH59: -63295 | BD59: 0.03089312044 | BL59: 2005-02-28
B60: 33 | C60: 0.03178671429 | D60: 0 | E60: -1723.5 | F60: -1719.5 | G60: 826.5 | H60: 3282 | I60: 3226 | J60: 1226.5 | K60: -2338.5 | L60: -5347 | M60: -7796 | N60: -10467 | O60: -13363 | P60: -16022 | Q60: -18745 | R60: -22150 | S60: -24725 | T60: -26727 | U60: -29080 | V60: -31464 | W60: -34027 | X60: -37352.5 | Y60: -41119 | Z60: -44455 | AA60: -47099 | AB60: -49473 | AC60: -52141.5 | AD60: -54865 | AE60: -57243.5 | AF60: -59602.5 | AG60: -62056.5 | AH60: -63295 | BD60: 0.03178671429 | BL60: 2005-03-31
B61: 34 | C61: 0.02777978089 | D61: 0 | E61: -1723.5 | F61: -1719.5 | G61: 826.5 | H61: 3282 | I61: 3226 | J61: 1226.5 | K61: -2338.5 | L61: -5347 | M61: -7796 | N61: -10467 | O61: -13363 | P61: -16022 | Q61: -18745 | R61: -22150 | S61: -24725 | T61: -26727 | U61: -29080 | V61: -31464 | W61: -34027 | X61: -37352.5 | Y61: -41119 | Z61: -44455 | AA61: -47099 | AB61: -49473 | AC61: -52141.5 | AD61: -54865 | AE61: -57243.5 | AF61: -59602.5 | AG61: -62056.5 | AH61: -63295 | BD61: 0.02777978089 | BL61: 2005-04-30
B62: 35 | C62: 0.04155774134 | D62: 0 | E62: -1723.5 | F62: -1719.5 | G62: 826.5 | H62: 3282 | I62: 3226 | J62: 1226.5 | K62: -2338.5 | L62: -5347 | M62: -7796 | N62: -10467 | O62: -13363 | P62: -16022 | Q62: -18745 | R62: -22150 | S62: -24725 | T62: -26727 | U62: -29080 | V62: -31464 | W62: -34027 | X62: -37352.5 | Y62: -41119 | Z62: -44455 | AA62: -47099 | AB62: -49473 | AC62: -52141.5 | AD62: -54865 | AE62: -57243.5 | AF62: -59602.5 | AG62: -62056.5 | AH62: -63295 | BD62: 0.04155774134 | BL62: 2005-05-31
B63: 36 | C63: 0.04224575056 | D63: 0 | E63: -1723.5 | F63: -1719.5 | G63: 826.5 | H63: 3282 | I63: 3226 | J63: 1226.5 | K63: -2338.5 | L63: -5347 | M63: -7796 | N63: -10467 | O63: -13363 | P63: -16022 | Q63: -18745 | R63: -22150 | S63: -24725 | T63: -26727 | U63: -29080 | V63: -31464 | W63: -34027 | X63: -37352.5 | Y63: -41119 | Z63: -44455 | AA63: -47099 | AB63: -49473 | AC63: -52141.5 | AD63: -54865 | AE63: -57243.5 | AF63: -59602.5 | AG63: -62056.5 | AH63: -63295 | BD63: 0.04224575056 | BL63: 2005-06-30
B64: 37 | C64: 0.04341594344 | D64: 0 | E64: -1723.5 | F64: -1719.5 | G64: 826.5 | H64: 3282 | I64: 3226 | J64: 1226.5 | K64: -2338.5 | L64: -5347 | M64: -7796 | N64: -10467 | O64: -13363 | P64: -16022 | Q64: -18745 | R64: -22150 | S64: -24725 | T64: -26727 | U64: -29080 | V64: -31464 | W64: -34027 | X64: -37352.5 | Y64: -41119 | Z64: -44455 | AA64: -47099 | AB64: -49473 | AC64: -52141.5 | AD64: -54865 | AE64: -57243.5 | AF64: -59602.5 | AG64: -62056.5 | AH64: -63295 | BD64: 0.04341594344 | BL64: 2005-07-31
B65: 38 | C65: 0.03530893669 | D65: 0 | E65: -1723.5 | F65: -1719.5 | G65: 826.5 | H65: 3282 | I65: 3226 | J65: 1226.5 | K65: -2338.5 | L65: -5347 | M65: -7796 | N65: -10467 | O65: -13363 | P65: -16022 | Q65: -18745 | R65: -22150 | S65: -24725 | T65: -26727 | U65: -29080 | V65: -31464 | W65: -34027 | X65: -37352.5 | Y65: -41119 | Z65: -44455 | AA65: -47099 | AB65: -49473 | AC65: -52141.5 | AD65: -54865 | AE65: -57243.5 | AF65: -59602.5 | AG65: -62056.5 | AH65: -63295 | BD65: 0.03530893669 | BL65: 2005-08-31
B66: 39 | C66: 0.03631926344 | D66: 0 | E66: -1723.5 | F66: -1719.5 | G66: 826.5 | H66: 3282 | I66: 3226 | J66: 1226.5 | K66: -2338.5 | L66: -5347 | M66: -7796 | N66: -10467 | O66: -13363 | P66: -16022 | Q66: -18745 | R66: -22150 | S66: -24725 | T66: -26727 | U66: -29080 | V66: -31464 | W66: -34027 | X66: -37352.5 | Y66: -41119 | Z66: -44455 | AA66: -47099 | AB66: -49473 | AC66: -52141.5 | AD66: -54865 | AE66: -57243.5 | AF66: -59602.5 | AG66: -62056.5 | AH66: -63295 | BD66: 0.03631926344 | BL66: 2005-09-30
B67: 40 | C67: 0.03412518172 | D67: 0 | E67: -1723.5 | F67: -1719.5 | G67: 826.5 | H67: 3282 | I67: 3226 | J67: 1226.5 | K67: -2338.5 | L67: -5347 | M67: -7796 | N67: -10467 | O67: -13363 | P67: -16022 | Q67: -18745 | R67: -22150 | S67: -24725 | T67: -26727 | U67: -29080 | V67: -31464 | W67: -34027 | X67: -37352.5 | Y67: -41119 | Z67: -44455 | AA67: -47099 | AB67: -49473 | AC67: -52141.5 | AD67: -54865 | AE67: -57243.5 | AF67: -59602.5 | AG67: -62056.5 | AH67: -63295 | BD67: 0.03412518172 | BL67: 2005-10-31
B68: 41 | C68: 0.04254298228 | D68: 0 | E68: -1723.5 | F68: -1719.5 | G68: 826.5 | H68: 3282 | I68: 3226 | J68: 1226.5 | K68: -2338.5 | L68: -5347 | M68: -7796 | N68: -10467 | O68: -13363 | P68: -16022 | Q68: -18745 | R68: -22150 | S68: -24725 | T68: -26727 | U68: -29080 | V68: -31464 | W68: -34027 | X68: -37352.5 | Y68: -41119 | Z68: -44455 | AA68: -47099 | AB68: -49473 | AC68: -52141.5 | AD68: -54865 | AE68: -57243.5 | AF68: -59602.5 | AG68: -62056.5 | AH68: -63295 | BD68: 0.04254298228 | BL68: 2005-11-30
B69: 42 | C69: 0.03530632908 | D69: 0 | E69: -1723.5 | F69: -1719.5 | G69: 826.5 | H69: 3282 | I69: 3226 | J69: 1226.5 | K69: -2338.5 | L69: -5347 | M69: -7796 | N69: -10467 | O69: -13363 | P69: -16022 | Q69: -18745 | R69: -22150 | S69: -24725 | T69: -26727 | U69: -29080 | V69: -31464 | W69: -34027 | X69: -37352.5 | Y69: -41119 | Z69: -44455 | AA69: -47099 | AB69: -49473 | AC69: -52141.5 | AD69: -54865 | AE69: -57243.5 | AF69: -59602.5 | AG69: -62056.5 | AH69: -63295 | BD69: 0.03530632908 | BL69: 2005-12-31
B70: 43 | C70: 0.02561825757 | D70: 0 | E70: -1723.5 | F70: -1719.5 | G70: 826.5 | H70: 3282 | I70: 3226 | J70: 1226.5 | K70: -2338.5 | L70: -5347 | M70: -7796 | N70: -10467 | O70: -13363 | P70: -16022 | Q70: -18745 | R70: -22150 | S70: -24725 | T70: -26727 | U70: -29080 | V70: -31464 | W70: -34027 | X70: -37352.5 | Y70: -41119 | Z70: -44455 | AA70: -47099 | AB70: -49473 | AC70: -52141.5 | AD70: -54865 | AE70: -57243.5 | AF70: -59602.5 | AG70: -62056.5 | AH70: -63295 | BD70: 0.02561825757 | BL70: 2006-01-31
B71: 44 | C71: 0.04951920797 | D71: 0.04 | E71: -1723.5 | F71: -1719.5 | G71: 826.5 | H71: 3282 | I71: 3226 | J71: 1226.5 | K71: -2338.5 | L71: -5347 | M71: -7796 | N71: -10467 | O71: -13363 | P71: -16022 | Q71: -18745 | R71: -22150 | S71: -24725 | T71: -26727 | U71: -29080 | V71: -31464 | W71: -34027 | X71: -37352.5 | Y71: -41119 | Z71: -44455 | AA71: -47099 | AB71: -49473 | AC71: -52141.5 | AD71: -54865 | AE71: -57243.5 | AF71: -59602.5 | AG71: -62056.5 | AH71: -63295 | BD71: 0.04951920797 | BL71: 2006-02-28
B72: 45 | C72: 0.03665760614 | D72: 0 | E72: -1723.5 | F72: -1719.5 | G72: 826.5 | H72: 3282 | I72: 3226 | J72: 1226.5 | K72: -2338.5 | L72: -5347 | M72: -7796 | N72: -10467 | O72: -13363 | P72: -16022 | Q72: -18745 | R72: -22150 | S72: -24725 | T72: -26727 | U72: -29080 | V72: -31464 | W72: -34027 | X72: -37352.5 | Y72: -41119 | Z72: -44455 | AA72: -47099 | AB72: -49473 | AC72: -52141.5 | AD72: -54865 | AE72: -57243.5 | AF72: -59602.5 | AG72: -62056.5 | AH72: -63295 | BD72: 0.03665760614 | BL72: =EOMONTH(BL71,1) -> 2006-03-31
B73: 46 | C73: 0.04331950647 | D73: 0 | E73: -1723.5 | F73: -1719.5 | G73: 826.5 | H73: 3282 | I73: 3226 | J73: 1226.5 | K73: -2338.5 | L73: -5347 | M73: -7796 | N73: -10467 | O73: -13363 | P73: -16022 | Q73: -18745 | R73: -22150 | S73: -24725 | T73: -26727 | U73: -29080 | V73: -31464 | W73: -34027 | X73: -37352.5 | Y73: -41119 | Z73: -44455 | AA73: -47099 | AB73: -49473 | AC73: -52141.5 | AD73: -54865 | AE73: -57243.5 | AF73: -59602.5 | AG73: -62056.5 | AH73: -63295 | BD73: 0.04331950647 | BL73: 2006-04-30
B74: 47 | C74: 0.02721999924 | D74: 0 | E74: -1723.5 | F74: -1719.5 | G74: 826.5 | H74: 3282 | I74: 3226 | J74: 1226.5 | K74: -2338.5 | L74: -5347 | M74: -7796 | N74: -10467 | O74: -13363 | P74: -16022 | Q74: -18745 | R74: -22150 | S74: -24725 | T74: -26727 | U74: -29080 | V74: -31464 | W74: -34027 | X74: -37352.5 | Y74: -41119 | Z74: -44455 | AA74: -47099 | AB74: -49473 | AC74: -52141.5 | AD74: -54865 | AE74: -57243.5 | AF74: -59602.5 | AG74: -62056.5 | AH74: -63295 | BD74: 0.02721999924 | BL74: 2006-05-31
B75: 48 | C75: 0.04470838287 | D75: 0 | E75: -1723.5 | F75: -1719.5 | G75: 826.5 | H75: 3282 | I75: 3226 | J75: 1226.5 | K75: -2338.5 | L75: -5347 | M75: -7796 | N75: -10467 | O75: -13363 | P75: -16022 | Q75: -18745 | R75: -22150 | S75: -24725 | T75: -26727 | U75: -29080 | V75: -31464 | W75: -34027 | X75: -37352.5 | Y75: -41119 | Z75: -44455 | AA75: -47099 | AB75: -49473 | AC75: -52141.5 | AD75: -54865 | AE75: -57243.5 | AF75: -59602.5 | AG75: -62056.5 | AH75: -63295 | BD75: 0.04470838287 | BL75: 2006-06-30
B76: 49 | C76: 0.04037008647 | D76: 0 | E76: -1723.5 | F76: -1719.5 | G76: 826.5 | H76: 3282 | I76: 3226 | J76: 1226.5 | K76: -2338.5 | L76: -5347 | M76: -7796 | N76: -10467 | O76: -13363 | P76: -16022 | Q76: -18745 | R76: -22150 | S76: -24725 | T76: -26727 | U76: -29080 | V76: -31464 | W76: -34027 | X76: -37352.5 | Y76: -41119 | Z76: -44455 | AA76: -47099 | AB76: -49473 | AC76: -52141.5 | AD76: -54865 | AE76: -57243.5 | AF76: -59602.5 | AG76: -62056.5 | AH76: -63295 | BD76: 0.04037008647 | BL76: 2006-07-31
B77: 50 | C77: 0.04402664046 | D77: 0 | E77: -1723.5 | F77: -1719.5 | G77: 826.5 | H77: 3282 | I77: 3226 | J77: 1226.5 | K77: -2338.5 | L77: -5347 | M77: -7796 | N77: -10467 | O77: -13363 | P77: -16022 | Q77: -18745 | R77: -22150 | S77: -24725 | T77: -26727 | U77: -29080 | V77: -31464 | W77: -34027 | X77: -37352.5 | Y77: -41119 | Z77: -44455 | AA77: -47099 | AB77: -49473 | AC77: -52141.5 | AD77: -54865 | AE77: -57243.5 | AF77: -59602.5 | AG77: -62056.5 | AH77: -63295 | BD77: 0.04402664046 | BL77: 2006-08-31
B78: 51 | C78: 0.03578761 | D78: 0 | E78: -1085 | F78: -26.5 | G78: 4579 | H78: 8958.5 | I78: 8618 | J78: 5881 | K78: 1736 | L78: -2671 | M78: -6728.5 | N78: -10356 | O78: -14099 | P78: -18597.5 | Q78: -23190.5 | R78: -26872 | S78: -29281.5 | T78: -30808.5 | U78: -32181.5 | V78: -34042.5 | W78: -36615.5 | X78: -39575.5 | Y78: -42358.5 | Z78: -44679 | AA78: -46453.5 | AB78: -47713.5 | AC78: -48911 | AD78: -50241.5 | AE78: -51279 | AF78: -52298 | AG78: -53781 | AH78: -54641 | BD78: =IF(C78="","",MAX(0,C78)) -> 0.03578761 | BL78: 2006-09-30
B79: 52 | C79: 0.004322686819 | D79: 0 | E79: -2804.5 | F79: -4416 | G79: -2741.5 | H79: 52 | I79: 2861.5 | J79: 6633 | K79: 10667 | L79: 14553.5 | M79: 18080.5 | N79: 21517 | O79: 24806.5 | P79: 27745 | Q79: 30856 | R79: 34365 | S79: 36414.5 | T79: 36899 | U79: 37397.5 | V79: 37968 | W79: 38613 | X79: 39265.5 | Y79: 39779 | Z79: 40151 | AA79: 40524 | AB79: 40991.5 | AC79: 41563.5 | AD79: 42153.5 | AE79: 42872 | AF79: 43733 | AG79: 44635.5 | AH79: 45100.5 | BD79: =IF(C79="","",MAX(0,C79)) -> 0.004322686819 | BL79: 2006-10-31
B80: 53 | C80: 0.001235632801 | D80: 0 | E80: -1241 | F80: 164.5 | G80: 7093 | H80: 14105 | I80: 17437 | J80: 21515.5 | K80: 25599.5 | L80: 29520.5 | M80: 33491 | N80: 37638.5 | O80: 41893 | P80: 46017.5 | Q80: 49660 | R80: 53000.5 | S80: 55506 | T80: 57169 | U80: 58888 | V80: 60853 | W80: 63096.5 | X80: 65467 | Y80: 68279.5 | Z80: 71569 | AA80: 75032.5 | AB80: 78736.5 | AC80: 82677.5 | AD80: 86781 | AE80: 90883.5 | AF80: 94953 | AG80: 99154.5 | AH80: 101315.5 | BD80: 0.001235632801 | BL80: 2006-11-30
B81: 54 | C81: 0.04091811969 | D81: 0 | E81: -926.5 | F81: -1259.5 | G81: -5655 | H81: -10827 | I81: -14257 | J81: -18519.5 | K81: -22841 | L81: -26981.5 | M81: -31374.5 | N81: -35850.5 | O81: -39931.5 | P81: -43288.5 | Q81: -45464.5 | R81: -47669.5 | S81: -50207.5 | T81: -52325.5 | U81: -54181 | V81: -55915.5 | W81: -57375.5 | X81: -58834 | Y81: -60057.5 | Z81: -60745.5 | AA81: -61551 | AB81: -62587 | AC81: -63487 | AD81: -64098 | AE81: -64499 | AF81: -64913 | AG81: -65545.5 | AH81: -65952 | BD81: 0.04091811969 | BL81: 2006-12-31
B82: 55 | C82: 0.05990148128 | D82: 0.12 | E82: -1982.5 | F82: -2610.5 | G82: -1818.5 | H82: -798 | I82: -88.5 | J82: 611.5 | K82: 800.5 | L82: 310 | M82: -987 | N82: -2830 | O82: -4673.5 | P82: -6939 | Q82: -10341 | R82: -14915.5 | S82: -18335 | T82: -20052 | U82: -22035.5 | V82: -24363 | W82: -27118.5 | X82: -30471 | Y82: -34186 | Z82: -38269.5 | AA82: -43013.5 | AB82: -48484 | AC82: -54310 | AD82: -60259 | AE82: -67527 | AF82: -75971.5 | AG82: -85362 | AH82: -90922.5 | BD82: 0.05990148128 | BL82: 2007-01-31
B83: 56 | C83: 0.003353165957 | D83: 0 | E83: -2406.5 | F83: -3392 | G83: 702.5 | H83: 6088.5 | I83: 9372 | J83: 13287 | K83: 17334 | L83: 21365.5 | M83: 25149 | N83: 28719.5 | O83: 32186 | P83: 35427 | Q83: 38609.5 | R83: 42023.5 | S83: 44425 | T83: 45641.5 | U83: 46917.5 | V83: 49126 | W83: 52405.5 | X83: 55956 | Y83: 59843.5 | Z83: 64069 | AA83: 68575.5 | AB83: 73440.5 | AC83: 78814 | AD83: 84881.5 | AE83: 91584 | AF83: 98763 | AG83: 106646.5 | AH83: 110878.5 | BD83: 0.003353165957 | BL83: 2007-02-28
B84: 57 | C84: 0.05576497688 | D84: 0.08 | E84: -519.5 | F84: 410.5 | G84: -1567 | H84: -5036.5 | I84: -8255 | J84: -11996 | K84: -15584 | L84: -19351.5 | M84: -22678 | N84: -25339 | O84: -28129 | P84: -31292 | Q84: -35147.5 | R84: -39299 | S84: -42830.5 | T84: -45915 | U84: -49202 | V84: -52344.5 | W84: -55128 | X84: -58091.5 | Y84: -61359.5 | Z84: -65196 | AA84: -69334 | AB84: -72831 | AC84: -75702.5 | AD84: -78976 | AE84: -82847.5 | AF84: -86956 | AG84: -90924 | AH84: -92775.5 | BD84: 0.05576497688 | BL84: 2007-03-31
B85: 58 | C85: 0.001919234979 | D85: 0 | E85: -1932 | F85: -1847.5 | G85: 3662 | H85: 9876.5 | I85: 12663.5 | J85: 15502 | K85: 18642 | L85: 22181 | M85: 26078.5 | N85: 30004.5 | O85: 33833.5 | P85: 37976.5 | Q85: 42325.5 | R85: 46573 | S85: 48842 | T85: 49234.5 | U85: 49639 | V85: 50143 | W85: 50750 | X85: 51362 | Y85: 52087.5 | Z85: 52932 | AA85: 53797.5 | AB85: 54659 | AC85: 55510 | AD85: 56372 | AE85: 57342.5 | AF85: 58442.5 | AG85: 59579.5 | AH85: 60159 | BD85: 0.001919234979 | BL85: 2007-04-30
B86: 59 | C86: 0.1128205818 | D86: 0.06 | E86: -2768.5 | F86: -5661 | G86: -8849 | H86: -11155.5 | I86: -12989.5 | J86: -16358 | K86: -20297.5 | L86: -24590.5 | M86: -29559 | N86: -35239.5 | O86: -41700 | P86: -48554.5 | Q86: -55552 | R86: -62943 | S86: -69595 | T86: -75404.5 | U86: -82088 | V86: -89262.5 | W86: -96178 | X86: -102706 | Y86: -108722 | Z86: -113866.5 | AA86: -119369.5 | AB86: -127979.5 | AC86: -141175 | AD86: -156931 | AE86: -173073 | AF86: -189836 | AG86: -207372.5 | AH86: -216589 | BD86: 0.1128205818 | BL86: 2007-05-31
B87: 60 | C87: 0.00209571708 | D87: 0 | E87: -1571 | F87: -2125.5 | G87: 417 | H87: 4231.5 | I87: 6229 | J87: 9215.5 | K87: 13161 | L87: 17122 | M87: 21043.5 | N87: 25189.5 | O87: 29420 | P87: 33588 | Q87: 37492 | R87: 41190 | S87: 43632 | T87: 44755.5 | U87: 45919 | V87: 47180.5 | W87: 48541.5 | X87: 49939.5 | Y87: 51321 | Z87: 52696.5 | AA87: 54144.5 | AB87: 56113 | AC87: 58656.5 | AD87: 61366.5 | AE87: 64159 | AF87: 66943.5 | AG87: 69677.5 | AH87: 71037 | BD87: 0.00209571708 | BL87: 2007-06-30
B88: 61 | C88: 0.1533769405 | D88: 0 | E88: -3049 | F88: -6773 | G88: -13336 | H88: -19293.5 | I88: -22942 | J88: -29127 | K88: -36285.5 | L88: -43254 | M88: -50512 | N88: -58254.5 | O88: -67371.5 | P88: -78883 | Q88: -91353.5 | R88: -103623.5 | S88: -114257 | T88: -122330 | U88: -130081.5 | V88: -138242 | W88: -146633 | X88: -154269.5 | Y88: -160827.5 | Z88: -167581 | AA88: -175042.5 | AB88: -183625 | AC88: -194576 | AD88: -205684.5 | AE88: -215237 | AF88: -225215.5 | AG88: -235795 | AH88: -241132 | BD88: 0.1533769405 | BL88: 2007-07-31
B89: 62 | C89: 0.03815745333 | D89: 0 | E89: -1723.5 | F89: -1719.5 | G89: 826.5 | H89: 3282 | I89: 3226 | J89: 1226.5 | K89: -2338.5 | L89: -5347 | M89: -7796 | N89: -10467 | O89: -13363 | P89: -16022 | Q89: -18745 | R89: -22150 | S89: -24725 | T89: -26727 | U89: -29080 | V89: -31464 | W89: -34027 | X89: -37352.5 | Y89: -41119 | Z89: -44455 | AA89: -47099 | AB89: -49473 | AC89: -52141.5 | AD89: -54865 | AE89: -57243.5 | AF89: -59602.5 | AG89: -62056.5 | AH89: -63295 | BD89: 0.03815745333 | BL89: 2007-08-31
B90: 63 | C90: 0.0477048827 | D90: 0 | E90: -1723.5 | F90: -1719.5 | G90: 826.5 | H90: 3282 | I90: 3226 | J90: 1226.5 | K90: -2338.5 | L90: -5347 | M90: -7796 | N90: -10467 | O90: -13363 | P90: -16022 | Q90: -18745 | R90: -22150 | S90: -24725 | T90: -26727 | U90: -29080 | V90: -31464 | W90: -34027 | X90: -37352.5 | Y90: -41119 | Z90: -44455 | AA90: -47099 | AB90: -49473 | AC90: -52141.5 | AD90: -54865 | AE90: -57243.5 | AF90: -59602.5 | AG90: -62056.5 | AH90: -63295 | BD90: 0.0477048827 | BL90: 2007-09-30
B91: 64 | C91: 0.03420507397 | D91: 0 | E91: -1723.5 | F91: -1719.5 | G91: 826.5 | H91: 3282 | I91: 3226 | J91: 1226.5 | K91: -2338.5 | L91: -5347 | M91: -7796 | N91: -10467 | O91: -13363 | P91: -16022 | Q91: -18745 | R91: -22150 | S91: -24725 | T91: -26727 | U91: -29080 | V91: -31464 | W91: -34027 | X91: -37352.5 | Y91: -41119 | Z91: -44455 | AA91: -47099 | AB91: -49473 | AC91: -52141.5 | AD91: -54865 | AE91: -57243.5 | AF91: -59602.5 | AG91: -62056.5 | AH91: -63295 | BD91: 0.03420507397 | BL91: 2007-10-31
B92: 65 | C92: 0.04011889262 | D92: 0 | E92: -1723.5 | F92: -1719.5 | G92: 826.5 | H92: 3282 | I92: 3226 | J92: 1226.5 | K92: -2338.5 | L92: -5347 | M92: -7796 | N92: -10467 | O92: -13363 | P92: -16022 | Q92: -18745 | R92: -22150 | S92: -24725 | T92: -26727 | U92: -29080 | V92: -31464 | W92: -34027 | X92: -37352.5 | Y92: -41119 | Z92: -44455 | AA92: -47099 | AB92: -49473 | AC92: -52141.5 | AD92: -54865 | AE92: -57243.5 | AF92: -59602.5 | AG92: -62056.5 | AH92: -63295 | BD92: 0.04011889262 | BL92: 2007-11-30
B93: 66 | C93: 0.0433746275 | D93: 0 | E93: -1723.5 | F93: -1719.5 | G93: 826.5 | H93: 3282 | I93: 3226 | J93: 1226.5 | K93: -2338.5 | L93: -5347 | M93: -7796 | N93: -10467 | O93: -13363 | P93: -16022 | Q93: -18745 | R93: -22150 | S93: -24725 | T93: -26727 | U93: -29080 | V93: -31464 | W93: -34027 | X93: -37352.5 | Y93: -41119 | Z93: -44455 | AA93: -47099 | AB93: -49473 | AC93: -52141.5 | AD93: -54865 | AE93: -57243.5 | AF93: -59602.5 | AG93: -62056.5 | AH93: -63295 | BD93: 0.0433746275 | BL93: 2007-12-31
B94: 67 | C94: 0.02134248743 | D94: 0 | E94: -1723.5 | F94: -1719.5 | G94: 826.5 | H94: 3282 | I94: 3226 | J94: 1226.5 | K94: -2338.5 | L94: -5347 | M94: -7796 | N94: -10467 | O94: -13363 | P94: -16022 | Q94: -18745 | R94: -22150 | S94: -24725 | T94: -26727 | U94: -29080 | V94: -31464 | W94: -34027 | X94: -37352.5 | Y94: -41119 | Z94: -44455 | AA94: -47099 | AB94: -49473 | AC94: -52141.5 | AD94: -54865 | AE94: -57243.5 | AF94: -59602.5 | AG94: -62056.5 | AH94: -63295 | BD94: 0.02134248743 | BL94: 2008-01-31
B95: 68 | C95: 0.02433915872 | D95: 0 | E95: -1723.5 | F95: -1719.5 | G95: 826.5 | H95: 3282 | I95: 3226 | J95: 1226.5 | K95: -2338.5 | L95: -5347 | M95: -7796 | N95: -10467 | O95: -13363 | P95: -16022 | Q95: -18745 | R95: -22150 | S95: -24725 | T95: -26727 | U95: -29080 | V95: -31464 | W95: -34027 | X95: -37352.5 | Y95: -41119 | Z95: -44455 | AA95: -47099 | AB95: -49473 | AC95: -52141.5 | AD95: -54865 | AE95: -57243.5 | AF95: -59602.5 | AG95: -62056.5 | AH95: -63295 | BD95: 0.02433915872 | BL95: 2008-02-29
B96: 69 | C96: 0.03528533944 | D96: 0 | E96: -1723.5 | F96: -1719.5 | G96: 826.5 | H96: 3282 | I96: 3226 | J96: 1226.5 | K96: -2338.5 | L96: -5347 | M96: -7796 | N96: -10467 | O96: -13363 | P96: -16022 | Q96: -18745 | R96: -22150 | S96: -24725 | T96: -26727 | U96: -29080 | V96: -31464 | W96: -34027 | X96: -37352.5 | Y96: -41119 | Z96: -44455 | AA96: -47099 | AB96: -49473 | AC96: -52141.5 | AD96: -54865 | AE96: -57243.5 | AF96: -59602.5 | AG96: -62056.5 | AH96: -63295 | BD96: 0.03528533944 | BL96: 2008-03-31
B97: 70 | C97: 0.03963333112 | D97: 0 | E97: -1723.5 | F97: -1719.5 | G97: 826.5 | H97: 3282 | I97: 3226 | J97: 1226.5 | K97: -2338.5 | L97: -5347 | M97: -7796 | N97: -10467 | O97: -13363 | P97: -16022 | Q97: -18745 | R97: -22150 | S97: -24725 | T97: -26727 | U97: -29080 | V97: -31464 | W97: -34027 | X97: -37352.5 | Y97: -41119 | Z97: -44455 | AA97: -47099 | AB97: -49473 | AC97: -52141.5 | AD97: -54865 | AE97: -57243.5 | AF97: -59602.5 | AG97: -62056.5 | AH97: -63295 | BD97: 0.03963333112 | BL97: 2008-04-30
B98: 71 | C98: 0.04494457844 | D98: 0 | E98: -1723.5 | F98: -1719.5 | G98: 826.5 | H98: 3282 | I98: 3226 | J98: 1226.5 | K98: -2338.5 | L98: -5347 | M98: -7796 | N98: -10467 | O98: -13363 | P98: -16022 | Q98: -18745 | R98: -22150 | S98: -24725 | T98: -26727 | U98: -29080 | V98: -31464 | W98: -34027 | X98: -37352.5 | Y98: -41119 | Z98: -44455 | AA98: -47099 | AB98: -49473 | AC98: -52141.5 | AD98: -54865 | AE98: -57243.5 | AF98: -59602.5 | AG98: -62056.5 | AH98: -63295 | BD98: 0.04494457844 | BL98: 2008-05-31
B99: 72 | C99: 0.03962768227 | D99: 0 | E99: -1723.5 | F99: -1719.5 | G99: 826.5 | H99: 3282 | I99: 3226 | J99: 1226.5 | K99: -2338.5 | L99: -5347 | M99: -7796 | N99: -10467 | O99: -13363 | P99: -16022 | Q99: -18745 | R99: -22150 | S99: -24725 | T99: -26727 | U99: -29080 | V99: -31464 | W99: -34027 | X99: -37352.5 | Y99: -41119 | Z99: -44455 | AA99: -47099 | AB99: -49473 | AC99: -52141.5 | AD99: -54865 | AE99: -57243.5 | AF99: -59602.5 | AG99: -62056.5 | AH99: -63295 | BD99: 0.03962768227 | BL99: 2008-06-30
B100: 73 | C100: 0.03734504853 | D100: 0 | E100: -1723.5 | F100: -1719.5 | G100: 826.5 | H100: 3282 | I100: 3226 | J100: 1226.5 | K100: -2338.5 | L100: -5347 | M100: -7796 | N100: -10467 | O100: -13363 | P100: -16022 | Q100: -18745 | R100: -22150 | S100: -24725 | T100: -26727 | U100: -29080 | V100: -31464 | W100: -34027 | X100: -37352.5 | Y100: -41119 | Z100: -44455 | AA100: -47099 | AB100: -49473 | AC100: -52141.5 | AD100: -54865 | AE100: -57243.5 | AF100: -59602.5 | AG100: -62056.5 | AH100: -63295 | BD100: 0.03734504853 | BL100: 2008-07-31
B101: 74 | C101: 0.03700691696 | D101: 0 | E101: -1723.5 | F101: -1719.5 | G101: 826.5 | H101: 3282 | I101: 3226 | J101: 1226.5 | K101: -2338.5 | L101: -5347 | M101: -7796 | N101: -10467 | O101: -13363 | P101: -16022 | Q101: -18745 | R101: -22150 | S101: -24725 | T101: -26727 | U101: -29080 | V101: -31464 | W101: -34027 | X101: -37352.5 | Y101: -41119 | Z101: -44455 | AA101: -47099 | AB101: -49473 | AC101: -52141.5 | AD101: -54865 | AE101: -57243.5 | AF101: -59602.5 | AG101: -62056.5 | AH101: -63295 | BD101: 0.03700691696 | BL101: 2008-08-31
B102: 75 | C102: 0.02604589635 | D102: 0 | E102: -1723.5 | F102: -1719.5 | G102: 826.5 | H102: 3282 | I102: 3226 | J102: 1226.5 | K102: -2338.5 | L102: -5347 | M102: -7796 | N102: -10467 | O102: -13363 | P102: -16022 | Q102: -18745 | R102: -22150 | S102: -24725 | T102: -26727 | U102: -29080 | V102: -31464 | W102: -34027 | X102: -37352.5 | Y102: -41119 | Z102: -44455 | AA102: -47099 | AB102: -49473 | AC102: -52141.5 | AD102: -54865 | AE102: -57243.5 | AF102: -59602.5 | AG102: -62056.5 | AH102: -63295 | BD102: 0.02604589635 | BL102: 2008-09-30
B103: 76 | C103: 0.03623497675 | D103: 0 | E103: -1723.5 | F103: -1719.5 | G103: 826.5 | H103: 3282 | I103: 3226 | J103: 1226.5 | K103: -2338.5 | L103: -5347 | M103: -7796 | N103: -10467 | O103: -13363 | P103: -16022 | Q103: -18745 | R103: -22150 | S103: -24725 | T103: -26727 | U103: -29080 | V103: -31464 | W103: -34027 | X103: -37352.5 | Y103: -41119 | Z103: -44455 | AA103: -47099 | AB103: -49473 | AC103: -52141.5 | AD103: -54865 | AE103: -57243.5 | AF103: -59602.5 | AG103: -62056.5 | AH103: -63295 | BD103: 0.03623497675 | BL103: 2008-10-31
B104: 77 | C104: 0.0373973935 | D104: 0 | E104: -1723.5 | F104: -1719.5 | G104: 826.5 | H104: 3282 | I104: 3226 | J104: 1226.5 | K104: -2338.5 | L104: -5347 | M104: -7796 | N104: -10467 | O104: -13363 | P104: -16022 | Q104: -18745 | R104: -22150 | S104: -24725 | T104: -26727 | U104: -29080 | V104: -31464 | W104: -34027 | X104: -37352.5 | Y104: -41119 | Z104: -44455 | AA104: -47099 | AB104: -49473 | AC104: -52141.5 | AD104: -54865 | AE104: -57243.5 | AF104: -59602.5 | AG104: -62056.5 | AH104: -63295 | BD104: 0.0373973935 | BL104: 2008-11-30
B105: 78 | C105: 0.03361213529 | D105: 0 | E105: -1723.5 | F105: -1719.5 | G105: 826.5 | H105: 3282 | I105: 3226 | J105: 1226.5 | K105: -2338.5 | L105: -5347 | M105: -7796 | N105: -10467 | O105: -13363 | P105: -16022 | Q105: -18745 | R105: -22150 | S105: -24725 | T105: -26727 | U105: -29080 | V105: -31464 | W105: -34027 | X105: -37352.5 | Y105: -41119 | Z105: -44455 | AA105: -47099 | AB105: -49473 | AC105: -52141.5 | AD105: -54865 | AE105: -57243.5 | AF105: -59602.5 | AG105: -62056.5 | AH105: -63295 | BD105: 0.03361213529 | BL105: 2008-12-31
B106: 79 | C106: 0.0407255387 | D106: 0 | E106: -1723.5 | F106: -1719.5 | G106: 826.5 | H106: 3282 | I106: 3226 | J106: 1226.5 | K106: -2338.5 | L106: -5347 | M106: -7796 | N106: -10467 | O106: -13363 | P106: -16022 | Q106: -18745 | R106: -22150 | S106: -24725 | T106: -26727 | U106: -29080 | V106: -31464 | W106: -34027 | X106: -37352.5 | Y106: -41119 | Z106: -44455 | AA106: -47099 | AB106: -49473 | AC106: -52141.5 | AD106: -54865 | AE106: -57243.5 | AF106: -59602.5 | AG106: -62056.5 | AH106: -63295 | BD106: 0.0407255387 | BL106: 2009-01-31
B107: 80 | C107: 0.04358838523 | D107: 0 | E107: -1723.5 | F107: -1719.5 | G107: 826.5 | H107: 3282 | I107: 3226 | J107: 1226.5 | K107: -2338.5 | L107: -5347 | M107: -7796 | N107: -10467 | O107: -13363 | P107: -16022 | Q107: -18745 | R107: -22150 | S107: -24725 | T107: -26727 | U107: -29080 | V107: -31464 | W107: -34027 | X107: -37352.5 | Y107: -41119 | Z107: -44455 | AA107: -47099 | AB107: -49473 | AC107: -52141.5 | AD107: -54865 | AE107: -57243.5 | AF107: -59602.5 | AG107: -62056.5 | AH107: -63295 | BD107: 0.04358838523 | BL107: 2009-02-28
B108: 81 | C108: 0.03774753542 | D108: 0 | E108: -1723.5 | F108: -1719.5 | G108: 826.5 | H108: 3282 | I108: 3226 | J108: 1226.5 | K108: -2338.5 | L108: -5347 | M108: -7796 | N108: -10467 | O108: -13363 | P108: -16022 | Q108: -18745 | R108: -22150 | S108: -24725 | T108: -26727 | U108: -29080 | V108: -31464 | W108: -34027 | X108: -37352.5 | Y108: -41119 | Z108: -44455 | AA108: -47099 | AB108: -49473 | AC108: -52141.5 | AD108: -54865 | AE108: -57243.5 | AF108: -59602.5 | AG108: -62056.5 | AH108: -63295 | BD108: 0.03774753542 | BL108: 2009-03-31
B109: 82 | C109: 0.03713836651 | D109: 0 | E109: -1723.5 | F109: -1719.5 | G109: 826.5 | H109: 3282 | I109: 3226 | J109: 1226.5 | K109: -2338.5 | L109: -5347 | M109: -7796 | N109: -10467 | O109: -13363 | P109: -16022 | Q109: -18745 | R109: -22150 | S109: -24725 | T109: -26727 | U109: -29080 | V109: -31464 | W109: -34027 | X109: -37352.5 | Y109: -41119 | Z109: -44455 | AA109: -47099 | AB109: -49473 | AC109: -52141.5 | AD109: -54865 | AE109: -57243.5 | AF109: -59602.5 | AG109: -62056.5 | AH109: -63295 | BD109: 0.03713836651 | BL109: 2009-04-30
B110: 83 | C110: 0.03551298857 | D110: 0 | E110: -1723.5 | F110: -1719.5 | G110: 826.5 | H110: 3282 | I110: 3226 | J110: 1226.5 | K110: -2338.5 | L110: -5347 | M110: -7796 | N110: -10467 | O110: -13363 | P110: -16022 | Q110: -18745 | R110: -22150 | S110: -24725 | T110: -26727 | U110: -29080 | V110: -31464 | W110: -34027 | X110: -37352.5 | Y110: -41119 | Z110: -44455 | AA110: -47099 | AB110: -49473 | AC110: -52141.5 | AD110: -54865 | AE110: -57243.5 | AF110: -59602.5 | AG110: -62056.5 | AH110: -63295 | BD110: 0.03551298857 | BL110: 2009-05-31
B111: 84 | C111: 0.03916371494 | D111: 0 | E111: -1723.5 | F111: -1719.5 | G111: 826.5 | H111: 3282 | I111: 3226 | J111: 1226.5 | K111: -2338.5 | L111: -5347 | M111: -7796 | N111: -10467 | O111: -13363 | P111: -16022 | Q111: -18745 | R111: -22150 | S111: -24725 | T111: -26727 | U111: -29080 | V111: -31464 | W111: -34027 | X111: -37352.5 | Y111: -41119 | Z111: -44455 | AA111: -47099 | AB111: -49473 | AC111: -52141.5 | AD111: -54865 | AE111: -57243.5 | AF111: -59602.5 | AG111: -62056.5 | AH111: -63295 | BD111: 0.03916371494 | BL111: 2009-06-30
B112: 85 | C112: 0.04225510767 | D112: 0 | E112: -1723.5 | F112: -1719.5 | G112: 826.5 | H112: 3282 | I112: 3226 | J112: 1226.5 | K112: -2338.5 | L112: -5347 | M112: -7796 | N112: -10467 | O112: -13363 | P112: -16022 | Q112: -18745 | R112: -22150 | S112: -24725 | T112: -26727 | U112: -29080 | V112: -31464 | W112: -34027 | X112: -37352.5 | Y112: -41119 | Z112: -44455 | AA112: -47099 | AB112: -49473 | AC112: -52141.5 | AD112: -54865 | AE112: -57243.5 | AF112: -59602.5 | AG112: -62056.5 | AH112: -63295 | BD112: 0.04225510767 | BL112: 2009-07-31
B113: 86 | C113: 0.02375689691 | D113: 0 | E113: -1723.5 | F113: -1719.5 | G113: 826.5 | H113: 3282 | I113: 3226 | J113: 1226.5 | K113: -2338.5 | L113: -5347 | M113: -7796 | N113: -10467 | O113: -13363 | P113: -16022 | Q113: -18745 | R113: -22150 | S113: -24725 | T113: -26727 | U113: -29080 | V113: -31464 | W113: -34027 | X113: -37352.5 | Y113: -41119 | Z113: -44455 | AA113: -47099 | AB113: -49473 | AC113: -52141.5 | AD113: -54865 | AE113: -57243.5 | AF113: -59602.5 | AG113: -62056.5 | AH113: -63295 | BD113: 0.02375689691 | BL113: 2009-08-31
B114: 87 | C114: 0.03894139566 | D114: 0 | E114: -1723.5 | F114: -1719.5 | G114: 826.5 | H114: 3282 | I114: 3226 | J114: 1226.5 | K114: -2338.5 | L114: -5347 | M114: -7796 | N114: -10467 | O114: -13363 | P114: -16022 | Q114: -18745 | R114: -22150 | S114: -24725 | T114: -26727 | U114: -29080 | V114: -31464 | W114: -34027 | X114: -37352.5 | Y114: -41119 | Z114: -44455 | AA114: -47099 | AB114: -49473 | AC114: -52141.5 | AD114: -54865 | AE114: -57243.5 | AF114: -59602.5 | AG114: -62056.5 | AH114: -63295 | BD114: 0.03894139566 | BL114: 2009-09-30
B115: 88 | C115: 0.03965190771 | D115: 0 | E115: -1723.5 | F115: -1719.5 | G115: 826.5 | H115: 3282 | I115: 3226 | J115: 1226.5 | K115: -2338.5 | L115: -5347 | M115: -7796 | N115: -10467 | O115: -13363 | P115: -16022 | Q115: -18745 | R115: -22150 | S115: -24725 | T115: -26727 | U115: -29080 | V115: -31464 | W115: -34027 | X115: -37352.5 | Y115: -41119 | Z115: -44455 | AA115: -47099 | AB115: -49473 | AC115: -52141.5 | AD115: -54865 | AE115: -57243.5 | AF115: -59602.5 | AG115: -62056.5 | AH115: -63295 | BD115: 0.03965190771 | BL115: 2009-10-31
B116: 89 | C116: 0.05040237573 | D116: 0.06 | E116: -1723.5 | F116: -1719.5 | G116: 826.5 | H116: 3282 | I116: 3226 | J116: 1226.5 | K116: -2338.5 | L116: -5347 | M116: -7796 | N116: -10467 | O116: -13363 | P116: -16022 | Q116: -18745 | R116: -22150 | S116: -24725 | T116: -26727 | U116: -29080 | V116: -31464 | W116: -34027 | X116: -37352.5 | Y116: -41119 | Z116: -44455 | AA116: -47099 | AB116: -49473 | AC116: -52141.5 | AD116: -54865 | AE116: -57243.5 | AF116: -59602.5 | AG116: -62056.5 | AH116: -63295 | BD116: 0.05040237573 | BL116: 2009-11-30
B117: 90 | C117: 0.03899726809 | D117: 0 | E117: -1723.5 | F117: -1719.5 | G117: 826.5 | H117: 3282 | I117: 3226 | J117: 1226.5 | K117: -2338.5 | L117: -5347 | M117: -7796 | N117: -10467 | O117: -13363 | P117: -16022 | Q117: -18745 | R117: -22150 | S117: -24725 | T117: -26727 | U117: -29080 | V117: -31464 | W117: -34027 | X117: -37352.5 | Y117: -41119 | Z117: -44455 | AA117: -47099 | AB117: -49473 | AC117: -52141.5 | AD117: -54865 | AE117: -57243.5 | AF117: -59602.5 | AG117: -62056.5 | AH117: -63295 | BD117: 0.03899726809 | BL117: 2009-12-31
B118: 91 | C118: 0.03451545243 | D118: 0 | E118: -1723.5 | F118: -1719.5 | G118: 826.5 | H118: 3282 | I118: 3226 | J118: 1226.5 | K118: -2338.5 | L118: -5347 | M118: -7796 | N118: -10467 | O118: -13363 | P118: -16022 | Q118: -18745 | R118: -22150 | S118: -24725 | T118: -26727 | U118: -29080 | V118: -31464 | W118: -34027 | X118: -37352.5 | Y118: -41119 | Z118: -44455 | AA118: -47099 | AB118: -49473 | AC118: -52141.5 | AD118: -54865 | AE118: -57243.5 | AF118: -59602.5 | AG118: -62056.5 | AH118: -63295 | BD118: 0.03451545243 | BL118: 2010-01-31
B119: 92 | C119: 0.03259539521 | D119: 0 | E119: -1723.5 | F119: -1719.5 | G119: 826.5 | H119: 3282 | I119: 3226 | J119: 1226.5 | K119: -2338.5 | L119: -5347 | M119: -7796 | N119: -10467 | O119: -13363 | P119: -16022 | Q119: -18745 | R119: -22150 | S119: -24725 | T119: -26727 | U119: -29080 | V119: -31464 | W119: -34027 | X119: -37352.5 | Y119: -41119 | Z119: -44455 | AA119: -47099 | AB119: -49473 | AC119: -52141.5 | AD119: -54865 | AE119: -57243.5 | AF119: -59602.5 | AG119: -62056.5 | AH119: -63295 | BD119: 0.03259539521 | BL119: 2010-02-28
B120: 93 | C120: 0.04324548889 | D120: 0 | E120: -1723.5 | F120: -1719.5 | G120: 826.5 | H120: 3282 | I120: 3226 | J120: 1226.5 | K120: -2338.5 | L120: -5347 | M120: -7796 | N120: -10467 | O120: -13363 | P120: -16022 | Q120: -18745 | R120: -22150 | S120: -24725 | T120: -26727 | U120: -29080 | V120: -31464 | W120: -34027 | X120: -37352.5 | Y120: -41119 | Z120: -44455 | AA120: -47099 | AB120: -49473 | AC120: -52141.5 | AD120: -54865 | AE120: -57243.5 | AF120: -59602.5 | AG120: -62056.5 | AH120: -63295 | BD120: 0.04324548889 | BL120: 2010-03-31
B121: 94 | C121: 0.03795105586 | D121: 0 | E121: -1723.5 | F121: -1719.5 | G121: 826.5 | H121: 3282 | I121: 3226 | J121: 1226.5 | K121: -2338.5 | L121: -5347 | M121: -7796 | N121: -10467 | O121: -13363 | P121: -16022 | Q121: -18745 | R121: -22150 | S121: -24725 | T121: -26727 | U121: -29080 | V121: -31464 | W121: -34027 | X121: -37352.5 | Y121: -41119 | Z121: -44455 | AA121: -47099 | AB121: -49473 | AC121: -52141.5 | AD121: -54865 | AE121: -57243.5 | AF121: -59602.5 | AG121: -62056.5 | AH121: -63295 | BD121: 0.03795105586 | BL121: 2010-04-30
B122: 95 | C122: 0.03995935678 | D122: 0 | E122: -1723.5 | F122: -1719.5 | G122: 826.5 | H122: 3282 | I122: 3226 | J122: 1226.5 | K122: -2338.5 | L122: -5347 | M122: -7796 | N122: -10467 | O122: -13363 | P122: -16022 | Q122: -18745 | R122: -22150 | S122: -24725 | T122: -26727 | U122: -29080 | V122: -31464 | W122: -34027 | X122: -37352.5 | Y122: -41119 | Z122: -44455 | AA122: -47099 | AB122: -49473 | AC122: -52141.5 | AD122: -54865 | AE122: -57243.5 | AF122: -59602.5 | AG122: -62056.5 | AH122: -63295 | BD122: 0.03995935678 | BL122: 2010-05-31
B123: 96 | C123: 0.04543039649 | D123: 0 | E123: -1723.5 | F123: -1719.5 | G123: 826.5 | H123: 3282 | I123: 3226 | J123: 1226.5 | K123: -2338.5 | L123: -5347 | M123: -7796 | N123: -10467 | O123: -13363 | P123: -16022 | Q123: -18745 | R123: -22150 | S123: -24725 | T123: -26727 | U123: -29080 | V123: -31464 | W123: -34027 | X123: -37352.5 | Y123: -41119 | Z123: -44455 | AA123: -47099 | AB123: -49473 | AC123: -52141.5 | AD123: -54865 | AE123: -57243.5 | AF123: -59602.5 | AG123: -62056.5 | AH123: -63295 | BD123: 0.04543039649 | BL123: 2010-06-30
B124: 97 | C124: 0.03876656322 | D124: 0 | E124: -1723.5 | F124: -1719.5 | G124: 826.5 | H124: 3282 | I124: 3226 | J124: 1226.5 | K124: -2338.5 | L124: -5347 | M124: -7796 | N124: -10467 | O124: -13363 | P124: -16022 | Q124: -18745 | R124: -22150 | S124: -24725 | T124: -26727 | U124: -29080 | V124: -31464 | W124: -34027 | X124: -37352.5 | Y124: -41119 | Z124: -44455 | AA124: -47099 | AB124: -49473 | AC124: -52141.5 | AD124: -54865 | AE124: -57243.5 | AF124: -59602.5 | AG124: -62056.5 | AH124: -63295 | BD124: 0.03876656322 | BL124: 2010-07-31
B125: 98 | C125: 0.04063085119 | D125: 0 | E125: -1723.5 | F125: -1719.5 | G125: 826.5 | H125: 3282 | I125: 3226 | J125: 1226.5 | K125: -2338.5 | L125: -5347 | M125: -7796 | N125: -10467 | O125: -13363 | P125: -16022 | Q125: -18745 | R125: -22150 | S125: -24725 | T125: -26727 | U125: -29080 | V125: -31464 | W125: -34027 | X125: -37352.5 | Y125: -41119 | Z125: -44455 | AA125: -47099 | AB125: -49473 | AC125: -52141.5 | AD125: -54865 | AE125: -57243.5 | AF125: -59602.5 | AG125: -62056.5 | AH125: -63295 | BD125: 0.04063085119 | BL125: 2010-08-31
B126: 99 | C126: 0.04021214323 | D126: 0 | E126: -1723.5 | F126: -1719.5 | G126: 826.5 | H126: 3282 | I126: 3226 | J126: 1226.5 | K126: -2338.5 | L126: -5347 | M126: -7796 | N126: -10467 | O126: -13363 | P126: -16022 | Q126: -18745 | R126: -22150 | S126: -24725 | T126: -26727 | U126: -29080 | V126: -31464 | W126: -34027 | X126: -37352.5 | Y126: -41119 | Z126: -44455 | AA126: -47099 | AB126: -49473 | AC126: -52141.5 | AD126: -54865 | AE126: -57243.5 | AF126: -59602.5 | AG126: -62056.5 | AH126: -63295 | BD126: 0.04021214323 | BL126: 2010-09-30
B127: 100 | C127: 0.04461381516 | D127: 0 | E127: -1723.5 | F127: -1719.5 | G127: 826.5 | H127: 3282 | I127: 3226 | J127: 1226.5 | K127: -2338.5 | L127: -5347 | M127: -7796 | N127: -10467 | O127: -13363 | P127: -16022 | Q127: -18745 | R127: -22150 | S127: -24725 | T127: -26727 | U127: -29080 | V127: -31464 | W127: -34027 | X127: -37352.5 | Y127: -41119 | Z127: -44455 | AA127: -47099 | AB127: -49473 | AC127: -52141.5 | AD127: -54865 | AE127: -57243.5 | AF127: -59602.5 | AG127: -62056.5 | AH127: -63295 | BD127: 0.04461381516 | BL127: 2010-10-31
B128: 101 | C128: 0.0289385351 | D128: 0 | E128: -1085 | F128: -26.5 | G128: 4579 | H128: 8958.5 | I128: 8618 | J128: 5881 | K128: 1736 | L128: -2671 | M128: -6728.5 | N128: -10356 | O128: -14099 | P128: -18597.5 | Q128: -23190.5 | R128: -26872 | S128: -29281.5 | T128: -30808.5 | U128: -32181.5 | V128: -34042.5 | W128: -36615.5 | X128: -39575.5 | Y128: -42358.5 | Z128: -44679 | AA128: -46453.5 | AB128: -47713.5 | AC128: -48911 | AD128: -50241.5 | AE128: -51279 | AF128: -52298 | AG128: -53781 | AH128: -54641 | BD128: =IF(C128="","",MAX(0,C128)) -> 0.0289385351 | BL128: 2010-11-30
B129: 102 | C129: 0.004410672563 | D129: 0 | E129: -2804.5 | F129: -4416 | G129: -2741.5 | H129: 52 | I129: 2861.5 | J129: 6633 | K129: 10667 | L129: 14553.5 | M129: 18080.5 | N129: 21517 | O129: 24806.5 | P129: 27745 | Q129: 30856 | R129: 34365 | S129: 36414.5 | T129: 36899 | U129: 37397.5 | V129: 37968 | W129: 38613 | X129: 39265.5 | Y129: 39779 | Z129: 40151 | AA129: 40524 | AB129: 40991.5 | AC129: 41563.5 | AD129: 42153.5 | AE129: 42872 | AF129: 43733 | AG129: 44635.5 | AH129: 45100.5 | BD129: =IF(C129="","",MAX(0,C129)) -> 0.004410672563 | BL129: 2010-12-31
B130: 103 | C130: 0.001234851788 | D130: 0 | E130: -1241 | F130: 164.5 | G130: 7093 | H130: 14105 | I130: 17437 | J130: 21515.5 | K130: 25599.5 | L130: 29520.5 | M130: 33491 | N130: 37638.5 | O130: 41893 | P130: 46017.5 | Q130: 49660 | R130: 53000.5 | S130: 55506 | T130: 57169 | U130: 58888 | V130: 60853 | W130: 63096.5 | X130: 65467 | Y130: 68279.5 | Z130: 71569 | AA130: 75032.5 | AB130: 78736.5 | AC130: 82677.5 | AD130: 86781 | AE130: 90883.5 | AF130: 94953 | AG130: 99154.5 | AH130: 101315.5 | BD130: 0.001234851788 | BL130: 2011-01-31
B131: 104 | C131: 0.04724738214 | D131: 0 | E131: -926.5 | F131: -1259.5 | G131: -5655 | H131: -10827 | I131: -14257 | J131: -18519.5 | K131: -22841 | L131: -26981.5 | M131: -31374.5 | N131: -35850.5 | O131: -39931.5 | P131: -43288.5 | Q131: -45464.5 | R131: -47669.5 | S131: -50207.5 | T131: -52325.5 | U131: -54181 | V131: -55915.5 | W131: -57375.5 | X131: -58834 | Y131: -60057.5 | Z131: -60745.5 | AA131: -61551 | AB131: -62587 | AC131: -63487 | AD131: -64098 | AE131: -64499 | AF131: -64913 | AG131: -65545.5 | AH131: -65952 | BD131: 0.04724738214 | BL131: 2011-02-28
B132: 105 | C132: 0.03874061597 | D132: 0 | E132: -1982.5 | F132: -2610.5 | G132: -1818.5 | H132: -798 | I132: -88.5 | J132: 611.5 | K132: 800.5 | L132: 310 | M132: -987 | N132: -2830 | O132: -4673.5 | P132: -6939 | Q132: -10341 | R132: -14915.5 | S132: -18335 | T132: -20052 | U132: -22035.5 | V132: -24363 | W132: -27118.5 | X132: -30471 | Y132: -34186 | Z132: -38269.5 | AA132: -43013.5 | AB132: -48484 | AC132: -54310 | AD132: -60259 | AE132: -67527 | AF132: -75971.5 | AG132: -85362 | AH132: -90922.5 | BD132: 0.03874061597 | BL132: 2011-03-31
B133: 106 | C133: 0.003372407213 | D133: 0 | E133: -2406.5 | F133: -3392 | G133: 702.5 | H133: 6088.5 | I133: 9372 | J133: 13287 | K133: 17334 | L133: 21365.5 | M133: 25149 | N133: 28719.5 | O133: 32186 | P133: 35427 | Q133: 38609.5 | R133: 42023.5 | S133: 44425 | T133: 45641.5 | U133: 46917.5 | V133: 49126 | W133: 52405.5 | X133: 55956 | Y133: 59843.5 | Z133: 64069 | AA133: 68575.5 | AB133: 73440.5 | AC133: 78814 | AD133: 84881.5 | AE133: 91584 | AF133: 98763 | AG133: 106646.5 | AH133: 110878.5 | BD133: 0.003372407213 | BL133: 2011-04-30
B134: 107 | C134: 0.05777898324 | D134: 0.12 | E134: -519.5 | F134: 410.5 | G134: -1567 | H134: -5036.5 | I134: -8255 | J134: -11996 | K134: -15584 | L134: -19351.5 | M134: -22678 | N134: -25339 | O134: -28129 | P134: -31292 | Q134: -35147.5 | R134: -39299 | S134: -42830.5 | T134: -45915 | U134: -49202 | V134: -52344.5 | W134: -55128 | X134: -58091.5 | Y134: -61359.5 | Z134: -65196 | AA134: -69334 | AB134: -72831 | AC134: -75702.5 | AD134: -78976 | AE134: -82847.5 | AF134: -86956 | AG134: -90924 | AH134: -92775.5 | BD134: 0.05777898324 | BL134: 2011-05-31
B135: 108 | C135: 0.001929283027 | D135: 0 | E135: -1932 | F135: -1847.5 | G135: 3662 | H135: 9876.5 | I135: 12663.5 | J135: 15502 | K135: 18642 | L135: 22181 | M135: 26078.5 | N135: 30004.5 | O135: 33833.5 | P135: 37976.5 | Q135: 42325.5 | R135: 46573 | S135: 48842 | T135: 49234.5 | U135: 49639 | V135: 50143 | W135: 50750 | X135: 51362 | Y135: 52087.5 | Z135: 52932 | AA135: 53797.5 | AB135: 54659 | AC135: 55510 | AD135: 56372 | AE135: 57342.5 | AF135: 58442.5 | AG135: 59579.5 | AH135: 60159 | BD135: 0.001929283027 | BL135: 2011-06-30
B136: 109 | C136: 0.1247799376 | D136: 0.02 | E136: -2768.5 | F136: -5661 | G136: -8849 | H136: -11155.5 | I136: -12989.5 | J136: -16358 | K136: -20297.5 | L136: -24590.5 | M136: -29559 | N136: -35239.5 | O136: -41700 | P136: -48554.5 | Q136: -55552 | R136: -62943 | S136: -69595 | T136: -75404.5 | U136: -82088 | V136: -89262.5 | W136: -96178 | X136: -102706 | Y136: -108722 | Z136: -113866.5 | AA136: -119369.5 | AB136: -127979.5 | AC136: -141175 | AD136: -156931 | AE136: -173073 | AF136: -189836 | AG136: -207372.5 | AH136: -216589 | BD136: 0.1247799376 | BL136: =EOMONTH(BL135,1) -> 2011-07-31
B137: 110 | C137: 0.002053752022 | D137: 0 | E137: -1571 | F137: -2125.5 | G137: 417 | H137: 4231.5 | I137: 6229 | J137: 9215.5 | K137: 13161 | L137: 17122 | M137: 21043.5 | N137: 25189.5 | O137: 29420 | P137: 33588 | Q137: 37492 | R137: 41190 | S137: 43632 | T137: 44755.5 | U137: 45919 | V137: 47180.5 | W137: 48541.5 | X137: 49939.5 | Y137: 51321 | Z137: 52696.5 | AA137: 54144.5 | AB137: 56113 | AC137: 58656.5 | AD137: 61366.5 | AE137: 64159 | AF137: 66943.5 | AG137: 69677.5 | AH137: 71037 | BD137: 0.002053752022 | BL137: 2011-08-31
B138: 111 | C138: 0.1463742031 | D138: 0 | E138: -3049 | F138: -6773 | G138: -13336 | H138: -19293.5 | I138: -22942 | J138: -29127 | K138: -36285.5 | L138: -43254 | M138: -50512 | N138: -58254.5 | O138: -67371.5 | P138: -78883 | Q138: -91353.5 | R138: -103623.5 | S138: -114257 | T138: -122330 | U138: -130081.5 | V138: -138242 | W138: -146633 | X138: -154269.5 | Y138: -160827.5 | Z138: -167581 | AA138: -175042.5 | AB138: -183625 | AC138: -194576 | AD138: -205684.5 | AE138: -215237 | AF138: -225215.5 | AG138: -235795 | AH138: -241132 | BD138: 0.1463742031 | BL138: 2011-09-30
B139: 112 | C139: 0.04032825727 | D139: 0 | E139: -1723.5 | F139: -1719.5 | G139: 826.5 | H139: 3282 | I139: 3226 | J139: 1226.5 | K139: -2338.5 | L139: -5347 | M139: -7796 | N139: -10467 | O139: -13363 | P139: -16022 | Q139: -18745 | R139: -22150 | S139: -24725 | T139: -26727 | U139: -29080 | V139: -31464 | W139: -34027 | X139: -37352.5 | Y139: -41119 | Z139: -44455 | AA139: -47099 | AB139: -49473 | AC139: -52141.5 | AD139: -54865 | AE139: -57243.5 | AF139: -59602.5 | AG139: -62056.5 | AH139: -63295 | BD139: 0.04032825727 | BL139: 2011-10-31
B140: 113 | C140: 0.04026201162 | D140: 0 | E140: -1723.5 | F140: -1719.5 | G140: 826.5 | H140: 3282 | I140: 3226 | J140: 1226.5 | K140: -2338.5 | L140: -5347 | M140: -7796 | N140: -10467 | O140: -13363 | P140: -16022 | Q140: -18745 | R140: -22150 | S140: -24725 | T140: -26727 | U140: -29080 | V140: -31464 | W140: -34027 | X140: -37352.5 | Y140: -41119 | Z140: -44455 | AA140: -47099 | AB140: -49473 | AC140: -52141.5 | AD140: -54865 | AE140: -57243.5 | AF140: -59602.5 | AG140: -62056.5 | AH140: -63295 | BD140: 0.04026201162 | BL140: 2011-11-30
B141: 114 | C141: 0.03956449924 | D141: 0 | E141: -1723.5 | F141: -1719.5 | G141: 826.5 | H141: 3282 | I141: 3226 | J141: 1226.5 | K141: -2338.5 | L141: -5347 | M141: -7796 | N141: -10467 | O141: -13363 | P141: -16022 | Q141: -18745 | R141: -22150 | S141: -24725 | T141: -26727 | U141: -29080 | V141: -31464 | W141: -34027 | X141: -37352.5 | Y141: -41119 | Z141: -44455 | AA141: -47099 | AB141: -49473 | AC141: -52141.5 | AD141: -54865 | AE141: -57243.5 | AF141: -59602.5 | AG141: -62056.5 | AH141: -63295 | BD141: 0.03956449924 | BL141: 2011-12-31
B142: 115 | C142: 0.04303944033 | D142: 0 | E142: -1723.5 | F142: -1719.5 | G142: 826.5 | H142: 3282 | I142: 3226 | J142: 1226.5 | K142: -2338.5 | L142: -5347 | M142: -7796 | N142: -10467 | O142: -13363 | P142: -16022 | Q142: -18745 | R142: -22150 | S142: -24725 | T142: -26727 | U142: -29080 | V142: -31464 | W142: -34027 | X142: -37352.5 | Y142: -41119 | Z142: -44455 | AA142: -47099 | AB142: -49473 | AC142: -52141.5 | AD142: -54865 | AE142: -57243.5 | AF142: -59602.5 | AG142: -62056.5 | AH142: -63295 | BD142: 0.04303944033 | BL142: 2012-01-31
B143: 116 | C143: 0.04730716165 | D143: 0 | E143: -1723.5 | F143: -1719.5 | G143: 826.5 | H143: 3282 | I143: 3226 | J143: 1226.5 | K143: -2338.5 | L143: -5347 | M143: -7796 | N143: -10467 | O143: -13363 | P143: -16022 | Q143: -18745 | R143: -22150 | S143: -24725 | T143: -26727 | U143: -29080 | V143: -31464 | W143: -34027 | X143: -37352.5 | Y143: -41119 | Z143: -44455 | AA143: -47099 | AB143: -49473 | AC143: -52141.5 | AD143: -54865 | AE143: -57243.5 | AF143: -59602.5 | AG143: -62056.5 | AH143: -63295 | BD143: 0.04730716165 | BL143: 2012-02-29
B144: 117 | C144: 0.04432716622 | D144: 0 | E144: -1723.5 | F144: -1719.5 | G144: 826.5 | H144: 3282 | I144: 3226 | J144: 1226.5 | K144: -2338.5 | L144: -5347 | M144: -7796 | N144: -10467 | O144: -13363 | P144: -16022 | Q144: -18745 | R144: -22150 | S144: -24725 | T144: -26727 | U144: -29080 | V144: -31464 | W144: -34027 | X144: -37352.5 | Y144: -41119 | Z144: -44455 | AA144: -47099 | AB144: -49473 | AC144: -52141.5 | AD144: -54865 | AE144: -57243.5 | AF144: -59602.5 | AG144: -62056.5 | AH144: -63295 | BD144: 0.04432716622 | BL144: 2012-03-31
B145: 118 | C145: 0.03759008651 | D145: 0 | E145: -1723.5 | F145: -1719.5 | G145: 826.5 | H145: 3282 | I145: 3226 | J145: 1226.5 | K145: -2338.5 | L145: -5347 | M145: -7796 | N145: -10467 | O145: -13363 | P145: -16022 | Q145: -18745 | R145: -22150 | S145: -24725 | T145: -26727 | U145: -29080 | V145: -31464 | W145: -34027 | X145: -37352.5 | Y145: -41119 | Z145: -44455 | AA145: -47099 | AB145: -49473 | AC145: -52141.5 | AD145: -54865 | AE145: -57243.5 | AF145: -59602.5 | AG145: -62056.5 | AH145: -63295 | BD145: 0.03759008651 | BL145: 2012-04-30
B146: 119 | C146: 0.04101814046 | D146: 0 | E146: -1723.5 | F146: -1719.5 | G146: 826.5 | H146: 3282 | I146: 3226 | J146: 1226.5 | K146: -2338.5 | L146: -5347 | M146: -7796 | N146: -10467 | O146: -13363 | P146: -16022 | Q146: -18745 | R146: -22150 | S146: -24725 | T146: -26727 | U146: -29080 | V146: -31464 | W146: -34027 | X146: -37352.5 | Y146: -41119 | Z146: -44455 | AA146: -47099 | AB146: -49473 | AC146: -52141.5 | AD146: -54865 | AE146: -57243.5 | AF146: -59602.5 | AG146: -62056.5 | AH146: -63295 | BD146: 0.04101814046 | BL146: 2012-05-31
B147: 120 | C147: 0.03510506678 | D147: 0 | E147: -1723.5 | F147: -1719.5 | G147: 826.5 | H147: 3282 | I147: 3226 | J147: 1226.5 | K147: -2338.5 | L147: -5347 | M147: -7796 | N147: -10467 | O147: -13363 | P147: -16022 | Q147: -18745 | R147: -22150 | S147: -24725 | T147: -26727 | U147: -29080 | V147: -31464 | W147: -34027 | X147: -37352.5 | Y147: -41119 | Z147: -44455 | AA147: -47099 | AB147: -49473 | AC147: -52141.5 | AD147: -54865 | AE147: -57243.5 | AF147: -59602.5 | AG147: -62056.5 | AH147: -63295 | BD147: 0.03510506678 | BL147: 2012-06-30
B148: 121 | C148: 0.03465699511 | D148: 0 | E148: -1723.5 | F148: -1719.5 | G148: 826.5 | H148: 3282 | I148: 3226 | J148: 1226.5 | K148: -2338.5 | L148: -5347 | M148: -7796 | N148: -10467 | O148: -13363 | P148: -16022 | Q148: -18745 | R148: -22150 | S148: -24725 | T148: -26727 | U148: -29080 | V148: -31464 | W148: -34027 | X148: -37352.5 | Y148: -41119 | Z148: -44455 | AA148: -47099 | AB148: -49473 | AC148: -52141.5 | AD148: -54865 | AE148: -57243.5 | AF148: -59602.5 | AG148: -62056.5 | AH148: -63295 | BD148: 0.03465699511 | BL148: 2012-07-31
B149: 122 | C149: 0.04036278016 | D149: 0 | E149: -1723.5 | F149: -1719.5 | G149: 826.5 | H149: 3282 | I149: 3226 | J149: 1226.5 | K149: -2338.5 | L149: -5347 | M149: -7796 | N149: -10467 | O149: -13363 | P149: -16022 | Q149: -18745 | R149: -22150 | S149: -24725 | T149: -26727 | U149: -29080 | V149: -31464 | W149: -34027 | X149: -37352.5 | Y149: -41119 | Z149: -44455 | AA149: -47099 | AB149: -49473 | AC149: -52141.5 | AD149: -54865 | AE149: -57243.5 | AF149: -59602.5 | AG149: -62056.5 | AH149: -63295 | BD149: 0.04036278016 | BL149: 2012-08-31
B150: 123 | C150: 0.04259503919 | D150: 0 | E150: -1723.5 | F150: -1719.5 | G150: 826.5 | H150: 3282 | I150: 3226 | J150: 1226.5 | K150: -2338.5 | L150: -5347 | M150: -7796 | N150: -10467 | O150: -13363 | P150: -16022 | Q150: -18745 | R150: -22150 | S150: -24725 | T150: -26727 | U150: -29080 | V150: -31464 | W150: -34027 | X150: -37352.5 | Y150: -41119 | Z150: -44455 | AA150: -47099 | AB150: -49473 | AC150: -52141.5 | AD150: -54865 | AE150: -57243.5 | AF150: -59602.5 | AG150: -62056.5 | AH150: -63295 | BD150: 0.04259503919 | BL150: 2012-09-30
B151: 124 | C151: 0.04676454147 | D151: 0 | E151: -1723.5 | F151: -1719.5 | G151: 826.5 | H151: 3282 | I151: 3226 | J151: 1226.5 | K151: -2338.5 | L151: -5347 | M151: -7796 | N151: -10467 | O151: -13363 | P151: -16022 | Q151: -18745 | R151: -22150 | S151: -24725 | T151: -26727 | U151: -29080 | V151: -31464 | W151: -34027 | X151: -37352.5 | Y151: -41119 | Z151: -44455 | AA151: -47099 | AB151: -49473 | AC151: -52141.5 | AD151: -54865 | AE151: -57243.5 | AF151: -59602.5 | AG151: -62056.5 | AH151: -63295 | BD151: 0.04676454147 | BL151: 2012-10-31
B152: 125 | C152: 0.04221955615 | D152: 0 | E152: -1723.5 | F152: -1719.5 | G152: 826.5 | H152: 3282 | I152: 3226 | J152: 1226.5 | K152: -2338.5 | L152: -5347 | M152: -7796 | N152: -10467 | O152: -13363 | P152: -16022 | Q152: -18745 | R152: -22150 | S152: -24725 | T152: -26727 | U152: -29080 | V152: -31464 | W152: -34027 | X152: -37352.5 | Y152: -41119 | Z152: -44455 | AA152: -47099 | AB152: -49473 | AC152: -52141.5 | AD152: -54865 | AE152: -57243.5 | AF152: -59602.5 | AG152: -62056.5 | AH152: -63295 | BD152: 0.04221955615 | BL152: 2012-11-30
B153: 126 | C153: 0.04789038492 | D153: 0 | E153: -1723.5 | F153: -1719.5 | G153: 826.5 | H153: 3282 | I153: 3226 | J153: 1226.5 | K153: -2338.5 | L153: -5347 | M153: -7796 | N153: -10467 | O153: -13363 | P153: -16022 | Q153: -18745 | R153: -22150 | S153: -24725 | T153: -26727 | U153: -29080 | V153: -31464 | W153: -34027 | X153: -37352.5 | Y153: -41119 | Z153: -44455 | AA153: -47099 | AB153: -49473 | AC153: -52141.5 | AD153: -54865 | AE153: -57243.5 | AF153: -59602.5 | AG153: -62056.5 | AH153: -63295 | BD153: 0.04789038492 | BL153: 2012-12-31
B154: 127 | C154: 0.02435235811 | D154: 0 | E154: -1723.5 | F154: -1719.5 | G154: 826.5 | H154: 3282 | I154: 3226 | J154: 1226.5 | K154: -2338.5 | L154: -5347 | M154: -7796 | N154: -10467 | O154: -13363 | P154: -16022 | Q154: -18745 | R154: -22150 | S154: -24725 | T154: -26727 | U154: -29080 | V154: -31464 | W154: -34027 | X154: -37352.5 | Y154: -41119 | Z154: -44455 | AA154: -47099 | AB154: -49473 | AC154: -52141.5 | AD154: -54865 | AE154: -57243.5 | AF154: -59602.5 | AG154: -62056.5 | AH154: -63295 | BD154: 0.02435235811 | BL154: 2013-01-31
B155: 128 | C155: 0.04213256483 | D155: 0 | E155: -1723.5 | F155: -1719.5 | G155: 826.5 | H155: 3282 | I155: 3226 | J155: 1226.5 | K155: -2338.5 | L155: -5347 | M155: -7796 | N155: -10467 | O155: -13363 | P155: -16022 | Q155: -18745 | R155: -22150 | S155: -24725 | T155: -26727 | U155: -29080 | V155: -31464 | W155: -34027 | X155: -37352.5 | Y155: -41119 | Z155: -44455 | AA155: -47099 | AB155: -49473 | AC155: -52141.5 | AD155: -54865 | AE155: -57243.5 | AF155: -59602.5 | AG155: -62056.5 | AH155: -63295 | BD155: 0.04213256483 | BL155: 2013-02-28
B156: 129 | C156: 0.04133065982 | D156: 0 | E156: -1723.5 | F156: -1719.5 | G156: 826.5 | H156: 3282 | I156: 3226 | J156: 1226.5 | K156: -2338.5 | L156: -5347 | M156: -7796 | N156: -10467 | O156: -13363 | P156: -16022 | Q156: -18745 | R156: -22150 | S156: -24725 | T156: -26727 | U156: -29080 | V156: -31464 | W156: -34027 | X156: -37352.5 | Y156: -41119 | Z156: -44455 | AA156: -47099 | AB156: -49473 | AC156: -52141.5 | AD156: -54865 | AE156: -57243.5 | AF156: -59602.5 | AG156: -62056.5 | AH156: -63295 | BD156: 0.04133065982 | BL156: 2013-03-31
B157: 130 | C157: 0.04364225113 | D157: 0 | E157: -1723.5 | F157: -1719.5 | G157: 826.5 | H157: 3282 | I157: 3226 | J157: 1226.5 | K157: -2338.5 | L157: -5347 | M157: -7796 | N157: -10467 | O157: -13363 | P157: -16022 | Q157: -18745 | R157: -22150 | S157: -24725 | T157: -26727 | U157: -29080 | V157: -31464 | W157: -34027 | X157: -37352.5 | Y157: -41119 | Z157: -44455 | AA157: -47099 | AB157: -49473 | AC157: -52141.5 | AD157: -54865 | AE157: -57243.5 | AF157: -59602.5 | AG157: -62056.5 | AH157: -63295 | BD157: 0.04364225113 | BL157: 2013-04-30
B158: 131 | C158: 0.04173558784 | D158: 0 | E158: -1723.5 | F158: -1719.5 | G158: 826.5 | H158: 3282 | I158: 3226 | J158: 1226.5 | K158: -2338.5 | L158: -5347 | M158: -7796 | N158: -10467 | O158: -13363 | P158: -16022 | Q158: -18745 | R158: -22150 | S158: -24725 | T158: -26727 | U158: -29080 | V158: -31464 | W158: -34027 | X158: -37352.5 | Y158: -41119 | Z158: -44455 | AA158: -47099 | AB158: -49473 | AC158: -52141.5 | AD158: -54865 | AE158: -57243.5 | AF158: -59602.5 | AG158: -62056.5 | AH158: -63295 | BD158: 0.04173558784 | BL158: 2013-05-31
B159: 132 | C159: 0.0425227437 | D159: 0 | E159: -1723.5 | F159: -1719.5 | G159: 826.5 | H159: 3282 | I159: 3226 | J159: 1226.5 | K159: -2338.5 | L159: -5347 | M159: -7796 | N159: -10467 | O159: -13363 | P159: -16022 | Q159: -18745 | R159: -22150 | S159: -24725 | T159: -26727 | U159: -29080 | V159: -31464 | W159: -34027 | X159: -37352.5 | Y159: -41119 | Z159: -44455 | AA159: -47099 | AB159: -49473 | AC159: -52141.5 | AD159: -54865 | AE159: -57243.5 | AF159: -59602.5 | AG159: -62056.5 | AH159: -63295 | BD159: 0.0425227437 | BL159: 2013-06-30
B160: 133 | C160: 0.03790395796 | D160: 0 | E160: -1723.5 | F160: -1719.5 | G160: 826.5 | H160: 3282 | I160: 3226 | J160: 1226.5 | K160: -2338.5 | L160: -5347 | M160: -7796 | N160: -10467 | O160: -13363 | P160: -16022 | Q160: -18745 | R160: -22150 | S160: -24725 | T160: -26727 | U160: -29080 | V160: -31464 | W160: -34027 | X160: -37352.5 | Y160: -41119 | Z160: -44455 | AA160: -47099 | AB160: -49473 | AC160: -52141.5 | AD160: -54865 | AE160: -57243.5 | AF160: -59602.5 | AG160: -62056.5 | AH160: -63295 | BD160: 0.03790395796 | BL160: 2013-07-31
B161: 134 | C161: 0.04255306105 | D161: 0 | E161: -1723.5 | F161: -1719.5 | G161: 826.5 | H161: 3282 | I161: 3226 | J161: 1226.5 | K161: -2338.5 | L161: -5347 | M161: -7796 | N161: -10467 | O161: -13363 | P161: -16022 | Q161: -18745 | R161: -22150 | S161: -24725 | T161: -26727 | U161: -29080 | V161: -31464 | W161: -34027 | X161: -37352.5 | Y161: -41119 | Z161: -44455 | AA161: -47099 | AB161: -49473 | AC161: -52141.5 | AD161: -54865 | AE161: -57243.5 | AF161: -59602.5 | AG161: -62056.5 | AH161: -63295 | BD161: 0.04255306105 | BL161: 2013-08-31
B162: 135 | C162: 0.04255514156 | D162: 0 | E162: -1723.5 | F162: -1719.5 | G162: 826.5 | H162: 3282 | I162: 3226 | J162: 1226.5 | K162: -2338.5 | L162: -5347 | M162: -7796 | N162: -10467 | O162: -13363 | P162: -16022 | Q162: -18745 | R162: -22150 | S162: -24725 | T162: -26727 | U162: -29080 | V162: -31464 | W162: -34027 | X162: -37352.5 | Y162: -41119 | Z162: -44455 | AA162: -47099 | AB162: -49473 | AC162: -52141.5 | AD162: -54865 | AE162: -57243.5 | AF162: -59602.5 | AG162: -62056.5 | AH162: -63295 | BD162: 0.04255514156 | BL162: 2013-09-30
B163: 136 | C163: 0.03272663981 | D163: 0 | E163: -1723.5 | F163: -1719.5 | G163: 826.5 | H163: 3282 | I163: 3226 | J163: 1226.5 | K163: -2338.5 | L163: -5347 | M163: -7796 | N163: -10467 | O163: -13363 | P163: -16022 | Q163: -18745 | R163: -22150 | S163: -24725 | T163: -26727 | U163: -29080 | V163: -31464 | W163: -34027 | X163: -37352.5 | Y163: -41119 | Z163: -44455 | AA163: -47099 | AB163: -49473 | AC163: -52141.5 | AD163: -54865 | AE163: -57243.5 | AF163: -59602.5 | AG163: -62056.5 | AH163: -63295 | BD163: 0.03272663981 | BL163: 2013-10-31
B164: 137 | C164: 0.03934967613 | D164: 0 | E164: -1723.5 | F164: -1719.5 | G164: 826.5 | H164: 3282 | I164: 3226 | J164: 1226.5 | K164: -2338.5 | L164: -5347 | M164: -7796 | N164: -10467 | O164: -13363 | P164: -16022 | Q164: -18745 | R164: -22150 | S164: -24725 | T164: -26727 | U164: -29080 | V164: -31464 | W164: -34027 | X164: -37352.5 | Y164: -41119 | Z164: -44455 | AA164: -47099 | AB164: -49473 | AC164: -52141.5 | AD164: -54865 | AE164: -57243.5 | AF164: -59602.5 | AG164: -62056.5 | AH164: -63295 | BD164: 0.03934967613 | BL164: 2013-11-30
B165: 138 | C165: 0.03923559321 | D165: 0 | E165: -1723.5 | F165: -1719.5 | G165: 826.5 | H165: 3282 | I165: 3226 | J165: 1226.5 | K165: -2338.5 | L165: -5347 | M165: -7796 | N165: -10467 | O165: -13363 | P165: -16022 | Q165: -18745 | R165: -22150 | S165: -24725 | T165: -26727 | U165: -29080 | V165: -31464 | W165: -34027 | X165: -37352.5 | Y165: -41119 | Z165: -44455 | AA165: -47099 | AB165: -49473 | AC165: -52141.5 | AD165: -54865 | AE165: -57243.5 | AF165: -59602.5 | AG165: -62056.5 | AH165: -63295 | BD165: 0.03923559321 | BL165: 2013-12-31
B166: 139 | C166: 0.03459546424 | D166: 0 | E166: -1723.5 | F166: -1719.5 | G166: 826.5 | H166: 3282 | I166: 3226 | J166: 1226.5 | K166: -2338.5 | L166: -5347 | M166: -7796 | N166: -10467 | O166: -13363 | P166: -16022 | Q166: -18745 | R166: -22150 | S166: -24725 | T166: -26727 | U166: -29080 | V166: -31464 | W166: -34027 | X166: -37352.5 | Y166: -41119 | Z166: -44455 | AA166: -47099 | AB166: -49473 | AC166: -52141.5 | AD166: -54865 | AE166: -57243.5 | AF166: -59602.5 | AG166: -62056.5 | AH166: -63295 | BD166: 0.03459546424 | BL166: 2014-01-31
B167: 140 | C167: 0.04381498815 | D167: 0 | E167: -1723.5 | F167: -1719.5 | G167: 826.5 | H167: 3282 | I167: 3226 | J167: 1226.5 | K167: -2338.5 | L167: -5347 | M167: -7796 | N167: -10467 | O167: -13363 | P167: -16022 | Q167: -18745 | R167: -22150 | S167: -24725 | T167: -26727 | U167: -29080 | V167: -31464 | W167: -34027 | X167: -37352.5 | Y167: -41119 | Z167: -44455 | AA167: -47099 | AB167: -49473 | AC167: -52141.5 | AD167: -54865 | AE167: -57243.5 | AF167: -59602.5 | AG167: -62056.5 | AH167: -63295 | BD167: 0.04381498815 | BL167: 2014-02-28
B168: 141 | C168: 0.04108735693 | D168: 0 | E168: -1723.5 | F168: -1719.5 | G168: 826.5 | H168: 3282 | I168: 3226 | J168: 1226.5 | K168: -2338.5 | L168: -5347 | M168: -7796 | N168: -10467 | O168: -13363 | P168: -16022 | Q168: -18745 | R168: -22150 | S168: -24725 | T168: -26727 | U168: -29080 | V168: -31464 | W168: -34027 | X168: -37352.5 | Y168: -41119 | Z168: -44455 | AA168: -47099 | AB168: -49473 | AC168: -52141.5 | AD168: -54865 | AE168: -57243.5 | AF168: -59602.5 | AG168: -62056.5 | AH168: -63295 | BD168: 0.04108735693 | BL168: 2014-03-31
B169: 142 | C169: 0.04109078417 | D169: 0 | E169: -1723.5 | F169: -1719.5 | G169: 826.5 | H169: 3282 | I169: 3226 | J169: 1226.5 | K169: -2338.5 | L169: -5347 | M169: -7796 | N169: -10467 | O169: -13363 | P169: -16022 | Q169: -18745 | R169: -22150 | S169: -24725 | T169: -26727 | U169: -29080 | V169: -31464 | W169: -34027 | X169: -37352.5 | Y169: -41119 | Z169: -44455 | AA169: -47099 | AB169: -49473 | AC169: -52141.5 | AD169: -54865 | AE169: -57243.5 | AF169: -59602.5 | AG169: -62056.5 | AH169: -63295 | BD169: 0.04109078417 | BL169: 2014-04-30
B170: 143 | C170: 0.04235039353 | D170: 0 | E170: -1723.5 | F170: -1719.5 | G170: 826.5 | H170: 3282 | I170: 3226 | J170: 1226.5 | K170: -2338.5 | L170: -5347 | M170: -7796 | N170: -10467 | O170: -13363 | P170: -16022 | Q170: -18745 | R170: -22150 | S170: -24725 | T170: -26727 | U170: -29080 | V170: -31464 | W170: -34027 | X170: -37352.5 | Y170: -41119 | Z170: -44455 | AA170: -47099 | AB170: -49473 | AC170: -52141.5 | AD170: -54865 | AE170: -57243.5 | AF170: -59602.5 | AG170: -62056.5 | AH170: -63295 | BD170: 0.04235039353 | BL170: 2014-05-31
B171: 144 | C171: 0.04395030903 | D171: 0 | E171: -1723.5 | F171: -1719.5 | G171: 826.5 | H171: 3282 | I171: 3226 | J171: 1226.5 | K171: -2338.5 | L171: -5347 | M171: -7796 | N171: -10467 | O171: -13363 | P171: -16022 | Q171: -18745 | R171: -22150 | S171: -24725 | T171: -26727 | U171: -29080 | V171: -31464 | W171: -34027 | X171: -37352.5 | Y171: -41119 | Z171: -44455 | AA171: -47099 | AB171: -49473 | AC171: -52141.5 | AD171: -54865 | AE171: -57243.5 | AF171: -59602.5 | AG171: -62056.5 | AH171: -63295 | BD171: 0.04395030903 | BL171: 2014-06-30
B172: 145 | C172: 0.04297356714 | D172: 0 | E172: -1723.5 | F172: -1719.5 | G172: 826.5 | H172: 3282 | I172: 3226 | J172: 1226.5 | K172: -2338.5 | L172: -5347 | M172: -7796 | N172: -10467 | O172: -13363 | P172: -16022 | Q172: -18745 | R172: -22150 | S172: -24725 | T172: -26727 | U172: -29080 | V172: -31464 | W172: -34027 | X172: -37352.5 | Y172: -41119 | Z172: -44455 | AA172: -47099 | AB172: -49473 | AC172: -52141.5 | AD172: -54865 | AE172: -57243.5 | AF172: -59602.5 | AG172: -62056.5 | AH172: -63295 | BD172: 0.04297356714 | BL172: 2014-07-31
B173: 146 | C173: 0.0284562838 | D173: 0 | E173: -1723.5 | F173: -1719.5 | G173: 826.5 | H173: 3282 | I173: 3226 | J173: 1226.5 | K173: -2338.5 | L173: -5347 | M173: -7796 | N173: -10467 | O173: -13363 | P173: -16022 | Q173: -18745 | R173: -22150 | S173: -24725 | T173: -26727 | U173: -29080 | V173: -31464 | W173: -34027 | X173: -37352.5 | Y173: -41119 | Z173: -44455 | AA173: -47099 | AB173: -49473 | AC173: -52141.5 | AD173: -54865 | AE173: -57243.5 | AF173: -59602.5 | AG173: -62056.5 | AH173: -63295 | BD173: 0.0284562838 | BL173: 2014-08-31
B174: 147 | C174: 0.03834087597 | D174: 0 | E174: -1723.5 | F174: -1719.5 | G174: 826.5 | H174: 3282 | I174: 3226 | J174: 1226.5 | K174: -2338.5 | L174: -5347 | M174: -7796 | N174: -10467 | O174: -13363 | P174: -16022 | Q174: -18745 | R174: -22150 | S174: -24725 | T174: -26727 | U174: -29080 | V174: -31464 | W174: -34027 | X174: -37352.5 | Y174: -41119 | Z174: -44455 | AA174: -47099 | AB174: -49473 | AC174: -52141.5 | AD174: -54865 | AE174: -57243.5 | AF174: -59602.5 | AG174: -62056.5 | AH174: -63295 | BD174: 0.03834087597 | BL174: 2014-09-30
B175: 148 | C175: 0.04331499558 | D175: 0 | E175: -1723.5 | F175: -1719.5 | G175: 826.5 | H175: 3282 | I175: 3226 | J175: 1226.5 | K175: -2338.5 | L175: -5347 | M175: -7796 | N175: -10467 | O175: -13363 | P175: -16022 | Q175: -18745 | R175: -22150 | S175: -24725 | T175: -26727 | U175: -29080 | V175: -31464 | W175: -34027 | X175: -37352.5 | Y175: -41119 | Z175: -44455 | AA175: -47099 | AB175: -49473 | AC175: -52141.5 | AD175: -54865 | AE175: -57243.5 | AF175: -59602.5 | AG175: -62056.5 | AH175: -63295 | BD175: 0.04331499558 | BL175: 2014-10-31
B176: 149 | C176: 0.03640974035 | D176: 0 | E176: -1723.5 | F176: -1719.5 | G176: 826.5 | H176: 3282 | I176: 3226 | J176: 1226.5 | K176: -2338.5 | L176: -5347 | M176: -7796 | N176: -10467 | O176: -13363 | P176: -16022 | Q176: -18745 | R176: -22150 | S176: -24725 | T176: -26727 | U176: -29080 | V176: -31464 | W176: -34027 | X176: -37352.5 | Y176: -41119 | Z176: -44455 | AA176: -47099 | AB176: -49473 | AC176: -52141.5 | AD176: -54865 | AE176: -57243.5 | AF176: -59602.5 | AG176: -62056.5 | AH176: -63295 | BD176: 0.03640974035 | BL176: 2014-11-30
B177: 150 | C177: 0.03690219724 | D177: 0 | E177: -1723.5 | F177: -1719.5 | G177: 826.5 | H177: 3282 | I177: 3226 | J177: 1226.5 | K177: -2338.5 | L177: -5347 | M177: -7796 | N177: -10467 | O177: -13363 | P177: -16022 | Q177: -18745 | R177: -22150 | S177: -24725 | T177: -26727 | U177: -29080 | V177: -31464 | W177: -34027 | X177: -37352.5 | Y177: -41119 | Z177: -44455 | AA177: -47099 | AB177: -49473 | AC177: -52141.5 | AD177: -54865 | AE177: -57243.5 | AF177: -59602.5 | AG177: -62056.5 | AH177: -63295 | BD177: 0.03690219724 | BL177: 2014-12-31
B178: 151 | C178: 0.0401140062 | D178: 0 | E178: -1085 | F178: -26.5 | G178: 4579 | H178: 8958.5 | I178: 8618 | J178: 5881 | K178: 1736 | L178: -2671 | M178: -6728.5 | N178: -10356 | O178: -14099 | P178: -18597.5 | Q178: -23190.5 | R178: -26872 | S178: -29281.5 | T178: -30808.5 | U178: -32181.5 | V178: -34042.5 | W178: -36615.5 | X178: -39575.5 | Y178: -42358.5 | Z178: -44679 | AA178: -46453.5 | AB178: -47713.5 | AC178: -48911 | AD178: -50241.5 | AE178: -51279 | AF178: -52298 | AG178: -53781 | AH178: -54641 | BD178: =IF(C178="","",MAX(0,C178)) -> 0.0401140062 | BL178: 2015-01-31
B179: 152 | C179: 0.004402548224 | D179: 0 | E179: -2804.5 | F179: -4416 | G179: -2741.5 | H179: 52 | I179: 2861.5 | J179: 6633 | K179: 10667 | L179: 14553.5 | M179: 18080.5 | N179: 21517 | O179: 24806.5 | P179: 27745 | Q179: 30856 | R179: 34365 | S179: 36414.5 | T179: 36899 | U179: 37397.5 | V179: 37968 | W179: 38613 | X179: 39265.5 | Y179: 39779 | Z179: 40151 | AA179: 40524 | AB179: 40991.5 | AC179: 41563.5 | AD179: 42153.5 | AE179: 42872 | AF179: 43733 | AG179: 44635.5 | AH179: 45100.5 | BD179: =IF(C179="","",MAX(0,C179)) -> 0.004402548224 | BL179: 2015-02-28
B180: 153 | C180: 0.00123482746 | D180: 0 | E180: -1241 | F180: 164.5 | G180: 7093 | H180: 14105 | I180: 17437 | J180: 21515.5 | K180: 25599.5 | L180: 29520.5 | M180: 33491 | N180: 37638.5 | O180: 41893 | P180: 46017.5 | Q180: 49660 | R180: 53000.5 | S180: 55506 | T180: 57169 | U180: 58888 | V180: 60853 | W180: 63096.5 | X180: 65467 | Y180: 68279.5 | Z180: 71569 | AA180: 75032.5 | AB180: 78736.5 | AC180: 82677.5 | AD180: 86781 | AE180: 90883.5 | AF180: 94953 | AG180: 99154.5 | AH180: 101315.5 | BD180: 0.00123482746 | BL180: 2015-03-31
B181: 154 | C181: 0.04318564587 | D181: 0 | E181: -926.5 | F181: -1259.5 | G181: -5655 | H181: -10827 | I181: -14257 | J181: -18519.5 | K181: -22841 | L181: -26981.5 | M181: -31374.5 | N181: -35850.5 | O181: -39931.5 | P181: -43288.5 | Q181: -45464.5 | R181: -47669.5 | S181: -50207.5 | T181: -52325.5 | U181: -54181 | V181: -55915.5 | W181: -57375.5 | X181: -58834 | Y181: -60057.5 | Z181: -60745.5 | AA181: -61551 | AB181: -62587 | AC181: -63487 | AD181: -64098 | AE181: -64499 | AF181: -64913 | AG181: -65545.5 | AH181: -65952 | BD181: 0.04318564587 | BL181: 2015-04-30
B182: 155 | C182: 0.06051302715 | D182: 0.1 | E182: -1982.5 | F182: -2610.5 | G182: -1818.5 | H182: -798 | I182: -88.5 | J182: 611.5 | K182: 800.5 | L182: 310 | M182: -987 | N182: -2830 | O182: -4673.5 | P182: -6939 | Q182: -10341 | R182: -14915.5 | S182: -18335 | T182: -20052 | U182: -22035.5 | V182: -24363 | W182: -27118.5 | X182: -30471 | Y182: -34186 | Z182: -38269.5 | AA182: -43013.5 | AB182: -48484 | AC182: -54310 | AD182: -60259 | AE182: -67527 | AF182: -75971.5 | AG182: -85362 | AH182: -90922.5 | BD182: 0.06051302715 | BL182: 2015-05-31
B183: 156 | C183: 0.003364448897 | D183: 0 | E183: -2406.5 | F183: -3392 | G183: 702.5 | H183: 6088.5 | I183: 9372 | J183: 13287 | K183: 17334 | L183: 21365.5 | M183: 25149 | N183: 28719.5 | O183: 32186 | P183: 35427 | Q183: 38609.5 | R183: 42023.5 | S183: 44425 | T183: 45641.5 | U183: 46917.5 | V183: 49126 | W183: 52405.5 | X183: 55956 | Y183: 59843.5 | Z183: 64069 | AA183: 68575.5 | AB183: 73440.5 | AC183: 78814 | AD183: 84881.5 | AE183: 91584 | AF183: 98763 | AG183: 106646.5 | AH183: 110878.5 | BD183: 0.003364448897 | BL183: 2015-06-30
B184: 157 | C184: 0.04507711502 | D184: 0 | E184: -519.5 | F184: 410.5 | G184: -1567 | H184: -5036.5 | I184: -8255 | J184: -11996 | K184: -15584 | L184: -19351.5 | M184: -22678 | N184: -25339 | O184: -28129 | P184: -31292 | Q184: -35147.5 | R184: -39299 | S184: -42830.5 | T184: -45915 | U184: -49202 | V184: -52344.5 | W184: -55128 | X184: -58091.5 | Y184: -61359.5 | Z184: -65196 | AA184: -69334 | AB184: -72831 | AC184: -75702.5 | AD184: -78976 | AE184: -82847.5 | AF184: -86956 | AG184: -90924 | AH184: -92775.5 | BD184: 0.04507711502 | BL184: 2015-07-31
B185: 158 | C185: 0.001914006693 | D185: 0 | E185: -1932 | F185: -1847.5 | G185: 3662 | H185: 9876.5 | I185: 12663.5 | J185: 15502 | K185: 18642 | L185: 22181 | M185: 26078.5 | N185: 30004.5 | O185: 33833.5 | P185: 37976.5 | Q185: 42325.5 | R185: 46573 | S185: 48842 | T185: 49234.5 | U185: 49639 | V185: 50143 | W185: 50750 | X185: 51362 | Y185: 52087.5 | Z185: 52932 | AA185: 53797.5 | AB185: 54659 | AC185: 55510 | AD185: 56372 | AE185: 57342.5 | AF185: 58442.5 | AG185: 59579.5 | AH185: 60159 | BD185: 0.001914006693 | BL185: 2015-08-31
B186: 159 | C186: 0.1357201802 | D186: 0 | E186: -2768.5 | F186: -5661 | G186: -8849 | H186: -11155.5 | I186: -12989.5 | J186: -16358 | K186: -20297.5 | L186: -24590.5 | M186: -29559 | N186: -35239.5 | O186: -41700 | P186: -48554.5 | Q186: -55552 | R186: -62943 | S186: -69595 | T186: -75404.5 | U186: -82088 | V186: -89262.5 | W186: -96178 | X186: -102706 | Y186: -108722 | Z186: -113866.5 | AA186: -119369.5 | AB186: -127979.5 | AC186: -141175 | AD186: -156931 | AE186: -173073 | AF186: -189836 | AG186: -207372.5 | AH186: -216589 | BD186: 0.1357201802 | BL186: 2015-09-30
B187: 160 | C187: 0.002101436083 | D187: 0 | E187: -1571 | F187: -2125.5 | G187: 417 | H187: 4231.5 | I187: 6229 | J187: 9215.5 | K187: 13161 | L187: 17122 | M187: 21043.5 | N187: 25189.5 | O187: 29420 | P187: 33588 | Q187: 37492 | R187: 41190 | S187: 43632 | T187: 44755.5 | U187: 45919 | V187: 47180.5 | W187: 48541.5 | X187: 49939.5 | Y187: 51321 | Z187: 52696.5 | AA187: 54144.5 | AB187: 56113 | AC187: 58656.5 | AD187: 61366.5 | AE187: 64159 | AF187: 66943.5 | AG187: 69677.5 | AH187: 71037 | BD187: 0.002101436083 | BL187: 2015-10-31
B188: 161 | C188: 0.1101261918 | D188: 0.08 | E188: -3049 | F188: -6773 | G188: -13336 | H188: -19293.5 | I188: -22942 | J188: -29127 | K188: -36285.5 | L188: -43254 | M188: -50512 | N188: -58254.5 | O188: -67371.5 | P188: -78883 | Q188: -91353.5 | R188: -103623.5 | S188: -114257 | T188: -122330 | U188: -130081.5 | V188: -138242 | W188: -146633 | X188: -154269.5 | Y188: -160827.5 | Z188: -167581 | AA188: -175042.5 | AB188: -183625 | AC188: -194576 | AD188: -205684.5 | AE188: -215237 | AF188: -225215.5 | AG188: -235795 | AH188: -241132 | BD188: 0.1101261918 | BL188: 2015-11-30
B189: 162 | C189: 0.04413091021 | D189: 0 | E189: -1723.5 | F189: -1719.5 | G189: 826.5 | H189: 3282 | I189: 3226 | J189: 1226.5 | K189: -2338.5 | L189: -5347 | M189: -7796 | N189: -10467 | O189: -13363 | P189: -16022 | Q189: -18745 | R189: -22150 | S189: -24725 | T189: -26727 | U189: -29080 | V189: -31464 | W189: -34027 | X189: -37352.5 | Y189: -41119 | Z189: -44455 | AA189: -47099 | AB189: -49473 | AC189: -52141.5 | AD189: -54865 | AE189: -57243.5 | AF189: -59602.5 | AG189: -62056.5 | AH189: -63295 | BD189: 0.04413091021 | BL189: 2015-12-31
B190: 163 | C190: 0.04305910425 | D190: 0 | E190: -1723.5 | F190: -1719.5 | G190: 826.5 | H190: 3282 | I190: 3226 | J190: 1226.5 | K190: -2338.5 | L190: -5347 | M190: -7796 | N190: -10467 | O190: -13363 | P190: -16022 | Q190: -18745 | R190: -22150 | S190: -24725 | T190: -26727 | U190: -29080 | V190: -31464 | W190: -34027 | X190: -37352.5 | Y190: -41119 | Z190: -44455 | AA190: -47099 | AB190: -49473 | AC190: -52141.5 | AD190: -54865 | AE190: -57243.5 | AF190: -59602.5 | AG190: -62056.5 | AH190: -63295 | BD190: 0.04305910425 | BL190: 2016-01-31
B191: 164 | C191: 0.03656520979 | D191: 0 | E191: -1723.5 | F191: -1719.5 | G191: 826.5 | H191: 3282 | I191: 3226 | J191: 1226.5 | K191: -2338.5 | L191: -5347 | M191: -7796 | N191: -10467 | O191: -13363 | P191: -16022 | Q191: -18745 | R191: -22150 | S191: -24725 | T191: -26727 | U191: -29080 | V191: -31464 | W191: -34027 | X191: -37352.5 | Y191: -41119 | Z191: -44455 | AA191: -47099 | AB191: -49473 | AC191: -52141.5 | AD191: -54865 | AE191: -57243.5 | AF191: -59602.5 | AG191: -62056.5 | AH191: -63295 | BD191: 0.03656520979 | BL191: 2016-02-29
B192: 165 | C192: 0.04869730747 | D192: 0.02 | E192: -1723.5 | F192: -1719.5 | G192: 826.5 | H192: 3282 | I192: 3226 | J192: 1226.5 | K192: -2338.5 | L192: -5347 | M192: -7796 | N192: -10467 | O192: -13363 | P192: -16022 | Q192: -18745 | R192: -22150 | S192: -24725 | T192: -26727 | U192: -29080 | V192: -31464 | W192: -34027 | X192: -37352.5 | Y192: -41119 | Z192: -44455 | AA192: -47099 | AB192: -49473 | AC192: -52141.5 | AD192: -54865 | AE192: -57243.5 | AF192: -59602.5 | AG192: -62056.5 | AH192: -63295 | BD192: 0.04869730747 | BL192: 2016-03-31
B193: 166 | C193: 0.03956015418 | D193: 0 | E193: -1723.5 | F193: -1719.5 | G193: 826.5 | H193: 3282 | I193: 3226 | J193: 1226.5 | K193: -2338.5 | L193: -5347 | M193: -7796 | N193: -10467 | O193: -13363 | P193: -16022 | Q193: -18745 | R193: -22150 | S193: -24725 | T193: -26727 | U193: -29080 | V193: -31464 | W193: -34027 | X193: -37352.5 | Y193: -41119 | Z193: -44455 | AA193: -47099 | AB193: -49473 | AC193: -52141.5 | AD193: -54865 | AE193: -57243.5 | AF193: -59602.5 | AG193: -62056.5 | AH193: -63295 | BD193: 0.03956015418 | BL193: 2016-04-30
B194: 167 | C194: 0.03338708997 | D194: 0 | E194: -1723.5 | F194: -1719.5 | G194: 826.5 | H194: 3282 | I194: 3226 | J194: 1226.5 | K194: -2338.5 | L194: -5347 | M194: -7796 | N194: -10467 | O194: -13363 | P194: -16022 | Q194: -18745 | R194: -22150 | S194: -24725 | T194: -26727 | U194: -29080 | V194: -31464 | W194: -34027 | X194: -37352.5 | Y194: -41119 | Z194: -44455 | AA194: -47099 | AB194: -49473 | AC194: -52141.5 | AD194: -54865 | AE194: -57243.5 | AF194: -59602.5 | AG194: -62056.5 | AH194: -63295 | BD194: 0.03338708997 | BL194: 2016-05-31
B195: 168 | C195: 0.04367689081 | D195: 0 | E195: -1723.5 | F195: -1719.5 | G195: 826.5 | H195: 3282 | I195: 3226 | J195: 1226.5 | K195: -2338.5 | L195: -5347 | M195: -7796 | N195: -10467 | O195: -13363 | P195: -16022 | Q195: -18745 | R195: -22150 | S195: -24725 | T195: -26727 | U195: -29080 | V195: -31464 | W195: -34027 | X195: -37352.5 | Y195: -41119 | Z195: -44455 | AA195: -47099 | AB195: -49473 | AC195: -52141.5 | AD195: -54865 | AE195: -57243.5 | AF195: -59602.5 | AG195: -62056.5 | AH195: -63295 | BD195: 0.04367689081 | BL195: 2016-06-30
B196: 169 | C196: 0.03781055333 | D196: 0 | E196: -1723.5 | F196: -1719.5 | G196: 826.5 | H196: 3282 | I196: 3226 | J196: 1226.5 | K196: -2338.5 | L196: -5347 | M196: -7796 | N196: -10467 | O196: -13363 | P196: -16022 | Q196: -18745 | R196: -22150 | S196: -24725 | T196: -26727 | U196: -29080 | V196: -31464 | W196: -34027 | X196: -37352.5 | Y196: -41119 | Z196: -44455 | AA196: -47099 | AB196: -49473 | AC196: -52141.5 | AD196: -54865 | AE196: -57243.5 | AF196: -59602.5 | AG196: -62056.5 | AH196: -63295 | BD196: 0.03781055333 | BL196: 2016-07-31
B197: 170 | C197: 0.04343829811 | D197: 0 | E197: -1723.5 | F197: -1719.5 | G197: 826.5 | H197: 3282 | I197: 3226 | J197: 1226.5 | K197: -2338.5 | L197: -5347 | M197: -7796 | N197: -10467 | O197: -13363 | P197: -16022 | Q197: -18745 | R197: -22150 | S197: -24725 | T197: -26727 | U197: -29080 | V197: -31464 | W197: -34027 | X197: -37352.5 | Y197: -41119 | Z197: -44455 | AA197: -47099 | AB197: -49473 | AC197: -52141.5 | AD197: -54865 | AE197: -57243.5 | AF197: -59602.5 | AG197: -62056.5 | AH197: -63295 | BD197: 0.04343829811 | BL197: 2016-08-31
B198: 171 | C198: 0.045295068 | D198: 0 | E198: -1723.5 | F198: -1719.5 | G198: 826.5 | H198: 3282 | I198: 3226 | J198: 1226.5 | K198: -2338.5 | L198: -5347 | M198: -7796 | N198: -10467 | O198: -13363 | P198: -16022 | Q198: -18745 | R198: -22150 | S198: -24725 | T198: -26727 | U198: -29080 | V198: -31464 | W198: -34027 | X198: -37352.5 | Y198: -41119 | Z198: -44455 | AA198: -47099 | AB198: -49473 | AC198: -52141.5 | AD198: -54865 | AE198: -57243.5 | AF198: -59602.5 | AG198: -62056.5 | AH198: -63295 | BD198: 0.045295068 | BL198: 2016-09-30
B199: 172 | C199: 0.03598546826 | D199: 0 | E199: -1723.5 | F199: -1719.5 | G199: 826.5 | H199: 3282 | I199: 3226 | J199: 1226.5 | K199: -2338.5 | L199: -5347 | M199: -7796 | N199: -10467 | O199: -13363 | P199: -16022 | Q199: -18745 | R199: -22150 | S199: -24725 | T199: -26727 | U199: -29080 | V199: -31464 | W199: -34027 | X199: -37352.5 | Y199: -41119 | Z199: -44455 | AA199: -47099 | AB199: -49473 | AC199: -52141.5 | AD199: -54865 | AE199: -57243.5 | AF199: -59602.5 | AG199: -62056.5 | AH199: -63295 | BD199: 0.03598546826 | BL199: 2016-10-31
B200: 173 | C200: 0.04567786547 | D200: 0 | E200: -1723.5 | F200: -1719.5 | G200: 826.5 | H200: 3282 | I200: 3226 | J200: 1226.5 | K200: -2338.5 | L200: -5347 | M200: -7796 | N200: -10467 | O200: -13363 | P200: -16022 | Q200: -18745 | R200: -22150 | S200: -24725 | T200: -26727 | U200: -29080 | V200: -31464 | W200: -34027 | X200: -37352.5 | Y200: -41119 | Z200: -44455 | AA200: -47099 | AB200: -49473 | AC200: -52141.5 | AD200: -54865 | AE200: -57243.5 | AF200: -59602.5 | AG200: -62056.5 | AH200: -63295 | BD200: 0.04567786547 | BL200: =EOMONTH(BL199,1) -> 2016-11-30
B201: 174 | C201: 0.03658445717 | D201: 0 | E201: -1723.5 | F201: -1719.5 | G201: 826.5 | H201: 3282 | I201: 3226 | J201: 1226.5 | K201: -2338.5 | L201: -5347 | M201: -7796 | N201: -10467 | O201: -13363 | P201: -16022 | Q201: -18745 | R201: -22150 | S201: -24725 | T201: -26727 | U201: -29080 | V201: -31464 | W201: -34027 | X201: -37352.5 | Y201: -41119 | Z201: -44455 | AA201: -47099 | AB201: -49473 | AC201: -52141.5 | AD201: -54865 | AE201: -57243.5 | AF201: -59602.5 | AG201: -62056.5 | AH201: -63295 | BD201: 0.03658445717 | BL201: 2016-12-31
... 45 more rows

Sheet 1Yr Rate
A1: Scen/Month | B1: 0 | C1: =B1+1 -> 1 | D1: =C1+1 -> 2 | E1: =D1+1 -> 3 | F1: 4 | G1: 5 | H1: 6 | I1: 7 | J1: 8 | K1: 9 | L1: 10 | M1: 11 | N1: 12 | O1: 13 | P1: 14 | Q1: 15 | R1: 16 | S1: 17 | T1: 18 | U1: 19 | V1: 20 | W1: 21 | X1: 22 | Y1: 23 | Z1: 24 | AA1: 25 | AB1: 26 | AC1: 27 | AD1: 28 | AE1: 29 | AF1: 30 | AG1: 31 | AH1: 32 | AI1: 33 | AJ1: 34 | AK1: 35 | AL1: 36 | AM1: 37 | AN1: 38 | AO1: 39 | AP1: 40 | AQ1: 41 | AR1: 42 | AS1: 43 | AT1: 44 | AU1: 45 | AV1: 46 | AW1: 47 | AX1: 48 | AY1: 49 | AZ1: 50 | BA1: 51 | BB1: 52 | BC1: 53 | BD1: 54 | BE1: 55 | BF1: 56 | BG1: 57 | BH1: 58 | BI1: 59 | BJ1: 60 | BK1: 61 | BL1: 62 | BM1: 63 | BN1: 64 | BO1: 65 | BP1: 66 | BQ1: =BP1+1 -> 67 | BR1: 68 | BS1: 69 | BT1: 70 | BU1: 71 | BV1: 72 | BW1: 73 | BX1: 74 | BY1: 75 | BZ1: 76 | CA1: 77 | CB1: 78 | CC1: 79 | CD1: 80 | CE1: 81 | CF1: 82 | CG1: 83 | CH1: 84 | CI1: 85 | CJ1: 86 | CK1: 87 | CL1: 88 | CM1: 89 | CN1: 90 | CO1: 91 | CP1: 92 | CQ1: 93 | CR1: 94 | CS1: 95 | CT1: 96 | CU1: 97 | CV1: 98 | CW1: 99 | CX1: 100 | CY1: 101 | CZ1: 102 | DA1: 103 | DB1: 104 | DC1: 105 | DD1: 106 | DE1: 107 | DF1: 108 | DG1: 109 | DH1: 110 | DI1: 111 | DJ1: 112 | DK1: 113 | DL1: 114 | DM1: 115 | DN1: 116 | DO1: 117 | DP1: 118 | DQ1: 119 | DR1: 120 | DS1: 121 | DT1: 122 | DU1: 123 | DV1: 124 | DW1: 125 | DX1: 126 | DY1: 127 | DZ1: 128 | EA1: 129 | EB1: 130 | EC1: =EB1+1 -> 131 | ED1: 132 | EE1: 133 | EF1: 134 | EG1: 135 | EH1: 136 | EI1: 137 | EJ1: 138 | EK1: 139 | EL1: 140 | EM1: 141 | EN1: 142 | EO1: 143 | EP1: 144 | EQ1: 145 | ER1: 146 | ES1: 147 | ET1: 148 | EU1: 149 | EV1: 150 | EW1: 151 | EX1: 152 | EY1: 153 | EZ1: 154 | FA1: 155 | FB1: 156 | FC1: 157 | FD1: 158 | FE1: 159 | FF1: 160 | FG1: 161 | FH1: 162 | FI1: 163 | FJ1: 164 | FK1: 165 | FL1: 166 | FM1: 167 | FN1: 168 | FO1: 169 | FP1: 170 | FQ1: 171 | FR1: 172 | FS1: 173 | FT1: 174 | FU1: 175 | FV1: 176 | FW1: 177 | FX1: 178 | FY1: 179 | FZ1: 180 | GA1: 181 | GB1: 182 | GC1: 183 | GD1: 184 | GE1: 185 | GF1: 186 | GG1: 187 | GH1: 188 | GI1: 189 | GJ1: 190 | GK1: 191 | GL1: 192 | GM1: 193 | GN1: 194 | GO1: =GN1+1 -> 195 | GP1: 196 | GQ1: 197 | GR1: 198 | GS1: 199 | GT1: 200 | GU1: 201 | GV1: 202 | GW1: 203 | GX1: 204 | GY1: 205 | GZ1: 206 | HA1: 207 | HB1: 208 | HC1: 209 | HD1: 210 | HE1: 211 | HF1: 212 | HG1: 213 | HH1: 214 | HI1: 215 | HJ1: 216 | HK1: 217 | HL1: 218 | HM1: 219 | HN1: 220 | HO1: 221 | HP1: 222 | HQ1: 223 | HR1: 224 | HS1: 225 | HT1: 226 | HU1: 227 | HV1: 228 | HW1: 229 | HX1: 230 | HY1: 231 | HZ1: 232 | IA1: 233 | IB1: 234 | IC1: 235 | ID1: 236 | IE1: 237 | IF1: 238 | IG1: 239 | IH1: 240 | II1: 241 | IJ1: 242 | IK1: 243 | IL1: 244 | IM1: 245 | IN1: 246 | IO1: 247 | IP1: 248 | IQ1: 249 | IR1: 250 | IS1: 251 | IT1: 252 | IU1: 253 | IV1: 254 | IW1: 255 | IX1: 256 | IY1: 257 | IZ1: 258 | JA1: =IZ1+1 -> 259 | JB1: 260 | JC1: 261 | JD1: 262 | JE1: 263 | JF1: 264 | JG1: 265 | JH1: 266 | JI1: 267 | JJ1: 268 | JK1: 269 | JL1: 270 | JM1: 271 | JN1: 272 | JO1: 273 | JP1: 274 | JQ1: 275 | JR1: 276 | JS1: 277 | JT1: 278 | JU1: 279 | JV1: 280 | JW1: 281 | JX1: 282 | JY1: 283 | JZ1: 284 | KA1: 285 | KB1: 286 | KC1: 287 | KD1: 288 | KE1: 289 | KF1: 290 | KG1: 291 | KH1: 292 | KI1: 293 | KJ1: 294 | KK1: 295 | KL1: 296 | KM1: 297 | KN1: 298 | KO1: 299 | KP1: 300 | KQ1: 301 | KR1: 302 | KS1: 303 | KT1: 304 | KU1: 305 | KV1: 306 | KW1: 307 | KX1: 308 | KY1: 309 | KZ1: 310 | LA1: 311 | LB1: 312 | LC1: 313 | LD1: 314 | LE1: 315 | LF1: 316 | LG1: 317 | LH1: 318 | LI1: 319 | LJ1: 320 | LK1: 321 | LL1: 322 | LM1: =LL1+1 -> 323 | LN1: 324 | LO1: 325 | LP1: 326 | LQ1: 327 | LR1: 328 | LS1: 329 | LT1: 330 | LU1: 331 | LV1: 332 | LW1: 333 | LX1: 334 | LY1: 335 | LZ1: 336 | MA1: 337 | MB1: 338 | MC1: 339 | MD1: 340 | ME1: 341 | MF1: 342 | MG1: 343 | MH1: 344 | MI1: 345 | MJ1: 346 | MK1: 347 | ML1: 348 | MM1: 349 | MN1: 350 | MO1: 351 | MP1: 352 | MQ1: 353 | MR1: 354 | MS1: 355 | MT1: 356 | MU1: 357 | MV1: 358 | MW1: 359 | MX1: 360 | MY1: 361 | MZ1: 362 | NA1: 363 | NB1: 364 | NC1: 365 | ND1: 366 | NE1: 367 | NF1: 368 | NG1: 369 | NH1: 370 | NI1: 371 | NJ1: 372 | NK1: 373 | NL1: 374 | NM1: 375 | NN1: 376 | NO1: 377 | NP1: 378 | NQ1: 379 | NR1: 380 | NS1: 381 | NT1: 382 | NU1: 383 | NV1: 384 | NW1: 385 | NX1: 386 | NY1: =NX1+1 -> 387 | NZ1: 388 | OA1: 389 | OB1: 390 | OC1: 391 | OD1: 392 | OE1: 393 | OF1: 394 | OG1: 395 | OH1: 396 | OI1: 397 | OJ1: 398 | OK1: 399 | OL1: 400 | OM1: 401 | ON1: 402 | OO1: 403 | OP1: 404 | OQ1: 405 | OR1: 406 | OS1: 407 | OT1: 408 | OU1: 409 | OV1: 410 | OW1: 411 | OX1: 412 | OY1: 413 | OZ1: 414 | PA1: 415 | PB1: 416 | PC1: 417 | PD1: 418 | PE1: 419 | PF1: 420 | PG1: 421 | PH1: 422 | PI1: 423 | PJ1: 424 | PK1: 425 | PL1: 426 | PM1: 427 | PN1: 428 | PO1: 429 | PP1: 430 | PQ1: 431 | PR1: 432 | PS1: 433 | PT1: 434 | PU1: 435 | PV1: 436 | PW1: 437 | PX1: 438 | PY1: 439 | PZ1: 440 | QA1: 441 | QB1: 442 | QC1: 443 | QD1: 444 | QE1: 445 | QF1: 446 | QG1: 447 | QH1: 448 | QI1: 449 | QJ1: 450 | QK1: =QJ1+1 -> 451 | QL1: 452 | QM1: 453 | QN1: 454 | QO1: 455 | QP1: 456 | QQ1: 457 | QR1: 458 | QS1: 459 | QT1: 460 | QU1: 461 | QV1: 462 | QW1: 463 | QX1: 464 | QY1: 465 | QZ1: 466 | RA1: 467 | RB1: 468 | RC1: 469 | RD1: 470 | RE1: 471 | RF1: 472 | RG1: 473 | RH1: 474 | RI1: 475 | RJ1: 476 | RK1: 477 | RL1: 478 | RM1: 479 | RN1: 480 | RO1: 481 | RP1: 482 | RQ1: 483 | RR1: 484 | RS1: 485 | RT1: 486 | RU1: 487 | RV1: 488 | RW1: 489 | RX1: 490 | RY1: 491 | RZ1: 492 | SA1: 493 | SB1: 494 | SC1: 495 | SD1: 496 | SE1: 497 | SF1: 498 | SG1: 499 | SH1: 500 | SI1: 501 | SJ1: 502 | SK1: 503 | SL1: 504 | SM1: 505 | SN1: 506 | SO1: 507 | SP1: 508 | SQ1: 509 | SR1: 510 | SS1: 511 | ST1: 512 | SU1: 513 | SV1: 514 | SW1: =SV1+1 -> 515 | SX1: 516 | SY1: 517 | SZ1: 518 | TA1: 519 | TB1: 520 | TC1: 521 | TD1: 522 | TE1: 523 | TF1: 524 | TG1: 525 | TH1: 526 | TI1: 527 | TJ1: 528 | TK1: 529 | TL1: 530 | TM1: 531 | TN1: 532 | TO1: 533 | TP1: 534 | TQ1: 535 | TR1: 536 | TS1: 537 | TT1: 538 | TU1: 539 | TV1: 540 | TW1: 541 | TX1: 542 | TY1: 543 | TZ1: 544 | UA1: 545 | UB1: 546 | UC1: 547 | UD1: 548 | UE1: 549 | UF1: 550 | UG1: 551 | UH1: 552 | UI1: 553 | UJ1: 554 | UK1: 555 | UL1: 556 | UM1: 557 | UN1: 558 | UO1: 559 | UP1: 560 | UQ1: 561 | UR1: 562 | US1: 563 | UT1: 564 | UU1: 565 | UV1: 566 | UW1: 567 | UX1: 568 | UY1: 569 | UZ1: 570 | VA1: 571 | VB1: 572 | VC1: 573 | VD1: 574 | VE1: 575 | VF1: 576 | VG1: 577 | VH1: 578 | VI1: =VH1+1 -> 579 | VJ1: 580 | VK1: 581 | VL1: 582 | VM1: 583 | VN1: 584 | VO1: 585 | VP1: 586 | VQ1: 587 | VR1: 588 | VS1: 589 | VT1: 590 | VU1: 591 | VV1: 592 | VW1: 593 | VX1: 594 | VY1: 595 | VZ1: 596 | WA1: 597 | WB1: 598 | WC1: 599 | WD1: 600 | WE1: 601 | WF1: 602 | WG1: 603 | WH1: 604 | WI1: 605 | WJ1: 606 | WK1: 607 | WL1: 608 | WM1: 609 | WN1: 610 | WO1: 611 | WP1: 612
A2: 1 | B2: 0.0013 | C2: 0.00311 | D2: 0.00179 | E2: 0.00231 | F2: 0.00443 | G2: 0.00492 | H2: 0.00591 | I2: 0.00589 | J2: 0.00785 | K2: 0.00615 | L2: 0.00846 | M2: 0.00833 | N2: 0.00711 | O2: 0.0062 | P2: 0.0081 | Q2: 0.00985 | R2: 0.00991 | S2: 0.01167 | T2: 0.01408 | U2: 0.01502 | V2: 0.01786 | W2: 0.01901 | X2: 0.02044 | Y2: 0.02361 | Z2: 0.02315 | AA2: 0.02443 | AB2: 0.02495 | AC2: 0.02395 | AD2: 0.02459 | AE2: 0.02649 | AF2: 0.02642 | AG2: 0.02528 | AH2: 0.02289 | AI2: 0.02161 | AJ2: 0.02172 | AK2: 0.02029 | AL2: 0.01985 | AM2: 0.01825 | AN2: 0.01531 | AO2: 0.01672 | AP2: 0.01544 | AQ2: 0.01458 | AR2: 0.01367 | AS2: 0.01387 | AT2: 0.00892 | AU2: 0.00749 | AV2: 0.00875 | AW2: 0.00762 | AX2: 0.00858 | AY2: 0.00844 | AZ2: 0.01038 | BA2: 0.00923 | BB2: 0.00947 | BC2: 0.00975 | BD2: 0.00826 | BE2: 0.00954 | BF2: 0.01128 | BG2: 0.01262 | BH2: 0.01434 | BI2: 0.01219 | BJ2: 0.01181 | BK2: 0.01335 | BL2: 0.01343 | BM2: 0.01277 | BN2: 0.01381 | BO2: 0.01472 | BP2: 0.0144 | BQ2: 0.01445 | BR2: 0.01356 | BS2: 0.01318 | BT2: 0.01282 | BU2: 0.012 | BV2: 0.01259 | BW2: 0.01394 | BX2: 0.01349 | BY2: 0.01274 | BZ2: 0.01267 | CA2: 0.01325 | CB2: 0.0128 | CC2: 0.01526 | CD2: 0.01426 | CE2: 0.01356 | CF2: 0.01506 | CG2: 0.01191 | CH2: 0.01276 | CI2: 0.01144 | CJ2: 0.01174 | CK2: 0.01189 | CL2: 0.01044 | CM2: 0.01217 | CN2: 0.01284 | CO2: 0.01237 | CP2: 0.01077 | CQ2: 0.01096 | CR2: 0.00977 | CS2: 0.01 | CT2: 0.00973 | CU2: 0.00936 | CV2: 0.00774 | CW2: 0.00841 | CX2: 0.00832 | CY2: 0.00865 | CZ2: 0.00933 | DA2: 0.01024 | DB2: 0.01047 | DC2: 0.01115 | DD2: 0.01331 | DE2: 0.01379 | DF2: 0.0125 | DG2: 0.01284 | DH2: 0.01299 | DI2: 0.01598 | DJ2: 0.01658 | DK2: 0.01799 | DL2: 0.01733 | DM2: 0.01621 | DN2: 0.0154 | DO2: 0.01697 | DP2: 0.01815 | DQ2: 0.01745 | DR2: 0.01942 | DS2: 0.02002 | DT2: 0.02102 | DU2: 0.01781 | DV2: 0.01944 | DW2: 0.021 | DX2: 0.02399 | DY2: 0.02608 | DZ2: 0.028 | EA2: 0.02648 | EB2: 0.02521 | EC2: 0.02673 | ED2: 0.02546 | EE2: 0.02589 | EF2: 0.02332 | EG2: 0.02228 | EH2: 0.02185 | EI2: 0.02114 | EJ2: 0.02289 | EK2: 0.02277 | EL2: 0.0215 | EM2: 0.01973 | EN2: 0.02031 | EO2: 0.02283 | EP2: 0.0244 | EQ2: 0.02332 | ER2: 0.02334 | ES2: 0.02486 | ET2: 0.02611 | EU2: 0.02511 | EV2: 0.02138 | EW2: 0.01971 | EX2: 0.02058 | EY2: 0.02124 | EZ2: 0.02095 | FA2: 0.0213 | FB2: 0.02191 | FC2: 0.02111 | FD2: 0.02242 | FE2: 0.02141 | FF2: 0.02269 | FG2: 0.02449 | FH2: 0.02523 | FI2: 0.02554 | FJ2: 0.02506 | FK2: 0.0272 | FL2: 0.02852 | FM2: 0.02726 | FN2: 0.02805 | FO2: 0.0311 | FP2: 0.02919 | FQ2: 0.03088 | FR2: 0.03177 | FS2: 0.03312 | FT2: 0.03179 | FU2: 0.03206 | FV2: 0.033 | FW2: 0.03105 | FX2: 0.03135 | FY2: 0.03047 | FZ2: 0.03053 | GA2: 0.02967 | GB2: 0.03005 | GC2: 0.03203 | GD2: 0.03231 | GE2: 0.03408 | GF2: 0.03401 | GG2: 0.03588 | GH2: 0.03396 | GI2: 0.03524 | GJ2: 0.03541 | GK2: 0.03572 | GL2: 0.03824 | GM2: 0.03909 | GN2: 0.03975 | GO2: 0.04357 | GP2: 0.04322 | GQ2: 0.04068 | GR2: 0.03845 | GS2: 0.03469 | GT2: 0.03544 | GU2: 0.03794 | GV2: 0.03713 | GW2: 0.03588 | GX2: 0.03737 | GY2: 0.0375 | GZ2: 0.03604 | HA2: 0.03574 | HB2: 0.0353 | HC2: 0.03664 | HD2: 0.03891 | HE2: 0.03718 | HF2: 0.04037 | HG2: 0.03976 | HH2: 0.03931 | HI2: 0.04172 | HJ2: 0.04067 | HK2: 0.0438 | HL2: 0.04322 | HM2: 0.04284 | HN2: 0.04469 | HO2: 0.04524 | HP2: 0.0449 | HQ2: 0.04524 | HR2: 0.04006 | HS2: 0.03961 | HT2: 0.04242 | HU2: 0.04149 | HV2: 0.0393 | HW2: 0.03652 | HX2: 0.03605 | HY2: 0.03404 | HZ2: 0.03477 | IA2: 0.03792 | IB2: 0.03002 | IC2: 0.02969 | ID2: 0.03166 | IE2: 0.02919 | IF2: 0.02786 | IG2: 0.02765 | IH2: 0.02851 | II2: 0.02435 | IJ2: 0.02714 | IK2: 0.025 | IL2: 0.02515 | IM2: 0.02134 | IN2: 0.02093 | IO2: 0.01968 | IP2: 0.02168 | IQ2: 0.02493 | IR2: 0.02344 | IS2: 0.02106 | IT2: 0.02252 | IU2: 0.0216 | IV2: 0.02184 | IW2: 0.02313 | IX2: 0.02021 | IY2: 0.02064 | IZ2: 0.01966 | JA2: 0.01977 | JB2: 0.01773 | JC2: 0.01661 | JD2: 0.01628 | JE2: 0.01632 | JF2: 0.01909 | JG2: 0.01839 | JH2: 0.01847 | JI2: 0.01891 | JJ2: 0.01852 | JK2: 0.01993 | JL2: 0.02254 | JM2: 0.0205 | JN2: 0.01773 | JO2: 0.01674 | JP2: 0.01513 | JQ2: 0.01729 | JR2: 0.01926 | JS2: 0.01836 | JT2: 0.01984 | JU2: 0.02205 | JV2: 0.02361 | JW2: 0.02183 | JX2: 0.02314 | JY2: 0.02272 | JZ2: 0.02125 | KA2: 0.02242 | KB2: 0.02471 | KC2: 0.02427 | KD2: 0.0237 | KE2: 0.02668 | KF2: 0.02776 | KG2: 0.02945 | KH2: 0.03022 | KI2: 0.03001 | KJ2: 0.03037 | KK2: 0.03207 | KL2: 0.03247 | KM2: 0.02977 | KN2: 0.03377 | KO2: 0.03393 | KP2: 0.03689 | KQ2: 0.0352 | KR2: 0.03445 | KS2: 0.03119 | KT2: 0.02939 | KU2: 0.03018 | KV2: 0.02876 | KW2: 0.02464 | KX2: 0.02509 | KY2: 0.02395 | KZ2: 0.02555 | LA2: 0.02433 | LB2: 0.02714 | LC2: 0.02796 | LD2: 0.03154 | LE2: 0.03079 | LF2: 0.03349 | LG2: 0.03801 | LH2: 0.03936 | LI2: 0.04042 | LJ2: 0.04063 | LK2: 0.04218 | LL2: 0.04623 | LM2: 0.04892 | LN2: 0.04812 | LO2: 0.04355 | LP2: 0.04312 | LQ2: 0.04358 | LR2: 0.04157 | LS2: 0.03788 | LT2: 0.03982 | LU2: 0.04049 | LV2: 0.04132 | LW2: 0.04531 | LX2: 0.05159 | LY2: 0.05596 | LZ2: 0.05504 | MA2: 0.05041 | MB2: 0.05157 | MC2: 0.05275 | MD2: 0.04979 | ME2: 0.04546 | MF2: 0.04315 | MG2: 0.04611 | MH2: 0.04021 | MI2: 0.03527 | MJ2: 0.03633 | MK2: 0.03574 | ML2: 0.03738 | MM2: 0.03413 | MN2: 0.03312 | MO2: 0.03737 | MP2: 0.03658 | MQ2: 0.03853 | MR2: 0.03532 | MS2: 0.03735 | MT2: 0.03611 | MU2: 0.03875 | MV2: 0.03571 | MW2: 0.04105 | MX2: 0.04214 | MY2: 0.04456 | MZ2: 0.04423 | NA2: 0.04644 | NB2: 0.05091 | NC2: 0.05202 | ND2: 0.04941 | NE2: 0.04263 | NF2: 0.04358 | NG2: 0.04256 | NH2: 0.04168 | NI2: 0.03983 | NJ2: 0.04001 | NK2: 0.04066 | NL2: 0.04216 | NM2: 0.04487 | NN2: 0.04404 | NO2: 0.03989 | NP2: 0.04171 | NQ2: 0.03822 | NR2: 0.04025 | NS2: 0.04284 | NT2: 0.04138 | NU2: 0.04277 | NV2: 0.04702 | NW2: 0.0487 | NX2: 0.04585 | NY2: 0.04744 | NZ2: 0.03952 | OA2: 0.04023 | OB2: 0.03448 | OC2: 0.03595 | OD2: 0.03511 | OE2: 0.03259 | OF2: 0.03118 | OG2: 0.03283 | OH2: 0.03337 | OI2: 0.0291 | OJ2: 0.03171 | OK2: 0.02964 | OL2: 0.02401 | OM2: 0.02317 | ON2: 0.02477 | OO2: 0.02409 | OP2: 0.01987 | OQ2: 0.01387 | OR2: 0.01475 | OS2: 0.01995 | OT2: 0.01975 | OU2: 0.01956 | OV2: 0.02345 | OW2: 0.01404 | OX2: 0.02316 | OY2: 0.02634 | OZ2: 0.0343 | PA2: 0.03791 | PB2: 0.04602 | PC2: 0.04849 | PD2: 0.05031 | PE2: 0.05403 | PF2: 0.05045 | PG2: 0.05641 | PH2: 0.05694 | PI2: 0.06008 | PJ2: 0.05844 | PK2: 0.05464 | PL2: 0.05264 | PM2: 0.05366 | PN2: 0.04933 | PO2: 0.0527 | PP2: 0.04841 | PQ2: 0.04783 | PR2: 0.0502 | PS2: 0.05453 | PT2: 0.05438 | PU2: 0.05528 | PV2: 0.05764 | PW2: 0.05705 | PX2: 0.0594 | PY2: 0.0615 | PZ2: 0.05717 | QA2: 0.05876 | QB2: 0.0584 | QC2: 0.0592 | QD2: 0.04987 | QE2: 0.05676 | QF2: 0.05699 | QG2: 0.06062 | QH2: 0.06385 | QI2: 0.06776 | QJ2: 0.07095 | QK2: 0.0735 | QL2: 0.07456 | QM2: 0.06687 | QN2: 0.0617 | QO2: 0.0657 | QP2: 0.06078 | QQ2: 0.05846 | QR2: 0.05713 | QS2: 0.04909 | QT2: 0.04776 | QU2: 0.03772 | QV2: 0.03114 | QW2: 0.03456 | QX2: 0.03385 | QY2: 0.04433 | QZ2: 0.04775 | RA2: 0.05553 | RB2: 0.05358 | RC2: 0.04997 | RD2: 0.04171 | RE2: 0.03899 | RF2: 0.04135 | RG2: 0.03749 | RH2: 0.03968 | RI2: 0.04291 | RJ2: 0.04525 | RK2: 0.04153 | RL2: 0.03751 | RM2: 0.03648 | RN2: 0.04221 | RO2: 0.04177 | RP2: 0.03561 | RQ2: 0.03374 | RR2: 0.03391 | RS2: 0.03817 | RT2: 0.03853 | RU2: 0.0347 | RV2: 0.03473 | RW2: 0.03487 | RX2: 0.03662 | RY2: 0.04118 | RZ2: 0.0404 | SA2: 0.03913 | SB2: 0.04498 | SC2: 0.04503 | SD2: 0.03857 | SE2: 0.03422 | SF2: 0.0332 | SG2: 0.03131 | SH2: 0.02818 | SI2: 0.03246 | SJ2: 0.03278 | SK2: 0.02473 | SL2: 0.0251 | SM2: 0.02846 | SN2: 0.03194 | SO2: 0.0271 | SP2: 0.02474 | SQ2: 0.03164 | SR2: 0.02769 | SS2: 0.02628 | ST2: 0.02434 | SU2: 0.02419 | SV2: 0.02946 | SW2: 0.03682 | SX2: 0.0379 | SY2: 0.04387 | SZ2: 0.04628 | TA2: 0.04045 | TB2: 0.03647 | TC2: 0.04084 | TD2: 0.04108 | TE2: 0.04068 | TF2: 0.0434 | TG2: 0.04552 | TH2: 0.04359 | TI2: 0.04115 | TJ2: 0.04173 | TK2: 0.03593 | TL2: 0.03814 | TM2: 0.04125 | TN2: 0.04243 | TO2: 0.03994 | TP2: 0.03907 | TQ2: 0.04207 | TR2: 0.0402 | TS2: 0.03713 | TT2: 0.03866 | TU2: 0.03388 | TV2: 0.0306 | TW2: 0.02997 | TX2: 0.0285 | TY2: 0.02528 | TZ2: 0.03171 | UA2: 0.0306 | UB2: 0.02972 | UC2: 0.03548 | UD2: 0.03943 | UE2: 0.04024 | UF2: 0.03935 | UG2: 0.04471 | UH2: 0.04367 | UI2: 0.041 | UJ2: 0.04415 | UK2: 0.04196 | UL2: 0.03981 | UM2: 0.04215 | UN2: 0.04769 | UO2: 0.04858 | UP2: 0.04362 | UQ2: 0.05339 | UR2: 0.06059 | US2: 0.05957 | UT2: 0.0542 | UU2: 0.05697 | UV2: 0.04429 | UW2: 0.04775 | UX2: 0.04577 | UY2: 0.04949 | UZ2: 0.05779 | VA2: 0.05754 | VB2: 0.05792 | VC2: 0.06002 | VD2: 0.06173 | VE2: 0.06262 | VF2: 0.06606 | VG2: 0.0609 | VH2: 0.06099 | VI2: 0.06371 | VJ2: 0.06609 | VK2: 0.06533 | VL2: 0.06443 | VM2: 0.0651 | VN2: 0.05782 | VO2: 0.06166 | VP2: 0.06159 | VQ2: 0.06313 | VR2: 0.05834 | VS2: 0.05573 | VT2: 0.05105 | VU2: 0.05091 | VV2: 0.05564 | VW2: 0.04927 | VX2: 0.05457 | VY2: 0.05307 | VZ2: 0.04999 | WA2: 0.05549 | WB2: 0.05649 | WC2: 0.05617 | WD2: 0.05561 | WE2: 0.05862 | WF2: 0.06058 | WG2: 0.06041 | WH2: 0.06055 | WI2: 0.06758 | WJ2: 0.06833 | WK2: 0.06899 | WL2: 0.06217 | WM2: 0.06492 | WN2: 0.0719 | WO2: 0.07117 | WP2: 0.07499
A3: 2 | B3: 0.0013 | C3: 0.0027 | D3: 0.0001 | E3: 0.0001 | F3: 0.0001 | G3: 0.0001 | H3: 0.0001 | I3: 0.0001 | J3: 0.0001 | K3: 0.00091 | L3: 0.00092 | M3: 0.00271 | N3: 0.00307 | O3: 0.00743 | P3: 0.00476 | Q3: 0.00677 | R3: 0.00401 | S3: 0.00475 | T3: 0.00636 | U3: 0.00574 | V3: 0.00564 | W3: 0.00476 | X3: 0.00345 | Y3: 0.00418 | Z3: 0.00455 | AA3: 0.00745 | AB3: 0.00874 | AC3: 0.01018 | AD3: 0.0059 | AE3: 0.00595 | AF3: 0.00679 | AG3: 0.00952 | AH3: 0.01139 | AI3: 0.01194 | AJ3: 0.01054 | AK3: 0.01136 | AL3: 0.01001 | AM3: 0.01207 | AN3: 0.01282 | AO3: 0.01337 | AP3: 0.01331 | AQ3: 0.01353 | AR3: 0.01362 | AS3: 0.01395 | AT3: 0.01343 | AU3: 0.01412 | AV3: 0.01597 | AW3: 0.01706 | AX3: 0.018 | AY3: 0.01822 | AZ3: 0.01945 | BA3: 0.02331 | BB3: 0.02441 | BC3: 0.02291 | BD3: 0.02353 | BE3: 0.02297 | BF3: 0.02319 | BG3: 0.02396 | BH3: 0.0238 | BI3: 0.02036 | BJ3: 0.018 | BK3: 0.01789 | BL3: 0.01845 | BM3: 0.01986 | BN3: 0.01755 | BO3: 0.01831 | BP3: 0.0189 | BQ3: 0.01945 | BR3: 0.02164 | BS3: 0.0205 | BT3: 0.02166 | BU3: 0.02318 | BV3: 0.02326 | BW3: 0.02353 | BX3: 0.02337 | BY3: 0.02322 | BZ3: 0.02315 | CA3: 0.0223 | CB3: 0.02289 | CC3: 0.02337 | CD3: 0.0225 | CE3: 0.02243 | CF3: 0.02143 | CG3: 0.01948 | CH3: 0.01879 | CI3: 0.0179 | CJ3: 0.01899 | CK3: 0.01834 | CL3: 0.02127 | CM3: 0.02172 | CN3: 0.02336 | CO3: 0.0257 | CP3: 0.02363 | CQ3: 0.02167 | CR3: 0.02014 | CS3: 0.01956 | CT3: 0.01888 | CU3: 0.01592 | CV3: 0.01851 | CW3: 0.0195 | CX3: 0.01783 | CY3: 0.01847 | CZ3: 0.01589 | DA3: 0.0175 | DB3: 0.01644 | DC3: 0.01954 | DD3: 0.02062 | DE3: 0.01966 | DF3: 0.02082 | DG3: 0.01959 | DH3: 0.02159 | DI3: 0.02653 | DJ3: 0.02838 | DK3: 0.02763 | DL3: 0.03032 | DM3: 0.03048 | DN3: 0.03049 | DO3: 0.03131 | DP3: 0.0323 | DQ3: 0.03196 | DR3: 0.03251 | DS3: 0.03249 | DT3: 0.03135 | DU3: 0.0301 | DV3: 0.03253 | DW3: 0.03329 | DX3: 0.02998 | DY3: 0.03212 | DZ3: 0.03444 | EA3: 0.03117 | EB3: 0.03277 | EC3: 0.02749 | ED3: 0.02848 | EE3: 0.02864 | EF3: 0.02845 | EG3: 0.03016 | EH3: 0.03478 | EI3: 0.03447 | EJ3: 0.03551 | EK3: 0.03253 | EL3: 0.03574 | EM3: 0.03687 | EN3: 0.03537 | EO3: 0.03337 | EP3: 0.03465 | EQ3: 0.03172 | ER3: 0.03189 | ES3: 0.0327 | ET3: 0.02966 | EU3: 0.03043 | EV3: 0.02857 | EW3: 0.02707 | EX3: 0.02716 | EY3: 0.03111 | EZ3: 0.02939 | FA3: 0.02748 | FB3: 0.0272 | FC3: 0.02536 | FD3: 0.02332 | FE3: 0.02423 | FF3: 0.02577 | FG3: 0.02407 | FH3: 0.02215 | FI3: 0.02325 | FJ3: 0.02508 | FK3: 0.02768 | FL3: 0.02972 | FM3: 0.02923 | FN3: 0.03045 | FO3: 0.03049 | FP3: 0.03022 | FQ3: 0.03165 | FR3: 0.03122 | FS3: 0.03238 | FT3: 0.02865 | FU3: 0.02949 | FV3: 0.0283 | FW3: 0.0281 | FX3: 0.02527 | FY3: 0.02665 | FZ3: 0.0287 | GA3: 0.02791 | GB3: 0.02781 | GC3: 0.02625 | GD3: 0.02567 | GE3: 0.02597 | GF3: 0.02493 | GG3: 0.02547 | GH3: 0.02715 | GI3: 0.02857 | GJ3: 0.02647 | GK3: 0.02725 | GL3: 0.02991 | GM3: 0.03163 | GN3: 0.03077 | GO3: 0.03263 | GP3: 0.03586 | GQ3: 0.03773 | GR3: 0.03532 | GS3: 0.04097 | GT3: 0.04188 | GU3: 0.04371 | GV3: 0.04517 | GW3: 0.04421 | GX3: 0.04314 | GY3: 0.04427 | GZ3: 0.0464 | HA3: 0.04589 | HB3: 0.04615 | HC3: 0.04079 | HD3: 0.04228 | HE3: 0.04563 | HF3: 0.04711 | HG3: 0.04833 | HH3: 0.05165 | HI3: 0.05176 | HJ3: 0.05281 | HK3: 0.06025 | HL3: 0.05998 | HM3: 0.06455 | HN3: 0.06112 | HO3: 0.05964 | HP3: 0.05261 | HQ3: 0.0524 | HR3: 0.05125 | HS3: 0.04797 | HT3: 0.04728 | HU3: 0.0457 | HV3: 0.04525 | HW3: 0.04803 | HX3: 0.05179 | HY3: 0.05064 | HZ3: 0.05268 | IA3: 0.05473 | IB3: 0.05425 | IC3: 0.0539 | ID3: 0.05014 | IE3: 0.0571 | IF3: 0.05782 | IG3: 0.05491 | IH3: 0.05972 | II3: 0.06069 | IJ3: 0.06147 | IK3: 0.06041 | IL3: 0.06199 | IM3: 0.06142 | IN3: 0.06129 | IO3: 0.06388 | IP3: 0.06659 | IQ3: 0.06092 | IR3: 0.0611 | IS3: 0.05972 | IT3: 0.05687 | IU3: 0.05728 | IV3: 0.05791 | IW3: 0.06082 | IX3: 0.05779 | IY3: 0.05905 | IZ3: 0.06058 | JA3: 0.06082 | JB3: 0.06936 | JC3: 0.06628 | JD3: 0.07021 | JE3: 0.0731 | JF3: 0.07121 | JG3: 0.07131 | JH3: 0.07097 | JI3: 0.07166 | JJ3: 0.07289 | JK3: 0.07783 | JL3: 0.07174 | JM3: 0.07153 | JN3: 0.07624 | JO3: 0.07423 | JP3: 0.07348 | JQ3: 0.07515 | JR3: 0.07549 | JS3: 0.07237 | JT3: 0.07294 | JU3: 0.07908 | JV3: 0.0742 | JW3: 0.07078 | JX3: 0.07271 | JY3: 0.07433 | JZ3: 0.06944 | KA3: 0.06499 | KB3: 0.06136 | KC3: 0.06155 | KD3: 0.06015 | KE3: 0.05901 | KF3: 0.06071 | KG3: 0.06074 | KH3: 0.06225 | KI3: 0.0615 | KJ3: 0.06891 | KK3: 0.06608 | KL3: 0.06409 | KM3: 0.06603 | KN3: 0.06787 | KO3: 0.0735 | KP3: 0.07141 | KQ3: 0.07392 | KR3: 0.06912 | KS3: 0.06799 | KT3: 0.06072 | KU3: 0.05357 | KV3: 0.06095 | KW3: 0.05876 | KX3: 0.05315 | KY3: 0.0538 | KZ3: 0.05372 | LA3: 0.05481 | LB3: 0.05801 | LC3: 0.05932 | LD3: 0.06133 | LE3: 0.06259 | LF3: 0.05314 | LG3: 0.05138 | LH3: 0.05466 | LI3: 0.05603 | LJ3: 0.05819 | LK3: 0.05135 | LL3: 0.05779 | LM3: 0.05369 | LN3: 0.04886 | LO3: 0.04965 | LP3: 0.05325 | LQ3: 0.04677 | LR3: 0.05506 | LS3: 0.06087 | LT3: 0.06117 | LU3: 0.05748 | LV3: 0.05816 | LW3: 0.06123 | LX3: 0.06113 | LY3: 0.06254 | LZ3: 0.06833 | MA3: 0.07075 | MB3: 0.06219 | MC3: 0.06188 | MD3: 0.07324 | ME3: 0.07526 | MF3: 0.07553 | MG3: 0.08415 | MH3: 0.08777 | MI3: 0.08609 | MJ3: 0.0804 | MK3: 0.0803 | ML3: 0.07379 | MM3: 0.07171 | MN3: 0.07175 | MO3: 0.07615 | MP3: 0.07626 | MQ3: 0.07415 | MR3: 0.07012 | MS3: 0.0714 | MT3: 0.07417 | MU3: 0.07126 | MV3: 0.06577 | MW3: 0.07163 | MX3: 0.07391 | MY3: 0.06753 | MZ3: 0.06011 | NA3: 0.06665 | NB3: 0.06342 | NC3: 0.06677 | ND3: 0.05495 | NE3: 0.05474 | NF3: 0.05534 | NG3: 0.05609 | NH3: 0.05033 | NI3: 0.05199 | NJ3: 0.05455 | NK3: 0.05317 | NL3: 0.05015 | NM3: 0.04505 | NN3: 0.03803 | NO3: 0.03698 | NP3: 0.03235 | NQ3: 0.03708 | NR3: 0.04066 | NS3: 0.03651 | NT3: 0.03307 | NU3: 0.03569 | NV3: 0.03635 | NW3: 0.03654 | NX3: 0.03359 | NY3: 0.03591 | NZ3: 0.03579 | OA3: 0.03446 | OB3: 0.03417 | OC3: 0.0352 | OD3: 0.03399 | OE3: 0.03726 | OF3: 0.04436 | OG3: 0.04625 | OH3: 0.05082 | OI3: 0.05295 | OJ3: 0.05514 | OK3: 0.05463 | OL3: 0.05797 | OM3: 0.05504 | ON3: 0.05112 | OO3: 0.04505 | OP3: 0.04459 | OQ3: 0.04264 | OR3: 0.04796 | OS3: 0.04769 | OT3: 0.04615 | OU3: 0.05037 | OV3: 0.05437 | OW3: 0.05689 | OX3: 0.05711 | OY3: 0.05301 | OZ3: 0.05001 | PA3: 0.0465 | PB3: 0.04823 | PC3: 0.05203 | PD3: 0.04889 | PE3: 0.04761 | PF3: 0.05036 | PG3: 0.04696 | PH3: 0.04865 | PI3: 0.04617 | PJ3: 0.04523 | PK3: 0.0432 | PL3: 0.04792 | PM3: 0.05337 | PN3: 0.0527 | PO3: 0.05722 | PP3: 0.04871 | PQ3: 0.05055 | PR3: 0.04915 | PS3: 0.04576 | PT3: 0.04375 | PU3: 0.04151 | PV3: 0.04137 | PW3: 0.04504 | PX3: 0.04301 | PY3: 0.04329 | PZ3: 0.04204 | QA3: 0.04144 | QB3: 0.0408 | QC3: 0.04046 | QD3: 0.04157 | QE3: 0.03911 | QF3: 0.04615 | QG3: 0.04944 | QH3: 0.04574 | QI3: 0.06117 | QJ3: 0.06408 | QK3: 0.06456 | QL3: 0.06806 | QM3: 0.06797 | QN3: 0.07026 | QO3: 0.06372 | QP3: 0.06187 | QQ3: 0.06143 | QR3: 0.05986 | QS3: 0.05597 | QT3: 0.04915 | QU3: 0.05311 | QV3: 0.05792 | QW3: 0.0626 | QX3: 0.06194 | QY3: 0.06446 | QZ3: 0.06134 | RA3: 0.05801 | RB3: 0.05996 | RC3: 0.05774 | RD3: 0.05502 | RE3: 0.05594 | RF3: 0.05402 | RG3: 0.04918 | RH3: 0.05455 | RI3: 0.05443 | RJ3: 0.05707 | RK3: 0.05903 | RL3: 0.0512 | RM3: 0.05635 | RN3: 0.05318 | RO3: 0.05044 | RP3: 0.04696 | RQ3: 0.04591 | RR3: 0.04157 | RS3: 0.04352 | RT3: 0.04408 | RU3: 0.04598 | RV3: 0.04384 | RW3: 0.04541 | RX3: 0.04456 | RY3: 0.04397 | RZ3: 0.04414 | SA3: 0.04704 | SB3: 0.04892 | SC3: 0.04909 | SD3: 0.04884 | SE3: 0.04713 | SF3: 0.04702 | SG3: 0.04742 | SH3: 0.04741 | SI3: 0.04554 | SJ3: 0.04718 | SK3: 0.05186 | SL3: 0.05186 | SM3: 0.05398 | SN3: 0.04657 | SO3: 0.04555 | SP3: 0.0406 | SQ3: 0.0387 | SR3: 0.04211 | SS3: 0.0463 | ST3: 0.04424 | SU3: 0.04389 | SV3: 0.04834 | SW3: 0.04573 | SX3: 0.04737 | SY3: 0.04727 | SZ3: 0.04771 | TA3: 0.04521 | TB3: 0.04422 | TC3: 0.0434 | TD3: 0.04892 | TE3: 0.04805 | TF3: 0.04774 | TG3: 0.04565 | TH3: 0.04651 | TI3: 0.04805 | TJ3: 0.04113 | TK3: 0.04084 | TL3: 0.04097 | TM3: 0.04387 | TN3: 0.04223 | TO3: 0.04856 | TP3: 0.04959 | TQ3: 0.04346 | TR3: 0.04287 | TS3: 0.04038 | TT3: 0.03781 | TU3: 0.03786 | TV3: 0.03963 | TW3: 0.0412 | TX3: 0.03886 | TY3: 0.03457 | TZ3: 0.03701 | UA3: 0.038 | UB3: 0.0356 | UC3: 0.03694 | UD3: 0.03878 | UE3: 0.03919 | UF3: 0.03947 | UG3: 0.0407 | UH3: 0.04205 | UI3: 0.04114 | UJ3: 0.0391 | UK3: 0.03866 | UL3: 0.03909 | UM3: 0.03811 | UN3: 0.03833 | UO3: 0.03601 | UP3: 0.03612 | UQ3: 0.03804 | UR3: 0.0373 | US3: 0.0355 | UT3: 0.03252 | UU3: 0.03019 | UV3: 0.03113 | UW3: 0.0305 | UX3: 0.03258 | UY3: 0.0279 | UZ3: 0.02137 | VA3: 0.01879 | VB3: 0.01733 | VC3: 0.01562 | VD3: 0.01829 | VE3: 0.01695 | VF3: 0.02071 | VG3: 0.01891 | VH3: 0.01559 | VI3: 0.01574 | VJ3: 0.01811 | VK3: 0.01895 | VL3: 0.01694 | VM3: 0.01537 | VN3: 0.01508 | VO3: 0.01354 | VP3: 0.0157 | VQ3: 0.01502 | VR3: 0.01383 | VS3: 0.01072 | VT3: 0.00743 | VU3: 0.00894 | VV3: 0.00761 | VW3: 0.01026 | VX3: 0.00648 | VY3: 0.00651 | VZ3: 0.00927 | WA3: 0.00887 | WB3: 0.01101 | WC3: 0.00922 | WD3: 0.00943 | WE3: 0.00876 | WF3: 0.00826 | WG3: 0.00888 | WH3: 0.01056 | WI3: 0.012 | WJ3: 0.01406 | WK3: 0.0149 | WL3: 0.01459 | WM3: 0.01559 | WN3: 0.01549 | WO3: 0.01278 | WP3: 0.012
A4: 3 | B4: 0.0013 | C4: 0.0044 | D4: 0.00495 | E4: 0.00677 | F4: 0.00833 | G4: 0.00699 | H4: 0.00778 | I4: 0.01006 | J4: 0.0111 | K4: 0.01131 | L4: 0.00949 | M4: 0.00753 | N4: 0.00668 | O4: 0.0056 | P4: 0.00609 | Q4: 0.0057 | R4: 0.00949 | S4: 0.0075 | T4: 0.00757 | U4: 0.00829 | V4: 0.00774 | W4: 0.00835 | X4: 0.009 | Y4: 0.00736 | Z4: 0.00679 | AA4: 0.00737 | AB4: 0.00971 | AC4: 0.00789 | AD4: 0.00642 | AE4: 0.00867 | AF4: 0.00987 | AG4: 0.00971 | AH4: 0.00882 | AI4: 0.01082 | AJ4: 0.01164 | AK4: 0.01607 | AL4: 0.01687 | AM4: 0.02083 | AN4: 0.02014 | AO4: 0.02055 | AP4: 0.02299 | AQ4: 0.02666 | AR4: 0.02788 | AS4: 0.02578 | AT4: 0.02702 | AU4: 0.02727 | AV4: 0.02556 | AW4: 0.02456 | AX4: 0.02285 | AY4: 0.02593 | AZ4: 0.0248 | BA4: 0.02422 | BB4: 0.02608 | BC4: 0.02853 | BD4: 0.02713 | BE4: 0.02466 | BF4: 0.02529 | BG4: 0.02631 | BH4: 0.02216 | BI4: 0.02218 | BJ4: 0.02062 | BK4: 0.02172 | BL4: 0.02457 | BM4: 0.02474 | BN4: 0.02977 | BO4: 0.03262 | BP4: 0.03123 | BQ4: 0.03182 | BR4: 0.03506 | BS4: 0.03584 | BT4: 0.0371 | BU4: 0.036 | BV4: 0.03741 | BW4: 0.03354 | BX4: 0.03348 | BY4: 0.03261 | BZ4: 0.03215 | CA4: 0.0314 | CB4: 0.02721 | CC4: 0.02957 | CD4: 0.02678 | CE4: 0.02772 | CF4: 0.02999 | CG4: 0.03159 | CH4: 0.03268 | CI4: 0.03134 | CJ4: 0.02785 | CK4: 0.02864 | CL4: 0.02646 | CM4: 0.02908 | CN4: 0.02844 | CO4: 0.02637 | CP4: 0.02819 | CQ4: 0.02813 | CR4: 0.02913 | CS4: 0.03203 | CT4: 0.03656 | CU4: 0.03511 | CV4: 0.03847 | CW4: 0.03764 | CX4: 0.03815 | CY4: 0.04065 | CZ4: 0.04563 | DA4: 0.04688 | DB4: 0.0481 | DC4: 0.04901 | DD4: 0.0502 | DE4: 0.04939 | DF4: 0.04591 | DG4: 0.04402 | DH4: 0.0428 | DI4: 0.03945 | DJ4: 0.0393 | DK4: 0.03433 | DL4: 0.03346 | DM4: 0.03972 | DN4: 0.0387 | DO4: 0.04176 | DP4: 0.04217 | DQ4: 0.03885 | DR4: 0.03997 | DS4: 0.04267 | DT4: 0.04501 | DU4: 0.04219 | DV4: 0.04746 | DW4: 0.05003 | DX4: 0.04964 | DY4: 0.04579 | DZ4: 0.04995 | EA4: 0.04582 | EB4: 0.04257 | EC4: 0.03709 | ED4: 0.03852 | EE4: 0.03413 | EF4: 0.0356 | EG4: 0.03646 | EH4: 0.03614 | EI4: 0.03646 | EJ4: 0.03302 | EK4: 0.03156 | EL4: 0.02909 | EM4: 0.02599 | EN4: 0.03022 | EO4: 0.0309 | EP4: 0.03815 | EQ4: 0.03404 | ER4: 0.03705 | ES4: 0.03356 | ET4: 0.03441 | EU4: 0.02989 | EV4: 0.03175 | EW4: 0.03728 | EX4: 0.03753 | EY4: 0.03704 | EZ4: 0.0363 | FA4: 0.03069 | FB4: 0.03192 | FC4: 0.0307 | FD4: 0.03043 | FE4: 0.03158 | FF4: 0.03132 | FG4: 0.03312 | FH4: 0.03077 | FI4: 0.02951 | FJ4: 0.0271 | FK4: 0.02558 | FL4: 0.02333 | FM4: 0.02452 | FN4: 0.02719 | FO4: 0.02705 | FP4: 0.02483 | FQ4: 0.02693 | FR4: 0.02238 | FS4: 0.02703 | FT4: 0.0321 | FU4: 0.03037 | FV4: 0.02987 | FW4: 0.02801 | FX4: 0.02869 | FY4: 0.02499 | FZ4: 0.02616 | GA4: 0.02425 | GB4: 0.02208 | GC4: 0.01994 | GD4: 0.02018 | GE4: 0.01971 | GF4: 0.01967 | GG4: 0.01812 | GH4: 0.01545 | GI4: 0.01957 | GJ4: 0.01699 | GK4: 0.01199 | GL4: 0.01435 | GM4: 0.01414 | GN4: 0.01472 | GO4: 0.01225 | GP4: 0.01057 | GQ4: 0.01128 | GR4: 0.01265 | GS4: 0.01439 | GT4: 0.01652 | GU4: 0.01302 | GV4: 0.01224 | GW4: 0.01237 | GX4: 0.01145 | GY4: 0.01274 | GZ4: 0.01299 | HA4: 0.01528 | HB4: 0.01634 | HC4: 0.01644 | HD4: 0.01307 | HE4: 0.0141 | HF4: 0.01772 | HG4: 0.02169 | HH4: 0.01981 | HI4: 0.02317 | HJ4: 0.02116 | HK4: 0.02041 | HL4: 0.02184 | HM4: 0.0152 | HN4: 0.01501 | HO4: 0.01539 | HP4: 0.01753 | HQ4: 0.01825 | HR4: 0.01664 | HS4: 0.01732 | HT4: 0.01737 | HU4: 0.01976 | HV4: 0.02008 | HW4: 0.0167 | HX4: 0.01705 | HY4: 0.01686 | HZ4: 0.01857 | IA4: 0.02117 | IB4: 0.02049 | IC4: 0.01753 | ID4: 0.01483 | IE4: 0.01531 | IF4: 0.01891 | IG4: 0.02221 | IH4: 0.02104 | II4: 0.02058 | IJ4: 0.02179 | IK4: 0.01863 | IL4: 0.02251 | IM4: 0.02081 | IN4: 0.01876 | IO4: 0.01768 | IP4: 0.01626 | IQ4: 0.01515 | IR4: 0.01671 | IS4: 0.01623 | IT4: 0.01599 | IU4: 0.01739 | IV4: 0.01535 | IW4: 0.01692 | IX4: 0.01701 | IY4: 0.01623 | IZ4: 0.01367 | JA4: 0.01395 | JB4: 0.01372 | JC4: 0.01518 | JD4: 0.01435 | JE4: 0.01321 | JF4: 0.0138 | JG4: 0.01568 | JH4: 0.01614 | JI4: 0.01519 | JJ4: 0.01595 | JK4: 0.01519 | JL4: 0.01428 | JM4: 0.01496 | JN4: 0.01389 | JO4: 0.01488 | JP4: 0.01491 | JQ4: 0.01552 | JR4: 0.01735 | JS4: 0.01684 | JT4: 0.01765 | JU4: 0.01668 | JV4: 0.01602 | JW4: 0.01642 | JX4: 0.01612 | JY4: 0.01657 | JZ4: 0.02135 | KA4: 0.02083 | KB4: 0.02279 | KC4: 0.01945 | KD4: 0.0197 | KE4: 0.01883 | KF4: 0.01685 | KG4: 0.01631 | KH4: 0.01554 | KI4: 0.0168 | KJ4: 0.01777 | KK4: 0.01645 | KL4: 0.01497 | KM4: 0.01458 | KN4: 0.01599 | KO4: 0.01631 | KP4: 0.01523 | KQ4: 0.01502 | KR4: 0.01151 | KS4: 0.01082 | KT4: 0.01012 | KU4: 0.00911 | KV4: 0.00929 | KW4: 0.01062 | KX4: 0.01303 | KY4: 0.01427 | KZ4: 0.01323 | LA4: 0.01426 | LB4: 0.01482 | LC4: 0.01359 | LD4: 0.01421 | LE4: 0.01424 | LF4: 0.015 | LG4: 0.01704 | LH4: 0.0155 | LI4: 0.01348 | LJ4: 0.01491 | LK4: 0.01519 | LL4: 0.01716 | LM4: 0.01877 | LN4: 0.01841 | LO4: 0.0194 | LP4: 0.01938 | LQ4: 0.01928 | LR4: 0.01801 | LS4: 0.01685 | LT4: 0.0174 | LU4: 0.01862 | LV4: 0.01721 | LW4: 0.01764 | LX4: 0.01752 | LY4: 0.01617 | LZ4: 0.01615 | MA4: 0.01501 | MB4: 0.01364 | MC4: 0.01562 | MD4: 0.0178 | ME4: 0.02001 | MF4: 0.01913 | MG4: 0.01698 | MH4: 0.01691 | MI4: 0.01518 | MJ4: 0.01602 | MK4: 0.01615 | ML4: 0.02024 | MM4: 0.02167 | MN4: 0.02329 | MO4: 0.02548 | MP4: 0.02453 | MQ4: 0.02536 | MR4: 0.0245 | MS4: 0.02366 | MT4: 0.02252 | MU4: 0.02347 | MV4: 0.02461 | MW4: 0.02374 | MX4: 0.02576 | MY4: 0.02598 | MZ4: 0.02746 | NA4: 0.02964 | NB4: 0.03114 | NC4: 0.03451 | ND4: 0.03655 | NE4: 0.03469 | NF4: 0.03367 | NG4: 0.03594 | NH4: 0.03783 | NI4: 0.04032 | NJ4: 0.04342 | NK4: 0.04196 | NL4: 0.04062 | NM4: 0.04193 | NN4: 0.04178 | NO4: 0.03826 | NP4: 0.03864 | NQ4: 0.03963 | NR4: 0.03265 | NS4: 0.03252 | NT4: 0.03239 | NU4: 0.03528 | NV4: 0.03198 | NW4: 0.02983 | NX4: 0.02846 | NY4: 0.03096 | NZ4: 0.03016 | OA4: 0.03358 | OB4: 0.03261 | OC4: 0.03066 | OD4: 0.03601 | OE4: 0.03461 | OF4: 0.03245 | OG4: 0.03345 | OH4: 0.03224 | OI4: 0.03064 | OJ4: 0.02986 | OK4: 0.02955 | OL4: 0.02907 | OM4: 0.02809 | ON4: 0.02966 | OO4: 0.03157 | OP4: 0.02946 | OQ4: 0.02558 | OR4: 0.02779 | OS4: 0.03143 | OT4: 0.03381 | OU4: 0.03036 | OV4: 0.03102 | OW4: 0.02981 | OX4: 0.03163 | OY4: 0.03258 | OZ4: 0.03581 | PA4: 0.03388 | PB4: 0.03432 | PC4: 0.03344 | PD4: 0.03712 | PE4: 0.03889 | PF4: 0.03979 | PG4: 0.0379 | PH4: 0.03645 | PI4: 0.03642 | PJ4: 0.03527 | PK4: 0.03653 | PL4: 0.03886 | PM4: 0.03833 | PN4: 0.03782 | PO4: 0.04196 | PP4: 0.04217 | PQ4: 0.04026 | PR4: 0.0407 | PS4: 0.04224 | PT4: 0.04031 | PU4: 0.0411 | PV4: 0.0429 | PW4: 0.0394 | PX4: 0.03652 | PY4: 0.03136 | PZ4: 0.0303 | QA4: 0.02927 | QB4: 0.03079 | QC4: 0.03181 | QD4: 0.03123 | QE4: 0.03095 | QF4: 0.03191 | QG4: 0.03 | QH4: 0.03504 | QI4: 0.03549 | QJ4: 0.03412 | QK4: 0.0337 | QL4: 0.03309 | QM4: 0.03356 | QN4: 0.02832 | QO4: 0.02717 | QP4: 0.02405 | QQ4: 0.02519 | QR4: 0.02567 | QS4: 0.02459 | QT4: 0.02162 | QU4: 0.02287 | QV4: 0.02347 | QW4: 0.02454 | QX4: 0.02362 | QY4: 0.0235 | QZ4: 0.02663 | RA4: 0.02591 | RB4: 0.02657 | RC4: 0.03086 | RD4: 0.0301 | RE4: 0.03331 | RF4: 0.03248 | RG4: 0.03028 | RH4: 0.0312 | RI4: 0.0285 | RJ4: 0.02599 | RK4: 0.02788 | RL4: 0.02989 | RM4: 0.03214 | RN4: 0.0291 | RO4: 0.03097 | RP4: 0.03297 | RQ4: 0.03428 | RR4: 0.03143 | RS4: 0.02938 | RT4: 0.03232 | RU4: 0.03636 | RV4: 0.03701 | RW4: 0.03718 | RX4: 0.03994 | RY4: 0.03977 | RZ4: 0.04039 | SA4: 0.03513 | SB4: 0.03364 | SC4: 0.03691 | SD4: 0.04117 | SE4: 0.0409 | SF4: 0.04302 | SG4: 0.04449 | SH4: 0.04597 | SI4: 0.048 | SJ4: 0.04775 | SK4: 0.0483 | SL4: 0.04675 | SM4: 0.04758 | SN4: 0.04809 | SO4: 0.0496 | SP4: 0.05113 | SQ4: 0.05084 | SR4: 0.05197 | SS4: 0.05119 | ST4: 0.04898 | SU4: 0.04886 | SV4: 0.0463 | SW4: 0.05235 | SX4: 0.04884 | SY4: 0.04716 | SZ4: 0.05126 | TA4: 0.05041 | TB4: 0.05231 | TC4: 0.0531 | TD4: 0.05251 | TE4: 0.05671 | TF4: 0.05636 | TG4: 0.05233 | TH4: 0.05438 | TI4: 0.05712 | TJ4: 0.06165 | TK4: 0.06601 | TL4: 0.06539 | TM4: 0.06013 | TN4: 0.06099 | TO4: 0.05391 | TP4: 0.04879 | TQ4: 0.05382 | TR4: 0.05142 | TS4: 0.05409 | TT4: 0.04633 | TU4: 0.04566 | TV4: 0.04587 | TW4: 0.04564 | TX4: 0.04649 | TY4: 0.04653 | TZ4: 0.04806 | UA4: 0.05194 | UB4: 0.05358 | UC4: 0.05621 | UD4: 0.05308 | UE4: 0.05496 | UF4: 0.05521 | UG4: 0.05478 | UH4: 0.04968 | UI4: 0.05016 | UJ4: 0.04975 | UK4: 0.04734 | UL4: 0.05044 | UM4: 0.053 | UN4: 0.05034 | UO4: 0.04821 | UP4: 0.05332 | UQ4: 0.05533 | UR4: 0.05864 | US4: 0.06328 | UT4: 0.06007 | UU4: 0.06246 | UV4: 0.05581 | UW4: 0.05029 | UX4: 0.04743 | UY4: 0.04855 | UZ4: 0.04872 | VA4: 0.04903 | VB4: 0.0512 | VC4: 0.04917 | VD4: 0.04966 | VE4: 0.05156 | VF4: 0.0512 | VG4: 0.05128 | VH4: 0.04774 | VI4: 0.04462 | VJ4: 0.04647 | VK4: 0.04726 | VL4: 0.04832 | VM4: 0.04924 | VN4: 0.056 | VO4: 0.05952 | VP4: 0.05823 | VQ4: 0.05627 | VR4: 0.05891 | VS4: 0.0669 | VT4: 0.06654 | VU4: 0.06529 | VV4: 0.0709 | VW4: 0.06938 | VX4: 0.07036 | VY4: 0.07137 | VZ4: 0.07039 | WA4: 0.0656 | WB4: 0.06266 | WC4: 0.05679 | WD4: 0.05668 | WE4: 0.05934 | WF4: 0.06386 | WG4: 0.06832 | WH4: 0.06767 | WI4: 0.06709 | WJ4: 0.07261 | WK4: 0.07182 | WL4: 0.07814 | WM4: 0.07866 | WN4: 0.0751 | WO4: 0.07707 | WP4: 0.07694
A5: 4 | B5: 0.0013 | C5: 0.00111 | D5: 0.0001 | E5: 0.0001 | F5: 0.0001 | G5: 0.0001 | H5: 0.0001 | I5: 0.0001 | J5: 0.0001 | K5: 0.0001 | L5: 0.0001 | M5: 0.00117 | N5: 0.00317 | O5: 0.00279 | P5: 0.00194 | Q5: 0.00144 | R5: 0.0001 | S5: 0.00416 | T5: 0.00445 | U5: 0.00276 | V5: 0.00616 | W5: 0.00583 | X5: 0.00414 | Y5: 0.00385 | Z5: 0.00564 | AA5: 0.00915 | AB5: 0.01159 | AC5: 0.01213 | AD5: 0.01216 | AE5: 0.01476 | AF5: 0.01249 | AG5: 0.01125 | AH5: 0.00973 | AI5: 0.00881 | AJ5: 0.01173 | AK5: 0.00837 | AL5: 0.00975 | AM5: 0.01161 | AN5: 0.01298 | AO5: 0.01399 | AP5: 0.0126 | AQ5: 0.01291 | AR5: 0.0127 | AS5: 0.01394 | AT5: 0.01307 | AU5: 0.01334 | AV5: 0.01289 | AW5: 0.01328 | AX5: 0.01253 | AY5: 0.0133 | AZ5: 0.01424 | BA5: 0.01182 | BB5: 0.01263 | BC5: 0.0115 | BD5: 0.01092 | BE5: 0.01271 | BF5: 0.01435 | BG5: 0.01624 | BH5: 0.01889 | BI5: 0.01748 | BJ5: 0.01916 | BK5: 0.01987 | BL5: 0.01924 | BM5: 0.02005 | BN5: 0.01912 | BO5: 0.01904 | BP5: 0.01634 | BQ5: 0.0167 | BR5: 0.01789 | BS5: 0.01686 | BT5: 0.0168 | BU5: 0.01813 | BV5: 0.0186 | BW5: 0.01907 | BX5: 0.01798 | BY5: 0.01795 | BZ5: 0.02017 | CA5: 0.01961 | CB5: 0.01838 | CC5: 0.01724 | CD5: 0.0167 | CE5: 0.01761 | CF5: 0.01619 | CG5: 0.01424 | CH5: 0.01489 | CI5: 0.01472 | CJ5: 0.01399 | CK5: 0.01322 | CL5: 0.01312 | CM5: 0.01398 | CN5: 0.0144 | CO5: 0.01518 | CP5: 0.01469 | CQ5: 0.01379 | CR5: 0.0121 | CS5: 0.0124 | CT5: 0.01357 | CU5: 0.01588 | CV5: 0.01732 | CW5: 0.01609 | CX5: 0.01641 | CY5: 0.01613 | CZ5: 0.01619 | DA5: 0.01674 | DB5: 0.01724 | DC5: 0.01837 | DD5: 0.01704 | DE5: 0.01839 | DF5: 0.0197 | DG5: 0.01975 | DH5: 0.01994 | DI5: 0.02151 | DJ5: 0.02189 | DK5: 0.02037 | DL5: 0.02123 | DM5: 0.02307 | DN5: 0.02336 | DO5: 0.02207 | DP5: 0.02247 | DQ5: 0.0211 | DR5: 0.02256 | DS5: 0.02143 | DT5: 0.02372 | DU5: 0.02381 | DV5: 0.0242 | DW5: 0.02392 | DX5: 0.02357 | DY5: 0.02457 | DZ5: 0.02634 | EA5: 0.02627 | EB5: 0.02774 | EC5: 0.02943 | ED5: 0.02982 | EE5: 0.02722 | EF5: 0.02869 | EG5: 0.02676 | EH5: 0.02847 | EI5: 0.02521 | EJ5: 0.01889 | EK5: 0.01675 | EL5: 0.02034 | EM5: 0.01917 | EN5: 0.0216 | EO5: 0.01914 | EP5: 0.02208 | EQ5: 0.02118 | ER5: 0.02017 | ES5: 0.02346 | ET5: 0.02605 | EU5: 0.02945 | EV5: 0.03196 | EW5: 0.03099 | EX5: 0.02868 | EY5: 0.02898 | EZ5: 0.02415 | FA5: 0.02124 | FB5: 0.0199 | FC5: 0.02265 | FD5: 0.0208 | FE5: 0.02275 | FF5: 0.02127 | FG5: 0.02058 | FH5: 0.02026 | FI5: 0.02206 | FJ5: 0.02117 | FK5: 0.01892 | FL5: 0.0216 | FM5: 0.02265 | FN5: 0.02266 | FO5: 0.02269 | FP5: 0.02267 | FQ5: 0.01975 | FR5: 0.02004 | FS5: 0.02109 | FT5: 0.01995 | FU5: 0.01904 | FV5: 0.02217 | FW5: 0.02128 | FX5: 0.0235 | FY5: 0.02289 | FZ5: 0.02 | GA5: 0.02042 | GB5: 0.02146 | GC5: 0.02104 | GD5: 0.02262 | GE5: 0.02288 | GF5: 0.02417 | GG5: 0.02458 | GH5: 0.02509 | GI5: 0.02457 | GJ5: 0.02341 | GK5: 0.02317 | GL5: 0.02159 | GM5: 0.02415 | GN5: 0.025 | GO5: 0.02623 | GP5: 0.02445 | GQ5: 0.02208 | GR5: 0.02304 | GS5: 0.0206 | GT5: 0.02014 | GU5: 0.01893 | GV5: 0.02372 | GW5: 0.02627 | GX5: 0.02622 | GY5: 0.02531 | GZ5: 0.02207 | HA5: 0.02086 | HB5: 0.02369 | HC5: 0.02236 | HD5: 0.02397 | HE5: 0.02567 | HF5: 0.02326 | HG5: 0.02141 | HH5: 0.02267 | HI5: 0.02279 | HJ5: 0.01731 | HK5: 0.01807 | HL5: 0.01468 | HM5: 0.01873 | HN5: 0.01549 | HO5: 0.01407 | HP5: 0.01326 | HQ5: 0.01379 | HR5: 0.01648 | HS5: 0.01982 | HT5: 0.0222 | HU5: 0.02389 | HV5: 0.02263 | HW5: 0.02216 | HX5: 0.01973 | HY5: 0.01624 | HZ5: 0.01619 | IA5: 0.01092 | IB5: 0.01008 | IC5: 0.01066 | ID5: 0.00987 | IE5: 0.01069 | IF5: 0.01628 | IG5: 0.01574 | IH5: 0.01409 | II5: 0.01613 | IJ5: 0.01701 | IK5: 0.01721 | IL5: 0.01953 | IM5: 0.02086 | IN5: 0.02015 | IO5: 0.02179 | IP5: 0.02414 | IQ5: 0.02386 | IR5: 0.02436 | IS5: 0.02412 | IT5: 0.02538 | IU5: 0.02524 | IV5: 0.02556 | IW5: 0.02687 | IX5: 0.02853 | IY5: 0.02894 | IZ5: 0.02884 | JA5: 0.02929 | JB5: 0.03184 | JC5: 0.0289 | JD5: 0.03199 | JE5: 0.03157 | JF5: 0.03384 | JG5: 0.03217 | JH5: 0.03431 | JI5: 0.03624 | JJ5: 0.03997 | JK5: 0.0376 | JL5: 0.03679 | JM5: 0.03794 | JN5: 0.03727 | JO5: 0.03711 | JP5: 0.03523 | JQ5: 0.03667 | JR5: 0.03534 | JS5: 0.03708 | JT5: 0.03632 | JU5: 0.0351 | JV5: 0.03519 | JW5: 0.03669 | JX5: 0.03548 | JY5: 0.03867 | JZ5: 0.03678 | KA5: 0.03492 | KB5: 0.03889 | KC5: 0.03825 | KD5: 0.03863 | KE5: 0.03619 | KF5: 0.03841 | KG5: 0.03782 | KH5: 0.03876 | KI5: 0.03701 | KJ5: 0.03871 | KK5: 0.03485 | KL5: 0.03272 | KM5: 0.03239 | KN5: 0.02928 | KO5: 0.0321 | KP5: 0.03394 | KQ5: 0.03686 | KR5: 0.03445 | KS5: 0.03381 | KT5: 0.03223 | KU5: 0.02891 | KV5: 0.02739 | KW5: 0.02531 | KX5: 0.027 | KY5: 0.02716 | KZ5: 0.02304 | LA5: 0.02059 | LB5: 0.02176 | LC5: 0.02696 | LD5: 0.02671 | LE5: 0.02681 | LF5: 0.02713 | LG5: 0.02492 | LH5: 0.024 | LI5: 0.02436 | LJ5: 0.02302 | LK5: 0.01962 | LL5: 0.01794 | LM5: 0.01823 | LN5: 0.01664 | LO5: 0.01692 | LP5: 0.01965 | LQ5: 0.01896 | LR5: 0.02058 | LS5: 0.0226 | LT5: 0.01906 | LU5: 0.01876 | LV5: 0.02106 | LW5: 0.02387 | LX5: 0.02237 | LY5: 0.01837 | LZ5: 0.01707 | MA5: 0.01628 | MB5: 0.01695 | MC5: 0.01613 | MD5: 0.01567 | ME5: 0.01708 | MF5: 0.01919 | MG5: 0.01781 | MH5: 0.02193 | MI5: 0.02412 | MJ5: 0.02425 | MK5: 0.02792 | ML5: 0.02634 | MM5: 0.02438 | MN5: 0.02443 | MO5: 0.02456 | MP5: 0.02296 | MQ5: 0.02146 | MR5: 0.02191 | MS5: 0.02203 | MT5: 0.0231 | MU5: 0.0273 | MV5: 0.03029 | MW5: 0.02966 | MX5: 0.03164 | MY5: 0.03425 | MZ5: 0.03404 | NA5: 0.03231 | NB5: 0.03003 | NC5: 0.02639 | ND5: 0.02668 | NE5: 0.02281 | NF5: 0.02359 | NG5: 0.02616 | NH5: 0.02534 | NI5: 0.02248 | NJ5: 0.02439 | NK5: 0.02808 | NL5: 0.02821 | NM5: 0.02908 | NN5: 0.02869 | NO5: 0.02938 | NP5: 0.03036 | NQ5: 0.02842 | NR5: 0.02836 | NS5: 0.03128 | NT5: 0.03369 | NU5: 0.03453 | NV5: 0.03662 | NW5: 0.0382 | NX5: 0.03916 | NY5: 0.03924 | NZ5: 0.04319 | OA5: 0.04162 | OB5: 0.03953 | OC5: 0.04617 | OD5: 0.04673 | OE5: 0.04684 | OF5: 0.04356 | OG5: 0.04512 | OH5: 0.04669 | OI5: 0.04671 | OJ5: 0.04413 | OK5: 0.04831 | OL5: 0.04936 | OM5: 0.04825 | ON5: 0.04837 | OO5: 0.0522 | OP5: 0.05163 | OQ5: 0.04741 | OR5: 0.049 | OS5: 0.04968 | OT5: 0.05044 | OU5: 0.05138 | OV5: 0.05316 | OW5: 0.05491 | OX5: 0.057 | OY5: 0.0607 | OZ5: 0.05752 | PA5: 0.05778 | PB5: 0.05248 | PC5: 0.04954 | PD5: 0.056 | PE5: 0.0573 | PF5: 0.06006 | PG5: 0.05577 | PH5: 0.05299 | PI5: 0.05537 | PJ5: 0.04983 | PK5: 0.04796 | PL5: 0.04599 | PM5: 0.0452 | PN5: 0.04771 | PO5: 0.04383 | PP5: 0.03834 | PQ5: 0.04065 | PR5: 0.03549 | PS5: 0.04001 | PT5: 0.03586 | PU5: 0.04055 | PV5: 0.03704 | PW5: 0.03823 | PX5: 0.03719 | PY5: 0.03767 | PZ5: 0.04323 | QA5: 0.04186 | QB5: 0.04246 | QC5: 0.04381 | QD5: 0.03554 | QE5: 0.03555 | QF5: 0.03797 | QG5: 0.04433 | QH5: 0.04516 | QI5: 0.05222 | QJ5: 0.05762 | QK5: 0.05382 | QL5: 0.0527 | QM5: 0.04953 | QN5: 0.05544 | QO5: 0.05537 | QP5: 0.04899 | QQ5: 0.05299 | QR5: 0.05144 | QS5: 0.05193 | QT5: 0.04701 | QU5: 0.04581 | QV5: 0.04196 | QW5: 0.04399 | QX5: 0.04253 | QY5: 0.0348 | QZ5: 0.03489 | RA5: 0.03323 | RB5: 0.03439 | RC5: 0.034 | RD5: 0.03004 | RE5: 0.03347 | RF5: 0.03544 | RG5: 0.03862 | RH5: 0.03959 | RI5: 0.0402 | RJ5: 0.04094 | RK5: 0.04381 | RL5: 0.04655 | RM5: 0.04473 | RN5: 0.04876 | RO5: 0.04985 | RP5: 0.04895 | RQ5: 0.04867 | RR5: 0.04897 | RS5: 0.04868 | RT5: 0.05231 | RU5: 0.04909 | RV5: 0.04412 | RW5: 0.03807 | RX5: 0.038 | RY5: 0.0391 | RZ5: 0.03986 | SA5: 0.0417 | SB5: 0.04011 | SC5: 0.03928 | SD5: 0.03811 | SE5: 0.0321 | SF5: 0.03459 | SG5: 0.04051 | SH5: 0.03801 | SI5: 0.04103 | SJ5: 0.03856 | SK5: 0.03834 | SL5: 0.03546 | SM5: 0.03828 | SN5: 0.03433 | SO5: 0.03461 | SP5: 0.03687 | SQ5: 0.03519 | SR5: 0.03265 | SS5: 0.03153 | ST5: 0.02701 | SU5: 0.02457 | SV5: 0.02497 | SW5: 0.02536 | SX5: 0.02903 | SY5: 0.02939 | SZ5: 0.02631 | TA5: 0.02594 | TB5: 0.02478 | TC5: 0.02543 | TD5: 0.02225 | TE5: 0.02273 | TF5: 0.0229 | TG5: 0.02334 | TH5: 0.0243 | TI5: 0.02463 | TJ5: 0.02383 | TK5: 0.02243 | TL5: 0.02377 | TM5: 0.02467 | TN5: 0.02381 | TO5: 0.02364 | TP5: 0.02358 | TQ5: 0.02378 | TR5: 0.025 | TS5: 0.02592 | TT5: 0.02867 | TU5: 0.02259 | TV5: 0.02282 | TW5: 0.02211 | TX5: 0.02562 | TY5: 0.02553 | TZ5: 0.03107 | UA5: 0.02837 | UB5: 0.03028 | UC5: 0.03147 | UD5: 0.03285 | UE5: 0.0356 | UF5: 0.03439 | UG5: 0.03916 | UH5: 0.03902 | UI5: 0.045 | UJ5: 0.04311 | UK5: 0.04267 | UL5: 0.04076 | UM5: 0.03672 | UN5: 0.03933 | UO5: 0.03816 | UP5: 0.03868 | UQ5: 0.04085 | UR5: 0.03814 | US5: 0.04428 | UT5: 0.04654 | UU5: 0.04231 | UV5: 0.04111 | UW5: 0.04045 | UX5: 0.04036 | UY5: 0.03915 | UZ5: 0.03492 | VA5: 0.03149 | VB5: 0.02988 | VC5: 0.02797 | VD5: 0.0313 | VE5: 0.02893 | VF5: 0.03281 | VG5: 0.03233 | VH5: 0.02806 | VI5: 0.03316 | VJ5: 0.03374 | VK5: 0.03758 | VL5: 0.03984 | VM5: 0.03567 | VN5: 0.03661 | VO5: 0.03642 | VP5: 0.03615 | VQ5: 0.03137 | VR5: 0.02929 | VS5: 0.03192 | VT5: 0.03356 | VU5: 0.03399 | VV5: 0.03258 | VW5: 0.03851 | VX5: 0.03964 | VY5: 0.04343 | VZ5: 0.04539 | WA5: 0.04461 | WB5: 0.04447 | WC5: 0.04648 | WD5: 0.04578 | WE5: 0.04788 | WF5: 0.04579 | WG5: 0.0492 | WH5: 0.05222 | WI5: 0.0482 | WJ5: 0.04737 | WK5: 0.05399 | WL5: 0.06142 | WM5: 0.06678 | WN5: 0.07071 | WO5: 0.07166 | WP5: 0.06599
A6: 5 | B6: 0.0013 | C6: 0.00193 | D6: 0.00322 | E6: 0.00399 | F6: 0.00552 | G6: 0.00606 | H6: 0.00864 | I6: 0.00903 | J6: 0.01035 | K6: 0.00937 | L6: 0.01086 | M6: 0.0097 | N6: 0.01173 | O6: 0.01372 | P6: 0.01575 | Q6: 0.01493 | R6: 0.01514 | S6: 0.01678 | T6: 0.01487 | U6: 0.01399 | V6: 0.01155 | W6: 0.01273 | X6: 0.01179 | Y6: 0.0109 | Z6: 0.01245 | AA6: 0.0116 | AB6: 0.01052 | AC6: 0.01271 | AD6: 0.0167 | AE6: 0.01915 | AF6: 0.02086 | AG6: 0.02295 | AH6: 0.0229 | AI6: 0.02044 | AJ6: 0.01755 | AK6: 0.01611 | AL6: 0.01474 | AM6: 0.01653 | AN6: 0.01591 | AO6: 0.0164 | AP6: 0.01664 | AQ6: 0.01637 | AR6: 0.01568 | AS6: 0.01524 | AT6: 0.01351 | AU6: 0.01365 | AV6: 0.01232 | AW6: 0.01533 | AX6: 0.01538 | AY6: 0.01664 | AZ6: 0.01735 | BA6: 0.01494 | BB6: 0.01498 | BC6: 0.01248 | BD6: 0.01186 | BE6: 0.00983 | BF6: 0.00691 | BG6: 0.00678 | BH6: 0.00772 | BI6: 0.00943 | BJ6: 0.00969 | BK6: 0.00831 | BL6: 0.00871 | BM6: 0.00858 | BN6: 0.00809 | BO6: 0.00972 | BP6: 0.00943 | BQ6: 0.01343 | BR6: 0.01497 | BS6: 0.01475 | BT6: 0.01587 | BU6: 0.0184 | BV6: 0.0166 | BW6: 0.01988 | BX6: 0.01912 | BY6: 0.01867 | BZ6: 0.01846 | CA6: 0.01649 | CB6: 0.01394 | CC6: 0.01234 | CD6: 0.01143 | CE6: 0.01142 | CF6: 0.00933 | CG6: 0.00935 | CH6: 0.0105 | CI6: 0.01485 | CJ6: 0.01538 | CK6: 0.01598 | CL6: 0.01443 | CM6: 0.0127 | CN6: 0.0125 | CO6: 0.01327 | CP6: 0.01394 | CQ6: 0.0158 | CR6: 0.01436 | CS6: 0.01647 | CT6: 0.01612 | CU6: 0.01747 | CV6: 0.01702 | CW6: 0.0228 | CX6: 0.02472 | CY6: 0.02403 | CZ6: 0.02313 | DA6: 0.02079 | DB6: 0.01785 | DC6: 0.0192 | DD6: 0.02059 | DE6: 0.0203 | DF6: 0.02137 | DG6: 0.02262 | DH6: 0.02287 | DI6: 0.02173 | DJ6: 0.02402 | DK6: 0.02166 | DL6: 0.02079 | DM6: 0.01974 | DN6: 0.01849 | DO6: 0.0196 | DP6: 0.01694 | DQ6: 0.01484 | DR6: 0.01371 | DS6: 0.0153 | DT6: 0.01511 | DU6: 0.01483 | DV6: 0.01436 | DW6: 0.01508 | DX6: 0.01512 | DY6: 0.0136 | DZ6: 0.01486 | EA6: 0.01587 | EB6: 0.01506 | EC6: 0.01412 | ED6: 0.01371 | EE6: 0.01424 | EF6: 0.01468 | EG6: 0.01412 | EH6: 0.01581 | EI6: 0.01571 | EJ6: 0.01611 | EK6: 0.0167 | EL6: 0.01799 | EM6: 0.01629 | EN6: 0.01495 | EO6: 0.01552 | EP6: 0.01332 | EQ6: 0.01247 | ER6: 0.01394 | ES6: 0.01491 | ET6: 0.01437 | EU6: 0.01548 | EV6: 0.01649 | EW6: 0.01511 | EX6: 0.01424 | EY6: 0.01437 | EZ6: 0.0159 | FA6: 0.01638 | FB6: 0.01568 | FC6: 0.01644 | FD6: 0.01426 | FE6: 0.01324 | FF6: 0.01468 | FG6: 0.01474 | FH6: 0.01574 | FI6: 0.01675 | FJ6: 0.01697 | FK6: 0.01634 | FL6: 0.0182 | FM6: 0.0188 | FN6: 0.01741 | FO6: 0.01772 | FP6: 0.01605 | FQ6: 0.01594 | FR6: 0.01684 | FS6: 0.01902 | FT6: 0.02172 | FU6: 0.02294 | FV6: 0.02311 | FW6: 0.02054 | FX6: 0.02047 | FY6: 0.01928 | FZ6: 0.01764 | GA6: 0.01926 | GB6: 0.0195 | GC6: 0.01856 | GD6: 0.01821 | GE6: 0.01471 | GF6: 0.01416 | GG6: 0.01548 | GH6: 0.01822 | GI6: 0.01838 | GJ6: 0.0173 | GK6: 0.01852 | GL6: 0.01793 | GM6: 0.01859 | GN6: 0.01802 | GO6: 0.02052 | GP6: 0.0213 | GQ6: 0.02384 | GR6: 0.02594 | GS6: 0.02751 | GT6: 0.02583 | GU6: 0.0274 | GV6: 0.02721 | GW6: 0.02694 | GX6: 0.02627 | GY6: 0.0252 | GZ6: 0.02622 | HA6: 0.02874 | HB6: 0.02531 | HC6: 0.02441 | HD6: 0.02757 | HE6: 0.0281 | HF6: 0.02901 | HG6: 0.03142 | HH6: 0.0297 | HI6: 0.02991 | HJ6: 0.03034 | HK6: 0.02873 | HL6: 0.03006 | HM6: 0.03091 | HN6: 0.0315 | HO6: 0.02783 | HP6: 0.0253 | HQ6: 0.02508 | HR6: 0.02368 | HS6: 0.02377 | HT6: 0.02566 | HU6: 0.02348 | HV6: 0.0219 | HW6: 0.0258 | HX6: 0.02577 | HY6: 0.02796 | HZ6: 0.02945 | IA6: 0.02996 | IB6: 0.02802 | IC6: 0.02973 | ID6: 0.02669 | IE6: 0.02534 | IF6: 0.02727 | IG6: 0.02727 | IH6: 0.02766 | II6: 0.02915 | IJ6: 0.02858 | IK6: 0.03014 | IL6: 0.03174 | IM6: 0.03255 | IN6: 0.03257 | IO6: 0.03223 | IP6: 0.03334 | IQ6: 0.0325 | IR6: 0.03177 | IS6: 0.03314 | IT6: 0.02983 | IU6: 0.02976 | IV6: 0.03097 | IW6: 0.03045 | IX6: 0.03019 | IY6: 0.02731 | IZ6: 0.03134 | JA6: 0.03133 | JB6: 0.03151 | JC6: 0.02899 | JD6: 0.02984 | JE6: 0.0294 | JF6: 0.02985 | JG6: 0.02835 | JH6: 0.02653 | JI6: 0.02885 | JJ6: 0.02766 | JK6: 0.02587 | JL6: 0.02734 | JM6: 0.02781 | JN6: 0.02844 | JO6: 0.02572 | JP6: 0.02607 | JQ6: 0.02612 | JR6: 0.02634 | JS6: 0.02707 | JT6: 0.02667 | JU6: 0.02498 | JV6: 0.02398 | JW6: 0.02651 | JX6: 0.02741 | JY6: 0.0255 | JZ6: 0.02479 | KA6: 0.02529 | KB6: 0.0279 | KC6: 0.02913 | KD6: 0.0301 | KE6: 0.02761 | KF6: 0.03052 | KG6: 0.02846 | KH6: 0.02867 | KI6: 0.02941 | KJ6: 0.02698 | KK6: 0.02655 | KL6: 0.02723 | KM6: 0.02727 | KN6: 0.02931 | KO6: 0.02741 | KP6: 0.02665 | KQ6: 0.02558 | KR6: 0.02703 | KS6: 0.02631 | KT6: 0.02866 | KU6: 0.02576 | KV6: 0.03067 | KW6: 0.0346 | KX6: 0.0388 | KY6: 0.04071 | KZ6: 0.03613 | LA6: 0.0329 | LB6: 0.0338 | LC6: 0.035 | LD6: 0.03615 | LE6: 0.03467 | LF6: 0.03509 | LG6: 0.03866 | LH6: 0.0421 | LI6: 0.04572 | LJ6: 0.04644 | LK6: 0.05011 | LL6: 0.05326 | LM6: 0.04715 | LN6: 0.04754 | LO6: 0.04946 | LP6: 0.04349 | LQ6: 0.04388 | LR6: 0.04583 | LS6: 0.05114 | LT6: 0.0523 | LU6: 0.04848 | LV6: 0.04894 | LW6: 0.05104 | LX6: 0.05023 | LY6: 0.04717 | LZ6: 0.04606 | MA6: 0.04192 | MB6: 0.04161 | MC6: 0.03837 | MD6: 0.04218 | ME6: 0.03976 | MF6: 0.03703 | MG6: 0.03945 | MH6: 0.03452 | MI6: 0.03418 | MJ6: 0.02999 | MK6: 0.03187 | ML6: 0.03399 | MM6: 0.03531 | MN6: 0.03216 | MO6: 0.03425 | MP6: 0.02776 | MQ6: 0.03045 | MR6: 0.02693 | MS6: 0.02559 | MT6: 0.02833 | MU6: 0.02532 | MV6: 0.02709 | MW6: 0.02953 | MX6: 0.03397 | MY6: 0.03697 | MZ6: 0.03954 | NA6: 0.03864 | NB6: 0.04109 | NC6: 0.03854 | ND6: 0.03309 | NE6: 0.03487 | NF6: 0.03525 | NG6: 0.03583 | NH6: 0.03654 | NI6: 0.03933 | NJ6: 0.04291 | NK6: 0.04791 | NL6: 0.0499 | NM6: 0.05133 | NN6: 0.05004 | NO6: 0.05123 | NP6: 0.05395 | NQ6: 0.05412 | NR6: 0.05283 | NS6: 0.05157 | NT6: 0.0509 | NU6: 0.04919 | NV6: 0.05007 | NW6: 0.04881 | NX6: 0.05337 | NY6: 0.05049 | NZ6: 0.04965 | OA6: 0.05424 | OB6: 0.05466 | OC6: 0.05711 | OD6: 0.05132 | OE6: 0.04857 | OF6: 0.05104 | OG6: 0.04996 | OH6: 0.04877 | OI6: 0.04905 | OJ6: 0.04891 | OK6: 0.04875 | OL6: 0.04945 | OM6: 0.05008 | ON6: 0.05483 | OO6: 0.05417 | OP6: 0.05237 | OQ6: 0.04786 | OR6: 0.04851 | OS6: 0.0498 | OT6: 0.04927 | OU6: 0.04549 | OV6: 0.04564 | OW6: 0.04703 | OX6: 0.04842 | OY6: 0.04694 | OZ6: 0.05461 | PA6: 0.05808 | PB6: 0.05704 | PC6: 0.05351 | PD6: 0.05292 | PE6: 0.0548 | PF6: 0.05762 | PG6: 0.05536 | PH6: 0.04952 | PI6: 0.04852 | PJ6: 0.04718 | PK6: 0.04977 | PL6: 0.04704 | PM6: 0.04536 | PN6: 0.04402 | PO6: 0.04504 | PP6: 0.03683 | PQ6: 0.0308 | PR6: 0.03272 | PS6: 0.02831 | PT6: 0.02933 | PU6: 0.02592 | PV6: 0.02477 | PW6: 0.02489 | PX6: 0.02644 | PY6: 0.0306 | PZ6: 0.02938 | QA6: 0.02651 | QB6: 0.02863 | QC6: 0.03181 | QD6: 0.03569 | QE6: 0.03704 | QF6: 0.03329 | QG6: 0.03209 | QH6: 0.03346 | QI6: 0.03501 | QJ6: 0.0312 | QK6: 0.02826 | QL6: 0.02784 | QM6: 0.0232 | QN6: 0.0206 | QO6: 0.01944 | QP6: 0.01693 | QQ6: 0.0186 | QR6: 0.0169 | QS6: 0.01532 | QT6: 0.01495 | QU6: 0.01181 | QV6: 0.0142 | QW6: 0.00997 | QX6: 0.01182 | QY6: 0.01293 | QZ6: 0.01534 | RA6: 0.01622 | RB6: 0.0167 | RC6: 0.01575 | RD6: 0.01456 | RE6: 0.01476 | RF6: 0.01748 | RG6: 0.02148 | RH6: 0.02242 | RI6: 0.02195 | RJ6: 0.02483 | RK6: 0.02451 | RL6: 0.02731 | RM6: 0.03123 | RN6: 0.03213 | RO6: 0.03287 | RP6: 0.02811 | RQ6: 0.02808 | RR6: 0.02446 | RS6: 0.02616 | RT6: 0.02646 | RU6: 0.02477 | RV6: 0.02459 | RW6: 0.02799 | RX6: 0.02523 | RY6: 0.02634 | RZ6: 0.02845 | SA6: 0.02881 | SB6: 0.02981 | SC6: 0.03324 | SD6: 0.03352 | SE6: 0.03227 | SF6: 0.03105 | SG6: 0.0291 | SH6: 0.03407 | SI6: 0.03369 | SJ6: 0.03203 | SK6: 0.03415 | SL6: 0.03647 | SM6: 0.03526 | SN6: 0.03665 | SO6: 0.04237 | SP6: 0.0432 | SQ6: 0.04209 | SR6: 0.03738 | SS6: 0.03616 | ST6: 0.03703 | SU6: 0.03215 | SV6: 0.0312 | SW6: 0.02714 | SX6: 0.02644 | SY6: 0.02722 | SZ6: 0.02932 | TA6: 0.02585 | TB6: 0.02297 | TC6: 0.01991 | TD6: 0.01944 | TE6: 0.01816 | TF6: 0.02203 | TG6: 0.02464 | TH6: 0.02259 | TI6: 0.02252 | TJ6: 0.0235 | TK6: 0.02215 | TL6: 0.02096 | TM6: 0.02042 | TN6: 0.02057 | TO6: 0.019 | TP6: 0.01971 | TQ6: 0.02272 | TR6: 0.02099 | TS6: 0.02035 | TT6: 0.02109 | TU6: 0.02212 | TV6: 0.01872 | TW6: 0.02179 | TX6: 0.0188 | TY6: 0.01859 | TZ6: 0.0181 | UA6: 0.02204 | UB6: 0.02 | UC6: 0.02046 | UD6: 0.02139 | UE6: 0.02116 | UF6: 0.02323 | UG6: 0.02136 | UH6: 0.02058 | UI6: 0.02116 | UJ6: 0.02275 | UK6: 0.02346 | UL6: 0.02337 | UM6: 0.02568 | UN6: 0.02428 | UO6: 0.02398 | UP6: 0.02407 | UQ6: 0.02436 | UR6: 0.02267 | US6: 0.02337 | UT6: 0.02028 | UU6: 0.01848 | UV6: 0.02084 | UW6: 0.02087 | UX6: 0.02419 | UY6: 0.02671 | UZ6: 0.02699 | VA6: 0.02868 | VB6: 0.02648 | VC6: 0.02532 | VD6: 0.02736 | VE6: 0.02691 | VF6: 0.02779 | VG6: 0.02866 | VH6: 0.03113 | VI6: 0.03252 | VJ6: 0.03141 | VK6: 0.02923 | VL6: 0.03098 | VM6: 0.03232 | VN6: 0.02938 | VO6: 0.03095 | VP6: 0.02899 | VQ6: 0.02638 | VR6: 0.02598 | VS6: 0.02431 | VT6: 0.02027 | VU6: 0.01945 | VV6: 0.0168 | VW6: 0.02094 | VX6: 0.02352 | VY6: 0.01985 | VZ6: 0.01797 | WA6: 0.01995 | WB6: 0.01767 | WC6: 0.01208 | WD6: 0.00964 | WE6: 0.00841 | WF6: 0.0092 | WG6: 0.00806 | WH6: 0.00718 | WI6: 0.01181 | WJ6: 0.01437 | WK6: 0.0128 | WL6: 0.01143 | WM6: 0.01187 | WN6: 0.01333 | WO6: 0.01582 | WP6: 0.01684
A7: 6 | B7: 0.0013 | C7: 0.00456 | D7: 0.00667 | E7: 0.00775 | F7: 0.00593 | G7: 0.00776 | H7: 0.00717 | I7: 0.00939 | J7: 0.01075 | K7: 0.01386 | L7: 0.01365 | M7: 0.01188 | N7: 0.0092 | O7: 0.00605 | P7: 0.00733 | Q7: 0.00845 | R7: 0.00516 | S7: 0.00485 | T7: 0.0089 | U7: 0.01033 | V7: 0.00795 | W7: 0.0105 | X7: 0.00949 | Y7: 0.00871 | Z7: 0.00958 | AA7: 0.00949 | AB7: 0.01075 | AC7: 0.01245 | AD7: 0.01262 | AE7: 0.0125 | AF7: 0.01585 | AG7: 0.01419 | AH7: 0.01839 | AI7: 0.01768 | AJ7: 0.01568 | AK7: 0.01258 | AL7: 0.01133 | AM7: 0.00648 | AN7: 0.00492 | AO7: 0.00455 | AP7: 0.00634 | AQ7: 0.00722 | AR7: 0.00373 | AS7: 0.00281 | AT7: 0.00391 | AU7: 0.00066 | AV7: 0.0001 | AW7: 0.0001 | AX7: 0.0001 | AY7: 0.0001 | AZ7: 0.0001 | BA7: 0.0001 | BB7: 0.0001 | BC7: 0.0001 | BD7: 0.0001 | BE7: 0.00219 | BF7: 0.007 | BG7: 0.00629 | BH7: 0.00328 | BI7: 0.00575 | BJ7: 0.00793 | BK7: 0.00866 | BL7: 0.00542 | BM7: 0.00694 | BN7: 0.00529 | BO7: 0.00499 | BP7: 0.01084 | BQ7: 0.01087 | BR7: 0.0097 | BS7: 0.01038 | BT7: 0.01163 | BU7: 0.015 | BV7: 0.01381 | BW7: 0.01411 | BX7: 0.01258 | BY7: 0.01436 | BZ7: 0.01554 | CA7: 0.01151 | CB7: 0.01059 | CC7: 0.01203 | CD7: 0.01043 | CE7: 0.00993 | CF7: 0.01019 | CG7: 0.0064 | CH7: 0.0074 | CI7: 0.00627 | CJ7: 0.0042 | CK7: 0.00395 | CL7: 0.00612 | CM7: 0.00821 | CN7: 0.00877 | CO7: 0.00695 | CP7: 0.00995 | CQ7: 0.00929 | CR7: 0.011 | CS7: 0.01497 | CT7: 0.01521 | CU7: 0.0155 | CV7: 0.01785 | CW7: 0.02276 | CX7: 0.0232 | CY7: 0.0273 | CZ7: 0.02768 | DA7: 0.02966 | DB7: 0.02956 | DC7: 0.0278 | DD7: 0.02462 | DE7: 0.02658 | DF7: 0.03098 | DG7: 0.02747 | DH7: 0.02907 | DI7: 0.02811 | DJ7: 0.02642 | DK7: 0.02787 | DL7: 0.02667 | DM7: 0.02832 | DN7: 0.0296 | DO7: 0.03488 | DP7: 0.0369 | DQ7: 0.04056 | DR7: 0.04197 | DS7: 0.04134 | DT7: 0.04426 | DU7: 0.04573 | DV7: 0.04335 | DW7: 0.04149 | DX7: 0.03971 | DY7: 0.04186 | DZ7: 0.04206 | EA7: 0.03796 | EB7: 0.03703 | EC7: 0.03907 | ED7: 0.04018 | EE7: 0.03706 | EF7: 0.03913 | EG7: 0.03916 | EH7: 0.04027 | EI7: 0.03822 | EJ7: 0.04202 | EK7: 0.0393 | EL7: 0.0358 | EM7: 0.0333 | EN7: 0.03033 | EO7: 0.03612 | EP7: 0.03806 | EQ7: 0.04148 | ER7: 0.04 | ES7: 0.03674 | ET7: 0.03746 | EU7: 0.03847 | EV7: 0.03748 | EW7: 0.03622 | EX7: 0.03507 | EY7: 0.03663 | EZ7: 0.03628 | FA7: 0.03528 | FB7: 0.03477 | FC7: 0.03506 | FD7: 0.02973 | FE7: 0.03219 | FF7: 0.03594 | FG7: 0.03472 | FH7: 0.03779 | FI7: 0.04055 | FJ7: 0.04589 | FK7: 0.04511 | FL7: 0.04482 | FM7: 0.04207 | FN7: 0.04192 | FO7: 0.04046 | FP7: 0.0431 | FQ7: 0.04463 | FR7: 0.04286 | FS7: 0.04434 | FT7: 0.04647 | FU7: 0.04569 | FV7: 0.04597 | FW7: 0.04638 | FX7: 0.04416 | FY7: 0.0458 | FZ7: 0.04603 | GA7: 0.04614 | GB7: 0.04667 | GC7: 0.04264 | GD7: 0.03589 | GE7: 0.02966 | GF7: 0.02696 | GG7: 0.02783 | GH7: 0.02938 | GI7: 0.02423 | GJ7: 0.02316 | GK7: 0.02157 | GL7: 0.0184 | GM7: 0.01679 | GN7: 0.01707 | GO7: 0.01255 | GP7: 0.01388 | GQ7: 0.01658 | GR7: 0.01535 | GS7: 0.01092 | GT7: 0.00827 | GU7: 0.00539 | GV7: 0.01008 | GW7: 0.00987 | GX7: 0.00971 | GY7: 0.01193 | GZ7: 0.01264 | HA7: 0.01198 | HB7: 0.01254 | HC7: 0.0159 | HD7: 0.01587 | HE7: 0.01689 | HF7: 0.01516 | HG7: 0.01385 | HH7: 0.01518 | HI7: 0.01736 | HJ7: 0.0193 | HK7: 0.01903 | HL7: 0.01969 | HM7: 0.01974 | HN7: 0.02123 | HO7: 0.02148 | HP7: 0.02309 | HQ7: 0.02212 | HR7: 0.02285 | HS7: 0.02264 | HT7: 0.02172 | HU7: 0.02122 | HV7: 0.02224 | HW7: 0.02218 | HX7: 0.0234 | HY7: 0.02327 | HZ7: 0.02491 | IA7: 0.02468 | IB7: 0.0278 | IC7: 0.02701 | ID7: 0.02931 | IE7: 0.02728 | IF7: 0.02573 | IG7: 0.02693 | IH7: 0.02603 | II7: 0.02616 | IJ7: 0.02278 | IK7: 0.02282 | IL7: 0.0223 | IM7: 0.02182 | IN7: 0.02218 | IO7: 0.02068 | IP7: 0.01818 | IQ7: 0.0162 | IR7: 0.01747 | IS7: 0.01578 | IT7: 0.01685 | IU7: 0.01634 | IV7: 0.0165 | IW7: 0.01641 | IX7: 0.0163 | IY7: 0.01629 | IZ7: 0.01778 | JA7: 0.01779 | JB7: 0.01944 | JC7: 0.01786 | JD7: 0.01498 | JE7: 0.01554 | JF7: 0.01524 | JG7: 0.01273 | JH7: 0.01166 | JI7: 0.01167 | JJ7: 0.01206 | JK7: 0.01234 | JL7: 0.01246 | JM7: 0.01166 | JN7: 0.00977 | JO7: 0.009 | JP7: 0.00749 | JQ7: 0.00866 | JR7: 0.00946 | JS7: 0.00746 | JT7: 0.00653 | JU7: 0.00692 | JV7: 0.00666 | JW7: 0.00508 | JX7: 0.00747 | JY7: 0.00766 | JZ7: 0.00795 | KA7: 0.00797 | KB7: 0.00951 | KC7: 0.0096 | KD7: 0.00821 | KE7: 0.00551 | KF7: 0.00421 | KG7: 0.00619 | KH7: 0.00667 | KI7: 0.0071 | KJ7: 0.00744 | KK7: 0.00761 | KL7: 0.00607 | KM7: 0.00547 | KN7: 0.00523 | KO7: 0.005 | KP7: 0.00414 | KQ7: 0.00599 | KR7: 0.00757 | KS7: 0.00917 | KT7: 0.00736 | KU7: 0.00676 | KV7: 0.00888 | KW7: 0.01099 | KX7: 0.01258 | KY7: 0.01522 | KZ7: 0.01573 | LA7: 0.01712 | LB7: 0.0181 | LC7: 0.02151 | LD7: 0.01844 | LE7: 0.01845 | LF7: 0.01856 | LG7: 0.02001 | LH7: 0.02245 | LI7: 0.02182 | LJ7: 0.01899 | LK7: 0.02076 | LL7: 0.02221 | LM7: 0.02532 | LN7: 0.02329 | LO7: 0.02109 | LP7: 0.01699 | LQ7: 0.01328 | LR7: 0.01302 | LS7: 0.01512 | LT7: 0.01707 | LU7: 0.0164 | LV7: 0.01598 | LW7: 0.01513 | LX7: 0.01462 | LY7: 0.01445 | LZ7: 0.01611 | MA7: 0.01573 | MB7: 0.01612 | MC7: 0.01385 | MD7: 0.01369 | ME7: 0.01599 | MF7: 0.01475 | MG7: 0.01545 | MH7: 0.01406 | MI7: 0.01263 | MJ7: 0.01294 | MK7: 0.01261 | ML7: 0.01379 | MM7: 0.01374 | MN7: 0.01379 | MO7: 0.01396 | MP7: 0.01476 | MQ7: 0.01312 | MR7: 0.01439 | MS7: 0.01474 | MT7: 0.01602 | MU7: 0.01576 | MV7: 0.01667 | MW7: 0.01602 | MX7: 0.01716 | MY7: 0.01652 | MZ7: 0.01617 | NA7: 0.01641 | NB7: 0.01766 | NC7: 0.01803 | ND7: 0.01611 | NE7: 0.01599 | NF7: 0.01805 | NG7: 0.02027 | NH7: 0.01968 | NI7: 0.02053 | NJ7: 0.02227 | NK7: 0.02234 | NL7: 0.0212 | NM7: 0.02066 | NN7: 0.02073 | NO7: 0.02171 | NP7: 0.02344 | NQ7: 0.02308 | NR7: 0.022 | NS7: 0.02092 | NT7: 0.02149 | NU7: 0.02056 | NV7: 0.02271 | NW7: 0.02283 | NX7: 0.02201 | NY7: 0.02187 | NZ7: 0.02134 | OA7: 0.02146 | OB7: 0.02115 | OC7: 0.02188 | OD7: 0.0219 | OE7: 0.01912 | OF7: 0.01856 | OG7: 0.02065 | OH7: 0.02238 | OI7: 0.02401 | OJ7: 0.0247 | OK7: 0.02628 | OL7: 0.02868 | OM7: 0.02727 | ON7: 0.02747 | OO7: 0.02607 | OP7: 0.02844 | OQ7: 0.0283 | OR7: 0.02794 | OS7: 0.02848 | OT7: 0.02603 | OU7: 0.02793 | OV7: 0.02457 | OW7: 0.02355 | OX7: 0.02281 | OY7: 0.02293 | OZ7: 0.02314 | PA7: 0.0259 | PB7: 0.0253 | PC7: 0.02266 | PD7: 0.02291 | PE7: 0.02182 | PF7: 0.02003 | PG7: 0.02088 | PH7: 0.01695 | PI7: 0.01802 | PJ7: 0.01939 | PK7: 0.01673 | PL7: 0.01517 | PM7: 0.0132 | PN7: 0.01382 | PO7: 0.01537 | PP7: 0.0142 | PQ7: 0.01653 | PR7: 0.01198 | PS7: 0.01347 | PT7: 0.01496 | PU7: 0.01658 | PV7: 0.01866 | PW7: 0.02106 | PX7: 0.02187 | PY7: 0.02298 | PZ7: 0.02142 | QA7: 0.02352 | QB7: 0.02326 | QC7: 0.02547 | QD7: 0.02296 | QE7: 0.02156 | QF7: 0.01962 | QG7: 0.01633 | QH7: 0.01523 | QI7: 0.01671 | QJ7: 0.01533 | QK7: 0.01378 | QL7: 0.01352 | QM7: 0.01257 | QN7: 0.01404 | QO7: 0.01342 | QP7: 0.01578 | QQ7: 0.01596 | QR7: 0.01418 | QS7: 0.01405 | QT7: 0.0118 | QU7: 0.01309 | QV7: 0.01243 | QW7: 0.01231 | QX7: 0.01277 | QY7: 0.01207 | QZ7: 0.00941 | RA7: 0.01073 | RB7: 0.01205 | RC7: 0.01232 | RD7: 0.01199 | RE7: 0.01538 | RF7: 0.01387 | RG7: 0.01471 | RH7: 0.01441 | RI7: 0.01542 | RJ7: 0.01686 | RK7: 0.01818 | RL7: 0.01986 | RM7: 0.02057 | RN7: 0.02007 | RO7: 0.02016 | RP7: 0.01964 | RQ7: 0.02068 | RR7: 0.02079 | RS7: 0.02071 | RT7: 0.01994 | RU7: 0.02045 | RV7: 0.01936 | RW7: 0.01844 | RX7: 0.01763 | RY7: 0.01846 | RZ7: 0.01853 | SA7: 0.01913 | SB7: 0.02139 | SC7: 0.02191 | SD7: 0.02206 | SE7: 0.02191 | SF7: 0.02091 | SG7: 0.01971 | SH7: 0.01864 | SI7: 0.01902 | SJ7: 0.01928 | SK7: 0.01874 | SL7: 0.02028 | SM7: 0.02016 | SN7: 0.01859 | SO7: 0.01839 | SP7: 0.01815 | SQ7: 0.02065 | SR7: 0.02092 | SS7: 0.0225 | ST7: 0.02225 | SU7: 0.02397 | SV7: 0.02458 | SW7: 0.02407 | SX7: 0.02466 | SY7: 0.02592 | SZ7: 0.02523 | TA7: 0.02687 | TB7: 0.02734 | TC7: 0.02972 | TD7: 0.03094 | TE7: 0.03117 | TF7: 0.03149 | TG7: 0.03305 | TH7: 0.03275 | TI7: 0.03329 | TJ7: 0.03296 | TK7: 0.03482 | TL7: 0.03424 | TM7: 0.03666 | TN7: 0.03938 | TO7: 0.03854 | TP7: 0.03948 | TQ7: 0.04232 | TR7: 0.04461 | TS7: 0.04491 | TT7: 0.0462 | TU7: 0.0465 | TV7: 0.04751 | TW7: 0.05073 | TX7: 0.04975 | TY7: 0.04768 | TZ7: 0.04748 | UA7: 0.04932 | UB7: 0.04756 | UC7: 0.04503 | UD7: 0.0428 | UE7: 0.03994 | UF7: 0.03986 | UG7: 0.03903 | UH7: 0.04108 | UI7: 0.03932 | UJ7: 0.03692 | UK7: 0.03846 | UL7: 0.04306 | UM7: 0.04509 | UN7: 0.04847 | UO7: 0.05065 | UP7: 0.05306 | UQ7: 0.05286 | UR7: 0.05205 | US7: 0.05594 | UT7: 0.05714 | UU7: 0.05214 | UV7: 0.0535 | UW7: 0.04969 | UX7: 0.04322 | UY7: 0.04206 | UZ7: 0.0438 | VA7: 0.04542 | VB7: 0.04694 | VC7: 0.0484 | VD7: 0.04688 | VE7: 0.05284 | VF7: 0.0517 | VG7: 0.04832 | VH7: 0.05162 | VI7: 0.05398 | VJ7: 0.05541 | VK7: 0.05702 | VL7: 0.05361 | VM7: 0.05293 | VN7: 0.05156 | VO7: 0.0536 | VP7: 0.05419 | VQ7: 0.05599 | VR7: 0.06024 | VS7: 0.06105 | VT7: 0.05862 | VU7: 0.05576 | VV7: 0.05297 | VW7: 0.0552 | VX7: 0.05154 | VY7: 0.05119 | VZ7: 0.05302 | WA7: 0.05204 | WB7: 0.05488 | WC7: 0.0545 | WD7: 0.04826 | WE7: 0.04478 | WF7: 0.04622 | WG7: 0.04836 | WH7: 0.0468 | WI7: 0.04347 | WJ7: 0.04786 | WK7: 0.05162 | WL7: 0.05132 | WM7: 0.05393 | WN7: 0.05358 | WO7: 0.05346 | WP7: 0.0527
A8: 7 | B8: 0.0013 | C8: 0.00584 | D8: 0.00706 | E8: 0.00489 | F8: 0.00966 | G8: 0.00922 | H8: 0.00797 | I8: 0.00637 | J8: 0.00791 | K8: 0.00841 | L8: 0.00777 | M8: 0.00282 | N8: 0.00355 | O8: 0.00362 | P8: 0.00617 | Q8: 0.00578 | R8: 0.00751 | S8: 0.01016 | T8: 0.00949 | U8: 0.00855 | V8: 0.01213 | W8: 0.0111 | X8: 0.01329 | Y8: 0.00571 | Z8: 0.00776 | AA8: 0.00973 | AB8: 0.00863 | AC8: 0.00924 | AD8: 0.00973 | AE8: 0.0111 | AF8: 0.00939 | AG8: 0.00909 | AH8: 0.00688 | AI8: 0.00732 | AJ8: 0.00961 | AK8: 0.01241 | AL8: 0.01285 | AM8: 0.01409 | AN8: 0.01279 | AO8: 0.01252 | AP8: 0.01191 | AQ8: 0.01256 | AR8: 0.01402 | AS8: 0.01604 | AT8: 0.01644 | AU8: 0.01567 | AV8: 0.01468 | AW8: 0.01406 | AX8: 0.01328 | AY8: 0.01335 | AZ8: 0.0124 | BA8: 0.01327 | BB8: 0.01345 | BC8: 0.01315 | BD8: 0.01307 | BE8: 0.01359 | BF8: 0.01357 | BG8: 0.01411 | BH8: 0.0144 | BI8: 0.01421 | BJ8: 0.01441 | BK8: 0.01595 | BL8: 0.01596 | BM8: 0.01539 | BN8: 0.01571 | BO8: 0.01378 | BP8: 0.01402 | BQ8: 0.01297 | BR8: 0.01355 | BS8: 0.01512 | BT8: 0.0158 | BU8: 0.01561 | BV8: 0.01383 | BW8: 0.01301 | BX8: 0.01275 | BY8: 0.01461 | BZ8: 0.01558 | CA8: 0.01805 | CB8: 0.01664 | CC8: 0.01746 | CD8: 0.0168 | CE8: 0.01612 | CF8: 0.01746 | CG8: 0.01691 | CH8: 0.01851 | CI8: 0.01506 | CJ8: 0.01632 | CK8: 0.01719 | CL8: 0.01744 | CM8: 0.01662 | CN8: 0.01635 | CO8: 0.01703 | CP8: 0.01656 | CQ8: 0.01392 | CR8: 0.01482 | CS8: 0.01382 | CT8: 0.01658 | CU8: 0.01483 | CV8: 0.01277 | CW8: 0.013 | CX8: 0.01526 | CY8: 0.01393 | CZ8: 0.01233 | DA8: 0.01403 | DB8: 0.0134 | DC8: 0.01429 | DD8: 0.0157 | DE8: 0.01689 | DF8: 0.01604 | DG8: 0.01684 | DH8: 0.01815 | DI8: 0.01849 | DJ8: 0.01804 | DK8: 0.01867 | DL8: 0.01942 | DM8: 0.0185 | DN8: 0.01808 | DO8: 0.019 | DP8: 0.01766 | DQ8: 0.01703 | DR8: 0.01689 | DS8: 0.01543 | DT8: 0.01527 | DU8: 0.01582 | DV8: 0.01533 | DW8: 0.01767 | DX8: 0.01757 | DY8: 0.01582 | DZ8: 0.021 | EA8: 0.02448 | EB8: 0.02606 | EC8: 0.02744 | ED8: 0.02599 | EE8: 0.02588 | EF8: 0.0286 | EG8: 0.02639 | EH8: 0.02668 | EI8: 0.02472 | EJ8: 0.02772 | EK8: 0.0301 | EL8: 0.02945 | EM8: 0.02924 | EN8: 0.02787 | EO8: 0.03071 | EP8: 0.02887 | EQ8: 0.02589 | ER8: 0.02541 | ES8: 0.02548 | ET8: 0.02551 | EU8: 0.02583 | EV8: 0.02478 | EW8: 0.02586 | EX8: 0.01624 | EY8: 0.01916 | EZ8: 0.02053 | FA8: 0.02297 | FB8: 0.01644 | FC8: 0.0183 | FD8: 0.01993 | FE8: 0.02127 | FF8: 0.01841 | FG8: 0.01993 | FH8: 0.018 | FI8: 0.01653 | FJ8: 0.02055 | FK8: 0.0169 | FL8: 0.01707 | FM8: 0.02269 | FN8: 0.02014 | FO8: 0.02311 | FP8: 0.02014 | FQ8: 0.02589 | FR8: 0.02914 | FS8: 0.03091 | FT8: 0.0284 | FU8: 0.02253 | FV8: 0.02578 | FW8: 0.02056 | FX8: 0.01628 | FY8: 0.01722 | FZ8: 0.01984 | GA8: 0.01934 | GB8: 0.01942 | GC8: 0.02183 | GD8: 0.01811 | GE8: 0.01623 | GF8: 0.01471 | GG8: 0.01702 | GH8: 0.01358 | GI8: 0.01308 | GJ8: 0.0149 | GK8: 0.01642 | GL8: 0.01763 | GM8: 0.02064 | GN8: 0.02005 | GO8: 0.01945 | GP8: 0.01986 | GQ8: 0.01459 | GR8: 0.01445 | GS8: 0.01222 | GT8: 0.01417 | GU8: 0.01338 | GV8: 0.01089 | GW8: 0.01017 | GX8: 0.00767 | GY8: 0.00662 | GZ8: 0.00505 | HA8: 0.00728 | HB8: 0.00771 | HC8: 0.00752 | HD8: 0.00774 | HE8: 0.00914 | HF8: 0.00754 | HG8: 0.00669 | HH8: 0.00386 | HI8: 0.00394 | HJ8: 0.00456 | HK8: 0.00411 | HL8: 0.00236 | HM8: 0.00068 | HN8: 0.00436 | HO8: 0.00557 | HP8: 0.0071 | HQ8: 0.00827 | HR8: 0.00962 | HS8: 0.01031 | HT8: 0.01079 | HU8: 0.00981 | HV8: 0.01109 | HW8: 0.00942 | HX8: 0.00982 | HY8: 0.00925 | HZ8: 0.0081 | IA8: 0.00871 | IB8: 0.01022 | IC8: 0.00941 | ID8: 0.00855 | IE8: 0.00931 | IF8: 0.00956 | IG8: 0.00766 | IH8: 0.00627 | II8: 0.00796 | IJ8: 0.00973 | IK8: 0.00812 | IL8: 0.00753 | IM8: 0.00836 | IN8: 0.00882 | IO8: 0.00785 | IP8: 0.00808 | IQ8: 0.01023 | IR8: 0.01091 | IS8: 0.01124 | IT8: 0.01355 | IU8: 0.01559 | IV8: 0.01753 | IW8: 0.02085 | IX8: 0.02442 | IY8: 0.02157 | IZ8: 0.02043 | JA8: 0.02113 | JB8: 0.02286 | JC8: 0.02365 | JD8: 0.02544 | JE8: 0.02622 | JF8: 0.02858 | JG8: 0.03254 | JH8: 0.0304 | JI8: 0.02952 | JJ8: 0.03078 | JK8: 0.03136 | JL8: 0.03347 | JM8: 0.03099 | JN8: 0.03284 | JO8: 0.03275 | JP8: 0.02807 | JQ8: 0.03037 | JR8: 0.03391 | JS8: 0.03141 | JT8: 0.03072 | JU8: 0.02979 | JV8: 0.03105 | JW8: 0.03058 | JX8: 0.02581 | JY8: 0.02744 | JZ8: 0.02893 | KA8: 0.0302 | KB8: 0.02725 | KC8: 0.02251 | KD8: 0.02401 | KE8: 0.02571 | KF8: 0.02417 | KG8: 0.024 | KH8: 0.02292 | KI8: 0.02277 | KJ8: 0.02576 | KK8: 0.03261 | KL8: 0.02947 | KM8: 0.03052 | KN8: 0.02243 | KO8: 0.02728 | KP8: 0.03672 | KQ8: 0.03961 | KR8: 0.04569 | KS8: 0.04485 | KT8: 0.04351 | KU8: 0.04776 | KV8: 0.05325 | KW8: 0.05228 | KX8: 0.04925 | KY8: 0.053 | KZ8: 0.05489 | LA8: 0.05323 | LB8: 0.05357 | LC8: 0.05788 | LD8: 0.05782 | LE8: 0.05582 | LF8: 0.05702 | LG8: 0.05261 | LH8: 0.05447 | LI8: 0.05433 | LJ8: 0.05422 | LK8: 0.0534 | LL8: 0.05289 | LM8: 0.05362 | LN8: 0.05465 | LO8: 0.0549 | LP8: 0.05546 | LQ8: 0.05131 | LR8: 0.04955 | LS8: 0.05094 | LT8: 0.05162 | LU8: 0.04655 | LV8: 0.04695 | LW8: 0.04552 | LX8: 0.04449 | LY8: 0.04393 | LZ8: 0.0439 | MA8: 0.04608 | MB8: 0.04166 | MC8: 0.04349 | MD8: 0.04059 | ME8: 0.04329 | MF8: 0.04963 | MG8: 0.05062 | MH8: 0.05422 | MI8: 0.05844 | MJ8: 0.05753 | MK8: 0.05911 | ML8: 0.06038 | MM8: 0.05772 | MN8: 0.05742 | MO8: 0.05413 | MP8: 0.0515 | MQ8: 0.05175 | MR8: 0.05027 | MS8: 0.04695 | MT8: 0.04668 | MU8: 0.04746 | MV8: 0.04298 | MW8: 0.03885 | MX8: 0.04147 | MY8: 0.04284 | MZ8: 0.05006 | NA8: 0.05408 | NB8: 0.05823 | NC8: 0.06001 | ND8: 0.0555 | NE8: 0.05942 | NF8: 0.04866 | NG8: 0.05843 | NH8: 0.05875 | NI8: 0.06705 | NJ8: 0.05889 | NK8: 0.0566 | NL8: 0.05804 | NM8: 0.05051 | NN8: 0.05318 | NO8: 0.05014 | NP8: 0.05028 | NQ8: 0.04073 | NR8: 0.036 | NS8: 0.0368 | NT8: 0.03865 | NU8: 0.03999 | NV8: 0.03665 | NW8: 0.03725 | NX8: 0.03642 | NY8: 0.03877 | NZ8: 0.03893 | OA8: 0.03434 | OB8: 0.03192 | OC8: 0.03411 | OD8: 0.02925 | OE8: 0.02709 | OF8: 0.0294 | OG8: 0.03449 | OH8: 0.03025 | OI8: 0.03247 | OJ8: 0.03057 | OK8: 0.03198 | OL8: 0.03507 | OM8: 0.03908 | ON8: 0.038 | OO8: 0.03457 | OP8: 0.03096 | OQ8: 0.03315 | OR8: 0.02697 | OS8: 0.02563 | OT8: 0.02467 | OU8: 0.02324 | OV8: 0.02724 | OW8: 0.02751 | OX8: 0.02697 | OY8: 0.02319 | OZ8: 0.02327 | PA8: 0.02143 | PB8: 0.01959 | PC8: 0.0189 | PD8: 0.01443 | PE8: 0.01438 | PF8: 0.01764 | PG8: 0.01238 | PH8: 0.01277 | PI8: 0.01107 | PJ8: 0.01276 | PK8: 0.01304 | PL8: 0.01704 | PM8: 0.01675 | PN8: 0.01964 | PO8: 0.01579 | PP8: 0.01567 | PQ8: 0.01322 | PR8: 0.01324 | PS8: 0.01313 | PT8: 0.01379 | PU8: 0.01074 | PV8: 0.00993 | PW8: 0.0108 | PX8: 0.01432 | PY8: 0.01313 | PZ8: 0.01432 | QA8: 0.01567 | QB8: 0.01522 | QC8: 0.01561 | QD8: 0.01196 | QE8: 0.01138 | QF8: 0.01198 | QG8: 0.01388 | QH8: 0.01183 | QI8: 0.01485 | QJ8: 0.01949 | QK8: 0.01952 | QL8: 0.01865 | QM8: 0.01985 | QN8: 0.02238 | QO8: 0.02321 | QP8: 0.02283 | QQ8: 0.02089 | QR8: 0.02204 | QS8: 0.01997 | QT8: 0.01777 | QU8: 0.01894 | QV8: 0.02024 | QW8: 0.01868 | QX8: 0.02005 | QY8: 0.02103 | QZ8: 0.02378 | RA8: 0.02249 | RB8: 0.02141 | RC8: 0.02191 | RD8: 0.02266 | RE8: 0.02308 | RF8: 0.02516 | RG8: 0.02213 | RH8: 0.02491 | RI8: 0.02156 | RJ8: 0.02375 | RK8: 0.02484 | RL8: 0.02494 | RM8: 0.02267 | RN8: 0.02448 | RO8: 0.02415 | RP8: 0.02452 | RQ8: 0.01958 | RR8: 0.02128 | RS8: 0.01963 | RT8: 0.02015 | RU8: 0.01691 | RV8: 0.01563 | RW8: 0.01658 | RX8: 0.01552 | RY8: 0.01589 | RZ8: 0.01895 | SA8: 0.01928 | SB8: 0.01955 | SC8: 0.01865 | SD8: 0.01865 | SE8: 0.01965 | SF8: 0.01834 | SG8: 0.01694 | SH8: 0.01962 | SI8: 0.02183 | SJ8: 0.02409 | SK8: 0.02371 | SL8: 0.02523 | SM8: 0.02404 | SN8: 0.02515 | SO8: 0.02719 | SP8: 0.02713 | SQ8: 0.02644 | SR8: 0.02782 | SS8: 0.03046 | ST8: 0.02926 | SU8: 0.02916 | SV8: 0.02896 | SW8: 0.02819 | SX8: 0.02859 | SY8: 0.03029 | SZ8: 0.02964 | TA8: 0.03217 | TB8: 0.03179 | TC8: 0.03039 | TD8: 0.03149 | TE8: 0.03172 | TF8: 0.03264 | TG8: 0.03137 | TH8: 0.03158 | TI8: 0.03184 | TJ8: 0.03287 | TK8: 0.03239 | TL8: 0.0311 | TM8: 0.02692 | TN8: 0.027 | TO8: 0.02852 | TP8: 0.03086 | TQ8: 0.03072 | TR8: 0.03256 | TS8: 0.03492 | TT8: 0.03894 | TU8: 0.03762 | TV8: 0.03783 | TW8: 0.04021 | TX8: 0.03951 | TY8: 0.03658 | TZ8: 0.03561 | UA8: 0.03396 | UB8: 0.03045 | UC8: 0.02868 | UD8: 0.02427 | UE8: 0.02294 | UF8: 0.02104 | UG8: 0.02187 | UH8: 0.02185 | UI8: 0.02087 | UJ8: 0.02236 | UK8: 0.02393 | UL8: 0.02488 | UM8: 0.02579 | UN8: 0.02641 | UO8: 0.02958 | UP8: 0.02749 | UQ8: 0.02686 | UR8: 0.0271 | US8: 0.02828 | UT8: 0.02664 | UU8: 0.026 | UV8: 0.02645 | UW8: 0.02436 | UX8: 0.02511 | UY8: 0.02878 | UZ8: 0.02805 | VA8: 0.02901 | VB8: 0.0301 | VC8: 0.027 | VD8: 0.0252 | VE8: 0.02737 | VF8: 0.02811 | VG8: 0.02998 | VH8: 0.03474 | VI8: 0.0341 | VJ8: 0.03264 | VK8: 0.03151 | VL8: 0.03099 | VM8: 0.02638 | VN8: 0.02186 | VO8: 0.01948 | VP8: 0.01734 | VQ8: 0.01419 | VR8: 0.01336 | VS8: 0.01384 | VT8: 0.01308 | VU8: 0.0157 | VV8: 0.01708 | VW8: 0.01326 | VX8: 0.0125 | VY8: 0.01055 | VZ8: 0.01443 | WA8: 0.01533 | WB8: 0.01727 | WC8: 0.0167 | WD8: 0.01859 | WE8: 0.01756 | WF8: 0.01873 | WG8: 0.02407 | WH8: 0.0251 | WI8: 0.02541 | WJ8: 0.0251 | WK8: 0.02418 | WL8: 0.02315 | WM8: 0.025 | WN8: 0.02257 | WO8: 0.02636 | WP8: 0.02758
A9: 8 | B9: 0.0013 | C9: 0.00272 | D9: 0.00296 | E9: 0.00622 | F9: 0.00728 | G9: 0.00667 | H9: 0.00741 | I9: 0.00886 | J9: 0.00938 | K9: 0.01567 | L9: 0.0171 | M9: 0.01886 | N9: 0.01845 | O9: 0.01964 | P9: 0.01911 | Q9: 0.0187 | R9: 0.01838 | S9: 0.0208 | T9: 0.02059 | U9: 0.02246 | V9: 0.02328 | W9: 0.02424 | X9: 0.02329 | Y9: 0.02103 | Z9: 0.02155 | AA9: 0.0214 | AB9: 0.01899 | AC9: 0.01959 | AD9: 0.0195 | AE9: 0.01677 | AF9: 0.0178 | AG9: 0.01496 | AH9: 0.01609 | AI9: 0.01576 | AJ9: 0.01068 | AK9: 0.01093 | AL9: 0.01028 | AM9: 0.01206 | AN9: 0.01474 | AO9: 0.01432 | AP9: 0.0181 | AQ9: 0.01763 | AR9: 0.01748 | AS9: 0.01506 | AT9: 0.01447 | AU9: 0.01501 | AV9: 0.01521 | AW9: 0.01718 | AX9: 0.01895 | AY9: 0.0168 | AZ9: 0.01669 | BA9: 0.01437 | BB9: 0.01233 | BC9: 0.01156 | BD9: 0.00987 | BE9: 0.00953 | BF9: 0.01003 | BG9: 0.00867 | BH9: 0.00995 | BI9: 0.00783 | BJ9: 0.00993 | BK9: 0.00945 | BL9: 0.01001 | BM9: 0.00953 | BN9: 0.01032 | BO9: 0.00784 | BP9: 0.00831 | BQ9: 0.01037 | BR9: 0.01182 | BS9: 0.01105 | BT9: 0.01101 | BU9: 0.01068 | BV9: 0.01163 | BW9: 0.01189 | BX9: 0.01248 | BY9: 0.01415 | BZ9: 0.01571 | CA9: 0.01686 | CB9: 0.01729 | CC9: 0.0176 | CD9: 0.01848 | CE9: 0.01748 | CF9: 0.01833 | CG9: 0.01779 | CH9: 0.01773 | CI9: 0.01679 | CJ9: 0.01687 | CK9: 0.01589 | CL9: 0.0159 | CM9: 0.01538 | CN9: 0.01308 | CO9: 0.013 | CP9: 0.01289 | CQ9: 0.01336 | CR9: 0.0124 | CS9: 0.01122 | CT9: 0.01098 | CU9: 0.01025 | CV9: 0.01094 | CW9: 0.01258 | CX9: 0.01345 | CY9: 0.0149 | CZ9: 0.01607 | DA9: 0.0169 | DB9: 0.01715 | DC9: 0.01672 | DD9: 0.01924 | DE9: 0.02019 | DF9: 0.0214 | DG9: 0.02292 | DH9: 0.02415 | DI9: 0.02681 | DJ9: 0.02568 | DK9: 0.02593 | DL9: 0.02768 | DM9: 0.02668 | DN9: 0.02693 | DO9: 0.02992 | DP9: 0.03109 | DQ9: 0.02878 | DR9: 0.02806 | DS9: 0.02707 | DT9: 0.02767 | DU9: 0.02674 | DV9: 0.02771 | DW9: 0.0313 | DX9: 0.03349 | DY9: 0.03443 | DZ9: 0.03352 | EA9: 0.035 | EB9: 0.03286 | EC9: 0.03009 | ED9: 0.03248 | EE9: 0.03365 | EF9: 0.03142 | EG9: 0.03136 | EH9: 0.03064 | EI9: 0.02872 | EJ9: 0.02989 | EK9: 0.02887 | EL9: 0.02802 | EM9: 0.0268 | EN9: 0.02715 | EO9: 0.02705 | EP9: 0.02431 | EQ9: 0.0249 | ER9: 0.02592 | ES9: 0.0243 | ET9: 0.02433 | EU9: 0.02344 | EV9: 0.02348 | EW9: 0.02688 | EX9: 0.02647 | EY9: 0.02792 | EZ9: 0.02983 | FA9: 0.02955 | FB9: 0.02984 | FC9: 0.03122 | FD9: 0.0328 | FE9: 0.03441 | FF9: 0.03069 | FG9: 0.03253 | FH9: 0.03197 | FI9: 0.03649 | FJ9: 0.03783 | FK9: 0.03979 | FL9: 0.03957 | FM9: 0.04248 | FN9: 0.04008 | FO9: 0.03649 | FP9: 0.03849 | FQ9: 0.03562 | FR9: 0.03579 | FS9: 0.03625 | FT9: 0.0384 | FU9: 0.04021 | FV9: 0.03961 | FW9: 0.03667 | FX9: 0.03589 | FY9: 0.03673 | FZ9: 0.03307 | GA9: 0.03463 | GB9: 0.03839 | GC9: 0.03667 | GD9: 0.03689 | GE9: 0.0379 | GF9: 0.04025 | GG9: 0.03987 | GH9: 0.04402 | GI9: 0.04298 | GJ9: 0.04494 | GK9: 0.0446 | GL9: 0.0402 | GM9: 0.03772 | GN9: 0.03613 | GO9: 0.03508 | GP9: 0.0318 | GQ9: 0.02909 | GR9: 0.03159 | GS9: 0.02894 | GT9: 0.03534 | GU9: 0.03295 | GV9: 0.03356 | GW9: 0.03473 | GX9: 0.03664 | GY9: 0.03493 | GZ9: 0.0319 | HA9: 0.03623 | HB9: 0.03809 | HC9: 0.03899 | HD9: 0.03475 | HE9: 0.03662 | HF9: 0.03826 | HG9: 0.03794 | HH9: 0.04329 | HI9: 0.04072 | HJ9: 0.04154 | HK9: 0.03991 | HL9: 0.03874 | HM9: 0.03658 | HN9: 0.03408 | HO9: 0.02959 | HP9: 0.02973 | HQ9: 0.03043 | HR9: 0.02769 | HS9: 0.03086 | HT9: 0.03019 | HU9: 0.02658 | HV9: 0.02747 | HW9: 0.02919 | HX9: 0.02596 | HY9: 0.02977 | HZ9: 0.02823 | IA9: 0.02746 | IB9: 0.02845 | IC9: 0.03037 | ID9: 0.03115 | IE9: 0.03084 | IF9: 0.02954 | IG9: 0.02994 | IH9: 0.02983 | II9: 0.02804 | IJ9: 0.02745 | IK9: 0.03024 | IL9: 0.02655 | IM9: 0.02694 | IN9: 0.02567 | IO9: 0.02794 | IP9: 0.02587 | IQ9: 0.02309 | IR9: 0.02317 | IS9: 0.02234 | IT9: 0.02249 | IU9: 0.02278 | IV9: 0.0214 | IW9: 0.019 | IX9: 0.01869 | IY9: 0.01707 | IZ9: 0.014 | JA9: 0.01622 | JB9: 0.01456 | JC9: 0.0167 | JD9: 0.01584 | JE9: 0.01754 | JF9: 0.01529 | JG9: 0.01629 | JH9: 0.01656 | JI9: 0.01712 | JJ9: 0.01599 | JK9: 0.01888 | JL9: 0.02208 | JM9: 0.02183 | JN9: 0.02091 | JO9: 0.0197 | JP9: 0.02004 | JQ9: 0.01884 | JR9: 0.01722 | JS9: 0.01671 | JT9: 0.01671 | JU9: 0.01604 | JV9: 0.01596 | JW9: 0.01425 | JX9: 0.01488 | JY9: 0.01644 | JZ9: 0.016 | KA9: 0.01482 | KB9: 0.01332 | KC9: 0.01382 | KD9: 0.01295 | KE9: 0.0112 | KF9: 0.00888 | KG9: 0.00863 | KH9: 0.00897 | KI9: 0.00928 | KJ9: 0.00717 | KK9: 0.0086 | KL9: 0.00745 | KM9: 0.00625 | KN9: 0.00415 | KO9: 0.00315 | KP9: 0.00446 | KQ9: 0.00628 | KR9: 0.00484 | KS9: 0.00751 | KT9: 0.00828 | KU9: 0.00814 | KV9: 0.00678 | KW9: 0.00897 | KX9: 0.0102 | KY9: 0.01089 | KZ9: 0.0098 | LA9: 0.00983 | LB9: 0.00835 | LC9: 0.01283 | LD9: 0.01383 | LE9: 0.01232 | LF9: 0.01286 | LG9: 0.01109 | LH9: 0.01173 | LI9: 0.01494 | LJ9: 0.01669 | LK9: 0.01278 | LL9: 0.01104 | LM9: 0.01427 | LN9: 0.01321 | LO9: 0.01369 | LP9: 0.01566 | LQ9: 0.01649 | LR9: 0.01622 | LS9: 0.01436 | LT9: 0.01611 | LU9: 0.01817 | LV9: 0.01568 | LW9: 0.01506 | LX9: 0.0139 | LY9: 0.0167 | LZ9: 0.01591 | MA9: 0.01477 | MB9: 0.01428 | MC9: 0.01558 | MD9: 0.01707 | ME9: 0.01602 | MF9: 0.01747 | MG9: 0.0175 | MH9: 0.01884 | MI9: 0.01999 | MJ9: 0.01716 | MK9: 0.01749 | ML9: 0.0145 | MM9: 0.01427 | MN9: 0.01507 | MO9: 0.01254 | MP9: 0.01284 | MQ9: 0.01252 | MR9: 0.0135 | MS9: 0.01198 | MT9: 0.00991 | MU9: 0.00918 | MV9: 0.00842 | MW9: 0.00699 | MX9: 0.00547 | MY9: 0.00474 | MZ9: 0.00481 | NA9: 0.00512 | NB9: 0.00531 | NC9: 0.00565 | ND9: 0.00707 | NE9: 0.00612 | NF9: 0.00707 | NG9: 0.00788 | NH9: 0.00669 | NI9: 0.00611 | NJ9: 0.00606 | NK9: 0.00479 | NL9: 0.00443 | NM9: 0.00496 | NN9: 0.00485 | NO9: 0.00468 | NP9: 0.0039 | NQ9: 0.00462 | NR9: 0.00435 | NS9: 0.00484 | NT9: 0.00439 | NU9: 0.00337 | NV9: 0.00286 | NW9: 0.00155 | NX9: 0.00109 | NY9: 0.00116 | NZ9: 0.00248 | OA9: 0.00373 | OB9: 0.00516 | OC9: 0.0053 | OD9: 0.00464 | OE9: 0.0028 | OF9: 0.00439 | OG9: 0.00337 | OH9: 0.00571 | OI9: 0.00526 | OJ9: 0.00466 | OK9: 0.0049 | OL9: 0.00414 | OM9: 0.00541 | ON9: 0.00499 | OO9: 0.00656 | OP9: 0.00738 | OQ9: 0.00889 | OR9: 0.00792 | OS9: 0.00729 | OT9: 0.00828 | OU9: 0.00994 | OV9: 0.009 | OW9: 0.00901 | OX9: 0.00992 | OY9: 0.00897 | OZ9: 0.00909 | PA9: 0.00935 | PB9: 0.00995 | PC9: 0.01017 | PD9: 0.01095 | PE9: 0.01337 | PF9: 0.01354 | PG9: 0.01367 | PH9: 0.00982 | PI9: 0.00974 | PJ9: 0.00882 | PK9: 0.00873 | PL9: 0.00998 | PM9: 0.00876 | PN9: 0.01106 | PO9: 0.01268 | PP9: 0.01106 | PQ9: 0.01184 | PR9: 0.01229 | PS9: 0.01068 | PT9: 0.00994 | PU9: 0.00899 | PV9: 0.01003 | PW9: 0.00973 | PX9: 0.01058 | PY9: 0.01331 | PZ9: 0.01384 | QA9: 0.01411 | QB9: 0.01279 | QC9: 0.01239 | QD9: 0.01319 | QE9: 0.01505 | QF9: 0.01921 | QG9: 0.01998 | QH9: 0.01816 | QI9: 0.01746 | QJ9: 0.0181 | QK9: 0.01971 | QL9: 0.01988 | QM9: 0.01885 | QN9: 0.0198 | QO9: 0.01807 | QP9: 0.0198 | QQ9: 0.01816 | QR9: 0.0154 | QS9: 0.01438 | QT9: 0.01417 | QU9: 0.01303 | QV9: 0.01353 | QW9: 0.01468 | QX9: 0.0159 | QY9: 0.01607 | QZ9: 0.01477 | RA9: 0.01714 | RB9: 0.01668 | RC9: 0.01853 | RD9: 0.02104 | RE9: 0.01888 | RF9: 0.01995 | RG9: 0.02012 | RH9: 0.02478 | RI9: 0.02473 | RJ9: 0.02653 | RK9: 0.02607 | RL9: 0.0259 | RM9: 0.02742 | RN9: 0.02762 | RO9: 0.0299 | RP9: 0.02744 | RQ9: 0.03029 | RR9: 0.02431 | RS9: 0.02651 | RT9: 0.02658 | RU9: 0.02943 | RV9: 0.02762 | RW9: 0.029 | RX9: 0.03075 | RY9: 0.03039 | RZ9: 0.03409 | SA9: 0.03926 | SB9: 0.04133 | SC9: 0.04005 | SD9: 0.0381 | SE9: 0.03738 | SF9: 0.03827 | SG9: 0.03649 | SH9: 0.04253 | SI9: 0.04011 | SJ9: 0.04083 | SK9: 0.03919 | SL9: 0.03706 | SM9: 0.0363 | SN9: 0.03569 | SO9: 0.03095 | SP9: 0.03188 | SQ9: 0.03163 | SR9: 0.03092 | SS9: 0.03302 | ST9: 0.02987 | SU9: 0.02834 | SV9: 0.02522 | SW9: 0.02457 | SX9: 0.02626 | SY9: 0.02344 | SZ9: 0.02381 | TA9: 0.02482 | TB9: 0.02749 | TC9: 0.0272 | TD9: 0.02595 | TE9: 0.02802 | TF9: 0.02752 | TG9: 0.02787 | TH9: 0.02841 | TI9: 0.02996 | TJ9: 0.03264 | TK9: 0.03094 | TL9: 0.03028 | TM9: 0.02753 | TN9: 0.02781 | TO9: 0.02855 | TP9: 0.02756 | TQ9: 0.0281 | TR9: 0.02821 | TS9: 0.03058 | TT9: 0.0317 | TU9: 0.03217 | TV9: 0.03087 | TW9: 0.03218 | TX9: 0.03143 | TY9: 0.02954 | TZ9: 0.02959 | UA9: 0.03018 | UB9: 0.02757 | UC9: 0.02782 | UD9: 0.02907 | UE9: 0.03091 | UF9: 0.03052 | UG9: 0.03026 | UH9: 0.0288 | UI9: 0.02919 | UJ9: 0.02966 | UK9: 0.02822 | UL9: 0.02758 | UM9: 0.02762 | UN9: 0.02714 | UO9: 0.02667 | UP9: 0.02517 | UQ9: 0.02735 | UR9: 0.02837 | US9: 0.02633 | UT9: 0.02694 | UU9: 0.02826 | UV9: 0.02679 | UW9: 0.02721 | UX9: 0.02664 | UY9: 0.02555 | UZ9: 0.02392 | VA9: 0.02357 | VB9: 0.02229 | VC9: 0.02162 | VD9: 0.0232 | VE9: 0.02331 | VF9: 0.02084 | VG9: 0.02075 | VH9: 0.02159 | VI9: 0.01896 | VJ9: 0.01973 | VK9: 0.02174 | VL9: 0.02278 | VM9: 0.02219 | VN9: 0.02325 | VO9: 0.02181 | VP9: 0.02466 | VQ9: 0.02537 | VR9: 0.02756 | VS9: 0.02906 | VT9: 0.03666 | VU9: 0.03414 | VV9: 0.04042 | VW9: 0.03897 | VX9: 0.04124 | VY9: 0.04559 | VZ9: 0.04174 | WA9: 0.04073 | WB9: 0.03496 | WC9: 0.03031 | WD9: 0.02741 | WE9: 0.02494 | WF9: 0.03055 | WG9: 0.03226 | WH9: 0.03147 | WI9: 0.03374 | WJ9: 0.03478 | WK9: 0.03589 | WL9: 0.04529 | WM9: 0.04302 | WN9: 0.04525 | WO9: 0.04399 | WP9: 0.04593
A10: 9 | B10: 0.0013 | C10: 0.00577 | D10: 0.00816 | E10: 0.00587 | F10: 0.00898 | G10: 0.00858 | H10: 0.00649 | I10: 0.00659 | J10: 0.00667 | K10: 0.00799 | L10: 0.00309 | M10: 0.00392 | N10: 0.00238 | O10: 0.0059 | P10: 0.004 | Q10: 0.005 | R10: 0.00441 | S10: 0.00602 | T10: 0.00857 | U10: 0.00837 | V10: 0.00786 | W10: 0.00739 | X10: 0.00696 | Y10: 0.00517 | Z10: 0.00665 | AA10: 0.00335 | AB10: 0.00243 | AC10: 0.0001 | AD10: 0.0001 | AE10: 0.0001 | AF10: 0.0001 | AG10: 0.0001 | AH10: 0.0001 | AI10: 0.0001 | AJ10: 0.0001 | AK10: 0.0001 | AL10: 0.0001 | AM10: 0.00027 | AN10: 0.00314 | AO10: 0.00309 | AP10: 0.00477 | AQ10: 0.00586 | AR10: 0.00683 | AS10: 0.00691 | AT10: 0.00669 | AU10: 0.00525 | AV10: 0.00523 | AW10: 0.00746 | AX10: 0.0073 | AY10: 0.00803 | AZ10: 0.00752 | BA10: 0.00684 | BB10: 0.00689 | BC10: 0.007 | BD10: 0.00529 | BE10: 0.00586 | BF10: 0.00568 | BG10: 0.00525 | BH10: 0.0057 | BI10: 0.00771 | BJ10: 0.00671 | BK10: 0.00821 | BL10: 0.00847 | BM10: 0.01055 | BN10: 0.00932 | BO10: 0.0086 | BP10: 0.0123 | BQ10: 0.01309 | BR10: 0.01389 | BS10: 0.01389 | BT10: 0.01465 | BU10: 0.0172 | BV10: 0.01668 | BW10: 0.0144 | BX10: 0.01444 | BY10: 0.01401 | BZ10: 0.01633 | CA10: 0.01362 | CB10: 0.01074 | CC10: 0.01052 | CD10: 0.0108 | CE10: 0.01266 | CF10: 0.0124 | CG10: 0.01113 | CH10: 0.01101 | CI10: 0.01141 | CJ10: 0.01111 | CK10: 0.012 | CL10: 0.01182 | CM10: 0.01347 | CN10: 0.01364 | CO10: 0.01437 | CP10: 0.0138 | CQ10: 0.01372 | CR10: 0.012 | CS10: 0.01397 | CT10: 0.01443 | CU10: 0.01298 | CV10: 0.01214 | CW10: 0.01272 | CX10: 0.01336 | CY10: 0.01707 | CZ10: 0.01669 | DA10: 0.01732 | DB10: 0.0194 | DC10: 0.02177 | DD10: 0.02177 | DE10: 0.02367 | DF10: 0.02389 | DG10: 0.02434 | DH10: 0.02478 | DI10: 0.02166 | DJ10: 0.02149 | DK10: 0.01965 | DL10: 0.01713 | DM10: 0.01543 | DN10: 0.015 | DO10: 0.01828 | DP10: 0.01928 | DQ10: 0.01568 | DR10: 0.01838 | DS10: 0.01782 | DT10: 0.01845 | DU10: 0.01946 | DV10: 0.01764 | DW10: 0.01519 | DX10: 0.01661 | DY10: 0.01719 | DZ10: 0.01683 | EA10: 0.01637 | EB10: 0.01758 | EC10: 0.01717 | ED10: 0.01753 | EE10: 0.01705 | EF10: 0.01971 | EG10: 0.01755 | EH10: 0.01673 | EI10: 0.01572 | EJ10: 0.01708 | EK10: 0.02048 | EL10: 0.02149 | EM10: 0.02409 | EN10: 0.02619 | EO10: 0.02543 | EP10: 0.02422 | EQ10: 0.0247 | ER10: 0.02649 | ES10: 0.0263 | ET10: 0.02443 | EU10: 0.02601 | EV10: 0.02645 | EW10: 0.0284 | EX10: 0.02776 | EY10: 0.02626 | EZ10: 0.03007 | FA10: 0.03001 | FB10: 0.02911 | FC10: 0.02848 | FD10: 0.02641 | FE10: 0.0291 | FF10: 0.02982 | FG10: 0.02824 | FH10: 0.02643 | FI10: 0.02845 | FJ10: 0.02976 | FK10: 0.03002 | FL10: 0.03121 | FM10: 0.03311 | FN10: 0.02946 | FO10: 0.02843 | FP10: 0.0334 | FQ10: 0.03068 | FR10: 0.02865 | FS10: 0.02839 | FT10: 0.02837 | FU10: 0.02781 | FV10: 0.028 | FW10: 0.0266 | FX10: 0.02705 | FY10: 0.02353 | FZ10: 0.02507 | GA10: 0.02672 | GB10: 0.02518 | GC10: 0.0251 | GD10: 0.02426 | GE10: 0.02292 | GF10: 0.02288 | GG10: 0.01839 | GH10: 0.02173 | GI10: 0.01975 | GJ10: 0.01868 | GK10: 0.01726 | GL10: 0.01729 | GM10: 0.01645 | GN10: 0.01685 | GO10: 0.01584 | GP10: 0.01674 | GQ10: 0.01632 | GR10: 0.01693 | GS10: 0.01832 | GT10: 0.02011 | GU10: 0.02073 | GV10: 0.01833 | GW10: 0.01558 | GX10: 0.01589 | GY10: 0.01525 | GZ10: 0.01502 | HA10: 0.01583 | HB10: 0.01778 | HC10: 0.01942 | HD10: 0.01828 | HE10: 0.01899 | HF10: 0.02041 | HG10: 0.02067 | HH10: 0.0209 | HI10: 0.02336 | HJ10: 0.02008 | HK10: 0.01991 | HL10: 0.02005 | HM10: 0.01887 | HN10: 0.01971 | HO10: 0.02037 | HP10: 0.02198 | HQ10: 0.02074 | HR10: 0.02272 | HS10: 0.02349 | HT10: 0.02489 | HU10: 0.02646 | HV10: 0.02584 | HW10: 0.02646 | HX10: 0.02826 | HY10: 0.03092 | HZ10: 0.03153 | IA10: 0.02738 | IB10: 0.02913 | IC10: 0.03056 | ID10: 0.03358 | IE10: 0.03363 | IF10: 0.03333 | IG10: 0.03171 | IH10: 0.03165 | II10: 0.03247 | IJ10: 0.03268 | IK10: 0.03683 | IL10: 0.038 | IM10: 0.03715 | IN10: 0.03507 | IO10: 0.0367 | IP10: 0.03923 | IQ10: 0.04164 | IR10: 0.04232 | IS10: 0.04502 | IT10: 0.0476 | IU10: 0.05102 | IV10: 0.05291 | IW10: 0.0571 | IX10: 0.05402 | IY10: 0.05799 | IZ10: 0.06192 | JA10: 0.06439 | JB10: 0.06572 | JC10: 0.06739 | JD10: 0.0673 | JE10: 0.06223 | JF10: 0.06497 | JG10: 0.06342 | JH10: 0.06149 | JI10: 0.05704 | JJ10: 0.05964 | JK10: 0.06374 | JL10: 0.06371 | JM10: 0.0611 | JN10: 0.06527 | JO10: 0.07001 | JP10: 0.06962 | JQ10: 0.07594 | JR10: 0.07048 | JS10: 0.06617 | JT10: 0.06786 | JU10: 0.06734 | JV10: 0.06595 | JW10: 0.06546 | JX10: 0.06224 | JY10: 0.06231 | JZ10: 0.0647 | KA10: 0.05998 | KB10: 0.063 | KC10: 0.06036 | KD10: 0.06224 | KE10: 0.06263 | KF10: 0.06026 | KG10: 0.05771 | KH10: 0.05805 | KI10: 0.06151 | KJ10: 0.06568 | KK10: 0.06561 | KL10: 0.07015 | KM10: 0.06901 | KN10: 0.07095 | KO10: 0.06944 | KP10: 0.06376 | KQ10: 0.06022 | KR10: 0.05854 | KS10: 0.05764 | KT10: 0.05935 | KU10: 0.05721 | KV10: 0.05695 | KW10: 0.05721 | KX10: 0.05122 | KY10: 0.05143 | KZ10: 0.05392 | LA10: 0.0538 | LB10: 0.06072 | LC10: 0.05745 | LD10: 0.05315 | LE10: 0.05287 | LF10: 0.05415 | LG10: 0.05146 | LH10: 0.05129 | LI10: 0.0572 | LJ10: 0.06013 | LK10: 0.06049 | LL10: 0.06422 | LM10: 0.06252 | LN10: 0.06754 | LO10: 0.06865 | LP10: 0.06183 | LQ10: 0.06667 | LR10: 0.07353 | LS10: 0.07039 | LT10: 0.06564 | LU10: 0.06841 | LV10: 0.06955 | LW10: 0.06577 | LX10: 0.06679 | LY10: 0.06716 | LZ10: 0.0708 | MA10: 0.0706 | MB10: 0.06197 | MC10: 0.05887 | MD10: 0.05882 | ME10: 0.05555 | MF10: 0.0563 | MG10: 0.05399 | MH10: 0.05157 | MI10: 0.0518 | MJ10: 0.05211 | MK10: 0.04581 | ML10: 0.04831 | MM10: 0.04226 | MN10: 0.04894 | MO10: 0.05525 | MP10: 0.05029 | MQ10: 0.04441 | MR10: 0.04092 | MS10: 0.03992 | MT10: 0.03772 | MU10: 0.03665 | MV10: 0.03372 | MW10: 0.03644 | MX10: 0.03668 | MY10: 0.04608 | MZ10: 0.04712 | NA10: 0.04451 | NB10: 0.04593 | NC10: 0.04477 | ND10: 0.0456 | NE10: 0.04779 | NF10: 0.04635 | NG10: 0.04002 | NH10: 0.03148 | NI10: 0.03031 | NJ10: 0.02779 | NK10: 0.02618 | NL10: 0.0297 | NM10: 0.0306 | NN10: 0.03307 | NO10: 0.03307 | NP10: 0.03404 | NQ10: 0.03155 | NR10: 0.0298 | NS10: 0.03117 | NT10: 0.03226 | NU10: 0.03449 | NV10: 0.03657 | NW10: 0.03766 | NX10: 0.03974 | NY10: 0.03813 | NZ10: 0.03904 | OA10: 0.03817 | OB10: 0.03577 | OC10: 0.03727 | OD10: 0.03769 | OE10: 0.03534 | OF10: 0.03484 | OG10: 0.03429 | OH10: 0.03338 | OI10: 0.03309 | OJ10: 0.03754 | OK10: 0.03723 | OL10: 0.03951 | OM10: 0.03823 | ON10: 0.0364 | OO10: 0.03289 | OP10: 0.02939 | OQ10: 0.02824 | OR10: 0.02805 | OS10: 0.02408 | OT10: 0.02515 | OU10: 0.0267 | OV10: 0.02155 | OW10: 0.02129 | OX10: 0.01799 | OY10: 0.01831 | OZ10: 0.02157 | PA10: 0.0206 | PB10: 0.02144 | PC10: 0.02319 | PD10: 0.02148 | PE10: 0.02408 | PF10: 0.02389 | PG10: 0.02424 | PH10: 0.02426 | PI10: 0.02218 | PJ10: 0.0209 | PK10: 0.02051 | PL10: 0.01913 | PM10: 0.01824 | PN10: 0.01971 | PO10: 0.02029 | PP10: 0.02002 | PQ10: 0.01984 | PR10: 0.02137 | PS10: 0.0218 | PT10: 0.02068 | PU10: 0.02015 | PV10: 0.02338 | PW10: 0.02493 | PX10: 0.02223 | PY10: 0.0225 | PZ10: 0.02497 | QA10: 0.02625 | QB10: 0.02535 | QC10: 0.02743 | QD10: 0.02536 | QE10: 0.02516 | QF10: 0.02567 | QG10: 0.02552 | QH10: 0.0236 | QI10: 0.02577 | QJ10: 0.02544 | QK10: 0.02642 | QL10: 0.02954 | QM10: 0.02853 | QN10: 0.03149 | QO10: 0.03178 | QP10: 0.03394 | QQ10: 0.03796 | QR10: 0.03883 | QS10: 0.03844 | QT10: 0.03867 | QU10: 0.03919 | QV10: 0.0371 | QW10: 0.03916 | QX10: 0.03927 | QY10: 0.03732 | QZ10: 0.04088 | RA10: 0.04005 | RB10: 0.03667 | RC10: 0.03599 | RD10: 0.03569 | RE10: 0.03457 | RF10: 0.03454 | RG10: 0.0334 | RH10: 0.03308 | RI10: 0.03275 | RJ10: 0.03645 | RK10: 0.03339 | RL10: 0.03411 | RM10: 0.0353 | RN10: 0.03463 | RO10: 0.03263 | RP10: 0.0341 | RQ10: 0.0329 | RR10: 0.03654 | RS10: 0.03229 | RT10: 0.0289 | RU10: 0.02594 | RV10: 0.02583 | RW10: 0.02801 | RX10: 0.02547 | RY10: 0.02814 | RZ10: 0.02671 | SA10: 0.02654 | SB10: 0.03249 | SC10: 0.03611 | SD10: 0.03671 | SE10: 0.03591 | SF10: 0.0349 | SG10: 0.03131 | SH10: 0.03211 | SI10: 0.02942 | SJ10: 0.03137 | SK10: 0.02813 | SL10: 0.0254 | SM10: 0.02503 | SN10: 0.02633 | SO10: 0.02645 | SP10: 0.02779 | SQ10: 0.02546 | SR10: 0.02398 | SS10: 0.02339 | ST10: 0.02473 | SU10: 0.02586 | SV10: 0.025 | SW10: 0.02208 | SX10: 0.02051 | SY10: 0.02343 | SZ10: 0.02382 | TA10: 0.02341 | TB10: 0.02346 | TC10: 0.02283 | TD10: 0.02605 | TE10: 0.02573 | TF10: 0.02455 | TG10: 0.02524 | TH10: 0.02495 | TI10: 0.02528 | TJ10: 0.02572 | TK10: 0.0267 | TL10: 0.02748 | TM10: 0.02986 | TN10: 0.03138 | TO10: 0.03126 | TP10: 0.02958 | TQ10: 0.0319 | TR10: 0.03221 | TS10: 0.03198 | TT10: 0.03319 | TU10: 0.03284 | TV10: 0.02757 | TW10: 0.02739 | TX10: 0.03063 | TY10: 0.03221 | TZ10: 0.02956 | UA10: 0.03286 | UB10: 0.03181 | UC10: 0.03097 | UD10: 0.03004 | UE10: 0.03054 | UF10: 0.03353 | UG10: 0.0311 | UH10: 0.03068 | UI10: 0.02587 | UJ10: 0.02408 | UK10: 0.02436 | UL10: 0.02816 | UM10: 0.02489 | UN10: 0.02426 | UO10: 0.02544 | UP10: 0.02508 | UQ10: 0.02783 | UR10: 0.02886 | US10: 0.02897 | UT10: 0.02935 | UU10: 0.03207 | UV10: 0.0325 | UW10: 0.02701 | UX10: 0.03181 | UY10: 0.03484 | UZ10: 0.03115 | VA10: 0.03653 | VB10: 0.03587 | VC10: 0.03961 | VD10: 0.04239 | VE10: 0.04205 | VF10: 0.04046 | VG10: 0.04152 | VH10: 0.04268 | VI10: 0.03662 | VJ10: 0.03746 | VK10: 0.04363 | VL10: 0.04646 | VM10: 0.04418 | VN10: 0.047 | VO10: 0.04386 | VP10: 0.03677 | VQ10: 0.03604 | VR10: 0.03939 | VS10: 0.03825 | VT10: 0.03691 | VU10: 0.03827 | VV10: 0.04333 | VW10: 0.0402 | VX10: 0.03668 | VY10: 0.03297 | VZ10: 0.03138 | WA10: 0.03392 | WB10: 0.03373 | WC10: 0.03644 | WD10: 0.04385 | WE10: 0.04664 | WF10: 0.05425 | WG10: 0.05237 | WH10: 0.05606 | WI10: 0.05499 | WJ10: 0.05684 | WK10: 0.05732 | WL10: 0.0623 | WM10: 0.05809 | WN10: 0.05486 | WO10: 0.05713 | WP10: 0.05641
A11: 10 | B11: 0.0013 | C11: 0.00177 | D11: 0.00241 | E11: 0.0056 | F11: 0.00585 | G11: 0.00426 | H11: 0.00422 | I11: 0.00305 | J11: 0.0071 | K11: 0.00647 | L11: 0.00958 | M11: 0.0075 | N11: 0.01223 | O11: 0.00861 | P11: 0.01134 | Q11: 0.01078 | R11: 0.01022 | S11: 0.00892 | T11: 0.01242 | U11: 0.00847 | V11: 0.00845 | W11: 0.00738 | X11: 0.00833 | Y11: 0.01028 | Z11: 0.01093 | AA11: 0.01046 | AB11: 0.00967 | AC11: 0.00878 | AD11: 0.0089 | AE11: 0.00917 | AF11: 0.00822 | AG11: 0.01066 | AH11: 0.00785 | AI11: 0.00906 | AJ11: 0.00991 | AK11: 0.01045 | AL11: 0.00744 | AM11: 0.00725 | AN11: 0.00813 | AO11: 0.0071 | AP11: 0.00628 | AQ11: 0.00788 | AR11: 0.00678 | AS11: 0.00874 | AT11: 0.00715 | AU11: 0.0073 | AV11: 0.00713 | AW11: 0.00877 | AX11: 0.01074 | AY11: 0.01006 | AZ11: 0.01071 | BA11: 0.01203 | BB11: 0.01296 | BC11: 0.01493 | BD11: 0.01446 | BE11: 0.01649 | BF11: 0.01535 | BG11: 0.01812 | BH11: 0.01881 | BI11: 0.01621 | BJ11: 0.01542 | BK11: 0.01653 | BL11: 0.0152 | BM11: 0.01489 | BN11: 0.01722 | BO11: 0.01752 | BP11: 0.01722 | BQ11: 0.0183 | BR11: 0.01708 | BS11: 0.01057 | BT11: 0.01223 | BU11: 0.01248 | BV11: 0.01215 | BW11: 0.01195 | BX11: 0.01204 | BY11: 0.01591 | BZ11: 0.01397 | CA11: 0.01471 | CB11: 0.0123 | CC11: 0.01074 | CD11: 0.01252 | CE11: 0.01208 | CF11: 0.01502 | CG11: 0.01454 | CH11: 0.01439 | CI11: 0.01719 | CJ11: 0.01462 | CK11: 0.01402 | CL11: 0.01465 | CM11: 0.01275 | CN11: 0.01322 | CO11: 0.01215 | CP11: 0.01214 | CQ11: 0.01425 | CR11: 0.01396 | CS11: 0.01153 | CT11: 0.01076 | CU11: 0.01187 | CV11: 0.01074 | CW11: 0.01203 | CX11: 0.01348 | CY11: 0.01372 | CZ11: 0.01282 | DA11: 0.01125 | DB11: 0.01426 | DC11: 0.01614 | DD11: 0.01333 | DE11: 0.01384 | DF11: 0.01279 | DG11: 0.01181 | DH11: 0.01298 | DI11: 0.01425 | DJ11: 0.01471 | DK11: 0.01471 | DL11: 0.0161 | DM11: 0.01491 | DN11: 0.01758 | DO11: 0.01982 | DP11: 0.01912 | DQ11: 0.01973 | DR11: 0.0203 | DS11: 0.01876 | DT11: 0.01894 | DU11: 0.01858 | DV11: 0.01822 | DW11: 0.01845 | DX11: 0.01864 | DY11: 0.01806 | DZ11: 0.01799 | EA11: 0.0171 | EB11: 0.01572 | EC11: 0.01668 | ED11: 0.0176 | EE11: 0.01665 | EF11: 0.01835 | EG11: 0.01847 | EH11: 0.02062 | EI11: 0.02236 | EJ11: 0.02348 | EK11: 0.02547 | EL11: 0.02442 | EM11: 0.02672 | EN11: 0.02801 | EO11: 0.02779 | EP11: 0.02882 | EQ11: 0.02954 | ER11: 0.03052 | ES11: 0.02785 | ET11: 0.02665 | EU11: 0.02403 | EV11: 0.02276 | EW11: 0.02618 | EX11: 0.02307 | EY11: 0.02059 | EZ11: 0.02393 | FA11: 0.02302 | FB11: 0.02375 | FC11: 0.02472 | FD11: 0.02341 | FE11: 0.02433 | FF11: 0.02385 | FG11: 0.02511 | FH11: 0.02552 | FI11: 0.02292 | FJ11: 0.02263 | FK11: 0.02359 | FL11: 0.02371 | FM11: 0.02355 | FN11: 0.02193 | FO11: 0.02098 | FP11: 0.02195 | FQ11: 0.02109 | FR11: 0.01948 | FS11: 0.02051 | FT11: 0.0178 | FU11: 0.01753 | FV11: 0.01459 | FW11: 0.01364 | FX11: 0.01157 | FY11: 0.0125 | FZ11: 0.01426 | GA11: 0.01407 | GB11: 0.01336 | GC11: 0.01253 | GD11: 0.01318 | GE11: 0.01331 | GF11: 0.01415 | GG11: 0.0141 | GH11: 0.01631 | GI11: 0.01417 | GJ11: 0.01417 | GK11: 0.01522 | GL11: 0.0166 | GM11: 0.01841 | GN11: 0.01964 | GO11: 0.02021 | GP11: 0.01967 | GQ11: 0.01984 | GR11: 0.01928 | GS11: 0.01915 | GT11: 0.01943 | GU11: 0.01976 | GV11: 0.02095 | GW11: 0.02115 | GX11: 0.02123 | GY11: 0.02406 | GZ11: 0.02425 | HA11: 0.024 | HB11: 0.02337 | HC11: 0.02183 | HD11: 0.02171 | HE11: 0.02094 | HF11: 0.02047 | HG11: 0.01985 | HH11: 0.02202 | HI11: 0.02111 | HJ11: 0.02181 | HK11: 0.02433 | HL11: 0.0259 | HM11: 0.02391 | HN11: 0.02076 | HO11: 0.01957 | HP11: 0.02065 | HQ11: 0.02276 | HR11: 0.01965 | HS11: 0.01831 | HT11: 0.01514 | HU11: 0.01711 | HV11: 0.01858 | HW11: 0.01881 | HX11: 0.01633 | HY11: 0.01777 | HZ11: 0.01723 | IA11: 0.01407 | IB11: 0.01547 | IC11: 0.01472 | ID11: 0.01599 | IE11: 0.01812 | IF11: 0.01779 | IG11: 0.01791 | IH11: 0.01816 | II11: 0.01827 | IJ11: 0.01978 | IK11: 0.02132 | IL11: 0.02138 | IM11: 0.02002 | IN11: 0.0195 | IO11: 0.0204 | IP11: 0.02019 | IQ11: 0.02066 | IR11: 0.02142 | IS11: 0.02196 | IT11: 0.02298 | IU11: 0.02361 | IV11: 0.02487 | IW11: 0.02478 | IX11: 0.0246 | IY11: 0.0235 | IZ11: 0.0251 | JA11: 0.0242 | JB11: 0.02668 | JC11: 0.02688 | JD11: 0.02808 | JE11: 0.03005 | JF11: 0.02899 | JG11: 0.02653 | JH11: 0.02445 | JI11: 0.02575 | JJ11: 0.02746 | JK11: 0.02698 | JL11: 0.02957 | JM11: 0.02805 | JN11: 0.02813 | JO11: 0.03191 | JP11: 0.03579 | JQ11: 0.03727 | JR11: 0.0353 | JS11: 0.03514 | JT11: 0.03848 | JU11: 0.0396 | JV11: 0.03799 | JW11: 0.03819 | JX11: 0.03721 | JY11: 0.03666 | JZ11: 0.03459 | KA11: 0.03635 | KB11: 0.03488 | KC11: 0.03349 | KD11: 0.03215 | KE11: 0.03323 | KF11: 0.03077 | KG11: 0.03127 | KH11: 0.0326 | KI11: 0.03613 | KJ11: 0.03329 | KK11: 0.03256 | KL11: 0.03378 | KM11: 0.0354 | KN11: 0.03945 | KO11: 0.0369 | KP11: 0.03502 | KQ11: 0.03636 | KR11: 0.03609 | KS11: 0.03885 | KT11: 0.03582 | KU11: 0.03476 | KV11: 0.03374 | KW11: 0.03436 | KX11: 0.03697 | KY11: 0.04085 | KZ11: 0.0363 | LA11: 0.03076 | LB11: 0.03125 | LC11: 0.032 | LD11: 0.0327 | LE11: 0.02981 | LF11: 0.03057 | LG11: 0.03239 | LH11: 0.03495 | LI11: 0.03401 | LJ11: 0.0285 | LK11: 0.03034 | LL11: 0.03251 | LM11: 0.03545 | LN11: 0.03685 | LO11: 0.0375 | LP11: 0.03769 | LQ11: 0.03491 | LR11: 0.0365 | LS11: 0.04104 | LT11: 0.04137 | LU11: 0.04101 | LV11: 0.03711 | LW11: 0.03852 | LX11: 0.03291 | LY11: 0.0284 | LZ11: 0.02749 | MA11: 0.02593 | MB11: 0.02433 | MC11: 0.02913 | MD11: 0.0305 | ME11: 0.03185 | MF11: 0.0292 | MG11: 0.03225 | MH11: 0.03262 | MI11: 0.03039 | MJ11: 0.02771 | MK11: 0.02534 | ML11: 0.02166 | MM11: 0.0211 | MN11: 0.02049 | MO11: 0.02234 | MP11: 0.02329 | MQ11: 0.02465 | MR11: 0.0247 | MS11: 0.02663 | MT11: 0.02803 | MU11: 0.01722 | MV11: 0.01756 | MW11: 0.01793 | MX11: 0.01902 | MY11: 0.02002 | MZ11: 0.0195 | NA11: 0.0204 | NB11: 0.02156 | NC11: 0.02111 | ND11: 0.01768 | NE11: 0.01875 | NF11: 0.01781 | NG11: 0.01784 | NH11: 0.01632 | NI11: 0.01592 | NJ11: 0.01765 | NK11: 0.01825 | NL11: 0.01884 | NM11: 0.01906 | NN11: 0.01669 | NO11: 0.01647 | NP11: 0.01485 | NQ11: 0.01151 | NR11: 0.01503 | NS11: 0.01756 | NT11: 0.01566 | NU11: 0.01676 | NV11: 0.01426 | NW11: 0.01618 | NX11: 0.01563 | NY11: 0.01641 | NZ11: 0.01776 | OA11: 0.01511 | OB11: 0.01595 | OC11: 0.01359 | OD11: 0.01119 | OE11: 0.01058 | OF11: 0.01123 | OG11: 0.01362 | OH11: 0.01683 | OI11: 0.0174 | OJ11: 0.0143 | OK11: 0.01571 | OL11: 0.0167 | OM11: 0.01651 | ON11: 0.01802 | OO11: 0.0169 | OP11: 0.01693 | OQ11: 0.01599 | OR11: 0.01887 | OS11: 0.01899 | OT11: 0.02061 | OU11: 0.01911 | OV11: 0.01967 | OW11: 0.01865 | OX11: 0.02107 | OY11: 0.02096 | OZ11: 0.02169 | PA11: 0.02072 | PB11: 0.0221 | PC11: 0.02464 | PD11: 0.02338 | PE11: 0.02658 | PF11: 0.02647 | PG11: 0.02399 | PH11: 0.02491 | PI11: 0.02198 | PJ11: 0.02175 | PK11: 0.02265 | PL11: 0.02303 | PM11: 0.02172 | PN11: 0.02102 | PO11: 0.01905 | PP11: 0.01907 | PQ11: 0.01937 | PR11: 0.01802 | PS11: 0.01683 | PT11: 0.01651 | PU11: 0.01526 | PV11: 0.0152 | PW11: 0.01675 | PX11: 0.01602 | PY11: 0.01625 | PZ11: 0.01614 | QA11: 0.0167 | QB11: 0.01786 | QC11: 0.01849 | QD11: 0.01657 | QE11: 0.01628 | QF11: 0.0174 | QG11: 0.01682 | QH11: 0.01566 | QI11: 0.01526 | QJ11: 0.01759 | QK11: 0.01528 | QL11: 0.0162 | QM11: 0.01524 | QN11: 0.01695 | QO11: 0.01645 | QP11: 0.01502 | QQ11: 0.01449 | QR11: 0.01396 | QS11: 0.01578 | QT11: 0.01877 | QU11: 0.01791 | QV11: 0.01801 | QW11: 0.01922 | QX11: 0.021 | QY11: 0.02046 | QZ11: 0.02298 | RA11: 0.0236 | RB11: 0.02613 | RC11: 0.02722 | RD11: 0.0225 | RE11: 0.01917 | RF11: 0.01945 | RG11: 0.02048 | RH11: 0.02204 | RI11: 0.02032 | RJ11: 0.01792 | RK11: 0.01461 | RL11: 0.01425 | RM11: 0.01387 | RN11: 0.0142 | RO11: 0.01409 | RP11: 0.01113 | RQ11: 0.01238 | RR11: 0.01309 | RS11: 0.0134 | RT11: 0.01229 | RU11: 0.01293 | RV11: 0.01272 | RW11: 0.01404 | RX11: 0.01435 | RY11: 0.016 | RZ11: 0.01514 | SA11: 0.01689 | SB11: 0.01779 | SC11: 0.01765 | SD11: 0.01701 | SE11: 0.0162 | SF11: 0.0145 | SG11: 0.01472 | SH11: 0.01442 | SI11: 0.01264 | SJ11: 0.01015 | SK11: 0.01068 | SL11: 0.01181 | SM11: 0.01105 | SN11: 0.01013 | SO11: 0.01256 | SP11: 0.01344 | SQ11: 0.01342 | SR11: 0.01165 | SS11: 0.01599 | ST11: 0.01532 | SU11: 0.01198 | SV11: 0.01318 | SW11: 0.01413 | SX11: 0.01508 | SY11: 0.01579 | SZ11: 0.01872 | TA11: 0.02076 | TB11: 0.02072 | TC11: 0.0183 | TD11: 0.01754 | TE11: 0.01893 | TF11: 0.02 | TG11: 0.01836 | TH11: 0.01684 | TI11: 0.01787 | TJ11: 0.01637 | TK11: 0.02164 | TL11: 0.01936 | TM11: 0.02236 | TN11: 0.02367 | TO11: 0.02664 | TP11: 0.025 | TQ11: 0.0223 | TR11: 0.02291 | TS11: 0.02146 | TT11: 0.02419 | TU11: 0.02419 | TV11: 0.02624 | TW11: 0.02441 | TX11: 0.02443 | TY11: 0.02397 | TZ11: 0.02311 | UA11: 0.02187 | UB11: 0.02175 | UC11: 0.02224 | UD11: 0.02465 | UE11: 0.02353 | UF11: 0.02277 | UG11: 0.02385 | UH11: 0.01849 | UI11: 0.02076 | UJ11: 0.02067 | UK11: 0.01894 | UL11: 0.01867 | UM11: 0.02517 | UN11: 0.02955 | UO11: 0.03343 | UP11: 0.03808 | UQ11: 0.04142 | UR11: 0.03986 | US11: 0.0419 | UT11: 0.04353 | UU11: 0.04409 | UV11: 0.05284 | UW11: 0.0594 | UX11: 0.06564 | UY11: 0.05783 | UZ11: 0.06037 | VA11: 0.05352 | VB11: 0.05188 | VC11: 0.0472 | VD11: 0.05222 | VE11: 0.04802 | VF11: 0.05342 | VG11: 0.05593 | VH11: 0.05739 | VI11: 0.05263 | VJ11: 0.04891 | VK11: 0.04986 | VL11: 0.04824 | VM11: 0.04635 | VN11: 0.04661 | VO11: 0.04631 | VP11: 0.04963 | VQ11: 0.05412 | VR11: 0.05197 | VS11: 0.04781 | VT11: 0.04826 | VU11: 0.04546 | VV11: 0.04364 | VW11: 0.04666 | VX11: 0.0494 | VY11: 0.04999 | VZ11: 0.04929 | WA11: 0.05251 | WB11: 0.05505 | WC11: 0.064 | WD11: 0.06601 | WE11: 0.06749 | WF11: 0.06464 | WG11: 0.05753 | WH11: 0.05916 | WI11: 0.06263 | WJ11: 0.06295 | WK11: 0.06399 | WL11: 0.0626 | WM11: 0.05432 | WN11: 0.05542 | WO11: 0.05414 | WP11: 0.05622
A12: 11 | B12: 0.0013 | C12: 0.0014 | D12: 0.00214 | E12: 0.0009 | F12: 0.00332 | G12: 0.00219 | H12: 0.00291 | I12: 0.00255 | J12: 0.00172 | K12: 0.0001 | L12: 0.0001 | M12: 0.0001 | N12: 0.00023 | O12: 0.0032 | P12: 0.00249 | Q12: 0.00452 | R12: 0.00309 | S12: 0.00358 | T12: 0.00242 | U12: 0.0021 | V12: 0.00053 | W12: 0.00036 | X12: 0.0001 | Y12: 0.0001 | Z12: 0.0001 | AA12: 0.0001 | AB12: 0.0001 | AC12: 0.0001 | AD12: 0.0001 | AE12: 0.0001 | AF12: 0.00116 | AG12: 0.0001 | AH12: 0.00095 | AI12: 0.00031 | AJ12: 0.00147 | AK12: 0.00031 | AL12: 0.00182 | AM12: 0.00328 | AN12: 0.00674 | AO12: 0.00694 | AP12: 0.00786 | AQ12: 0.01116 | AR12: 0.01182 | AS12: 0.0134 | AT12: 0.01229 | AU12: 0.0113 | AV12: 0.01305 | AW12: 0.01758 | AX12: 0.01523 | AY12: 0.01462 | AZ12: 0.01424 | BA12: 0.01513 | BB12: 0.01157 | BC12: 0.01078 | BD12: 0.01 | BE12: 0.00567 | BF12: 0.00642 | BG12: 0.00229 | BH12: 0.00444 | BI12: 0.00715 | BJ12: 0.00776 | BK12: 0.00687 | BL12: 0.0121 | BM12: 0.01409 | BN12: 0.01513 | BO12: 0.01443 | BP12: 0.01351 | BQ12: 0.01398 | BR12: 0.01233 | BS12: 0.01621 | BT12: 0.01844 | BU12: 0.01781 | BV12: 0.01833 | BW12: 0.01689 | BX12: 0.01571 | BY12: 0.01817 | BZ12: 0.02104 | CA12: 0.02124 | CB12: 0.02226 | CC12: 0.02171 | CD12: 0.01776 | CE12: 0.0192 | CF12: 0.02023 | CG12: 0.02249 | CH12: 0.02011 | CI12: 0.0203 | CJ12: 0.02144 | CK12: 0.02042 | CL12: 0.01934 | CM12: 0.01836 | CN12: 0.01741 | CO12: 0.01772 | CP12: 0.01858 | CQ12: 0.01764 | CR12: 0.01569 | CS12: 0.01551 | CT12: 0.0163 | CU12: 0.01502 | CV12: 0.01602 | CW12: 0.01706 | CX12: 0.01584 | CY12: 0.01626 | CZ12: 0.0147 | DA12: 0.01341 | DB12: 0.01419 | DC12: 0.01473 | DD12: 0.01296 | DE12: 0.01224 | DF12: 0.01109 | DG12: 0.01112 | DH12: 0.01134 | DI12: 0.01037 | DJ12: 0.01063 | DK12: 0.00997 | DL12: 0.00816 | DM12: 0.00915 | DN12: 0.0088 | DO12: 0.00961 | DP12: 0.01125 | DQ12: 0.01154 | DR12: 0.01221 | DS12: 0.01416 | DT12: 0.01577 | DU12: 0.01508 | DV12: 0.01663 | DW12: 0.01716 | DX12: 0.01783 | DY12: 0.01978 | DZ12: 0.02017 | EA12: 0.02011 | EB12: 0.02037 | EC12: 0.02122 | ED12: 0.02305 | EE12: 0.02406 | EF12: 0.02618 | EG12: 0.02328 | EH12: 0.02123 | EI12: 0.02112 | EJ12: 0.02017 | EK12: 0.01859 | EL12: 0.02074 | EM12: 0.01931 | EN12: 0.02245 | EO12: 0.02111 | EP12: 0.02308 | EQ12: 0.02549 | ER12: 0.02625 | ES12: 0.02386 | ET12: 0.02411 | EU12: 0.02514 | EV12: 0.02455 | EW12: 0.02462 | EX12: 0.02536 | EY12: 0.02382 | EZ12: 0.02378 | FA12: 0.02289 | FB12: 0.02061 | FC12: 0.02048 | FD12: 0.02056 | FE12: 0.02102 | FF12: 0.01857 | FG12: 0.01973 | FH12: 0.02014 | FI12: 0.0211 | FJ12: 0.0224 | FK12: 0.02138 | FL12: 0.02426 | FM12: 0.02574 | FN12: 0.02829 | FO12: 0.03157 | FP12: 0.02904 | FQ12: 0.02993 | FR12: 0.03037 | FS12: 0.03125 | FT12: 0.03264 | FU12: 0.03563 | FV12: 0.03175 | FW12: 0.03188 | FX12: 0.03255 | FY12: 0.03055 | FZ12: 0.03148 | GA12: 0.03069 | GB12: 0.0293 | GC12: 0.02783 | GD12: 0.02542 | GE12: 0.02521 | GF12: 0.02253 | GG12: 0.02081 | GH12: 0.01852 | GI12: 0.01789 | GJ12: 0.02376 | GK12: 0.02438 | GL12: 0.02365 | GM12: 0.02367 | GN12: 0.02413 | GO12: 0.02417 | GP12: 0.02452 | GQ12: 0.02775 | GR12: 0.02259 | GS12: 0.02199 | GT12: 0.02022 | GU12: 0.02178 | GV12: 0.02129 | GW12: 0.02447 | GX12: 0.02955 | GY12: 0.02701 | GZ12: 0.02935 | HA12: 0.02866 | HB12: 0.03262 | HC12: 0.03221 | HD12: 0.0306 | HE12: 0.0331 | HF12: 0.03571 | HG12: 0.03352 | HH12: 0.03661 | HI12: 0.03492 | HJ12: 0.03598 | HK12: 0.034 | HL12: 0.03446 | HM12: 0.03819 | HN12: 0.03999 | HO12: 0.03876 | HP12: 0.03806 | HQ12: 0.04015 | HR12: 0.04304 | HS12: 0.04417 | HT12: 0.0414 | HU12: 0.04386 | HV12: 0.04285 | HW12: 0.03877 | HX12: 0.03875 | HY12: 0.03656 | HZ12: 0.0347 | IA12: 0.03636 | IB12: 0.04213 | IC12: 0.04673 | ID12: 0.04817 | IE12: 0.05079 | IF12: 0.05554 | IG12: 0.0553 | IH12: 0.05528 | II12: 0.05106 | IJ12: 0.05392 | IK12: 0.05462 | IL12: 0.05879 | IM12: 0.05857 | IN12: 0.0565 | IO12: 0.05227 | IP12: 0.04966 | IQ12: 0.04938 | IR12: 0.05051 | IS12: 0.05299 | IT12: 0.0518 | IU12: 0.0543 | IV12: 0.05138 | IW12: 0.04808 | IX12: 0.04751 | IY12: 0.04775 | IZ12: 0.04135 | JA12: 0.03945 | JB12: 0.04002 | JC12: 0.038 | JD12: 0.03438 | JE12: 0.03475 | JF12: 0.03427 | JG12: 0.03097 | JH12: 0.02967 | JI12: 0.02674 | JJ12: 0.02567 | JK12: 0.02749 | JL12: 0.02814 | JM12: 0.03106 | JN12: 0.03323 | JO12: 0.03075 | JP12: 0.03537 | JQ12: 0.03703 | JR12: 0.03269 | JS12: 0.03552 | JT12: 0.03376 | JU12: 0.03148 | JV12: 0.03493 | JW12: 0.03605 | JX12: 0.037 | JY12: 0.03555 | JZ12: 0.03278 | KA12: 0.03448 | KB12: 0.03857 | KC12: 0.03085 | KD12: 0.03095 | KE12: 0.0354 | KF12: 0.02664 | KG12: 0.0241 | KH12: 0.0264 | KI12: 0.02235 | KJ12: 0.02369 | KK12: 0.02107 | KL12: 0.02229 | KM12: 0.021 | KN12: 0.01513 | KO12: 0.01789 | KP12: 0.02157 | KQ12: 0.0176 | KR12: 0.01748 | KS12: 0.01703 | KT12: 0.01537 | KU12: 0.01947 | KV12: 0.01649 | KW12: 0.02007 | KX12: 0.01767 | KY12: 0.0157 | KZ12: 0.01255 | LA12: 0.01162 | LB12: 0.01475 | LC12: 0.01089 | LD12: 0.01441 | LE12: 0.00955 | LF12: 0.01219 | LG12: 0.01111 | LH12: 0.01142 | LI12: 0.00921 | LJ12: 0.00934 | LK12: 0.01121 | LL12: 0.01183 | LM12: 0.01187 | LN12: 0.01196 | LO12: 0.01416 | LP12: 0.01301 | LQ12: 0.00884 | LR12: 0.01209 | LS12: 0.01276 | LT12: 0.01007 | LU12: 0.01263 | LV12: 0.0146 | LW12: 0.01414 | LX12: 0.01455 | LY12: 0.02003 | LZ12: 0.02226 | MA12: 0.02582 | MB12: 0.02137 | MC12: 0.02817 | MD12: 0.0237 | ME12: 0.02367 | MF12: 0.02424 | MG12: 0.02275 | MH12: 0.02056 | MI12: 0.02276 | MJ12: 0.02188 | MK12: 0.01855 | ML12: 0.01786 | MM12: 0.01601 | MN12: 0.01658 | MO12: 0.01762 | MP12: 0.01738 | MQ12: 0.01702 | MR12: 0.01617 | MS12: 0.0149 | MT12: 0.01441 | MU12: 0.01236 | MV12: 0.01036 | MW12: 0.00845 | MX12: 0.00732 | MY12: 0.00704 | MZ12: 0.00757 | NA12: 0.00884 | NB12: 0.01026 | NC12: 0.01022 | ND12: 0.01067 | NE12: 0.01197 | NF12: 0.01221 | NG12: 0.01481 | NH12: 0.01383 | NI12: 0.01431 | NJ12: 0.01402 | NK12: 0.01277 | NL12: 0.01337 | NM12: 0.01567 | NN12: 0.01658 | NO12: 0.01771 | NP12: 0.01833 | NQ12: 0.01731 | NR12: 0.01649 | NS12: 0.01706 | NT12: 0.01672 | NU12: 0.01715 | NV12: 0.01674 | NW12: 0.01774 | NX12: 0.01636 | NY12: 0.01642 | NZ12: 0.01452 | OA12: 0.0151 | OB12: 0.01818 | OC12: 0.01895 | OD12: 0.01607 | OE12: 0.01522 | OF12: 0.01573 | OG12: 0.01573 | OH12: 0.01541 | OI12: 0.01305 | OJ12: 0.01662 | OK12: 0.01673 | OL12: 0.01509 | OM12: 0.01542 | ON12: 0.01521 | OO12: 0.01506 | OP12: 0.01476 | OQ12: 0.01484 | OR12: 0.01599 | OS12: 0.01586 | OT12: 0.01754 | OU12: 0.01711 | OV12: 0.01761 | OW12: 0.01751 | OX12: 0.01673 | OY12: 0.01957 | OZ12: 0.01901 | PA12: 0.01993 | PB12: 0.01858 | PC12: 0.02077 | PD12: 0.02225 | PE12: 0.02007 | PF12: 0.01951 | PG12: 0.01771 | PH12: 0.01667 | PI12: 0.01562 | PJ12: 0.01553 | PK12: 0.01628 | PL12: 0.01841 | PM12: 0.01594 | PN12: 0.01788 | PO12: 0.01736 | PP12: 0.01788 | PQ12: 0.01744 | PR12: 0.01759 | PS12: 0.01749 | PT12: 0.01698 | PU12: 0.01678 | PV12: 0.01691 | PW12: 0.01665 | PX12: 0.01449 | PY12: 0.01336 | PZ12: 0.01288 | QA12: 0.01333 | QB12: 0.013 | QC12: 0.01162 | QD12: 0.01128 | QE12: 0.01213 | QF12: 0.01099 | QG12: 0.01054 | QH12: 0.01076 | QI12: 0.01022 | QJ12: 0.0103 | QK12: 0.0112 | QL12: 0.0118 | QM12: 0.01167 | QN12: 0.01358 | QO12: 0.01255 | QP12: 0.01277 | QQ12: 0.01308 | QR12: 0.0143 | QS12: 0.01315 | QT12: 0.01376 | QU12: 0.01469 | QV12: 0.01573 | QW12: 0.01564 | QX12: 0.01626 | QY12: 0.0163 | QZ12: 0.0151 | RA12: 0.01472 | RB12: 0.01414 | RC12: 0.01361 | RD12: 0.01502 | RE12: 0.01609 | RF12: 0.01795 | RG12: 0.01659 | RH12: 0.01534 | RI12: 0.01368 | RJ12: 0.01374 | RK12: 0.01132 | RL12: 0.01167 | RM12: 0.01238 | RN12: 0.01227 | RO12: 0.01266 | RP12: 0.01459 | RQ12: 0.01542 | RR12: 0.01535 | RS12: 0.01628 | RT12: 0.01664 | RU12: 0.01568 | RV12: 0.01469 | RW12: 0.01509 | RX12: 0.01398 | RY12: 0.01323 | RZ12: 0.0128 | SA12: 0.01474 | SB12: 0.01487 | SC12: 0.0163 | SD12: 0.01685 | SE12: 0.01688 | SF12: 0.01684 | SG12: 0.01975 | SH12: 0.01949 | SI12: 0.01914 | SJ12: 0.02027 | SK12: 0.02203 | SL12: 0.02246 | SM12: 0.02103 | SN12: 0.02384 | SO12: 0.02221 | SP12: 0.02486 | SQ12: 0.02374 | SR12: 0.0263 | SS12: 0.02634 | ST12: 0.02546 | SU12: 0.02605 | SV12: 0.02338 | SW12: 0.02263 | SX12: 0.02437 | SY12: 0.02522 | SZ12: 0.02482 | TA12: 0.02578 | TB12: 0.02676 | TC12: 0.02711 | TD12: 0.02683 | TE12: 0.02703 | TF12: 0.03015 | TG12: 0.02472 | TH12: 0.02621 | TI12: 0.02496 | TJ12: 0.02663 | TK12: 0.02422 | TL12: 0.02667 | TM12: 0.02773 | TN12: 0.02676 | TO12: 0.02717 | TP12: 0.02552 | TQ12: 0.02705 | TR12: 0.02777 | TS12: 0.02545 | TT12: 0.02214 | TU12: 0.02122 | TV12: 0.02195 | TW12: 0.02141 | TX12: 0.02203 | TY12: 0.02022 | TZ12: 0.02136 | UA12: 0.02212 | UB12: 0.02178 | UC12: 0.02056 | UD12: 0.01919 | UE12: 0.02033 | UF12: 0.01813 | UG12: 0.01615 | UH12: 0.01571 | UI12: 0.01428 | UJ12: 0.0166 | UK12: 0.01714 | UL12: 0.01582 | UM12: 0.01453 | UN12: 0.01118 | UO12: 0.00984 | UP12: 0.01008 | UQ12: 0.01112 | UR12: 0.01083 | US12: 0.01017 | UT12: 0.00917 | UU12: 0.00745 | UV12: 0.00585 | UW12: 0.00739 | UX12: 0.00663 | UY12: 0.00903 | UZ12: 0.01101 | VA12: 0.01012 | VB12: 0.01017 | VC12: 0.01046 | VD12: 0.0126 | VE12: 0.01407 | VF12: 0.01453 | VG12: 0.01552 | VH12: 0.01862 | VI12: 0.01958 | VJ12: 0.01926 | VK12: 0.0195 | VL12: 0.02137 | VM12: 0.02551 | VN12: 0.02792 | VO12: 0.02732 | VP12: 0.02567 | VQ12: 0.0271 | VR12: 0.02551 | VS12: 0.02699 | VT12: 0.02876 | VU12: 0.03201 | VV12: 0.02938 | VW12: 0.03121 | VX12: 0.03695 | VY12: 0.03708 | VZ12: 0.03239 | WA12: 0.02981 | WB12: 0.0283 | WC12: 0.0296 | WD12: 0.03316 | WE12: 0.03476 | WF12: 0.0335 | WG12: 0.03351 | WH12: 0.03045 | WI12: 0.0309 | WJ12: 0.03054 | WK12: 0.03288 | WL12: 0.036 | WM12: 0.03816 | WN12: 0.03849 | WO12: 0.03977 | WP12: 0.03851
A13: 12 | B13: 0.0013 | C13: 0.00419 | D13: 0.00787 | E13: 0.00897 | F13: 0.00894 | G13: 0.0102 | H13: 0.01077 | I13: 0.00978 | J13: 0.01015 | K13: 0.00719 | L13: 0.01198 | M13: 0.0151 | N13: 0.01493 | O13: 0.0131 | P13: 0.01272 | Q13: 0.01341 | R13: 0.01344 | S13: 0.01341 | T13: 0.01645 | U13: 0.01246 | V13: 0.01208 | W13: 0.01608 | X13: 0.0157 | Y13: 0.01318 | Z13: 0.01678 | AA13: 0.01625 | AB13: 0.0117 | AC13: 0.0131 | AD13: 0.00945 | AE13: 0.01178 | AF13: 0.01078 | AG13: 0.00897 | AH13: 0.0151 | AI13: 0.01599 | AJ13: 0.01283 | AK13: 0.01647 | AL13: 0.02045 | AM13: 0.02251 | AN13: 0.02498 | AO13: 0.02818 | AP13: 0.03106 | AQ13: 0.03051 | AR13: 0.03029 | AS13: 0.0326 | AT13: 0.03584 | AU13: 0.03998 | AV13: 0.04067 | AW13: 0.03766 | AX13: 0.03585 | AY13: 0.03018 | AZ13: 0.02906 | BA13: 0.02838 | BB13: 0.02901 | BC13: 0.03026 | BD13: 0.03057 | BE13: 0.03055 | BF13: 0.03446 | BG13: 0.03485 | BH13: 0.03721 | BI13: 0.03438 | BJ13: 0.03075 | BK13: 0.03222 | BL13: 0.03319 | BM13: 0.03208 | BN13: 0.03359 | BO13: 0.03157 | BP13: 0.03227 | BQ13: 0.02959 | BR13: 0.03081 | BS13: 0.03167 | BT13: 0.0305 | BU13: 0.03339 | BV13: 0.03348 | BW13: 0.0322 | BX13: 0.03034 | BY13: 0.03168 | BZ13: 0.03022 | CA13: 0.02862 | CB13: 0.02564 | CC13: 0.02875 | CD13: 0.03401 | CE13: 0.03671 | CF13: 0.04097 | CG13: 0.04506 | CH13: 0.04679 | CI13: 0.05101 | CJ13: 0.05555 | CK13: 0.04897 | CL13: 0.04963 | CM13: 0.0471 | CN13: 0.04904 | CO13: 0.05348 | CP13: 0.05501 | CQ13: 0.05649 | CR13: 0.05159 | CS13: 0.0498 | CT13: 0.04899 | CU13: 0.05456 | CV13: 0.04848 | CW13: 0.04642 | CX13: 0.04096 | CY13: 0.03715 | CZ13: 0.03636 | DA13: 0.04424 | DB13: 0.04249 | DC13: 0.04229 | DD13: 0.03663 | DE13: 0.03409 | DF13: 0.03039 | DG13: 0.03177 | DH13: 0.02902 | DI13: 0.02454 | DJ13: 0.02439 | DK13: 0.02051 | DL13: 0.02261 | DM13: 0.01921 | DN13: 0.01943 | DO13: 0.01426 | DP13: 0.01527 | DQ13: 0.01785 | DR13: 0.01648 | DS13: 0.01663 | DT13: 0.01878 | DU13: 0.01745 | DV13: 0.02087 | DW13: 0.02124 | DX13: 0.01911 | DY13: 0.01522 | DZ13: 0.01446 | EA13: 0.01835 | EB13: 0.0139 | EC13: 0.01396 | ED13: 0.01377 | EE13: 0.01591 | EF13: 0.01541 | EG13: 0.01908 | EH13: 0.02146 | EI13: 0.02103 | EJ13: 0.02052 | EK13: 0.02188 | EL13: 0.02424 | EM13: 0.02585 | EN13: 0.02644 | EO13: 0.0281 | EP13: 0.02711 | EQ13: 0.02575 | ER13: 0.024 | ES13: 0.02392 | ET13: 0.02514 | EU13: 0.02887 | EV13: 0.0267 | EW13: 0.0261 | EX13: 0.02826 | EY13: 0.0261 | EZ13: 0.02014 | FA13: 0.01974 | FB13: 0.02036 | FC13: 0.02129 | FD13: 0.02596 | FE13: 0.03206 | FF13: 0.03096 | FG13: 0.03271 | FH13: 0.03866 | FI13: 0.04334 | FJ13: 0.04063 | FK13: 0.04186 | FL13: 0.04675 | FM13: 0.04893 | FN13: 0.04896 | FO13: 0.04696 | FP13: 0.04681 | FQ13: 0.04621 | FR13: 0.04696 | FS13: 0.04621 | FT13: 0.04842 | FU13: 0.04969 | FV13: 0.048 | FW13: 0.04555 | FX13: 0.03954 | FY13: 0.03853 | FZ13: 0.03394 | GA13: 0.03398 | GB13: 0.03401 | GC13: 0.0356 | GD13: 0.03641 | GE13: 0.03692 | GF13: 0.03817 | GG13: 0.0351 | GH13: 0.03721 | GI13: 0.03437 | GJ13: 0.03257 | GK13: 0.03209 | GL13: 0.02943 | GM13: 0.02971 | GN13: 0.02812 | GO13: 0.02887 | GP13: 0.03077 | GQ13: 0.03095 | GR13: 0.02997 | GS13: 0.02716 | GT13: 0.02628 | GU13: 0.02871 | GV13: 0.02728 | GW13: 0.02539 | GX13: 0.02307 | GY13: 0.02335 | GZ13: 0.02393 | HA13: 0.02235 | HB13: 0.02371 | HC13: 0.02814 | HD13: 0.02976 | HE13: 0.03113 | HF13: 0.03289 | HG13: 0.03133 | HH13: 0.03255 | HI13: 0.03143 | HJ13: 0.03417 | HK13: 0.03477 | HL13: 0.0381 | HM13: 0.03862 | HN13: 0.04226 | HO13: 0.04101 | HP13: 0.04176 | HQ13: 0.04086 | HR13: 0.03779 | HS13: 0.03803 | HT13: 0.03767 | HU13: 0.03855 | HV13: 0.03876 | HW13: 0.03892 | HX13: 0.04225 | HY13: 0.04144 | HZ13: 0.0428 | IA13: 0.04296 | IB13: 0.0448 | IC13: 0.04292 | ID13: 0.04373 | IE13: 0.04635 | IF13: 0.04612 | IG13: 0.04149 | IH13: 0.04214 | II13: 0.04477 | IJ13: 0.04251 | IK13: 0.04201 | IL13: 0.04265 | IM13: 0.03962 | IN13: 0.04084 | IO13: 0.04065 | IP13: 0.03813 | IQ13: 0.03974 | IR13: 0.03574 | IS13: 0.03433 | IT13: 0.03348 | IU13: 0.03183 | IV13: 0.03065 | IW13: 0.03318 | IX13: 0.03028 | IY13: 0.0304 | IZ13: 0.03367 | JA13: 0.03283 | JB13: 0.03114 | JC13: 0.03385 | JD13: 0.03655 | JE13: 0.03667 | JF13: 0.03623 | JG13: 0.03682 | JH13: 0.03996 | JI13: 0.04114 | JJ13: 0.04267 | JK13: 0.04366 | JL13: 0.04248 | JM13: 0.04417 | JN13: 0.04237 | JO13: 0.0423 | JP13: 0.04539 | JQ13: 0.04589 | JR13: 0.05031 | JS13: 0.051 | JT13: 0.04698 | JU13: 0.04732 | JV13: 0.04731 | JW13: 0.05067 | JX13: 0.04777 | JY13: 0.0496 | JZ13: 0.04949 | KA13: 0.04439 | KB13: 0.04574 | KC13: 0.04253 | KD13: 0.04076 | KE13: 0.03847 | KF13: 0.03503 | KG13: 0.03547 | KH13: 0.03558 | KI13: 0.03459 | KJ13: 0.03462 | KK13: 0.0327 | KL13: 0.03455 | KM13: 0.03087 | KN13: 0.03558 | KO13: 0.03833 | KP13: 0.02928 | KQ13: 0.02974 | KR13: 0.0285 | KS13: 0.0316 | KT13: 0.0314 | KU13: 0.02825 | KV13: 0.03095 | KW13: 0.03055 | KX13: 0.02998 | KY13: 0.028 | KZ13: 0.02828 | LA13: 0.02615 | LB13: 0.02408 | LC13: 0.02673 | LD13: 0.0287 | LE13: 0.03147 | LF13: 0.03356 | LG13: 0.03789 | LH13: 0.03765 | LI13: 0.03692 | LJ13: 0.03772 | LK13: 0.03514 | LL13: 0.03755 | LM13: 0.03681 | LN13: 0.0339 | LO13: 0.03504 | LP13: 0.03507 | LQ13: 0.03602 | LR13: 0.03264 | LS13: 0.02908 | LT13: 0.02957 | LU13: 0.03057 | LV13: 0.03533 | LW13: 0.03429 | LX13: 0.0337 | LY13: 0.03445 | LZ13: 0.03597 | MA13: 0.0385 | MB13: 0.03633 | MC13: 0.03251 | MD13: 0.03612 | ME13: 0.0413 | MF13: 0.03815 | MG13: 0.03736 | MH13: 0.03736 | MI13: 0.03539 | MJ13: 0.0318 | MK13: 0.0319 | ML13: 0.03133 | MM13: 0.02699 | MN13: 0.0251 | MO13: 0.02592 | MP13: 0.02683 | MQ13: 0.02812 | MR13: 0.03033 | MS13: 0.02874 | MT13: 0.03216 | MU13: 0.03359 | MV13: 0.0292 | MW13: 0.02632 | MX13: 0.03132 | MY13: 0.02412 | MZ13: 0.02925 | NA13: 0.03139 | NB13: 0.03096 | NC13: 0.03047 | ND13: 0.03222 | NE13: 0.03408 | NF13: 0.03818 | NG13: 0.03385 | NH13: 0.03727 | NI13: 0.04147 | NJ13: 0.04064 | NK13: 0.04258 | NL13: 0.04156 | NM13: 0.04459 | NN13: 0.044 | NO13: 0.04504 | NP13: 0.04534 | NQ13: 0.05091 | NR13: 0.04444 | NS13: 0.04689 | NT13: 0.0424 | NU13: 0.04547 | NV13: 0.05429 | NW13: 0.05705 | NX13: 0.06551 | NY13: 0.05731 | NZ13: 0.05904 | OA13: 0.05907 | OB13: 0.06517 | OC13: 0.06507 | OD13: 0.06785 | OE13: 0.06701 | OF13: 0.07573 | OG13: 0.08333 | OH13: 0.08324 | OI13: 0.09179 | OJ13: 0.09536 | OK13: 0.08902 | OL13: 0.09718 | OM13: 0.10758 | ON13: 0.11955 | OO13: 0.13399 | OP13: 0.14368 | OQ13: 0.12799 | OR13: 0.12225 | OS13: 0.10466 | OT13: 0.09757 | OU13: 0.08338 | OV13: 0.09218 | OW13: 0.10774 | OX13: 0.11362 | OY13: 0.12148 | OZ13: 0.12417 | PA13: 0.1265 | PB13: 0.13799 | PC13: 0.13574 | PD13: 0.14169 | PE13: 0.13466 | PF13: 0.11256 | PG13: 0.11606 | PH13: 0.12459 | PI13: 0.12059 | PJ13: 0.12575 | PK13: 0.15058 | PL13: 0.17183 | PM13: 0.18155 | PN13: 0.19172 | PO13: 0.21266 | PP13: 0.18522 | PQ13: 0.19169 | PR13: 0.18647 | PS13: 0.1778 | PT13: 0.18136 | PU13: 0.19683 | PV13: 0.2123 | PW13: 0.21964 | PX13: 0.20267 | PY13: 0.22268 | PZ13: 0.23203 | QA13: 0.22135 | QB13: 0.21071 | QC13: 0.22468 | QD13: 0.21694 | QE13: 0.18541 | QF13: 0.17603 | QG13: 0.18025 | QH13: 0.19008 | QI13: 0.18503 | QJ13: 0.19256 | QK13: 0.19675 | QL13: 0.17302 | QM13: 0.17693 | QN13: 0.17511 | QO13: 0.16115 | QP13: 0.16777 | QQ13: 0.18661 | QR13: 0.17386 | QS13: 0.18259 | QT13: 0.20077 | QU13: 0.18298 | QV13: 0.16514 | QW13: 0.15772 | QX13: 0.14878 | QY13: 0.14486 | QZ13: 0.16022 | RA13: 0.16266 | RB13: 0.15739 | RC13: 0.17085 | RD13: 0.17947 | RE13: 0.18575 | RF13: 0.18397 | RG13: 0.18502 | RH13: 0.17834 | RI13: 0.18518 | RJ13: 0.19473 | RK13: 0.19175 | RL13: 0.18997 | RM13: 0.1771 | RN13: 0.16842 | RO13: 0.16753 | RP13: 0.17471 | RQ13: 0.17298 | RR13: 0.17645 | RS13: 0.16653 | RT13: 0.17262 | RU13: 0.19026 | RV13: 0.19726 | RW13: 0.19648 | RX13: 0.19132 | RY13: 0.18716 | RZ13: 0.17263 | SA13: 0.17391 | SB13: 0.17013 | SC13: 0.17138 | SD13: 0.16966 | SE13: 0.17552 | SF13: 0.16929 | SG13: 0.17038 | SH13: 0.18109 | SI13: 0.17737 | SJ13: 0.18025 | SK13: 0.18644 | SL13: 0.17552 | SM13: 0.17434 | SN13: 0.17074 | SO13: 0.18207 | SP13: 0.18293 | SQ13: 0.1888 | SR13: 0.17904 | SS13: 0.17624 | ST13: 0.16596 | SU13: 0.16782 | SV13: 0.17004 | SW13: 0.1699 | SX13: 0.1581 | SY13: 0.16096 | SZ13: 0.16037 | TA13: 0.15573 | TB13: 0.16406 | TC13: 0.1489 | TD13: 0.16689 | TE13: 0.16308 | TF13: 0.16546 | TG13: 0.17561 | TH13: 0.17614 | TI13: 0.18006 | TJ13: 0.17877 | TK13: 0.17742 | TL13: 0.19289 | TM13: 0.19566 | TN13: 0.17108 | TO13: 0.15824 | TP13: 0.1443 | TQ13: 0.14695 | TR13: 0.14678 | TS13: 0.15898 | TT13: 0.14236 | TU13: 0.15225 | TV13: 0.16281 | TW13: 0.15166 | TX13: 0.14429 | TY13: 0.15163 | TZ13: 0.16816 | UA13: 0.17045 | UB13: 0.17479 | UC13: 0.17493 | UD13: 0.18609 | UE13: 0.17595 | UF13: 0.16984 | UG13: 0.16352 | UH13: 0.16302 | UI13: 0.17073 | UJ13: 0.16939 | UK13: 0.17235 | UL13: 0.17733 | UM13: 0.17194 | UN13: 0.18406 | UO13: 0.17201 | UP13: 0.1586 | UQ13: 0.15264 | UR13: 0.15799 | US13: 0.1752 | UT13: 0.18192 | UU13: 0.18445 | UV13: 0.17841 | UW13: 0.19217 | UX13: 0.18196 | UY13: 0.18518 | UZ13: 0.1761 | VA13: 0.18168 | VB13: 0.18195 | VC13: 0.17221 | VD13: 0.18413 | VE13: 0.18389 | VF13: 0.18546 | VG13: 0.19726 | VH13: 0.18898 | VI13: 0.20153 | VJ13: 0.19543 | VK13: 0.19752 | VL13: 0.2055 | VM13: 0.19128 | VN13: 0.18874 | VO13: 0.18846 | VP13: 0.19012 | VQ13: 0.19737 | VR13: 0.1842 | VS13: 0.17284 | VT13: 0.1993 | VU13: 0.19929 | VV13: 0.20052 | VW13: 0.19688 | VX13: 0.19391 | VY13: 0.18415 | VZ13: 0.16914 | WA13: 0.17782 | WB13: 0.17648 | WC13: 0.19306 | WD13: 0.18597 | WE13: 0.16658 | WF13: 0.16279 | WG13: 0.1516 | WH13: 0.16184 | WI13: 0.16194 | WJ13: 0.15026 | WK13: 0.14606 | WL13: 0.15307 | WM13: 0.16486 | WN13: 0.16572 | WO13: 0.15352 | WP13: 0.16385
A14: 13 | B14: 0.0013 | C14: 0.0001 | D14: 0.0001 | E14: 0.00108 | F14: 0.0031 | G14: 0.00159 | H14: 0.00353 | I14: 0.00673 | J14: 0.00843 | K14: 0.01063 | L14: 0.01278 | M14: 0.01264 | N14: 0.01298 | O14: 0.01332 | P14: 0.01424 | Q14: 0.01439 | R14: 0.01375 | S14: 0.01488 | T14: 0.01489 | U14: 0.01356 | V14: 0.01274 | W14: 0.01109 | X14: 0.01104 | Y14: 0.01213 | Z14: 0.01262 | AA14: 0.00953 | AB14: 0.01138 | AC14: 0.01329 | AD14: 0.01086 | AE14: 0.01114 | AF14: 0.01152 | AG14: 0.01227 | AH14: 0.01131 | AI14: 0.01068 | AJ14: 0.00896 | AK14: 0.01098 | AL14: 0.00988 | AM14: 0.00976 | AN14: 0.00994 | AO14: 0.01367 | AP14: 0.01468 | AQ14: 0.01873 | AR14: 0.01875 | AS14: 0.01792 | AT14: 0.01717 | AU14: 0.01657 | AV14: 0.01369 | AW14: 0.01404 | AX14: 0.01402 | AY14: 0.01502 | AZ14: 0.01367 | BA14: 0.01389 | BB14: 0.01697 | BC14: 0.01556 | BD14: 0.01259 | BE14: 0.01158 | BF14: 0.01224 | BG14: 0.01081 | BH14: 0.01488 | BI14: 0.01677 | BJ14: 0.01857 | BK14: 0.01656 | BL14: 0.02047 | BM14: 0.01857 | BN14: 0.02011 | BO14: 0.0181 | BP14: 0.02019 | BQ14: 0.02017 | BR14: 0.01943 | BS14: 0.01639 | BT14: 0.02208 | BU14: 0.01978 | BV14: 0.02085 | BW14: 0.01994 | BX14: 0.02202 | BY14: 0.02151 | BZ14: 0.02376 | CA14: 0.02525 | CB14: 0.0235 | CC14: 0.02363 | CD14: 0.02234 | CE14: 0.02422 | CF14: 0.02365 | CG14: 0.02442 | CH14: 0.02473 | CI14: 0.02387 | CJ14: 0.02167 | CK14: 0.02115 | CL14: 0.02477 | CM14: 0.02464 | CN14: 0.02327 | CO14: 0.0226 | CP14: 0.02465 | CQ14: 0.02733 | CR14: 0.02676 | CS14: 0.02884 | CT14: 0.02719 | CU14: 0.0277 | CV14: 0.03044 | CW14: 0.02843 | CX14: 0.02756 | CY14: 0.02836 | CZ14: 0.02947 | DA14: 0.02969 | DB14: 0.03071 | DC14: 0.03033 | DD14: 0.03205 | DE14: 0.03228 | DF14: 0.03351 | DG14: 0.03516 | DH14: 0.03792 | DI14: 0.03576 | DJ14: 0.03548 | DK14: 0.03629 | DL14: 0.03616 | DM14: 0.03774 | DN14: 0.03906 | DO14: 0.0404 | DP14: 0.03362 | DQ14: 0.03695 | DR14: 0.03789 | DS14: 0.03649 | DT14: 0.03942 | DU14: 0.03508 | DV14: 0.03206 | DW14: 0.03326 | DX14: 0.03307 | DY14: 0.03499 | DZ14: 0.04059 | EA14: 0.03741 | EB14: 0.03697 | EC14: 0.03739 | ED14: 0.03757 | EE14: 0.03121 | EF14: 0.03258 | EG14: 0.03453 | EH14: 0.0339 | EI14: 0.03382 | EJ14: 0.03424 | EK14: 0.03758 | EL14: 0.03783 | EM14: 0.03828 | EN14: 0.0354 | EO14: 0.03312 | EP14: 0.03365 | EQ14: 0.03415 | ER14: 0.03519 | ES14: 0.03439 | ET14: 0.03749 | EU14: 0.03593 | EV14: 0.03622 | EW14: 0.03519 | EX14: 0.0357 | EY14: 0.03885 | EZ14: 0.04165 | FA14: 0.04273 | FB14: 0.04328 | FC14: 0.04632 | FD14: 0.04565 | FE14: 0.04637 | FF14: 0.0449 | FG14: 0.0437 | FH14: 0.04858 | FI14: 0.04772 | FJ14: 0.0495 | FK14: 0.05196 | FL14: 0.05498 | FM14: 0.05077 | FN14: 0.04931 | FO14: 0.04644 | FP14: 0.0423 | FQ14: 0.04152 | FR14: 0.0421 | FS14: 0.04266 | FT14: 0.04438 | FU14: 0.04398 | FV14: 0.04037 | FW14: 0.03894 | FX14: 0.04307 | FY14: 0.0434 | FZ14: 0.03966 | GA14: 0.04102 | GB14: 0.03889 | GC14: 0.04005 | GD14: 0.03945 | GE14: 0.04066 | GF14: 0.04269 | GG14: 0.0447 | GH14: 0.04665 | GI14: 0.0465 | GJ14: 0.04423 | GK14: 0.04315 | GL14: 0.04547 | GM14: 0.04439 | GN14: 0.04856 | GO14: 0.04487 | GP14: 0.04738 | GQ14: 0.04727 | GR14: 0.04484 | GS14: 0.04586 | GT14: 0.04674 | GU14: 0.0455 | GV14: 0.04444 | GW14: 0.04286 | GX14: 0.04294 | GY14: 0.03855 | GZ14: 0.03547 | HA14: 0.02914 | HB14: 0.03077 | HC14: 0.03149 | HD14: 0.02837 | HE14: 0.02738 | HF14: 0.02848 | HG14: 0.03114 | HH14: 0.03087 | HI14: 0.02993 | HJ14: 0.02951 | HK14: 0.03083 | HL14: 0.03064 | HM14: 0.03364 | HN14: 0.03316 | HO14: 0.03382 | HP14: 0.03142 | HQ14: 0.03109 | HR14: 0.03418 | HS14: 0.03141 | HT14: 0.03027 | HU14: 0.03312 | HV14: 0.03421 | HW14: 0.03469 | HX14: 0.03454 | HY14: 0.0329 | HZ14: 0.03414 | IA14: 0.03335 | IB14: 0.03284 | IC14: 0.03473 | ID14: 0.03586 | IE14: 0.03626 | IF14: 0.03475 | IG14: 0.03866 | IH14: 0.03801 | II14: 0.03481 | IJ14: 0.03274 | IK14: 0.03296 | IL14: 0.0264 | IM14: 0.03069 | IN14: 0.03204 | IO14: 0.03231 | IP14: 0.0351 | IQ14: 0.03547 | IR14: 0.03598 | IS14: 0.0342 | IT14: 0.03009 | IU14: 0.02968 | IV14: 0.03181 | IW14: 0.03238 | IX14: 0.03391 | IY14: 0.03667 | IZ14: 0.03403 | JA14: 0.03865 | JB14: 0.03638 | JC14: 0.03673 | JD14: 0.03775 | JE14: 0.03562 | JF14: 0.03528 | JG14: 0.03445 | JH14: 0.03334 | JI14: 0.03114 | JJ14: 0.03089 | JK14: 0.03436 | JL14: 0.03837 | JM14: 0.04061 | JN14: 0.04726 | JO14: 0.04553 | JP14: 0.04588 | JQ14: 0.04085 | JR14: 0.03956 | JS14: 0.0422 | JT14: 0.04433 | JU14: 0.03865 | JV14: 0.04376 | JW14: 0.0471 | JX14: 0.04964 | JY14: 0.051 | JZ14: 0.04577 | KA14: 0.0393 | KB14: 0.03975 | KC14: 0.03981 | KD14: 0.04476 | KE14: 0.0379 | KF14: 0.04436 | KG14: 0.04124 | KH14: 0.03726 | KI14: 0.03973 | KJ14: 0.03891 | KK14: 0.0475 | KL14: 0.05754 | KM14: 0.05938 | KN14: 0.05327 | KO14: 0.04072 | KP14: 0.04082 | KQ14: 0.03749 | KR14: 0.034 | KS14: 0.0319 | KT14: 0.03189 | KU14: 0.02754 | KV14: 0.02597 | KW14: 0.02832 | KX14: 0.02569 | KY14: 0.02733 | KZ14: 0.02512 | LA14: 0.02761 | LB14: 0.02763 | LC14: 0.02472 | LD14: 0.02652 | LE14: 0.02628 | LF14: 0.02781 | LG14: 0.02717 | LH14: 0.02645 | LI14: 0.02574 | LJ14: 0.02472 | LK14: 0.02689 | LL14: 0.02749 | LM14: 0.0233 | LN14: 0.02463 | LO14: 0.02885 | LP14: 0.02709 | LQ14: 0.03041 | LR14: 0.03152 | LS14: 0.02691 | LT14: 0.02811 | LU14: 0.02624 | LV14: 0.02632 | LW14: 0.02371 | LX14: 0.02424 | LY14: 0.02048 | LZ14: 0.02049 | MA14: 0.01766 | MB14: 0.01692 | MC14: 0.01925 | MD14: 0.01914 | ME14: 0.0217 | MF14: 0.02331 | MG14: 0.02337 | MH14: 0.02562 | MI14: 0.02935 | MJ14: 0.03067 | MK14: 0.03091 | ML14: 0.02737 | MM14: 0.0253 | MN14: 0.02305 | MO14: 0.02202 | MP14: 0.02239 | MQ14: 0.02309 | MR14: 0.02047 | MS14: 0.02216 | MT14: 0.02199 | MU14: 0.0236 | MV14: 0.02382 | MW14: 0.02509 | MX14: 0.02305 | MY14: 0.02548 | MZ14: 0.02339 | NA14: 0.02062 | NB14: 0.01919 | NC14: 0.02013 | ND14: 0.01974 | NE14: 0.01863 | NF14: 0.01821 | NG14: 0.0187 | NH14: 0.01717 | NI14: 0.01609 | NJ14: 0.01635 | NK14: 0.01724 | NL14: 0.01878 | NM14: 0.02196 | NN14: 0.01772 | NO14: 0.01887 | NP14: 0.02026 | NQ14: 0.01952 | NR14: 0.01986 | NS14: 0.02302 | NT14: 0.0242 | NU14: 0.02481 | NV14: 0.02517 | NW14: 0.02391 | NX14: 0.0222 | NY14: 0.02215 | NZ14: 0.02074 | OA14: 0.02163 | OB14: 0.02118 | OC14: 0.0219 | OD14: 0.02078 | OE14: 0.0191 | OF14: 0.01887 | OG14: 0.02063 | OH14: 0.01961 | OI14: 0.01915 | OJ14: 0.01925 | OK14: 0.02125 | OL14: 0.02305 | OM14: 0.02173 | ON14: 0.0216 | OO14: 0.022 | OP14: 0.02117 | OQ14: 0.02223 | OR14: 0.02117 | OS14: 0.01968 | OT14: 0.02132 | OU14: 0.02361 | OV14: 0.02567 | OW14: 0.02514 | OX14: 0.02245 | OY14: 0.02303 | OZ14: 0.02131 | PA14: 0.02139 | PB14: 0.02425 | PC14: 0.0238 | PD14: 0.02451 | PE14: 0.02202 | PF14: 0.02189 | PG14: 0.02346 | PH14: 0.0245 | PI14: 0.02482 | PJ14: 0.02597 | PK14: 0.02571 | PL14: 0.02497 | PM14: 0.02281 | PN14: 0.02084 | PO14: 0.0235 | PP14: 0.02308 | PQ14: 0.02704 | PR14: 0.02611 | PS14: 0.026 | PT14: 0.02625 | PU14: 0.02938 | PV14: 0.03146 | PW14: 0.03225 | PX14: 0.03456 | PY14: 0.03796 | PZ14: 0.03983 | QA14: 0.04056 | QB14: 0.04058 | QC14: 0.04186 | QD14: 0.03803 | QE14: 0.04032 | QF14: 0.04169 | QG14: 0.04793 | QH14: 0.04639 | QI14: 0.04259 | QJ14: 0.04495 | QK14: 0.0477 | QL14: 0.05217 | QM14: 0.05382 | QN14: 0.0558 | QO14: 0.05713 | QP14: 0.05908 | QQ14: 0.05732 | QR14: 0.05773 | QS14: 0.0536 | QT14: 0.06478 | QU14: 0.06881 | QV14: 0.07093 | QW14: 0.07323 | QX14: 0.06453 | QY14: 0.07021 | QZ14: 0.07487 | RA14: 0.06692 | RB14: 0.0589 | RC14: 0.05944 | RD14: 0.06708 | RE14: 0.06716 | RF14: 0.06009 | RG14: 0.06314 | RH14: 0.05573 | RI14: 0.0587 | RJ14: 0.05827 | RK14: 0.06265 | RL14: 0.06648 | RM14: 0.07139 | RN14: 0.06435 | RO14: 0.06395 | RP14: 0.06694 | RQ14: 0.07065 | RR14: 0.06995 | RS14: 0.07065 | RT14: 0.06995 | RU14: 0.07669 | RV14: 0.07698 | RW14: 0.07272 | RX14: 0.07129 | RY14: 0.06827 | RZ14: 0.06313 | SA14: 0.06265 | SB14: 0.06276 | SC14: 0.05895 | SD14: 0.05947 | SE14: 0.06191 | SF14: 0.05584 | SG14: 0.06099 | SH14: 0.06269 | SI14: 0.06279 | SJ14: 0.05567 | SK14: 0.05506 | SL14: 0.05544 | SM14: 0.05972 | SN14: 0.06108 | SO14: 0.06059 | SP14: 0.06446 | SQ14: 0.06362 | SR14: 0.06316 | SS14: 0.06491 | ST14: 0.0599 | SU14: 0.06197 | SV14: 0.06512 | SW14: 0.06491 | SX14: 0.06486 | SY14: 0.06239 | SZ14: 0.056 | TA14: 0.05584 | TB14: 0.05388 | TC14: 0.05212 | TD14: 0.04788 | TE14: 0.04465 | TF14: 0.04576 | TG14: 0.0476 | TH14: 0.05117 | TI14: 0.04845 | TJ14: 0.04681 | TK14: 0.0471 | TL14: 0.04586 | TM14: 0.04888 | TN14: 0.05065 | TO14: 0.05388 | TP14: 0.05918 | TQ14: 0.05264 | TR14: 0.05076 | TS14: 0.04636 | TT14: 0.047 | TU14: 0.04143 | TV14: 0.04566 | TW14: 0.0369 | TX14: 0.03321 | TY14: 0.02843 | TZ14: 0.02255 | UA14: 0.02062 | UB14: 0.02241 | UC14: 0.02121 | UD14: 0.01754 | UE14: 0.01889 | UF14: 0.02198 | UG14: 0.02245 | UH14: 0.02364 | UI14: 0.02424 | UJ14: 0.02452 | UK14: 0.02032 | UL14: 0.02282 | UM14: 0.0198 | UN14: 0.01875 | UO14: 0.01813 | UP14: 0.01696 | UQ14: 0.01821 | UR14: 0.01631 | US14: 0.01388 | UT14: 0.01387 | UU14: 0.01626 | UV14: 0.01543 | UW14: 0.01664 | UX14: 0.01795 | UY14: 0.02064 | UZ14: 0.0196 | VA14: 0.02165 | VB14: 0.02287 | VC14: 0.02679 | VD14: 0.02865 | VE14: 0.02306 | VF14: 0.0265 | VG14: 0.031 | VH14: 0.03467 | VI14: 0.03781 | VJ14: 0.03739 | VK14: 0.03567 | VL14: 0.03221 | VM14: 0.0298 | VN14: 0.03257 | VO14: 0.03641 | VP14: 0.03641 | VQ14: 0.03417 | VR14: 0.03161 | VS14: 0.03277 | VT14: 0.03905 | VU14: 0.03803 | VV14: 0.03156 | VW14: 0.02629 | VX14: 0.02786 | VY14: 0.03124 | VZ14: 0.03128 | WA14: 0.02979 | WB14: 0.03231 | WC14: 0.03301 | WD14: 0.03177 | WE14: 0.03228 | WF14: 0.03301 | WG14: 0.03269 | WH14: 0.03599 | WI14: 0.03317 | WJ14: 0.03353 | WK14: 0.03266 | WL14: 0.03059 | WM14: 0.02296 | WN14: 0.02449 | WO14: 0.03048 | WP14: 0.02523
A15: 14 | B15: 0.0013 | C15: 0.00261 | D15: 0.0054 | E15: 0.00545 | F15: 0.01043 | G15: 0.01365 | H15: 0.01244 | I15: 0.01504 | J15: 0.01912 | K15: 0.02072 | L15: 0.02488 | M15: 0.02592 | N15: 0.02775 | O15: 0.03035 | P15: 0.03146 | Q15: 0.03506 | R15: 0.03864 | S15: 0.03929 | T15: 0.03498 | U15: 0.03913 | V15: 0.04133 | W15: 0.03857 | X15: 0.03984 | Y15: 0.03963 | Z15: 0.04245 | AA15: 0.04547 | AB15: 0.04474 | AC15: 0.04464 | AD15: 0.04484 | AE15: 0.03996 | AF15: 0.04042 | AG15: 0.0354 | AH15: 0.04331 | AI15: 0.04473 | AJ15: 0.04516 | AK15: 0.04272 | AL15: 0.03567 | AM15: 0.03161 | AN15: 0.03707 | AO15: 0.03756 | AP15: 0.03868 | AQ15: 0.0374 | AR15: 0.04131 | AS15: 0.04086 | AT15: 0.04587 | AU15: 0.04803 | AV15: 0.05223 | AW15: 0.04899 | AX15: 0.04828 | AY15: 0.04684 | AZ15: 0.04484 | BA15: 0.04179 | BB15: 0.04602 | BC15: 0.05095 | BD15: 0.04713 | BE15: 0.0452 | BF15: 0.04763 | BG15: 0.04668 | BH15: 0.04652 | BI15: 0.05456 | BJ15: 0.05305 | BK15: 0.05155 | BL15: 0.06131 | BM15: 0.06315 | BN15: 0.062 | BO15: 0.05966 | BP15: 0.06375 | BQ15: 0.06488 | BR15: 0.06261 | BS15: 0.06309 | BT15: 0.06961 | BU15: 0.07404 | BV15: 0.08158 | BW15: 0.07795 | BX15: 0.08302 | BY15: 0.0876 | BZ15: 0.07759 | CA15: 0.07526 | CB15: 0.07873 | CC15: 0.07915 | CD15: 0.08449 | CE15: 0.0865 | CF15: 0.0842 | CG15: 0.08173 | CH15: 0.07917 | CI15: 0.07728 | CJ15: 0.07736 | CK15: 0.07843 | CL15: 0.07629 | CM15: 0.08146 | CN15: 0.08006 | CO15: 0.07795 | CP15: 0.08233 | CQ15: 0.08305 | CR15: 0.07988 | CS15: 0.07552 | CT15: 0.07503 | CU15: 0.07652 | CV15: 0.07322 | CW15: 0.0715 | CX15: 0.07212 | CY15: 0.0692 | CZ15: 0.06405 | DA15: 0.06405 | DB15: 0.05982 | DC15: 0.06608 | DD15: 0.07349 | DE15: 0.07871 | DF15: 0.07625 | DG15: 0.07507 | DH15: 0.07738 | DI15: 0.07954 | DJ15: 0.075 | DK15: 0.07806 | DL15: 0.07298 | DM15: 0.06551 | DN15: 0.06151 | DO15: 0.05904 | DP15: 0.05565 | DQ15: 0.05634 | DR15: 0.05331 | DS15: 0.04892 | DT15: 0.0437 | DU15: 0.04306 | DV15: 0.04859 | DW15: 0.0482 | DX15: 0.04434 | DY15: 0.0446 | DZ15: 0.04546 | EA15: 0.04699 | EB15: 0.0436 | EC15: 0.04243 | ED15: 0.04876 | EE15: 0.05935 | EF15: 0.05381 | EG15: 0.04731 | EH15: 0.04863 | EI15: 0.04466 | EJ15: 0.04236 | EK15: 0.04216 | EL15: 0.03839 | EM15: 0.04644 | EN15: 0.04462 | EO15: 0.04102 | EP15: 0.04318 | EQ15: 0.03931 | ER15: 0.03748 | ES15: 0.04358 | ET15: 0.04394 | EU15: 0.04343 | EV15: 0.04655 | EW15: 0.04529 | EX15: 0.04124 | EY15: 0.0396 | EZ15: 0.04083 | FA15: 0.03573 | FB15: 0.03579 | FC15: 0.03796 | FD15: 0.03838 | FE15: 0.03408 | FF15: 0.03454 | FG15: 0.03323 | FH15: 0.03097 | FI15: 0.02853 | FJ15: 0.03294 | FK15: 0.03054 | FL15: 0.03249 | FM15: 0.0352 | FN15: 0.03805 | FO15: 0.04183 | FP15: 0.0384 | FQ15: 0.04245 | FR15: 0.04514 | FS15: 0.03988 | FT15: 0.04258 | FU15: 0.04444 | FV15: 0.03966 | FW15: 0.04139 | FX15: 0.04214 | FY15: 0.04976 | FZ15: 0.05351 | GA15: 0.05442 | GB15: 0.06117 | GC15: 0.06367 | GD15: 0.06215 | GE15: 0.05422 | GF15: 0.05205 | GG15: 0.05196 | GH15: 0.04994 | GI15: 0.04212 | GJ15: 0.04545 | GK15: 0.03841 | GL15: 0.03625 | GM15: 0.03923 | GN15: 0.03906 | GO15: 0.04139 | GP15: 0.03869 | GQ15: 0.03191 | GR15: 0.02827 | GS15: 0.02674 | GT15: 0.03003 | GU15: 0.03071 | GV15: 0.03174 | GW15: 0.03097 | GX15: 0.02246 | GY15: 0.02137 | GZ15: 0.02643 | HA15: 0.03013 | HB15: 0.03253 | HC15: 0.03399 | HD15: 0.03459 | HE15: 0.03403 | HF15: 0.0314 | HG15: 0.03218 | HH15: 0.03193 | HI15: 0.03216 | HJ15: 0.0311 | HK15: 0.03181 | HL15: 0.03152 | HM15: 0.0332 | HN15: 0.03089 | HO15: 0.03059 | HP15: 0.03095 | HQ15: 0.03011 | HR15: 0.02735 | HS15: 0.03066 | HT15: 0.02924 | HU15: 0.0285 | HV15: 0.02881 | HW15: 0.02781 | HX15: 0.027 | HY15: 0.02562 | HZ15: 0.02753 | IA15: 0.02507 | IB15: 0.02362 | IC15: 0.02433 | ID15: 0.0258 | IE15: 0.02545 | IF15: 0.02857 | IG15: 0.03065 | IH15: 0.02831 | II15: 0.02814 | IJ15: 0.03134 | IK15: 0.03227 | IL15: 0.03253 | IM15: 0.03055 | IN15: 0.03501 | IO15: 0.03466 | IP15: 0.03456 | IQ15: 0.03164 | IR15: 0.03347 | IS15: 0.03331 | IT15: 0.03062 | IU15: 0.03131 | IV15: 0.03484 | IW15: 0.03455 | IX15: 0.03601 | IY15: 0.03487 | IZ15: 0.03126 | JA15: 0.03172 | JB15: 0.03405 | JC15: 0.03245 | JD15: 0.03147 | JE15: 0.02914 | JF15: 0.02652 | JG15: 0.02984 | JH15: 0.02785 | JI15: 0.02842 | JJ15: 0.02515 | JK15: 0.02538 | JL15: 0.02739 | JM15: 0.02438 | JN15: 0.02749 | JO15: 0.02904 | JP15: 0.02978 | JQ15: 0.02981 | JR15: 0.03329 | JS15: 0.02965 | JT15: 0.03023 | JU15: 0.0293 | JV15: 0.02889 | JW15: 0.02919 | JX15: 0.02438 | JY15: 0.02455 | JZ15: 0.02467 | KA15: 0.0259 | KB15: 0.02652 | KC15: 0.02292 | KD15: 0.0241 | KE15: 0.02439 | KF15: 0.0244 | KG15: 0.02356 | KH15: 0.02661 | KI15: 0.02688 | KJ15: 0.02802 | KK15: 0.02643 | KL15: 0.02671 | KM15: 0.03091 | KN15: 0.0303 | KO15: 0.03043 | KP15: 0.02994 | KQ15: 0.02892 | KR15: 0.02836 | KS15: 0.02839 | KT15: 0.02751 | KU15: 0.02722 | KV15: 0.02642 | KW15: 0.02704 | KX15: 0.02597 | KY15: 0.02198 | KZ15: 0.02181 | LA15: 0.02032 | LB15: 0.0213 | LC15: 0.01965 | LD15: 0.01936 | LE15: 0.0199 | LF15: 0.02072 | LG15: 0.02107 | LH15: 0.02338 | LI15: 0.02226 | LJ15: 0.02132 | LK15: 0.0225 | LL15: 0.02034 | LM15: 0.01925 | LN15: 0.0211 | LO15: 0.01996 | LP15: 0.02136 | LQ15: 0.02068 | LR15: 0.01834 | LS15: 0.01965 | LT15: 0.01883 | LU15: 0.01728 | LV15: 0.01602 | LW15: 0.01747 | LX15: 0.01635 | LY15: 0.01393 | LZ15: 0.01231 | MA15: 0.01348 | MB15: 0.01232 | MC15: 0.01286 | MD15: 0.01586 | ME15: 0.01443 | MF15: 0.01598 | MG15: 0.01658 | MH15: 0.01683 | MI15: 0.01582 | MJ15: 0.01407 | MK15: 0.01393 | ML15: 0.01356 | MM15: 0.01201 | MN15: 0.01069 | MO15: 0.01282 | MP15: 0.01466 | MQ15: 0.01246 | MR15: 0.01146 | MS15: 0.01279 | MT15: 0.01284 | MU15: 0.01574 | MV15: 0.01398 | MW15: 0.01614 | MX15: 0.01702 | MY15: 0.01622 | MZ15: 0.0164 | NA15: 0.01903 | NB15: 0.01787 | NC15: 0.0188 | ND15: 0.01908 | NE15: 0.01746 | NF15: 0.01626 | NG15: 0.01505 | NH15: 0.01475 | NI15: 0.01513 | NJ15: 0.01411 | NK15: 0.01204 | NL15: 0.01232 | NM15: 0.01317 | NN15: 0.01387 | NO15: 0.01451 | NP15: 0.015 | NQ15: 0.01285 | NR15: 0.01495 | NS15: 0.01716 | NT15: 0.01851 | NU15: 0.01924 | NV15: 0.02064 | NW15: 0.02033 | NX15: 0.02156 | NY15: 0.02454 | NZ15: 0.02499 | OA15: 0.0238 | OB15: 0.02456 | OC15: 0.02467 | OD15: 0.02323 | OE15: 0.02217 | OF15: 0.0216 | OG15: 0.01874 | OH15: 0.0174 | OI15: 0.01679 | OJ15: 0.01703 | OK15: 0.01488 | OL15: 0.01554 | OM15: 0.01635 | ON15: 0.01627 | OO15: 0.01548 | OP15: 0.01393 | OQ15: 0.0146 | OR15: 0.01573 | OS15: 0.01673 | OT15: 0.017 | OU15: 0.01788 | OV15: 0.01773 | OW15: 0.0184 | OX15: 0.0174 | OY15: 0.01916 | OZ15: 0.01831 | PA15: 0.0142 | PB15: 0.01442 | PC15: 0.01389 | PD15: 0.01428 | PE15: 0.01608 | PF15: 0.01356 | PG15: 0.01368 | PH15: 0.01478 | PI15: 0.01328 | PJ15: 0.01047 | PK15: 0.01213 | PL15: 0.01147 | PM15: 0.0111 | PN15: 0.01173 | PO15: 0.00933 | PP15: 0.00908 | PQ15: 0.00976 | PR15: 0.0114 | PS15: 0.01296 | PT15: 0.01439 | PU15: 0.01498 | PV15: 0.0166 | PW15: 0.01748 | PX15: 0.01602 | PY15: 0.0181 | PZ15: 0.02009 | QA15: 0.02098 | QB15: 0.019 | QC15: 0.01938 | QD15: 0.01875 | QE15: 0.02017 | QF15: 0.01775 | QG15: 0.01983 | QH15: 0.02134 | QI15: 0.02278 | QJ15: 0.0201 | QK15: 0.02072 | QL15: 0.02012 | QM15: 0.02183 | QN15: 0.02187 | QO15: 0.02206 | QP15: 0.02391 | QQ15: 0.02236 | QR15: 0.02239 | QS15: 0.02188 | QT15: 0.02067 | QU15: 0.02063 | QV15: 0.01921 | QW15: 0.02018 | QX15: 0.02034 | QY15: 0.02076 | QZ15: 0.02238 | RA15: 0.02301 | RB15: 0.02318 | RC15: 0.02311 | RD15: 0.022 | RE15: 0.01939 | RF15: 0.01842 | RG15: 0.01906 | RH15: 0.01973 | RI15: 0.01902 | RJ15: 0.01982 | RK15: 0.01987 | RL15: 0.01829 | RM15: 0.01721 | RN15: 0.01718 | RO15: 0.01682 | RP15: 0.01625 | RQ15: 0.01799 | RR15: 0.01815 | RS15: 0.01899 | RT15: 0.01983 | RU15: 0.02088 | RV15: 0.02155 | RW15: 0.02455 | RX15: 0.02506 | RY15: 0.02609 | RZ15: 0.02718 | SA15: 0.02584 | SB15: 0.02411 | SC15: 0.02324 | SD15: 0.02244 | SE15: 0.02253 | SF15: 0.02199 | SG15: 0.0217 | SH15: 0.02195 | SI15: 0.02121 | SJ15: 0.02106 | SK15: 0.02047 | SL15: 0.02112 | SM15: 0.02179 | SN15: 0.02472 | SO15: 0.02252 | SP15: 0.02139 | SQ15: 0.02061 | SR15: 0.02159 | SS15: 0.0208 | ST15: 0.02014 | SU15: 0.02105 | SV15: 0.01956 | SW15: 0.02281 | SX15: 0.02447 | SY15: 0.02386 | SZ15: 0.02399 | TA15: 0.02363 | TB15: 0.02148 | TC15: 0.02077 | TD15: 0.02003 | TE15: 0.02105 | TF15: 0.02191 | TG15: 0.01969 | TH15: 0.02006 | TI15: 0.01931 | TJ15: 0.01844 | TK15: 0.01984 | TL15: 0.01908 | TM15: 0.01651 | TN15: 0.01824 | TO15: 0.01937 | TP15: 0.02032 | TQ15: 0.02059 | TR15: 0.01796 | TS15: 0.01726 | TT15: 0.01612 | TU15: 0.017 | TV15: 0.01711 | TW15: 0.0152 | TX15: 0.01435 | TY15: 0.01231 | TZ15: 0.01389 | UA15: 0.01132 | UB15: 0.01205 | UC15: 0.01524 | UD15: 0.01473 | UE15: 0.0159 | UF15: 0.01466 | UG15: 0.01478 | UH15: 0.0152 | UI15: 0.01515 | UJ15: 0.01523 | UK15: 0.01603 | UL15: 0.01638 | UM15: 0.01659 | UN15: 0.01659 | UO15: 0.01639 | UP15: 0.01713 | UQ15: 0.01659 | UR15: 0.01715 | US15: 0.01805 | UT15: 0.01677 | UU15: 0.01624 | UV15: 0.01761 | UW15: 0.01634 | UX15: 0.0165 | UY15: 0.01712 | UZ15: 0.01625 | VA15: 0.01596 | VB15: 0.01671 | VC15: 0.01612 | VD15: 0.01729 | VE15: 0.01789 | VF15: 0.02001 | VG15: 0.02166 | VH15: 0.02268 | VI15: 0.02336 | VJ15: 0.02505 | VK15: 0.02481 | VL15: 0.0244 | VM15: 0.02514 | VN15: 0.02628 | VO15: 0.02466 | VP15: 0.02548 | VQ15: 0.0253 | VR15: 0.02259 | VS15: 0.02359 | VT15: 0.02423 | VU15: 0.02367 | VV15: 0.02079 | VW15: 0.02301 | VX15: 0.02387 | VY15: 0.02501 | VZ15: 0.02683 | WA15: 0.02666 | WB15: 0.02771 | WC15: 0.02853 | WD15: 0.02657 | WE15: 0.02473 | WF15: 0.0238 | WG15: 0.0227 | WH15: 0.02255 | WI15: 0.02164 | WJ15: 0.02103 | WK15: 0.02123 | WL15: 0.0219 | WM15: 0.021 | WN15: 0.02229 | WO15: 0.02134 | WP15: 0.01889
A16: 15 | B16: 0.0013 | C16: 0.00175 | D16: 0.0001 | E16: 0.00012 | F16: 0.00188 | G16: 0.00032 | H16: 0.0001 | I16: 0.0001 | J16: 0.0001 | K16: 0.0001 | L16: 0.0001 | M16: 0.0001 | N16: 0.0001 | O16: 0.0001 | P16: 0.0018 | Q16: 0.00322 | R16: 0.00563 | S16: 0.0058 | T16: 0.0036 | U16: 0.00449 | V16: 0.00362 | W16: 0.00455 | X16: 0.00342 | Y16: 0.00335 | Z16: 0.00142 | AA16: 0.00135 | AB16: 0.00365 | AC16: 0.00239 | AD16: 0.00063 | AE16: 0.00028 | AF16: 0.00121 | AG16: 0.00283 | AH16: 0.00104 | AI16: 0.0001 | AJ16: 0.00142 | AK16: 0.00566 | AL16: 0.00879 | AM16: 0.01048 | AN16: 0.01231 | AO16: 0.01103 | AP16: 0.01028 | AQ16: 0.01003 | AR16: 0.00956 | AS16: 0.00952 | AT16: 0.00935 | AU16: 0.00877 | AV16: 0.00667 | AW16: 0.00741 | AX16: 0.00877 | AY16: 0.00879 | AZ16: 0.00785 | BA16: 0.00904 | BB16: 0.01223 | BC16: 0.01163 | BD16: 0.01204 | BE16: 0.01024 | BF16: 0.00965 | BG16: 0.00908 | BH16: 0.01327 | BI16: 0.0133 | BJ16: 0.01416 | BK16: 0.0121 | BL16: 0.01115 | BM16: 0.01169 | BN16: 0.01316 | BO16: 0.01331 | BP16: 0.01352 | BQ16: 0.0117 | BR16: 0.01377 | BS16: 0.01665 | BT16: 0.01513 | BU16: 0.01394 | BV16: 0.01288 | BW16: 0.0116 | BX16: 0.00992 | BY16: 0.00844 | BZ16: 0.00731 | CA16: 0.00737 | CB16: 0.00614 | CC16: 0.0057 | CD16: 0.00547 | CE16: 0.00258 | CF16: 0.00439 | CG16: 0.00451 | CH16: 0.00167 | CI16: 0.0018 | CJ16: 0.0001 | CK16: 0.0001 | CL16: 0.00017 | CM16: 0.0001 | CN16: 0.0001 | CO16: 0.0001 | CP16: 0.00039 | CQ16: 0.0001 | CR16: 0.0001 | CS16: 0.00191 | CT16: 0.00162 | CU16: 0.0035 | CV16: 0.00391 | CW16: 0.00826 | CX16: 0.0106 | CY16: 0.00963 | CZ16: 0.00938 | DA16: 0.01007 | DB16: 0.00898 | DC16: 0.01031 | DD16: 0.0123 | DE16: 0.0117 | DF16: 0.01263 | DG16: 0.01151 | DH16: 0.01265 | DI16: 0.01034 | DJ16: 0.01064 | DK16: 0.01092 | DL16: 0.01124 | DM16: 0.01192 | DN16: 0.01283 | DO16: 0.01281 | DP16: 0.01381 | DQ16: 0.01177 | DR16: 0.01208 | DS16: 0.01001 | DT16: 0.00914 | DU16: 0.00905 | DV16: 0.00924 | DW16: 0.00749 | DX16: 0.00925 | DY16: 0.00756 | DZ16: 0.00707 | EA16: 0.00802 | EB16: 0.00729 | EC16: 0.00662 | ED16: 0.00861 | EE16: 0.00823 | EF16: 0.0084 | EG16: 0.00794 | EH16: 0.00745 | EI16: 0.00846 | EJ16: 0.00952 | EK16: 0.00984 | EL16: 0.00904 | EM16: 0.0099 | EN16: 0.01126 | EO16: 0.01074 | EP16: 0.01187 | EQ16: 0.01202 | ER16: 0.01489 | ES16: 0.01493 | ET16: 0.01517 | EU16: 0.01442 | EV16: 0.01345 | EW16: 0.01331 | EX16: 0.01302 | EY16: 0.01426 | EZ16: 0.01447 | FA16: 0.01484 | FB16: 0.01675 | FC16: 0.01597 | FD16: 0.01578 | FE16: 0.01756 | FF16: 0.01935 | FG16: 0.01989 | FH16: 0.01911 | FI16: 0.01716 | FJ16: 0.01763 | FK16: 0.02046 | FL16: 0.02032 | FM16: 0.02139 | FN16: 0.02111 | FO16: 0.0213 | FP16: 0.02149 | FQ16: 0.02191 | FR16: 0.02223 | FS16: 0.02045 | FT16: 0.02023 | FU16: 0.01802 | FV16: 0.01781 | FW16: 0.01833 | FX16: 0.0191 | FY16: 0.02082 | FZ16: 0.02198 | GA16: 0.02071 | GB16: 0.02002 | GC16: 0.02284 | GD16: 0.02287 | GE16: 0.02287 | GF16: 0.02266 | GG16: 0.02303 | GH16: 0.02469 | GI16: 0.02259 | GJ16: 0.02303 | GK16: 0.02258 | GL16: 0.02254 | GM16: 0.02099 | GN16: 0.01938 | GO16: 0.01957 | GP16: 0.02113 | GQ16: 0.02372 | GR16: 0.02582 | GS16: 0.02287 | GT16: 0.02356 | GU16: 0.02431 | GV16: 0.02531 | GW16: 0.02659 | GX16: 0.0258 | GY16: 0.02748 | GZ16: 0.02642 | HA16: 0.02699 | HB16: 0.0262 | HC16: 0.0248 | HD16: 0.02525 | HE16: 0.02571 | HF16: 0.02554 | HG16: 0.02532 | HH16: 0.02405 | HI16: 0.0212 | HJ16: 0.02335 | HK16: 0.02422 | HL16: 0.02291 | HM16: 0.02194 | HN16: 0.02313 | HO16: 0.0221 | HP16: 0.02177 | HQ16: 0.0213 | HR16: 0.0211 | HS16: 0.01976 | HT16: 0.01952 | HU16: 0.01966 | HV16: 0.0168 | HW16: 0.01886 | HX16: 0.02196 | HY16: 0.023 | HZ16: 0.02362 | IA16: 0.02246 | IB16: 0.02167 | IC16: 0.02044 | ID16: 0.01976 | IE16: 0.0177 | IF16: 0.01509 | IG16: 0.0126 | IH16: 0.01296 | II16: 0.01594 | IJ16: 0.0162 | IK16: 0.01526 | IL16: 0.01644 | IM16: 0.02021 | IN16: 0.02063 | IO16: 0.02022 | IP16: 0.02007 | IQ16: 0.01682 | IR16: 0.01759 | IS16: 0.01789 | IT16: 0.01892 | IU16: 0.02095 | IV16: 0.02046 | IW16: 0.01902 | IX16: 0.02054 | IY16: 0.01918 | IZ16: 0.01984 | JA16: 0.0198 | JB16: 0.01836 | JC16: 0.01937 | JD16: 0.01827 | JE16: 0.01708 | JF16: 0.01657 | JG16: 0.01719 | JH16: 0.01891 | JI16: 0.01791 | JJ16: 0.01847 | JK16: 0.01899 | JL16: 0.01845 | JM16: 0.01983 | JN16: 0.01865 | JO16: 0.01747 | JP16: 0.01993 | JQ16: 0.02021 | JR16: 0.02013 | JS16: 0.02029 | JT16: 0.02026 | JU16: 0.02001 | JV16: 0.02115 | JW16: 0.02224 | JX16: 0.02254 | JY16: 0.02094 | JZ16: 0.02425 | KA16: 0.02469 | KB16: 0.02158 | KC16: 0.02261 | KD16: 0.02432 | KE16: 0.02474 | KF16: 0.02592 | KG16: 0.02178 | KH16: 0.02167 | KI16: 0.02287 | KJ16: 0.02381 | KK16: 0.02107 | KL16: 0.02385 | KM16: 0.02504 | KN16: 0.02704 | KO16: 0.02872 | KP16: 0.02688 | KQ16: 0.02783 | KR16: 0.02731 | KS16: 0.02664 | KT16: 0.02669 | KU16: 0.0244 | KV16: 0.02418 | KW16: 0.02664 | KX16: 0.02667 | KY16: 0.02662 | KZ16: 0.03002 | LA16: 0.02933 | LB16: 0.03026 | LC16: 0.02975 | LD16: 0.02651 | LE16: 0.02532 | LF16: 0.02588 | LG16: 0.02498 | LH16: 0.02547 | LI16: 0.02549 | LJ16: 0.02556 | LK16: 0.02452 | LL16: 0.02464 | LM16: 0.02521 | LN16: 0.02565 | LO16: 0.02725 | LP16: 0.02641 | LQ16: 0.02874 | LR16: 0.02574 | LS16: 0.02317 | LT16: 0.02107 | LU16: 0.01816 | LV16: 0.0171 | LW16: 0.01671 | LX16: 0.02006 | LY16: 0.01782 | LZ16: 0.01895 | MA16: 0.01893 | MB16: 0.02076 | MC16: 0.0206 | MD16: 0.01754 | ME16: 0.01658 | MF16: 0.01527 | MG16: 0.01402 | MH16: 0.01376 | MI16: 0.01659 | MJ16: 0.01567 | MK16: 0.01635 | ML16: 0.0187 | MM16: 0.01818 | MN16: 0.01873 | MO16: 0.01723 | MP16: 0.01736 | MQ16: 0.01965 | MR16: 0.02058 | MS16: 0.02225 | MT16: 0.02293 | MU16: 0.02338 | MV16: 0.02529 | MW16: 0.02358 | MX16: 0.02613 | MY16: 0.02702 | MZ16: 0.02657 | NA16: 0.03007 | NB16: 0.03052 | NC16: 0.03001 | ND16: 0.02977 | NE16: 0.02767 | NF16: 0.032 | NG16: 0.0302 | NH16: 0.03059 | NI16: 0.03197 | NJ16: 0.03129 | NK16: 0.03228 | NL16: 0.03016 | NM16: 0.03309 | NN16: 0.02898 | NO16: 0.03222 | NP16: 0.03422 | NQ16: 0.03291 | NR16: 0.03224 | NS16: 0.0317 | NT16: 0.03138 | NU16: 0.03149 | NV16: 0.02732 | NW16: 0.02623 | NX16: 0.02746 | NY16: 0.02762 | NZ16: 0.02945 | OA16: 0.02588 | OB16: 0.02719 | OC16: 0.02765 | OD16: 0.02506 | OE16: 0.02929 | OF16: 0.02895 | OG16: 0.0292 | OH16: 0.02998 | OI16: 0.03076 | OJ16: 0.02989 | OK16: 0.0287 | OL16: 0.02725 | OM16: 0.02798 | ON16: 0.02655 | OO16: 0.02399 | OP16: 0.02555 | OQ16: 0.02372 | OR16: 0.0233 | OS16: 0.02414 | OT16: 0.02536 | OU16: 0.02818 | OV16: 0.02703 | OW16: 0.02869 | OX16: 0.02919 | OY16: 0.03187 | OZ16: 0.03559 | PA16: 0.03018 | PB16: 0.02746 | PC16: 0.02759 | PD16: 0.02457 | PE16: 0.02703 | PF16: 0.02682 | PG16: 0.02188 | PH16: 0.02327 | PI16: 0.02094 | PJ16: 0.02215 | PK16: 0.02275 | PL16: 0.02255 | PM16: 0.02333 | PN16: 0.02566 | PO16: 0.02456 | PP16: 0.0234 | PQ16: 0.0216 | PR16: 0.02533 | PS16: 0.02915 | PT16: 0.02818 | PU16: 0.02967 | PV16: 0.02812 | PW16: 0.02822 | PX16: 0.02675 | PY16: 0.02752 | PZ16: 0.02754 | QA16: 0.02844 | QB16: 0.02943 | QC16: 0.03009 | QD16: 0.03154 | QE16: 0.03254 | QF16: 0.03267 | QG16: 0.03204 | QH16: 0.03109 | QI16: 0.02706 | QJ16: 0.02791 | QK16: 0.02771 | QL16: 0.02553 | QM16: 0.0248 | QN16: 0.02397 | QO16: 0.02911 | QP16: 0.02747 | QQ16: 0.02653 | QR16: 0.02667 | QS16: 0.03075 | QT16: 0.03284 | QU16: 0.0322 | QV16: 0.02935 | QW16: 0.02622 | QX16: 0.02847 | QY16: 0.02773 | QZ16: 0.02672 | RA16: 0.02672 | RB16: 0.02521 | RC16: 0.02791 | RD16: 0.0258 | RE16: 0.02578 | RF16: 0.0238 | RG16: 0.02081 | RH16: 0.02084 | RI16: 0.01726 | RJ16: 0.02027 | RK16: 0.01857 | RL16: 0.02276 | RM16: 0.0216 | RN16: 0.02135 | RO16: 0.02298 | RP16: 0.02233 | RQ16: 0.01899 | RR16: 0.01781 | RS16: 0.01853 | RT16: 0.01861 | RU16: 0.01885 | RV16: 0.01895 | RW16: 0.01588 | RX16: 0.01664 | RY16: 0.01684 | RZ16: 0.01516 | SA16: 0.017 | SB16: 0.01687 | SC16: 0.0182 | SD16: 0.02127 | SE16: 0.01995 | SF16: 0.02206 | SG16: 0.02192 | SH16: 0.02362 | SI16: 0.02265 | SJ16: 0.02606 | SK16: 0.02554 | SL16: 0.02566 | SM16: 0.02756 | SN16: 0.02665 | SO16: 0.02609 | SP16: 0.02871 | SQ16: 0.02924 | SR16: 0.0297 | SS16: 0.02846 | ST16: 0.02897 | SU16: 0.02951 | SV16: 0.02788 | SW16: 0.02976 | SX16: 0.02994 | SY16: 0.02909 | SZ16: 0.02964 | TA16: 0.03054 | TB16: 0.02796 | TC16: 0.02803 | TD16: 0.02933 | TE16: 0.02973 | TF16: 0.02985 | TG16: 0.02981 | TH16: 0.03106 | TI16: 0.0334 | TJ16: 0.03433 | TK16: 0.03363 | TL16: 0.03627 | TM16: 0.03632 | TN16: 0.03639 | TO16: 0.03695 | TP16: 0.03492 | TQ16: 0.03246 | TR16: 0.03002 | TS16: 0.03001 | TT16: 0.03266 | TU16: 0.03226 | TV16: 0.03244 | TW16: 0.03766 | TX16: 0.03857 | TY16: 0.04117 | TZ16: 0.04974 | UA16: 0.05422 | UB16: 0.044 | UC16: 0.05088 | UD16: 0.06071 | UE16: 0.0604 | UF16: 0.07114 | UG16: 0.07352 | UH16: 0.07405 | UI16: 0.07033 | UJ16: 0.07055 | UK16: 0.06244 | UL16: 0.05426 | UM16: 0.04785 | UN16: 0.04344 | UO16: 0.03227 | UP16: 0.0329 | UQ16: 0.03335 | UR16: 0.0389 | US16: 0.03489 | UT16: 0.03868 | UU16: 0.044 | UV16: 0.05534 | UW16: 0.05285 | UX16: 0.05088 | UY16: 0.05563 | UZ16: 0.05489 | VA16: 0.05479 | VB16: 0.0463 | VC16: 0.0463 | VD16: 0.04552 | VE16: 0.04214 | VF16: 0.04174 | VG16: 0.04207 | VH16: 0.03964 | VI16: 0.04033 | VJ16: 0.0389 | VK16: 0.03772 | VL16: 0.03998 | VM16: 0.03765 | VN16: 0.03907 | VO16: 0.04293 | VP16: 0.04173 | VQ16: 0.04203 | VR16: 0.04291 | VS16: 0.04777 | VT16: 0.04646 | VU16: 0.04156 | VV16: 0.0445 | VW16: 0.0412 | VX16: 0.04368 | VY16: 0.04292 | VZ16: 0.0405 | WA16: 0.03695 | WB16: 0.03845 | WC16: 0.03927 | WD16: 0.04243 | WE16: 0.04116 | WF16: 0.04308 | WG16: 0.04414 | WH16: 0.04081 | WI16: 0.04386 | WJ16: 0.04297 | WK16: 0.0425 | WL16: 0.04644 | WM16: 0.04249 | WN16: 0.04131 | WO16: 0.04204 | WP16: 0.04066
A17: 16 | B17: 0.0013 | C17: 0.0001 | D17: 0.00199 | E17: 0.0001 | F17: 0.0001 | G17: 0.0001 | H17: 0.0001 | I17: 0.0005 | J17: 0.00361 | K17: 0.00493 | L17: 0.00782 | M17: 0.00873 | N17: 0.01106 | O17: 0.01363 | P17: 0.01624 | Q17: 0.01551 | R17: 0.01545 | S17: 0.01442 | T17: 0.0142 | U17: 0.01116 | V17: 0.0105 | W17: 0.01126 | X17: 0.01245 | Y17: 0.01229 | Z17: 0.01317 | AA17: 0.0146 | AB17: 0.01775 | AC17: 0.0184 | AD17: 0.02119 | AE17: 0.01971 | AF17: 0.0173 | AG17: 0.01477 | AH17: 0.01612 | AI17: 0.0148 | AJ17: 0.01425 | AK17: 0.0122 | AL17: 0.01391 | AM17: 0.01417 | AN17: 0.01449 | AO17: 0.01478 | AP17: 0.01248 | AQ17: 0.01375 | AR17: 0.01487 | AS17: 0.01628 | AT17: 0.01667 | AU17: 0.01773 | AV17: 0.01653 | AW17: 0.01783 | AX17: 0.01927 | AY17: 0.01782 | AZ17: 0.01954 | BA17: 0.02234 | BB17: 0.01983 | BC17: 0.01768 | BD17: 0.01798 | BE17: 0.0186 | BF17: 0.02255 | BG17: 0.02416 | BH17: 0.02614 | BI17: 0.0262 | BJ17: 0.03006 | BK17: 0.02601 | BL17: 0.02521 | BM17: 0.0269 | BN17: 0.02849 | BO17: 0.02833 | BP17: 0.02475 | BQ17: 0.02473 | BR17: 0.02542 | BS17: 0.03048 | BT17: 0.02963 | BU17: 0.0272 | BV17: 0.0283 | BW17: 0.02876 | BX17: 0.03008 | BY17: 0.0279 | BZ17: 0.02647 | CA17: 0.03011 | CB17: 0.02859 | CC17: 0.02847 | CD17: 0.02501 | CE17: 0.02545 | CF17: 0.0227 | CG17: 0.02407 | CH17: 0.02518 | CI17: 0.0216 | CJ17: 0.01938 | CK17: 0.01908 | CL17: 0.01683 | CM17: 0.01754 | CN17: 0.01577 | CO17: 0.01736 | CP17: 0.01773 | CQ17: 0.01685 | CR17: 0.01651 | CS17: 0.01933 | CT17: 0.02078 | CU17: 0.02215 | CV17: 0.0221 | CW17: 0.02143 | CX17: 0.02701 | CY17: 0.02561 | CZ17: 0.02677 | DA17: 0.02931 | DB17: 0.03054 | DC17: 0.02807 | DD17: 0.02378 | DE17: 0.02441 | DF17: 0.0238 | DG17: 0.02324 | DH17: 0.02086 | DI17: 0.02305 | DJ17: 0.02402 | DK17: 0.02383 | DL17: 0.02356 | DM17: 0.02175 | DN17: 0.0205 | DO17: 0.0238 | DP17: 0.02522 | DQ17: 0.02676 | DR17: 0.02743 | DS17: 0.03006 | DT17: 0.03128 | DU17: 0.03275 | DV17: 0.03545 | DW17: 0.03529 | DX17: 0.0364 | DY17: 0.03648 | DZ17: 0.03582 | EA17: 0.03661 | EB17: 0.03691 | EC17: 0.0359 | ED17: 0.03813 | EE17: 0.03798 | EF17: 0.03706 | EG17: 0.03943 | EH17: 0.04108 | EI17: 0.04206 | EJ17: 0.04582 | EK17: 0.05012 | EL17: 0.05324 | EM17: 0.054 | EN17: 0.05526 | EO17: 0.05682 | EP17: 0.0558 | EQ17: 0.05103 | ER17: 0.0512 | ES17: 0.0542 | ET17: 0.0548 | EU17: 0.05761 | EV17: 0.05767 | EW17: 0.05623 | EX17: 0.0575 | EY17: 0.05789 | EZ17: 0.05778 | FA17: 0.05587 | FB17: 0.05712 | FC17: 0.05728 | FD17: 0.06456 | FE17: 0.05855 | FF17: 0.05447 | FG17: 0.04963 | FH17: 0.04974 | FI17: 0.04752 | FJ17: 0.04812 | FK17: 0.0467 | FL17: 0.04085 | FM17: 0.04103 | FN17: 0.04281 | FO17: 0.04516 | FP17: 0.04263 | FQ17: 0.0395 | FR17: 0.03784 | FS17: 0.03946 | FT17: 0.03415 | FU17: 0.03768 | FV17: 0.03831 | FW17: 0.03707 | FX17: 0.0371 | FY17: 0.03471 | FZ17: 0.03345 | GA17: 0.03143 | GB17: 0.03007 | GC17: 0.03241 | GD17: 0.03287 | GE17: 0.0338 | GF17: 0.03262 | GG17: 0.03484 | GH17: 0.03388 | GI17: 0.03518 | GJ17: 0.03619 | GK17: 0.03854 | GL17: 0.03824 | GM17: 0.03854 | GN17: 0.03889 | GO17: 0.04029 | GP17: 0.03904 | GQ17: 0.03926 | GR17: 0.04082 | GS17: 0.03713 | GT17: 0.03373 | GU17: 0.03342 | GV17: 0.037 | GW17: 0.03622 | GX17: 0.03636 | GY17: 0.0349 | GZ17: 0.035 | HA17: 0.03598 | HB17: 0.03872 | HC17: 0.03685 | HD17: 0.03872 | HE17: 0.03931 | HF17: 0.04197 | HG17: 0.0416 | HH17: 0.03973 | HI17: 0.0415 | HJ17: 0.04494 | HK17: 0.04647 | HL17: 0.04348 | HM17: 0.04369 | HN17: 0.03788 | HO17: 0.04318 | HP17: 0.04006 | HQ17: 0.03717 | HR17: 0.04023 | HS17: 0.03711 | HT17: 0.03791 | HU17: 0.03759 | HV17: 0.04374 | HW17: 0.04368 | HX17: 0.04445 | HY17: 0.04215 | HZ17: 0.03961 | IA17: 0.03865 | IB17: 0.03708 | IC17: 0.03559 | ID17: 0.03625 | IE17: 0.03567 | IF17: 0.03594 | IG17: 0.03635 | IH17: 0.03899 | II17: 0.04063 | IJ17: 0.04255 | IK17: 0.04101 | IL17: 0.04297 | IM17: 0.04544 | IN17: 0.04555 | IO17: 0.04199 | IP17: 0.04183 | IQ17: 0.0427 | IR17: 0.04312 | IS17: 0.04427 | IT17: 0.03919 | IU17: 0.03979 | IV17: 0.03872 | IW17: 0.03544 | IX17: 0.04016 | IY17: 0.04184 | IZ17: 0.03977 | JA17: 0.04072 | JB17: 0.04174 | JC17: 0.03676 | JD17: 0.03349 | JE17: 0.03497 | JF17: 0.03471 | JG17: 0.03815 | JH17: 0.0351 | JI17: 0.03462 | JJ17: 0.03288 | JK17: 0.03293 | JL17: 0.02987 | JM17: 0.02971 | JN17: 0.03136 | JO17: 0.03092 | JP17: 0.03167 | JQ17: 0.03171 | JR17: 0.02931 | JS17: 0.02797 | JT17: 0.02304 | JU17: 0.02596 | JV17: 0.0303 | JW17: 0.03004 | JX17: 0.03273 | JY17: 0.03343 | JZ17: 0.0302 | KA17: 0.02973 | KB17: 0.02946 | KC17: 0.02731 | KD17: 0.02663 | KE17: 0.03015 | KF17: 0.02433 | KG17: 0.0264 | KH17: 0.02872 | KI17: 0.02981 | KJ17: 0.03135 | KK17: 0.03402 | KL17: 0.03536 | KM17: 0.03733 | KN17: 0.03825 | KO17: 0.03817 | KP17: 0.03944 | KQ17: 0.04142 | KR17: 0.04062 | KS17: 0.04274 | KT17: 0.03682 | KU17: 0.03569 | KV17: 0.03766 | KW17: 0.03433 | KX17: 0.03733 | KY17: 0.03527 | KZ17: 0.03507 | LA17: 0.03236 | LB17: 0.03503 | LC17: 0.0352 | LD17: 0.03558 | LE17: 0.03386 | LF17: 0.03322 | LG17: 0.03302 | LH17: 0.03315 | LI17: 0.03276 | LJ17: 0.03145 | LK17: 0.02834 | LL17: 0.03001 | LM17: 0.02359 | LN17: 0.02531 | LO17: 0.02419 | LP17: 0.02244 | LQ17: 0.02536 | LR17: 0.0269 | LS17: 0.02996 | LT17: 0.03107 | LU17: 0.03106 | LV17: 0.03216 | LW17: 0.03479 | LX17: 0.03399 | LY17: 0.03773 | LZ17: 0.04074 | MA17: 0.0399 | MB17: 0.04042 | MC17: 0.04165 | MD17: 0.04007 | ME17: 0.03988 | MF17: 0.03863 | MG17: 0.03786 | MH17: 0.03644 | MI17: 0.03863 | MJ17: 0.04223 | MK17: 0.04067 | ML17: 0.03919 | MM17: 0.03968 | MN17: 0.04104 | MO17: 0.04037 | MP17: 0.03776 | MQ17: 0.03868 | MR17: 0.03876 | MS17: 0.03391 | MT17: 0.03707 | MU17: 0.03267 | MV17: 0.03448 | MW17: 0.03495 | MX17: 0.03464 | MY17: 0.03654 | MZ17: 0.03612 | NA17: 0.03194 | NB17: 0.03183 | NC17: 0.03174 | ND17: 0.0327 | NE17: 0.03235 | NF17: 0.03131 | NG17: 0.02942 | NH17: 0.02969 | NI17: 0.03226 | NJ17: 0.03285 | NK17: 0.02944 | NL17: 0.0296 | NM17: 0.02821 | NN17: 0.02871 | NO17: 0.02993 | NP17: 0.0337 | NQ17: 0.03016 | NR17: 0.02901 | NS17: 0.02822 | NT17: 0.03079 | NU17: 0.02943 | NV17: 0.02894 | NW17: 0.0278 | NX17: 0.02473 | NY17: 0.02285 | NZ17: 0.02423 | OA17: 0.02458 | OB17: 0.02426 | OC17: 0.02778 | OD17: 0.03049 | OE17: 0.02953 | OF17: 0.03079 | OG17: 0.02996 | OH17: 0.02544 | OI17: 0.02554 | OJ17: 0.02365 | OK17: 0.02283 | OL17: 0.02161 | OM17: 0.02192 | ON17: 0.02418 | OO17: 0.02337 | OP17: 0.02175 | OQ17: 0.02332 | OR17: 0.02311 | OS17: 0.02715 | OT17: 0.02895 | OU17: 0.02647 | OV17: 0.02445 | OW17: 0.0243 | OX17: 0.02423 | OY17: 0.02653 | OZ17: 0.02827 | PA17: 0.02609 | PB17: 0.02449 | PC17: 0.02508 | PD17: 0.02345 | PE17: 0.02418 | PF17: 0.02239 | PG17: 0.02519 | PH17: 0.02647 | PI17: 0.02734 | PJ17: 0.02789 | PK17: 0.02498 | PL17: 0.0256 | PM17: 0.02343 | PN17: 0.02586 | PO17: 0.02582 | PP17: 0.02578 | PQ17: 0.02675 | PR17: 0.02686 | PS17: 0.02959 | PT17: 0.02925 | PU17: 0.02701 | PV17: 0.02637 | PW17: 0.02679 | PX17: 0.02531 | PY17: 0.02665 | PZ17: 0.0288 | QA17: 0.02643 | QB17: 0.02457 | QC17: 0.02641 | QD17: 0.02557 | QE17: 0.02282 | QF17: 0.02447 | QG17: 0.02021 | QH17: 0.02293 | QI17: 0.02193 | QJ17: 0.02686 | QK17: 0.02925 | QL17: 0.02827 | QM17: 0.02848 | QN17: 0.0331 | QO17: 0.0345 | QP17: 0.03144 | QQ17: 0.02925 | QR17: 0.02644 | QS17: 0.02899 | QT17: 0.02675 | QU17: 0.02664 | QV17: 0.02247 | QW17: 0.01773 | QX17: 0.01605 | QY17: 0.01761 | QZ17: 0.01791 | RA17: 0.0174 | RB17: 0.01473 | RC17: 0.01717 | RD17: 0.016 | RE17: 0.01629 | RF17: 0.01712 | RG17: 0.01408 | RH17: 0.01237 | RI17: 0.01369 | RJ17: 0.01499 | RK17: 0.01618 | RL17: 0.01631 | RM17: 0.01696 | RN17: 0.01676 | RO17: 0.0187 | RP17: 0.01915 | RQ17: 0.01842 | RR17: 0.01923 | RS17: 0.01773 | RT17: 0.0202 | RU17: 0.02232 | RV17: 0.0211 | RW17: 0.0231 | RX17: 0.02363 | RY17: 0.02228 | RZ17: 0.02094 | SA17: 0.01857 | SB17: 0.01618 | SC17: 0.01653 | SD17: 0.01622 | SE17: 0.01732 | SF17: 0.01799 | SG17: 0.01969 | SH17: 0.02091 | SI17: 0.0215 | SJ17: 0.02337 | SK17: 0.02483 | SL17: 0.02238 | SM17: 0.02439 | SN17: 0.02194 | SO17: 0.0236 | SP17: 0.02137 | SQ17: 0.02059 | SR17: 0.01888 | SS17: 0.01966 | ST17: 0.01928 | SU17: 0.02014 | SV17: 0.01927 | SW17: 0.01595 | SX17: 0.01571 | SY17: 0.01567 | SZ17: 0.01523 | TA17: 0.01764 | TB17: 0.01946 | TC17: 0.01768 | TD17: 0.01825 | TE17: 0.0192 | TF17: 0.01796 | TG17: 0.01783 | TH17: 0.01717 | TI17: 0.0154 | TJ17: 0.01504 | TK17: 0.01075 | TL17: 0.01114 | TM17: 0.01347 | TN17: 0.01484 | TO17: 0.01434 | TP17: 0.01355 | TQ17: 0.0159 | TR17: 0.01924 | TS17: 0.02124 | TT17: 0.01901 | TU17: 0.01708 | TV17: 0.01521 | TW17: 0.01514 | TX17: 0.01705 | TY17: 0.0166 | TZ17: 0.01628 | UA17: 0.01546 | UB17: 0.01474 | UC17: 0.01518 | UD17: 0.01534 | UE17: 0.01312 | UF17: 0.0145 | UG17: 0.01335 | UH17: 0.01464 | UI17: 0.01639 | UJ17: 0.01839 | UK17: 0.01748 | UL17: 0.01689 | UM17: 0.01844 | UN17: 0.02019 | UO17: 0.01885 | UP17: 0.02052 | UQ17: 0.01963 | UR17: 0.01894 | US17: 0.01866 | UT17: 0.01944 | UU17: 0.01713 | UV17: 0.01783 | UW17: 0.01946 | UX17: 0.01828 | UY17: 0.01647 | UZ17: 0.01723 | VA17: 0.01614 | VB17: 0.01778 | VC17: 0.01568 | VD17: 0.01303 | VE17: 0.01421 | VF17: 0.01446 | VG17: 0.01558 | VH17: 0.01635 | VI17: 0.01614 | VJ17: 0.01742 | VK17: 0.0162 | VL17: 0.01567 | VM17: 0.01777 | VN17: 0.02054 | VO17: 0.01924 | VP17: 0.01859 | VQ17: 0.01755 | VR17: 0.01641 | VS17: 0.0172 | VT17: 0.01403 | VU17: 0.01249 | VV17: 0.01356 | VW17: 0.0168 | VX17: 0.01674 | VY17: 0.01584 | VZ17: 0.01684 | WA17: 0.01655 | WB17: 0.01452 | WC17: 0.0142 | WD17: 0.01661 | WE17: 0.01769 | WF17: 0.01775 | WG17: 0.01909 | WH17: 0.02205 | WI17: 0.02147 | WJ17: 0.01914 | WK17: 0.02054 | WL17: 0.02048 | WM17: 0.01977 | WN17: 0.0207 | WO17: 0.01777 | WP17: 0.01603
A18: 17 | B18: 0.0013 | C18: 0.00091 | D18: 0.0001 | E18: 0.0001 | F18: 0.00164 | G18: 0.00313 | H18: 0.0001 | I18: 0.00144 | J18: 0.00059 | K18: 0.0001 | L18: 0.0001 | M18: 0.00069 | N18: 0.00046 | O18: 0.00157 | P18: 0.00101 | Q18: 0.0001 | R18: 0.0001 | S18: 0.00014 | T18: 0.00159 | U18: 0.00192 | V18: 0.00285 | W18: 0.00348 | X18: 0.00672 | Y18: 0.00505 | Z18: 0.00623 | AA18: 0.00814 | AB18: 0.00795 | AC18: 0.00807 | AD18: 0.00842 | AE18: 0.00676 | AF18: 0.00512 | AG18: 0.00739 | AH18: 0.00846 | AI18: 0.00869 | AJ18: 0.00872 | AK18: 0.00887 | AL18: 0.00837 | AM18: 0.00867 | AN18: 0.00794 | AO18: 0.00871 | AP18: 0.00829 | AQ18: 0.00893 | AR18: 0.01165 | AS18: 0.00848 | AT18: 0.00975 | AU18: 0.01173 | AV18: 0.01029 | AW18: 0.0104 | AX18: 0.00837 | AY18: 0.00931 | AZ18: 0.01064 | BA18: 0.00851 | BB18: 0.00873 | BC18: 0.00716 | BD18: 0.00478 | BE18: 0.00622 | BF18: 0.0098 | BG18: 0.01073 | BH18: 0.00819 | BI18: 0.0079 | BJ18: 0.0088 | BK18: 0.00956 | BL18: 0.01129 | BM18: 0.01196 | BN18: 0.01243 | BO18: 0.0114 | BP18: 0.0111 | BQ18: 0.01199 | BR18: 0.0125 | BS18: 0.01252 | BT18: 0.01116 | BU18: 0.00932 | BV18: 0.01003 | BW18: 0.01006 | BX18: 0.01187 | BY18: 0.01235 | BZ18: 0.01244 | CA18: 0.01282 | CB18: 0.01309 | CC18: 0.01278 | CD18: 0.01421 | CE18: 0.01454 | CF18: 0.01665 | CG18: 0.01701 | CH18: 0.01718 | CI18: 0.01815 | CJ18: 0.01874 | CK18: 0.02094 | CL18: 0.02056 | CM18: 0.02225 | CN18: 0.02359 | CO18: 0.02552 | CP18: 0.02488 | CQ18: 0.02433 | CR18: 0.02533 | CS18: 0.02545 | CT18: 0.02632 | CU18: 0.02596 | CV18: 0.02605 | CW18: 0.02619 | CX18: 0.02539 | CY18: 0.0267 | CZ18: 0.02685 | DA18: 0.025 | DB18: 0.02549 | DC18: 0.0262 | DD18: 0.02521 | DE18: 0.02256 | DF18: 0.02229 | DG18: 0.02193 | DH18: 0.02273 | DI18: 0.02154 | DJ18: 0.02056 | DK18: 0.0193 | DL18: 0.01815 | DM18: 0.01824 | DN18: 0.01914 | DO18: 0.01983 | DP18: 0.0207 | DQ18: 0.02121 | DR18: 0.02012 | DS18: 0.02044 | DT18: 0.01915 | DU18: 0.01886 | DV18: 0.02019 | DW18: 0.01958 | DX18: 0.01879 | DY18: 0.0164 | DZ18: 0.01675 | EA18: 0.01425 | EB18: 0.01393 | EC18: 0.01511 | ED18: 0.01537 | EE18: 0.01567 | EF18: 0.01531 | EG18: 0.01457 | EH18: 0.01612 | EI18: 0.01465 | EJ18: 0.01534 | EK18: 0.01516 | EL18: 0.01434 | EM18: 0.01499 | EN18: 0.01544 | EO18: 0.01546 | EP18: 0.01573 | EQ18: 0.01762 | ER18: 0.01605 | ES18: 0.01768 | ET18: 0.01758 | EU18: 0.01869 | EV18: 0.01811 | EW18: 0.0198 | EX18: 0.02027 | EY18: 0.02055 | EZ18: 0.02016 | FA18: 0.01953 | FB18: 0.01943 | FC18: 0.01958 | FD18: 0.01871 | FE18: 0.01808 | FF18: 0.0172 | FG18: 0.01817 | FH18: 0.01918 | FI18: 0.01966 | FJ18: 0.02087 | FK18: 0.01967 | FL18: 0.02056 | FM18: 0.01906 | FN18: 0.02135 | FO18: 0.0182 | FP18: 0.02068 | FQ18: 0.02033 | FR18: 0.02334 | FS18: 0.02144 | FT18: 0.02202 | FU18: 0.02085 | FV18: 0.02246 | FW18: 0.02423 | FX18: 0.02716 | FY18: 0.02919 | FZ18: 0.02725 | GA18: 0.03001 | GB18: 0.02873 | GC18: 0.02791 | GD18: 0.02642 | GE18: 0.02607 | GF18: 0.02434 | GG18: 0.02667 | GH18: 0.02495 | GI18: 0.02183 | GJ18: 0.02131 | GK18: 0.0206 | GL18: 0.02123 | GM18: 0.01996 | GN18: 0.02028 | GO18: 0.02013 | GP18: 0.01981 | GQ18: 0.01753 | GR18: 0.01658 | GS18: 0.0155 | GT18: 0.01493 | GU18: 0.0165 | GV18: 0.01702 | GW18: 0.01831 | GX18: 0.02103 | GY18: 0.02158 | GZ18: 0.02049 | HA18: 0.01746 | HB18: 0.01863 | HC18: 0.01743 | HD18: 0.01854 | HE18: 0.01685 | HF18: 0.0143 | HG18: 0.01576 | HH18: 0.01461 | HI18: 0.01436 | HJ18: 0.01079 | HK18: 0.00983 | HL18: 0.01084 | HM18: 0.01282 | HN18: 0.01168 | HO18: 0.01236 | HP18: 0.01203 | HQ18: 0.01192 | HR18: 0.01319 | HS18: 0.00883 | HT18: 0.01122 | HU18: 0.00972 | HV18: 0.01001 | HW18: 0.0115 | HX18: 0.01276 | HY18: 0.01171 | HZ18: 0.012 | IA18: 0.01413 | IB18: 0.01627 | IC18: 0.01614 | ID18: 0.01514 | IE18: 0.01652 | IF18: 0.01574 | IG18: 0.01912 | IH18: 0.01872 | II18: 0.02162 | IJ18: 0.01999 | IK18: 0.0217 | IL18: 0.02091 | IM18: 0.01992 | IN18: 0.0176 | IO18: 0.01781 | IP18: 0.01674 | IQ18: 0.01681 | IR18: 0.01562 | IS18: 0.0157 | IT18: 0.01453 | IU18: 0.01448 | IV18: 0.01752 | IW18: 0.01502 | IX18: 0.0178 | IY18: 0.0138 | IZ18: 0.01403 | JA18: 0.0136 | JB18: 0.01437 | JC18: 0.01498 | JD18: 0.01532 | JE18: 0.01609 | JF18: 0.01779 | JG18: 0.01931 | JH18: 0.01898 | JI18: 0.01882 | JJ18: 0.01691 | JK18: 0.01621 | JL18: 0.01805 | JM18: 0.01868 | JN18: 0.0195 | JO18: 0.01884 | JP18: 0.02099 | JQ18: 0.02179 | JR18: 0.01855 | JS18: 0.01548 | JT18: 0.01504 | JU18: 0.01636 | JV18: 0.01575 | JW18: 0.01775 | JX18: 0.01877 | JY18: 0.01702 | JZ18: 0.01556 | KA18: 0.01112 | KB18: 0.01 | KC18: 0.00859 | KD18: 0.00968 | KE18: 0.01183 | KF18: 0.01343 | KG18: 0.01693 | KH18: 0.01599 | KI18: 0.01189 | KJ18: 0.01603 | KK18: 0.01478 | KL18: 0.01421 | KM18: 0.01368 | KN18: 0.01671 | KO18: 0.01383 | KP18: 0.01677 | KQ18: 0.0214 | KR18: 0.02012 | KS18: 0.02195 | KT18: 0.02003 | KU18: 0.01743 | KV18: 0.01833 | KW18: 0.01949 | KX18: 0.01952 | KY18: 0.0214 | KZ18: 0.01987 | LA18: 0.02068 | LB18: 0.0194 | LC18: 0.01854 | LD18: 0.01947 | LE18: 0.01834 | LF18: 0.01661 | LG18: 0.02107 | LH18: 0.02272 | LI18: 0.02035 | LJ18: 0.02103 | LK18: 0.01695 | LL18: 0.01908 | LM18: 0.01866 | LN18: 0.02205 | LO18: 0.02283 | LP18: 0.02258 | LQ18: 0.02166 | LR18: 0.01999 | LS18: 0.02127 | LT18: 0.02146 | LU18: 0.01995 | LV18: 0.02085 | LW18: 0.02354 | LX18: 0.02394 | LY18: 0.02493 | LZ18: 0.02802 | MA18: 0.03091 | MB18: 0.02935 | MC18: 0.02805 | MD18: 0.02835 | ME18: 0.02722 | MF18: 0.02852 | MG18: 0.03018 | MH18: 0.02919 | MI18: 0.0304 | MJ18: 0.03552 | MK18: 0.02924 | ML18: 0.02888 | MM18: 0.03413 | MN18: 0.03699 | MO18: 0.03632 | MP18: 0.03688 | MQ18: 0.03886 | MR18: 0.04394 | MS18: 0.04555 | MT18: 0.04361 | MU18: 0.039 | MV18: 0.04301 | MW18: 0.04357 | MX18: 0.04517 | MY18: 0.04452 | MZ18: 0.04252 | NA18: 0.04039 | NB18: 0.03988 | NC18: 0.03724 | ND18: 0.03337 | NE18: 0.035 | NF18: 0.03287 | NG18: 0.03201 | NH18: 0.03928 | NI18: 0.03944 | NJ18: 0.0384 | NK18: 0.03848 | NL18: 0.04485 | NM18: 0.04567 | NN18: 0.04335 | NO18: 0.03877 | NP18: 0.03877 | NQ18: 0.04061 | NR18: 0.04394 | NS18: 0.04483 | NT18: 0.04765 | NU18: 0.04196 | NV18: 0.03664 | NW18: 0.03463 | NX18: 0.03533 | NY18: 0.0389 | NZ18: 0.04408 | OA18: 0.05047 | OB18: 0.05272 | OC18: 0.05011 | OD18: 0.04946 | OE18: 0.0517 | OF18: 0.04944 | OG18: 0.04851 | OH18: 0.05123 | OI18: 0.0534 | OJ18: 0.05429 | OK18: 0.0555 | OL18: 0.05488 | OM18: 0.05404 | ON18: 0.05127 | OO18: 0.05072 | OP18: 0.05055 | OQ18: 0.04778 | OR18: 0.04981 | OS18: 0.0451 | OT18: 0.04474 | OU18: 0.04262 | OV18: 0.03895 | OW18: 0.03774 | OX18: 0.0405 | OY18: 0.04289 | OZ18: 0.0438 | PA18: 0.04849 | PB18: 0.04706 | PC18: 0.04604 | PD18: 0.04421 | PE18: 0.04352 | PF18: 0.03856 | PG18: 0.03943 | PH18: 0.03692 | PI18: 0.03653 | PJ18: 0.0431 | PK18: 0.04329 | PL18: 0.04111 | PM18: 0.03734 | PN18: 0.03593 | PO18: 0.03717 | PP18: 0.0357 | PQ18: 0.03315 | PR18: 0.03186 | PS18: 0.03033 | PT18: 0.03121 | PU18: 0.0316 | PV18: 0.02967 | PW18: 0.03146 | PX18: 0.03134 | PY18: 0.03123 | PZ18: 0.03173 | QA18: 0.03439 | QB18: 0.03455 | QC18: 0.03427 | QD18: 0.03567 | QE18: 0.04067 | QF18: 0.03996 | QG18: 0.04602 | QH18: 0.04722 | QI18: 0.04748 | QJ18: 0.04765 | QK18: 0.04321 | QL18: 0.04307 | QM18: 0.04461 | QN18: 0.04266 | QO18: 0.04915 | QP18: 0.04743 | QQ18: 0.04015 | QR18: 0.04208 | QS18: 0.04228 | QT18: 0.04575 | QU18: 0.04863 | QV18: 0.0502 | QW18: 0.05447 | QX18: 0.04872 | QY18: 0.04945 | QZ18: 0.04809 | RA18: 0.0461 | RB18: 0.04173 | RC18: 0.03952 | RD18: 0.03858 | RE18: 0.03514 | RF18: 0.03183 | RG18: 0.03473 | RH18: 0.02989 | RI18: 0.03293 | RJ18: 0.02737 | RK18: 0.03016 | RL18: 0.0273 | RM18: 0.01703 | RN18: 0.02062 | RO18: 0.02069 | RP18: 0.02193 | RQ18: 0.02254 | RR18: 0.02082 | RS18: 0.01733 | RT18: 0.0191 | RU18: 0.02445 | RV18: 0.02017 | RW18: 0.02118 | RX18: 0.02259 | RY18: 0.01883 | RZ18: 0.01961 | SA18: 0.01829 | SB18: 0.02031 | SC18: 0.02262 | SD18: 0.02239 | SE18: 0.02413 | SF18: 0.0208 | SG18: 0.02436 | SH18: 0.02203 | SI18: 0.02436 | SJ18: 0.02544 | SK18: 0.03034 | SL18: 0.0296 | SM18: 0.03004 | SN18: 0.03085 | SO18: 0.03366 | SP18: 0.03525 | SQ18: 0.0358 | SR18: 0.0349 | SS18: 0.02724 | ST18: 0.02723 | SU18: 0.03178 | SV18: 0.03113 | SW18: 0.03324 | SX18: 0.03533 | SY18: 0.03899 | SZ18: 0.03813 | TA18: 0.03704 | TB18: 0.03693 | TC18: 0.04264 | TD18: 0.04013 | TE18: 0.04019 | TF18: 0.03678 | TG18: 0.03883 | TH18: 0.04124 | TI18: 0.04218 | TJ18: 0.04001 | TK18: 0.04049 | TL18: 0.04157 | TM18: 0.03753 | TN18: 0.034 | TO18: 0.03515 | TP18: 0.03672 | TQ18: 0.03562 | TR18: 0.03573 | TS18: 0.0363 | TT18: 0.03338 | TU18: 0.03199 | TV18: 0.03124 | TW18: 0.03109 | TX18: 0.02847 | TY18: 0.02703 | TZ18: 0.02437 | UA18: 0.02507 | UB18: 0.0247 | UC18: 0.02632 | UD18: 0.02307 | UE18: 0.02816 | UF18: 0.02393 | UG18: 0.02273 | UH18: 0.02518 | UI18: 0.02794 | UJ18: 0.03013 | UK18: 0.03448 | UL18: 0.03421 | UM18: 0.03592 | UN18: 0.03706 | UO18: 0.04157 | UP18: 0.0463 | UQ18: 0.03714 | UR18: 0.04001 | US18: 0.04667 | UT18: 0.04593 | UU18: 0.04966 | UV18: 0.04202 | UW18: 0.04188 | UX18: 0.03932 | UY18: 0.04532 | UZ18: 0.04256 | VA18: 0.05324 | VB18: 0.04717 | VC18: 0.04156 | VD18: 0.04212 | VE18: 0.04223 | VF18: 0.0477 | VG18: 0.04558 | VH18: 0.04517 | VI18: 0.04355 | VJ18: 0.04268 | VK18: 0.04227 | VL18: 0.04573 | VM18: 0.0426 | VN18: 0.03956 | VO18: 0.03622 | VP18: 0.03628 | VQ18: 0.03616 | VR18: 0.0343 | VS18: 0.03188 | VT18: 0.03183 | VU18: 0.03359 | VV18: 0.03292 | VW18: 0.03256 | VX18: 0.03123 | VY18: 0.03234 | VZ18: 0.03319 | WA18: 0.03442 | WB18: 0.03172 | WC18: 0.03373 | WD18: 0.03017 | WE18: 0.02663 | WF18: 0.02431 | WG18: 0.03041 | WH18: 0.03233 | WI18: 0.03348 | WJ18: 0.03108 | WK18: 0.02796 | WL18: 0.02796 | WM18: 0.02767 | WN18: 0.02656 | WO18: 0.02816 | WP18: 0.02997
A19: 18 | B19: 0.0013 | C19: 0.0001 | D19: 0.0001 | E19: 0.0001 | F19: 0.0001 | G19: 0.0001 | H19: 0.0001 | I19: 0.0001 | J19: 0.00165 | K19: 0.00279 | L19: 0.00276 | M19: 0.00142 | N19: 0.00382 | O19: 0.00526 | P19: 0.00549 | Q19: 0.00453 | R19: 0.00688 | S19: 0.00683 | T19: 0.01028 | U19: 0.00824 | V19: 0.00871 | W19: 0.00851 | X19: 0.00868 | Y19: 0.00839 | Z19: 0.00768 | AA19: 0.00652 | AB19: 0.00804 | AC19: 0.01019 | AD19: 0.0099 | AE19: 0.01118 | AF19: 0.01276 | AG19: 0.01172 | AH19: 0.01111 | AI19: 0.00934 | AJ19: 0.00714 | AK19: 0.0052 | AL19: 0.00558 | AM19: 0.00494 | AN19: 0.00441 | AO19: 0.00691 | AP19: 0.00633 | AQ19: 0.00404 | AR19: 0.00485 | AS19: 0.00273 | AT19: 0.00508 | AU19: 0.00505 | AV19: 0.00555 | AW19: 0.00784 | AX19: 0.00948 | AY19: 0.01078 | AZ19: 0.01297 | BA19: 0.01153 | BB19: 0.00998 | BC19: 0.01142 | BD19: 0.01191 | BE19: 0.01253 | BF19: 0.01046 | BG19: 0.01143 | BH19: 0.01193 | BI19: 0.01106 | BJ19: 0.01071 | BK19: 0.01087 | BL19: 0.01048 | BM19: 0.00837 | BN19: 0.00923 | BO19: 0.00868 | BP19: 0.00858 | BQ19: 0.00627 | BR19: 0.00601 | BS19: 0.00553 | BT19: 0.00598 | BU19: 0.00541 | BV19: 0.00554 | BW19: 0.00167 | BX19: 0.0028 | BY19: 0.00054 | BZ19: 0.00091 | CA19: 0.00239 | CB19: 0.00176 | CC19: 0.00358 | CD19: 0.00342 | CE19: 0.00189 | CF19: 0.0019 | CG19: 0.0017 | CH19: 0.00328 | CI19: 0.0037 | CJ19: 0.00433 | CK19: 0.00576 | CL19: 0.00579 | CM19: 0.00899 | CN19: 0.00871 | CO19: 0.00649 | CP19: 0.00753 | CQ19: 0.01085 | CR19: 0.01021 | CS19: 0.01182 | CT19: 0.01304 | CU19: 0.01357 | CV19: 0.0128 | CW19: 0.01438 | CX19: 0.01161 | CY19: 0.01115 | CZ19: 0.01213 | DA19: 0.01756 | DB19: 0.01744 | DC19: 0.02107 | DD19: 0.01791 | DE19: 0.0199 | DF19: 0.01886 | DG19: 0.01832 | DH19: 0.01657 | DI19: 0.0126 | DJ19: 0.01568 | DK19: 0.02027 | DL19: 0.02162 | DM19: 0.02199 | DN19: 0.02656 | DO19: 0.02215 | DP19: 0.02272 | DQ19: 0.02155 | DR19: 0.02271 | DS19: 0.02452 | DT19: 0.02431 | DU19: 0.02507 | DV19: 0.02619 | DW19: 0.02445 | DX19: 0.02721 | DY19: 0.0298 | DZ19: 0.03415 | EA19: 0.03362 | EB19: 0.03422 | EC19: 0.0344 | ED19: 0.03102 | EE19: 0.02951 | EF19: 0.02972 | EG19: 0.02745 | EH19: 0.02218 | EI19: 0.02462 | EJ19: 0.02553 | EK19: 0.02848 | EL19: 0.02814 | EM19: 0.02685 | EN19: 0.02548 | EO19: 0.02497 | EP19: 0.02185 | EQ19: 0.02637 | ER19: 0.02795 | ES19: 0.03147 | ET19: 0.0307 | EU19: 0.02901 | EV19: 0.02787 | EW19: 0.0247 | EX19: 0.02204 | EY19: 0.02102 | EZ19: 0.02097 | FA19: 0.02019 | FB19: 0.02087 | FC19: 0.02179 | FD19: 0.02023 | FE19: 0.02087 | FF19: 0.02238 | FG19: 0.02421 | FH19: 0.02333 | FI19: 0.02413 | FJ19: 0.02305 | FK19: 0.02502 | FL19: 0.02284 | FM19: 0.02211 | FN19: 0.02161 | FO19: 0.01957 | FP19: 0.02098 | FQ19: 0.02124 | FR19: 0.02126 | FS19: 0.02059 | FT19: 0.02303 | FU19: 0.02295 | FV19: 0.01954 | FW19: 0.01828 | FX19: 0.0171 | FY19: 0.01895 | FZ19: 0.01916 | GA19: 0.02187 | GB19: 0.02295 | GC19: 0.01935 | GD19: 0.01981 | GE19: 0.02054 | GF19: 0.02003 | GG19: 0.01857 | GH19: 0.01745 | GI19: 0.01788 | GJ19: 0.01729 | GK19: 0.02043 | GL19: 0.01935 | GM19: 0.01587 | GN19: 0.01772 | GO19: 0.01762 | GP19: 0.01781 | GQ19: 0.01901 | GR19: 0.01949 | GS19: 0.01727 | GT19: 0.01832 | GU19: 0.01781 | GV19: 0.01867 | GW19: 0.01732 | GX19: 0.01829 | GY19: 0.02071 | GZ19: 0.02015 | HA19: 0.02108 | HB19: 0.01984 | HC19: 0.02548 | HD19: 0.02207 | HE19: 0.02159 | HF19: 0.02195 | HG19: 0.02082 | HH19: 0.01862 | HI19: 0.01797 | HJ19: 0.01687 | HK19: 0.01578 | HL19: 0.01469 | HM19: 0.01678 | HN19: 0.01804 | HO19: 0.02229 | HP19: 0.02011 | HQ19: 0.01906 | HR19: 0.01887 | HS19: 0.01994 | HT19: 0.02156 | HU19: 0.02323 | HV19: 0.02509 | HW19: 0.02768 | HX19: 0.02836 | HY19: 0.02796 | HZ19: 0.03081 | IA19: 0.03275 | IB19: 0.03482 | IC19: 0.03364 | ID19: 0.03005 | IE19: 0.0274 | IF19: 0.02714 | IG19: 0.02798 | IH19: 0.02918 | II19: 0.02894 | IJ19: 0.02913 | IK19: 0.03301 | IL19: 0.03277 | IM19: 0.03452 | IN19: 0.03299 | IO19: 0.03354 | IP19: 0.03816 | IQ19: 0.03886 | IR19: 0.03946 | IS19: 0.04159 | IT19: 0.03599 | IU19: 0.03825 | IV19: 0.03512 | IW19: 0.03711 | IX19: 0.03868 | IY19: 0.04153 | IZ19: 0.04331 | JA19: 0.04131 | JB19: 0.04632 | JC19: 0.04364 | JD19: 0.04716 | JE19: 0.04547 | JF19: 0.04705 | JG19: 0.04652 | JH19: 0.04595 | JI19: 0.04168 | JJ19: 0.04558 | JK19: 0.04369 | JL19: 0.03901 | JM19: 0.03765 | JN19: 0.03844 | JO19: 0.03633 | JP19: 0.03643 | JQ19: 0.03699 | JR19: 0.03782 | JS19: 0.04014 | JT19: 0.03809 | JU19: 0.03647 | JV19: 0.03949 | JW19: 0.03919 | JX19: 0.0361 | JY19: 0.03843 | JZ19: 0.03811 | KA19: 0.03898 | KB19: 0.04015 | KC19: 0.03675 | KD19: 0.03934 | KE19: 0.04045 | KF19: 0.03791 | KG19: 0.0371 | KH19: 0.03977 | KI19: 0.03933 | KJ19: 0.03996 | KK19: 0.03931 | KL19: 0.03913 | KM19: 0.03937 | KN19: 0.03627 | KO19: 0.03985 | KP19: 0.04243 | KQ19: 0.04623 | KR19: 0.04555 | KS19: 0.04434 | KT19: 0.04323 | KU19: 0.0421 | KV19: 0.04296 | KW19: 0.04309 | KX19: 0.04003 | KY19: 0.04181 | KZ19: 0.04313 | LA19: 0.04507 | LB19: 0.04596 | LC19: 0.04392 | LD19: 0.04099 | LE19: 0.0451 | LF19: 0.04557 | LG19: 0.047 | LH19: 0.04936 | LI19: 0.04979 | LJ19: 0.05017 | LK19: 0.05115 | LL19: 0.0514 | LM19: 0.05406 | LN19: 0.04991 | LO19: 0.05085 | LP19: 0.04665 | LQ19: 0.04725 | LR19: 0.04865 | LS19: 0.04797 | LT19: 0.04951 | LU19: 0.05025 | LV19: 0.0512 | LW19: 0.04963 | LX19: 0.05014 | LY19: 0.05432 | LZ19: 0.05001 | MA19: 0.04948 | MB19: 0.05044 | MC19: 0.04926 | MD19: 0.04721 | ME19: 0.04341 | MF19: 0.04286 | MG19: 0.04147 | MH19: 0.04201 | MI19: 0.04522 | MJ19: 0.04808 | MK19: 0.04775 | ML19: 0.04592 | MM19: 0.04812 | MN19: 0.05316 | MO19: 0.05426 | MP19: 0.05555 | MQ19: 0.05223 | MR19: 0.05236 | MS19: 0.05637 | MT19: 0.05443 | MU19: 0.05835 | MV19: 0.06212 | MW19: 0.06204 | MX19: 0.05979 | MY19: 0.05639 | MZ19: 0.0609 | NA19: 0.06005 | NB19: 0.05919 | NC19: 0.05539 | ND19: 0.0587 | NE19: 0.05382 | NF19: 0.0537 | NG19: 0.05429 | NH19: 0.05488 | NI19: 0.06121 | NJ19: 0.05898 | NK19: 0.06091 | NL19: 0.05769 | NM19: 0.05431 | NN19: 0.05055 | NO19: 0.05256 | NP19: 0.04933 | NQ19: 0.05045 | NR19: 0.05183 | NS19: 0.04882 | NT19: 0.04896 | NU19: 0.04913 | NV19: 0.04801 | NW19: 0.04927 | NX19: 0.0525 | NY19: 0.04927 | NZ19: 0.05136 | OA19: 0.0515 | OB19: 0.0519 | OC19: 0.05594 | OD19: 0.05705 | OE19: 0.05551 | OF19: 0.05558 | OG19: 0.05606 | OH19: 0.05658 | OI19: 0.05932 | OJ19: 0.05324 | OK19: 0.05294 | OL19: 0.04847 | OM19: 0.05082 | ON19: 0.04646 | OO19: 0.04737 | OP19: 0.04206 | OQ19: 0.04384 | OR19: 0.03909 | OS19: 0.03522 | OT19: 0.0375 | OU19: 0.03993 | OV19: 0.04108 | OW19: 0.04478 | OX19: 0.0454 | OY19: 0.04609 | OZ19: 0.04841 | PA19: 0.04438 | PB19: 0.03869 | PC19: 0.03801 | PD19: 0.041 | PE19: 0.03663 | PF19: 0.03618 | PG19: 0.03266 | PH19: 0.03028 | PI19: 0.03164 | PJ19: 0.03079 | PK19: 0.02683 | PL19: 0.02365 | PM19: 0.02672 | PN19: 0.02855 | PO19: 0.03697 | PP19: 0.03868 | PQ19: 0.03729 | PR19: 0.03439 | PS19: 0.03819 | PT19: 0.04412 | PU19: 0.04115 | PV19: 0.04585 | PW19: 0.0485 | PX19: 0.05204 | PY19: 0.0441 | PZ19: 0.03861 | QA19: 0.03834 | QB19: 0.03685 | QC19: 0.0368 | QD19: 0.03761 | QE19: 0.03568 | QF19: 0.03861 | QG19: 0.03979 | QH19: 0.04283 | QI19: 0.03767 | QJ19: 0.03957 | QK19: 0.03147 | QL19: 0.03067 | QM19: 0.02886 | QN19: 0.03001 | QO19: 0.02696 | QP19: 0.02202 | QQ19: 0.02918 | QR19: 0.02267 | QS19: 0.01887 | QT19: 0.01758 | QU19: 0.01676 | QV19: 0.01617 | QW19: 0.01551 | QX19: 0.01741 | QY19: 0.01642 | QZ19: 0.02468 | RA19: 0.02752 | RB19: 0.03163 | RC19: 0.0297 | RD19: 0.02721 | RE19: 0.02891 | RF19: 0.01915 | RG19: 0.01719 | RH19: 0.01319 | RI19: 0.01842 | RJ19: 0.0251 | RK19: 0.01916 | RL19: 0.02086 | RM19: 0.02185 | RN19: 0.01592 | RO19: 0.0177 | RP19: 0.02271 | RQ19: 0.0251 | RR19: 0.02801 | RS19: 0.03186 | RT19: 0.03079 | RU19: 0.03206 | RV19: 0.02838 | RW19: 0.02281 | RX19: 0.01687 | RY19: 0.01562 | RZ19: 0.01586 | SA19: 0.01887 | SB19: 0.02146 | SC19: 0.02151 | SD19: 0.01728 | SE19: 0.01612 | SF19: 0.01777 | SG19: 0.01977 | SH19: 0.01932 | SI19: 0.01516 | SJ19: 0.01711 | SK19: 0.0191 | SL19: 0.01861 | SM19: 0.01894 | SN19: 0.02031 | SO19: 0.01931 | SP19: 0.01806 | SQ19: 0.01627 | SR19: 0.01067 | SS19: 0.01082 | ST19: 0.00689 | SU19: 0.00307 | SV19: 0.00475 | SW19: 0.00646 | SX19: 0.00643 | SY19: 0.00564 | SZ19: 0.00458 | TA19: 0.0067 | TB19: 0.00761 | TC19: 0.00876 | TD19: 0.00839 | TE19: 0.00885 | TF19: 0.00925 | TG19: 0.00348 | TH19: 0.00374 | TI19: 0.0069 | TJ19: 0.00533 | TK19: 0.00389 | TL19: 0.00305 | TM19: 0.00469 | TN19: 0.00713 | TO19: 0.01038 | TP19: 0.00768 | TQ19: 0.00976 | TR19: 0.01042 | TS19: 0.0099 | TT19: 0.0112 | TU19: 0.01391 | TV19: 0.0136 | TW19: 0.01082 | TX19: 0.01453 | TY19: 0.01385 | TZ19: 0.01547 | UA19: 0.01842 | UB19: 0.01768 | UC19: 0.02019 | UD19: 0.01977 | UE19: 0.02114 | UF19: 0.01878 | UG19: 0.02226 | UH19: 0.02374 | UI19: 0.02665 | UJ19: 0.02913 | UK19: 0.02554 | UL19: 0.02713 | UM19: 0.02931 | UN19: 0.03095 | UO19: 0.03106 | UP19: 0.031 | UQ19: 0.03137 | UR19: 0.03414 | US19: 0.0316 | UT19: 0.03226 | UU19: 0.02874 | UV19: 0.03613 | UW19: 0.03811 | UX19: 0.03968 | UY19: 0.04493 | UZ19: 0.04507 | VA19: 0.04423 | VB19: 0.04763 | VC19: 0.05051 | VD19: 0.04992 | VE19: 0.05046 | VF19: 0.0528 | VG19: 0.05409 | VH19: 0.05348 | VI19: 0.05324 | VJ19: 0.05796 | VK19: 0.06046 | VL19: 0.05702 | VM19: 0.05309 | VN19: 0.04971 | VO19: 0.04741 | VP19: 0.05707 | VQ19: 0.06159 | VR19: 0.06029 | VS19: 0.05662 | VT19: 0.05648 | VU19: 0.05916 | VV19: 0.05936 | VW19: 0.05865 | VX19: 0.0549 | VY19: 0.05322 | VZ19: 0.05518 | WA19: 0.06591 | WB19: 0.06103 | WC19: 0.06096 | WD19: 0.05916 | WE19: 0.06113 | WF19: 0.05324 | WG19: 0.05596 | WH19: 0.05666 | WI19: 0.05642 | WJ19: 0.05273 | WK19: 0.04912 | WL19: 0.05142 | WM19: 0.04865 | WN19: 0.05049 | WO19: 0.05005 | WP19: 0.05244
A20: 19 | B20: 0.0013 | C20: 0.00144 | D20: 0.00217 | E20: 0.0001 | F20: 0.0001 | G20: 0.00191 | H20: 0.00451 | I20: 0.00418 | J20: 0.00453 | K20: 0.00612 | L20: 0.00432 | M20: 0.00396 | N20: 0.00296 | O20: 0.0001 | P20: 0.0001 | Q20: 0.0023 | R20: 0.0043 | S20: 0.0056 | T20: 0.00825 | U20: 0.00438 | V20: 0.00687 | W20: 0.00952 | X20: 0.01029 | Y20: 0.01066 | Z20: 0.01109 | AA20: 0.01402 | AB20: 0.01027 | AC20: 0.0111 | AD20: 0.01248 | AE20: 0.01465 | AF20: 0.01289 | AG20: 0.01295 | AH20: 0.01023 | AI20: 0.01126 | AJ20: 0.0104 | AK20: 0.00894 | AL20: 0.00527 | AM20: 0.00712 | AN20: 0.00907 | AO20: 0.01072 | AP20: 0.01065 | AQ20: 0.01099 | AR20: 0.01232 | AS20: 0.00782 | AT20: 0.00679 | AU20: 0.0063 | AV20: 0.00569 | AW20: 0.00701 | AX20: 0.00732 | AY20: 0.00602 | AZ20: 0.00748 | BA20: 0.00919 | BB20: 0.00784 | BC20: 0.00929 | BD20: 0.00947 | BE20: 0.01225 | BF20: 0.01248 | BG20: 0.01383 | BH20: 0.01327 | BI20: 0.01077 | BJ20: 0.01067 | BK20: 0.01086 | BL20: 0.01102 | BM20: 0.01202 | BN20: 0.01063 | BO20: 0.01163 | BP20: 0.01319 | BQ20: 0.01356 | BR20: 0.01298 | BS20: 0.01444 | BT20: 0.01406 | BU20: 0.0159 | BV20: 0.01466 | BW20: 0.01385 | BX20: 0.01366 | BY20: 0.01518 | BZ20: 0.01599 | CA20: 0.01541 | CB20: 0.0148 | CC20: 0.01802 | CD20: 0.01741 | CE20: 0.01743 | CF20: 0.01569 | CG20: 0.01616 | CH20: 0.01593 | CI20: 0.017 | CJ20: 0.01645 | CK20: 0.01651 | CL20: 0.01699 | CM20: 0.01626 | CN20: 0.0178 | CO20: 0.01631 | CP20: 0.01508 | CQ20: 0.01612 | CR20: 0.01425 | CS20: 0.01625 | CT20: 0.01591 | CU20: 0.01638 | CV20: 0.01645 | CW20: 0.01624 | CX20: 0.01757 | CY20: 0.01668 | CZ20: 0.0165 | DA20: 0.01902 | DB20: 0.01825 | DC20: 0.0189 | DD20: 0.01873 | DE20: 0.02108 | DF20: 0.02206 | DG20: 0.02448 | DH20: 0.02367 | DI20: 0.02267 | DJ20: 0.02155 | DK20: 0.02112 | DL20: 0.02112 | DM20: 0.02044 | DN20: 0.01924 | DO20: 0.01819 | DP20: 0.02081 | DQ20: 0.02197 | DR20: 0.02486 | DS20: 0.0241 | DT20: 0.02226 | DU20: 0.02394 | DV20: 0.02219 | DW20: 0.02324 | DX20: 0.02471 | DY20: 0.02331 | DZ20: 0.02511 | EA20: 0.02591 | EB20: 0.02542 | EC20: 0.02172 | ED20: 0.02162 | EE20: 0.02501 | EF20: 0.02721 | EG20: 0.02715 | EH20: 0.02411 | EI20: 0.02394 | EJ20: 0.02693 | EK20: 0.02463 | EL20: 0.02519 | EM20: 0.02666 | EN20: 0.02315 | EO20: 0.02483 | EP20: 0.02609 | EQ20: 0.02618 | ER20: 0.02744 | ES20: 0.02923 | ET20: 0.02714 | EU20: 0.02548 | EV20: 0.02456 | EW20: 0.02585 | EX20: 0.02712 | EY20: 0.02808 | EZ20: 0.02393 | FA20: 0.02514 | FB20: 0.02569 | FC20: 0.02664 | FD20: 0.02838 | FE20: 0.02334 | FF20: 0.02273 | FG20: 0.02201 | FH20: 0.01995 | FI20: 0.02009 | FJ20: 0.02221 | FK20: 0.02346 | FL20: 0.02457 | FM20: 0.029 | FN20: 0.02723 | FO20: 0.02408 | FP20: 0.02582 | FQ20: 0.02477 | FR20: 0.02718 | FS20: 0.0229 | FT20: 0.02439 | FU20: 0.0233 | FV20: 0.01526 | FW20: 0.01371 | FX20: 0.0192 | FY20: 0.01917 | FZ20: 0.01989 | GA20: 0.02064 | GB20: 0.02392 | GC20: 0.01747 | GD20: 0.0195 | GE20: 0.01988 | GF20: 0.02421 | GG20: 0.02511 | GH20: 0.0256 | GI20: 0.02661 | GJ20: 0.02414 | GK20: 0.02461 | GL20: 0.02338 | GM20: 0.02223 | GN20: 0.0242 | GO20: 0.02243 | GP20: 0.02092 | GQ20: 0.01977 | GR20: 0.02165 | GS20: 0.02154 | GT20: 0.01893 | GU20: 0.02087 | GV20: 0.01626 | GW20: 0.01906 | GX20: 0.01747 | GY20: 0.01533 | GZ20: 0.01672 | HA20: 0.01738 | HB20: 0.01858 | HC20: 0.01689 | HD20: 0.01916 | HE20: 0.0188 | HF20: 0.01831 | HG20: 0.01725 | HH20: 0.01479 | HI20: 0.01415 | HJ20: 0.01247 | HK20: 0.00988 | HL20: 0.00789 | HM20: 0.00533 | HN20: 0.00443 | HO20: 0.00852 | HP20: 0.00787 | HQ20: 0.00636 | HR20: 0.00674 | HS20: 0.00971 | HT20: 0.00941 | HU20: 0.00995 | HV20: 0.01204 | HW20: 0.01072 | HX20: 0.00971 | HY20: 0.01308 | HZ20: 0.01535 | IA20: 0.01418 | IB20: 0.01641 | IC20: 0.01258 | ID20: 0.01114 | IE20: 0.01258 | IF20: 0.01424 | IG20: 0.01065 | IH20: 0.00998 | II20: 0.01202 | IJ20: 0.01226 | IK20: 0.0133 | IL20: 0.01535 | IM20: 0.0137 | IN20: 0.01526 | IO20: 0.01899 | IP20: 0.02017 | IQ20: 0.02519 | IR20: 0.0195 | IS20: 0.02325 | IT20: 0.01753 | IU20: 0.02201 | IV20: 0.01971 | IW20: 0.01847 | IX20: 0.01875 | IY20: 0.01962 | IZ20: 0.01969 | JA20: 0.01971 | JB20: 0.01982 | JC20: 0.0164 | JD20: 0.01546 | JE20: 0.01398 | JF20: 0.01298 | JG20: 0.01382 | JH20: 0.01573 | JI20: 0.02279 | JJ20: 0.02635 | JK20: 0.03079 | JL20: 0.02618 | JM20: 0.02366 | JN20: 0.02251 | JO20: 0.02148 | JP20: 0.0306 | JQ20: 0.02334 | JR20: 0.02758 | JS20: 0.02665 | JT20: 0.02469 | JU20: 0.02352 | JV20: 0.02276 | JW20: 0.02426 | JX20: 0.02191 | JY20: 0.01986 | JZ20: 0.02032 | KA20: 0.01844 | KB20: 0.02011 | KC20: 0.0232 | KD20: 0.02309 | KE20: 0.01986 | KF20: 0.0189 | KG20: 0.01697 | KH20: 0.01539 | KI20: 0.01305 | KJ20: 0.01219 | KK20: 0.01057 | KL20: 0.01158 | KM20: 0.01092 | KN20: 0.0115 | KO20: 0.01161 | KP20: 0.01075 | KQ20: 0.00891 | KR20: 0.00904 | KS20: 0.01042 | KT20: 0.00894 | KU20: 0.00946 | KV20: 0.00772 | KW20: 0.00704 | KX20: 0.00831 | KY20: 0.00892 | KZ20: 0.00787 | LA20: 0.00505 | LB20: 0.0026 | LC20: 0.00367 | LD20: 0.00524 | LE20: 0.00555 | LF20: 0.00236 | LG20: 0.00293 | LH20: 0.00444 | LI20: 0.00583 | LJ20: 0.00477 | LK20: 0.00552 | LL20: 0.00692 | LM20: 0.00624 | LN20: 0.0077 | LO20: 0.00708 | LP20: 0.00748 | LQ20: 0.0081 | LR20: 0.00592 | LS20: 0.00709 | LT20: 0.00693 | LU20: 0.00555 | LV20: 0.00784 | LW20: 0.00602 | LX20: 0.00785 | LY20: 0.00777 | LZ20: 0.00671 | MA20: 0.00737 | MB20: 0.0071 | MC20: 0.00731 | MD20: 0.00821 | ME20: 0.0063 | MF20: 0.00321 | MG20: 0.00552 | MH20: 0.00507 | MI20: 0.00449 | MJ20: 0.00231 | MK20: 0.00368 | ML20: 0.00441 | MM20: 0.00688 | MN20: 0.00796 | MO20: 0.00989 | MP20: 0.01147 | MQ20: 0.01087 | MR20: 0.00912 | MS20: 0.01034 | MT20: 0.00807 | MU20: 0.00789 | MV20: 0.00756 | MW20: 0.00744 | MX20: 0.00677 | MY20: 0.0068 | MZ20: 0.00556 | NA20: 0.0047 | NB20: 0.00311 | NC20: 0.00607 | ND20: 0.00573 | NE20: 0.00907 | NF20: 0.00983 | NG20: 0.00842 | NH20: 0.00809 | NI20: 0.00858 | NJ20: 0.00717 | NK20: 0.00807 | NL20: 0.00791 | NM20: 0.00808 | NN20: 0.01185 | NO20: 0.01179 | NP20: 0.01038 | NQ20: 0.01044 | NR20: 0.0075 | NS20: 0.00812 | NT20: 0.00991 | NU20: 0.01082 | NV20: 0.00997 | NW20: 0.01205 | NX20: 0.01615 | NY20: 0.01786 | NZ20: 0.01742 | OA20: 0.01651 | OB20: 0.01725 | OC20: 0.01936 | OD20: 0.01723 | OE20: 0.0152 | OF20: 0.01576 | OG20: 0.017 | OH20: 0.01498 | OI20: 0.0151 | OJ20: 0.01201 | OK20: 0.01107 | OL20: 0.01185 | OM20: 0.0129 | ON20: 0.01336 | OO20: 0.01151 | OP20: 0.0102 | OQ20: 0.00858 | OR20: 0.00762 | OS20: 0.00589 | OT20: 0.00593 | OU20: 0.00807 | OV20: 0.00903 | OW20: 0.00957 | OX20: 0.01216 | OY20: 0.01194 | OZ20: 0.01243 | PA20: 0.01636 | PB20: 0.01277 | PC20: 0.01076 | PD20: 0.01033 | PE20: 0.00974 | PF20: 0.01006 | PG20: 0.01155 | PH20: 0.01297 | PI20: 0.01203 | PJ20: 0.01319 | PK20: 0.01615 | PL20: 0.01728 | PM20: 0.01893 | PN20: 0.01749 | PO20: 0.01784 | PP20: 0.01745 | PQ20: 0.01651 | PR20: 0.01545 | PS20: 0.01497 | PT20: 0.01585 | PU20: 0.01523 | PV20: 0.01601 | PW20: 0.01722 | PX20: 0.01836 | PY20: 0.01945 | PZ20: 0.02197 | QA20: 0.02471 | QB20: 0.02744 | QC20: 0.02762 | QD20: 0.02624 | QE20: 0.02928 | QF20: 0.02838 | QG20: 0.02767 | QH20: 0.03095 | QI20: 0.03234 | QJ20: 0.03393 | QK20: 0.03564 | QL20: 0.03597 | QM20: 0.03619 | QN20: 0.03741 | QO20: 0.03475 | QP20: 0.03389 | QQ20: 0.03472 | QR20: 0.03396 | QS20: 0.03242 | QT20: 0.03388 | QU20: 0.03343 | QV20: 0.03191 | QW20: 0.03171 | QX20: 0.03054 | QY20: 0.033 | QZ20: 0.03156 | RA20: 0.03005 | RB20: 0.02826 | RC20: 0.02995 | RD20: 0.02735 | RE20: 0.03035 | RF20: 0.02695 | RG20: 0.02744 | RH20: 0.02748 | RI20: 0.02885 | RJ20: 0.02991 | RK20: 0.02969 | RL20: 0.02891 | RM20: 0.02725 | RN20: 0.02931 | RO20: 0.03091 | RP20: 0.02971 | RQ20: 0.03032 | RR20: 0.02932 | RS20: 0.0289 | RT20: 0.03141 | RU20: 0.03025 | RV20: 0.02997 | RW20: 0.02754 | RX20: 0.0276 | RY20: 0.02795 | RZ20: 0.02904 | SA20: 0.02829 | SB20: 0.02902 | SC20: 0.03214 | SD20: 0.03162 | SE20: 0.03356 | SF20: 0.03339 | SG20: 0.03116 | SH20: 0.03161 | SI20: 0.0321 | SJ20: 0.03304 | SK20: 0.03213 | SL20: 0.03215 | SM20: 0.03174 | SN20: 0.03348 | SO20: 0.03665 | SP20: 0.03753 | SQ20: 0.03669 | SR20: 0.03483 | SS20: 0.03594 | ST20: 0.03588 | SU20: 0.0336 | SV20: 0.03382 | SW20: 0.03494 | SX20: 0.03457 | SY20: 0.0297 | SZ20: 0.02656 | TA20: 0.0287 | TB20: 0.02689 | TC20: 0.02992 | TD20: 0.0301 | TE20: 0.03005 | TF20: 0.02753 | TG20: 0.03178 | TH20: 0.0334 | TI20: 0.03483 | TJ20: 0.03387 | TK20: 0.03274 | TL20: 0.03596 | TM20: 0.03985 | TN20: 0.04083 | TO20: 0.04274 | TP20: 0.04402 | TQ20: 0.04387 | TR20: 0.04462 | TS20: 0.04421 | TT20: 0.04804 | TU20: 0.04779 | TV20: 0.05047 | TW20: 0.05344 | TX20: 0.05424 | TY20: 0.05507 | TZ20: 0.05368 | UA20: 0.05468 | UB20: 0.05608 | UC20: 0.05998 | UD20: 0.05693 | UE20: 0.04885 | UF20: 0.04943 | UG20: 0.05002 | UH20: 0.04622 | UI20: 0.04926 | UJ20: 0.04807 | UK20: 0.04791 | UL20: 0.0469 | UM20: 0.04643 | UN20: 0.04731 | UO20: 0.05039 | UP20: 0.05159 | UQ20: 0.04848 | UR20: 0.04818 | US20: 0.04869 | UT20: 0.0467 | UU20: 0.04485 | UV20: 0.04424 | UW20: 0.04714 | UX20: 0.047 | UY20: 0.04942 | UZ20: 0.05276 | VA20: 0.05972 | VB20: 0.05999 | VC20: 0.05921 | VD20: 0.06063 | VE20: 0.06242 | VF20: 0.05976 | VG20: 0.0605 | VH20: 0.05981 | VI20: 0.05832 | VJ20: 0.05524 | VK20: 0.05323 | VL20: 0.04814 | VM20: 0.04873 | VN20: 0.04791 | VO20: 0.05124 | VP20: 0.04994 | VQ20: 0.05063 | VR20: 0.05245 | VS20: 0.05238 | VT20: 0.05166 | VU20: 0.05053 | VV20: 0.04681 | VW20: 0.04667 | VX20: 0.04079 | VY20: 0.0453 | VZ20: 0.04703 | WA20: 0.04874 | WB20: 0.0434 | WC20: 0.0462 | WD20: 0.05141 | WE20: 0.04867 | WF20: 0.04874 | WG20: 0.04571 | WH20: 0.04394 | WI20: 0.04655 | WJ20: 0.04553 | WK20: 0.04281 | WL20: 0.04413 | WM20: 0.04805 | WN20: 0.04603 | WO20: 0.04791 | WP20: 0.04278
A21: 20 | B21: 0.0013 | C21: 0.0001 | D21: 0.0001 | E21: 0.0001 | F21: 0.0001 | G21: 0.0001 | H21: 0.0001 | I21: 0.0001 | J21: 0.0001 | K21: 0.00214 | L21: 0.00753 | M21: 0.00506 | N21: 0.00687 | O21: 0.0061 | P21: 0.0074 | Q21: 0.00663 | R21: 0.00548 | S21: 0.00584 | T21: 0.00445 | U21: 0.00297 | V21: 0.00521 | W21: 0.00783 | X21: 0.00758 | Y21: 0.00885 | Z21: 0.0092 | AA21: 0.01002 | AB21: 0.00883 | AC21: 0.01086 | AD21: 0.01135 | AE21: 0.01309 | AF21: 0.01398 | AG21: 0.01398 | AH21: 0.0136 | AI21: 0.0158 | AJ21: 0.01716 | AK21: 0.019 | AL21: 0.01756 | AM21: 0.01723 | AN21: 0.01659 | AO21: 0.01626 | AP21: 0.01976 | AQ21: 0.01987 | AR21: 0.02082 | AS21: 0.01945 | AT21: 0.02174 | AU21: 0.02368 | AV21: 0.026 | AW21: 0.02846 | AX21: 0.02804 | AY21: 0.02802 | AZ21: 0.02827 | BA21: 0.026 | BB21: 0.02648 | BC21: 0.02555 | BD21: 0.02678 | BE21: 0.02735 | BF21: 0.02649 | BG21: 0.02625 | BH21: 0.02547 | BI21: 0.02563 | BJ21: 0.02797 | BK21: 0.02638 | BL21: 0.02726 | BM21: 0.02377 | BN21: 0.02138 | BO21: 0.02285 | BP21: 0.02069 | BQ21: 0.02087 | BR21: 0.02214 | BS21: 0.02196 | BT21: 0.02139 | BU21: 0.02291 | BV21: 0.02468 | BW21: 0.02551 | BX21: 0.02667 | BY21: 0.02742 | BZ21: 0.02722 | CA21: 0.02741 | CB21: 0.02479 | CC21: 0.02475 | CD21: 0.02755 | CE21: 0.02866 | CF21: 0.02907 | CG21: 0.02894 | CH21: 0.02817 | CI21: 0.02737 | CJ21: 0.02469 | CK21: 0.02607 | CL21: 0.02705 | CM21: 0.02551 | CN21: 0.02702 | CO21: 0.02912 | CP21: 0.0294 | CQ21: 0.03053 | CR21: 0.03156 | CS21: 0.03044 | CT21: 0.02972 | CU21: 0.02871 | CV21: 0.02951 | CW21: 0.03055 | CX21: 0.03039 | CY21: 0.03182 | CZ21: 0.03066 | DA21: 0.03045 | DB21: 0.03153 | DC21: 0.03247 | DD21: 0.03453 | DE21: 0.03589 | DF21: 0.03792 | DG21: 0.03717 | DH21: 0.0381 | DI21: 0.04015 | DJ21: 0.03891 | DK21: 0.04013 | DL21: 0.03952 | DM21: 0.04247 | DN21: 0.04065 | DO21: 0.04193 | DP21: 0.04569 | DQ21: 0.04356 | DR21: 0.04545 | DS21: 0.04525 | DT21: 0.04029 | DU21: 0.04242 | DV21: 0.04449 | DW21: 0.03806 | DX21: 0.03931 | DY21: 0.03515 | DZ21: 0.03398 | EA21: 0.03595 | EB21: 0.03441 | EC21: 0.03507 | ED21: 0.03499 | EE21: 0.03646 | EF21: 0.03448 | EG21: 0.03928 | EH21: 0.04341 | EI21: 0.04273 | EJ21: 0.03775 | EK21: 0.0378 | EL21: 0.03957 | EM21: 0.04005 | EN21: 0.04066 | EO21: 0.04079 | EP21: 0.03756 | EQ21: 0.03497 | ER21: 0.035 | ES21: 0.03668 | ET21: 0.03859 | EU21: 0.04041 | EV21: 0.04199 | EW21: 0.04131 | EX21: 0.03907 | EY21: 0.04418 | EZ21: 0.0445 | FA21: 0.04478 | FB21: 0.0419 | FC21: 0.04304 | FD21: 0.04572 | FE21: 0.04199 | FF21: 0.04101 | FG21: 0.0428 | FH21: 0.03828 | FI21: 0.03727 | FJ21: 0.03573 | FK21: 0.0338 | FL21: 0.03398 | FM21: 0.0337 | FN21: 0.03425 | FO21: 0.0311 | FP21: 0.03358 | FQ21: 0.0345 | FR21: 0.03428 | FS21: 0.03356 | FT21: 0.03309 | FU21: 0.03363 | FV21: 0.03262 | FW21: 0.03212 | FX21: 0.03109 | FY21: 0.02735 | FZ21: 0.02417 | GA21: 0.0233 | GB21: 0.02283 | GC21: 0.02199 | GD21: 0.02121 | GE21: 0.0227 | GF21: 0.02111 | GG21: 0.02309 | GH21: 0.02064 | GI21: 0.02097 | GJ21: 0.02344 | GK21: 0.0232 | GL21: 0.02302 | GM21: 0.02428 | GN21: 0.02559 | GO21: 0.02459 | GP21: 0.0249 | GQ21: 0.02805 | GR21: 0.0283 | GS21: 0.0314 | GT21: 0.02976 | GU21: 0.02919 | GV21: 0.03003 | GW21: 0.02943 | GX21: 0.02893 | GY21: 0.02957 | GZ21: 0.03345 | HA21: 0.03303 | HB21: 0.03652 | HC21: 0.0358 | HD21: 0.03381 | HE21: 0.03616 | HF21: 0.03474 | HG21: 0.03508 | HH21: 0.03506 | HI21: 0.03577 | HJ21: 0.03904 | HK21: 0.03903 | HL21: 0.0392 | HM21: 0.03732 | HN21: 0.03706 | HO21: 0.03825 | HP21: 0.03859 | HQ21: 0.03669 | HR21: 0.03591 | HS21: 0.03814 | HT21: 0.04065 | HU21: 0.03984 | HV21: 0.03677 | HW21: 0.03876 | HX21: 0.04218 | HY21: 0.04042 | HZ21: 0.03917 | IA21: 0.03913 | IB21: 0.03483 | IC21: 0.03439 | ID21: 0.0353 | IE21: 0.03412 | IF21: 0.03136 | IG21: 0.03416 | IH21: 0.03813 | II21: 0.03893 | IJ21: 0.03049 | IK21: 0.02919 | IL21: 0.03327 | IM21: 0.03424 | IN21: 0.03334 | IO21: 0.03026 | IP21: 0.0311 | IQ21: 0.03134 | IR21: 0.03023 | IS21: 0.03305 | IT21: 0.03374 | IU21: 0.03015 | IV21: 0.02861 | IW21: 0.02805 | IX21: 0.02748 | IY21: 0.02783 | IZ21: 0.02814 | JA21: 0.02922 | JB21: 0.03345 | JC21: 0.03325 | JD21: 0.03111 | JE21: 0.03374 | JF21: 0.02709 | JG21: 0.02253 | JH21: 0.02694 | JI21: 0.02428 | JJ21: 0.02638 | JK21: 0.02624 | JL21: 0.02393 | JM21: 0.0246 | JN21: 0.02615 | JO21: 0.02249 | JP21: 0.02638 | JQ21: 0.0257 | JR21: 0.02196 | JS21: 0.02002 | JT21: 0.02044 | JU21: 0.01893 | JV21: 0.01821 | JW21: 0.01839 | JX21: 0.01861 | JY21: 0.02111 | JZ21: 0.02219 | KA21: 0.01996 | KB21: 0.01877 | KC21: 0.01894 | KD21: 0.0195 | KE21: 0.02086 | KF21: 0.0213 | KG21: 0.01963 | KH21: 0.01677 | KI21: 0.01751 | KJ21: 0.01942 | KK21: 0.01617 | KL21: 0.01486 | KM21: 0.01626 | KN21: 0.01781 | KO21: 0.01702 | KP21: 0.01456 | KQ21: 0.01708 | KR21: 0.01822 | KS21: 0.01994 | KT21: 0.02108 | KU21: 0.01921 | KV21: 0.02199 | KW21: 0.02275 | KX21: 0.02389 | KY21: 0.02238 | KZ21: 0.02346 | LA21: 0.02316 | LB21: 0.02349 | LC21: 0.02451 | LD21: 0.02447 | LE21: 0.02294 | LF21: 0.0241 | LG21: 0.02321 | LH21: 0.02251 | LI21: 0.0216 | LJ21: 0.02044 | LK21: 0.02251 | LL21: 0.02211 | LM21: 0.0217 | LN21: 0.02202 | LO21: 0.02459 | LP21: 0.02291 | LQ21: 0.02455 | LR21: 0.02742 | LS21: 0.02494 | LT21: 0.02471 | LU21: 0.02482 | LV21: 0.02134 | LW21: 0.01858 | LX21: 0.02065 | LY21: 0.0172 | LZ21: 0.0176 | MA21: 0.01982 | MB21: 0.01945 | MC21: 0.01721 | MD21: 0.01482 | ME21: 0.01409 | MF21: 0.01384 | MG21: 0.01446 | MH21: 0.0157 | MI21: 0.02057 | MJ21: 0.01648 | MK21: 0.01673 | ML21: 0.01757 | MM21: 0.02191 | MN21: 0.02461 | MO21: 0.02685 | MP21: 0.02962 | MQ21: 0.02809 | MR21: 0.02588 | MS21: 0.02194 | MT21: 0.02442 | MU21: 0.0248 | MV21: 0.01741 | MW21: 0.021 | MX21: 0.0216 | MY21: 0.02445 | MZ21: 0.025 | NA21: 0.02537 | NB21: 0.0279 | NC21: 0.0289 | ND21: 0.03177 | NE21: 0.03495 | NF21: 0.03696 | NG21: 0.03294 | NH21: 0.03177 | NI21: 0.03074 | NJ21: 0.0273 | NK21: 0.03005 | NL21: 0.03516 | NM21: 0.04065 | NN21: 0.03783 | NO21: 0.03703 | NP21: 0.03476 | NQ21: 0.03436 | NR21: 0.0327 | NS21: 0.03332 | NT21: 0.03201 | NU21: 0.03356 | NV21: 0.0313 | NW21: 0.03394 | NX21: 0.03402 | NY21: 0.03486 | NZ21: 0.03546 | OA21: 0.034 | OB21: 0.03279 | OC21: 0.03244 | OD21: 0.03351 | OE21: 0.03414 | OF21: 0.03377 | OG21: 0.031 | OH21: 0.03265 | OI21: 0.03375 | OJ21: 0.03538 | OK21: 0.03578 | OL21: 0.03432 | OM21: 0.03037 | ON21: 0.02912 | OO21: 0.03118 | OP21: 0.03103 | OQ21: 0.0336 | OR21: 0.03598 | OS21: 0.03261 | OT21: 0.0308 | OU21: 0.03244 | OV21: 0.0313 | OW21: 0.03379 | OX21: 0.03331 | OY21: 0.02886 | OZ21: 0.03182 | PA21: 0.02751 | PB21: 0.02596 | PC21: 0.02265 | PD21: 0.02049 | PE21: 0.01726 | PF21: 0.01475 | PG21: 0.01354 | PH21: 0.0157 | PI21: 0.01463 | PJ21: 0.01457 | PK21: 0.01468 | PL21: 0.01437 | PM21: 0.01107 | PN21: 0.0107 | PO21: 0.0086 | PP21: 0.01231 | PQ21: 0.0162 | PR21: 0.01613 | PS21: 0.01772 | PT21: 0.01816 | PU21: 0.01754 | PV21: 0.01722 | PW21: 0.01671 | PX21: 0.01564 | PY21: 0.01556 | PZ21: 0.01625 | QA21: 0.01969 | QB21: 0.01816 | QC21: 0.01958 | QD21: 0.02019 | QE21: 0.02055 | QF21: 0.02105 | QG21: 0.01885 | QH21: 0.01936 | QI21: 0.01694 | QJ21: 0.02065 | QK21: 0.01957 | QL21: 0.02 | QM21: 0.02002 | QN21: 0.02013 | QO21: 0.02242 | QP21: 0.02135 | QQ21: 0.02088 | QR21: 0.01852 | QS21: 0.0196 | QT21: 0.02369 | QU21: 0.02498 | QV21: 0.02812 | QW21: 0.02576 | QX21: 0.02835 | QY21: 0.03224 | QZ21: 0.0327 | RA21: 0.03253 | RB21: 0.03198 | RC21: 0.03128 | RD21: 0.03259 | RE21: 0.03083 | RF21: 0.02916 | RG21: 0.03012 | RH21: 0.03011 | RI21: 0.03199 | RJ21: 0.03304 | RK21: 0.03133 | RL21: 0.03413 | RM21: 0.0343 | RN21: 0.03406 | RO21: 0.03662 | RP21: 0.03875 | RQ21: 0.0413 | RR21: 0.04341 | RS21: 0.04698 | RT21: 0.04632 | RU21: 0.04777 | RV21: 0.05111 | RW21: 0.05321 | RX21: 0.05187 | RY21: 0.05222 | RZ21: 0.05253 | SA21: 0.05012 | SB21: 0.05341 | SC21: 0.06198 | SD21: 0.06224 | SE21: 0.05696 | SF21: 0.05274 | SG21: 0.05251 | SH21: 0.04833 | SI21: 0.04732 | SJ21: 0.04627 | SK21: 0.04444 | SL21: 0.04373 | SM21: 0.04391 | SN21: 0.04306 | SO21: 0.04008 | SP21: 0.03875 | SQ21: 0.0405 | SR21: 0.03408 | SS21: 0.03707 | ST21: 0.0374 | SU21: 0.03251 | SV21: 0.03107 | SW21: 0.0354 | SX21: 0.03288 | SY21: 0.02897 | SZ21: 0.02933 | TA21: 0.02412 | TB21: 0.0231 | TC21: 0.02612 | TD21: 0.03069 | TE21: 0.03076 | TF21: 0.02672 | TG21: 0.02633 | TH21: 0.03034 | TI21: 0.02649 | TJ21: 0.02226 | TK21: 0.02405 | TL21: 0.02911 | TM21: 0.02768 | TN21: 0.02858 | TO21: 0.03155 | TP21: 0.02281 | TQ21: 0.02291 | TR21: 0.02249 | TS21: 0.02227 | TT21: 0.02412 | TU21: 0.02173 | TV21: 0.02278 | TW21: 0.02134 | TX21: 0.02067 | TY21: 0.02178 | TZ21: 0.02206 | UA21: 0.01908 | UB21: 0.01693 | UC21: 0.01518 | UD21: 0.01376 | UE21: 0.01382 | UF21: 0.01539 | UG21: 0.01627 | UH21: 0.01612 | UI21: 0.01662 | UJ21: 0.01759 | UK21: 0.01767 | UL21: 0.01481 | UM21: 0.01393 | UN21: 0.01544 | UO21: 0.01596 | UP21: 0.01541 | UQ21: 0.01452 | UR21: 0.01427 | US21: 0.01474 | UT21: 0.01265 | UU21: 0.01491 | UV21: 0.01287 | UW21: 0.01303 | UX21: 0.01433 | UY21: 0.01171 | UZ21: 0.01443 | VA21: 0.01498 | VB21: 0.01832 | VC21: 0.01751 | VD21: 0.02008 | VE21: 0.02101 | VF21: 0.01985 | VG21: 0.02069 | VH21: 0.02377 | VI21: 0.02424 | VJ21: 0.02586 | VK21: 0.02285 | VL21: 0.01979 | VM21: 0.0175 | VN21: 0.01624 | VO21: 0.01846 | VP21: 0.01696 | VQ21: 0.01848 | VR21: 0.01872 | VS21: 0.01623 | VT21: 0.01816 | VU21: 0.01413 | VV21: 0.01246 | VW21: 0.01255 | VX21: 0.01176 | VY21: 0.01134 | VZ21: 0.00919 | WA21: 0.00907 | WB21: 0.01153 | WC21: 0.01307 | WD21: 0.01602 | WE21: 0.01664 | WF21: 0.0183 | WG21: 0.01674 | WH21: 0.01789 | WI21: 0.01914 | WJ21: 0.01717 | WK21: 0.01809 | WL21: 0.01621 | WM21: 0.01363 | WN21: 0.01578 | WO21: 0.01694 | WP21: 0.01761
